Workbook

Sheet Main
C2: Hydroplaning Analysis | O2: Designer Notes:
D6: Version 1.0
A9: Project Information
B11: TIP # | D11: Example | G11: Design Firm | I11: Firm Name
B13: Date | D13: =TODAY() -> 2022-08-05 | G13: Designer | I13: Designer's Name
B15: County | D15: Johnston | G15: Project Description | I15: Short Description of the Project | O15: Typical Section:
B17: Division | D17: =IF(D15="","",VLOOKUP(D15,ModelParameters!T2:U101,2)) -> Division 4
A29: Developed by NCDOT and Atkins. NCDOT gratefully acknowledges the work done by FDOT in 2020 to program the computational foundation of this computer program.
A33: Notes: 1. Please save the program prior to using to ensure macros are able to run. 2. This program runs on macros and the 'Undo' button does not work on macros. 3. If you run into any problems please report them to the NCDOT CLEAR portal, linked below.
A38: https://connect.ncdot.gov/projects/Value-Management/CLEAR-Program/Pages/ideas.aspx

Sheet Procedure
A1: Hydroplaning Analysis Tool Procedure
J2: For further information on the NCDOT Hydroplaning Policy, refer to the Hydraulic Design Guidelines, Chapter 4: | V2: https://connect.ncdot.gov/resources/hydro/Pages/DrainageStudiesGuidelines.aspx

Sheet Final Assessment Table
A2: Hydraulics Designer: | B2: Designer's Name
A3: Reviewer: | E3: Final Hydroplaning Assessment
A4: Date: | B4: 2022-07-26
A5: Project TIP #: | B5: Example
A7: Area of Concern | B7: Analysis Description | C7: Alignment | D7: Station | E7: Direction | F7: Lane | G7: Design Speed (mph) | H7: Rainfall Intensity (I, in/hr) | I7: Long. Slope (%) | J7: Cross Slope (ft/ft) | K7: Pavement Width (ft) | L7: Pavement Surface Material | M7: Hydroplaning Average WFT (in) | N7: PAVDRN Hydroplaning Speed (mph) | O7: Predicted Driver Speed (mph) | P7: Analysis Notes | Q7: User-Defined Pavement Notes
A8: Typical Section 1 - Max. Long Grade (tangent section) [Ex 2.0] | B8: Greater than 36 ft. of Impervious Pavement | C8: L | D8: Sta. or Mile Marker | E8: Northbound | F8: Lane 4 | G8: 70 | H8: 2 | I8: 3.3 | J8: 0.02 | K8: 36 | L8: DGAC | M8: 0.07425354241 | N8: 56.06522278 | O8: 58 | P8: 0.02 ft/ft cross slope on the exterior produces more potential for hydroplaning
A9: Typical Section 1 - Max. Long Grade (tangent section) [Ex 2.1] | B9: Mitigation | C9: L | D9: Sta. or Mile Marker | E9: Northbound | F9: Lane 4 | G9: 70 | H9: 2 | I9: 3.3 | J9: 0.03 | K9: 36 | L9: DGAC | M9: 0.06607365661 | N9: 57.6324564 | O9: 58 | P9: No Hydroplaning potential w/ 0.03 ft/ft Exterior Lane cross slope
A10: Typical Section 1 - Max. Long Grade (tangent section) [Ex 2.2] | B10: Mitigation | C10: L | D10: Sta. or Mile Marker | E10: Northbound | F10: Lane 4 | G10: 70 | H10: 2 | I10: 3.3 | J10: 0.03 | K10: 36 | L10: PCC | M10: 0.05551995225 | N10: 60.0590441 | O10: 58 | P10: Concrete Pavement (PCC) shows no potential for Hydroplaning
A11: Typical Section 1 - Max. Long Grade (tangent section) [Ex 2.3] | B11: Mitigation | C11: L | D11: Sta. or Mile Marker | E11: Northbound | F11: Lane 4 | G11: 70 | H11: 2 | I11: 3.3 | J11: 0.03 | K11: 36 | L11: UTBWC | M11: 0.05236582834 | N11: 60.89945242 | O11: 58 | P11: Ultra-Thin Bonded Wearing Course Surface shows no potential for Hydroplaning
A12: Typical Section 1 - Max. Long Grade (tangent section) [Ex 2.4] | B12: Mitigation | C12: L | D12: Sta. or Mile Marker | E12: Northbound | F12: Lane 4 | G12: 70 | H12: 2 | I12: 3.3 | J12: 0.03 | K12: 36 | L12: OGFC | M12: 0.04317359882 | N12: 63.76509637 | O12: 58 | P12: Open Graded Friction Course Surface shows no potential for Hydroplaning
A13: Rollover Transition [Ex 3.0] | B13: Superelevation Transition | C13: L | D13: Sta. or Mile Marker | E13: Northbound | F13: Lane 4 | G13: 70 | H13: 2 | I13: 2.5 | J13: 0.02 | K13: 36 | L13: DGAC | M13: 0.1064781628 | N13: 52.62680512 | O13: 58 | P13: Fails with Dense Graded Asphalt (DGAC)
A14: Rollover Transition [Ex 3.1] | B14: Superelevation Mitigation | C14: L | D14: Sta. or Mile Marker | E14: Northbound | F14: Lane 4 | G14: 70 | H14: 2 | I14: 2.5 | J14: 0.02 | K14: 36 | L14: PCC | M14: 0.09131398318 | N14: 54.56466344 | O14: 58 | P14: Fails with Concrete Pavement (PCC)
A15: Rollover Transition [Ex 3.2] | B15: Superelevation Mitigation | C15: L | D15: Sta. or Mile Marker | E15: Northbound | F15: Lane 4 | G15: 70 | H15: 2 | I15: 2.5 | J15: 0.02 | K15: 36 | L15: UTBWC | M15: 0.08664428103 | N15: 55.46035334 | O15: 58 | P15: Shows a high potential for hydroplaning conditions
A16: Rollover Transition [Ex 3.3] | B16: Superelevation Mitigation | C16: L | D16: Sta. or Mile Marker | E16: Northbound | F16: Lane 4 | G16: 70 | H16: 2 | I16: 2.5 | J16: 0.02 | K16: 36 | L16: OGFC | M16: 0.07107024577 | N16: 60.27166606 | O16: 58 | P16: Open Graded Friction Course Surface Passes
A17: Initial Uniform Cross-slope After Rollover Transition [Ex 4.0] | B17: Greater than 36 ft. of Impervious Pavement | C17: L | D17: Sta. or Mile Marker | E17: Northbound | F17: Lane 1 | G17: 70 | H17: 2 | I17: 2.5 | J17: -0.02 | K17: 24 | L17: DGAC | M17: 0.08580047276 | N17: 54.18890475 | O17: 58 | P17: Fails when using Dense Graded Asphalt (DGAC)
A18: Initial Uniform Cross-slope After Rollover Transition [Ex 4.1] | B18: Mitigation | C18: L | D18: Sta. or Mile Marker | E18: Northbound | F18: Lane 1 | G18: 70 | H18: 2 | I18: 2.5 | J18: -0.02 | K18: 24 | L18: PCC | M18: 0.07387685605 | N18: 56.13253249 | O18: 58 | P18: Concrete Pavement (PCC) Shows more potential for hydroplaning conditions
A19: Initial Uniform Cross-slope After Rollover Transition [Ex 4.2] | B19: Mitigation | C19: L | D19: Sta. or Mile Marker | E19: Northbound | F19: Lane 1 | G19: 70 | H19: 2 | I19: 2.5 | J19: -0.02 | K19: 24 | L19: UTBWC | M19: 0.07084624547 | N19: 56.69028402 | O19: 58 | P19: Ultra-Thin Bonded Wearing Course Shows low potential for hydroplaning conditions
A20: Initial Uniform Cross-slope After Rollover Transition [Ex 4.3] | B20: Mitigation | C20: L | D20: Sta. or Mile Marker | E20: Northbound | F20: Lane 1 | G20: 70 | H20: 2 | I20: 2.5 | J20: -0.02 | K20: 24 | L20: OGFC | M20: 0.0629041443 | N20: 60.79954674 | O20: 58 | P20: Open Graded Friction Course Surface shows no potential for Hydroplaning
B31: Possible Hydroplane Conditions
B32: High | D32: Low | G32: None
B35: High: HPS is ≥ 4 mph Below the Predicted Driver Speed. Mitigation methods required.
B36: Low: HPS is ≥ 2 mph Below The Predicted Driver Speed. More potential for adverse conditions. Evaluate Mitigation methods needed and provide engineering justification if none are required which may include driver responsibility.
B38: None: HPS is greater than Predicted Driver Speed

Sheet HP (hidden)
D1: Hydroplaning Analysis Tool
B4: General Inputs | L4: Date
B6: TIP | I6: Designer
B8: County | I8: NCDOT Division No.
B10: Project Description
B12: Typical Section/Area of Concern | I12: Alignment
B14: Assessment Type | I14: Station/Milepost Range
B16: Analysis Description | I16: Direction
B19: Superelevation Transition | D19: # of lanes | F19: Factor | G19: =IF(OR(AnalysisType="Superelevation Transition",AnalysisType="Superelevation Mitigation"),IF(No.Lanes=2,1.8,IF(No.Lanes=3,1.5,IF(No.Lanes>=4,1.3,""))),1) -> 1
B21: Analysis Notes
B23: Analysis Options
B25: Select Analysis Option | E25: Deterministic (Default)
B26: Risk Analysis, per NCDOT rules | E26: Yes
B27: Pavement Inputs
B29: Deterministic Analysis
B31: Longitudinal Grade (%) | J31: Mean Profile Depth (in.)
B32: Surface Type | J32: =IF(OR(AnalysisType="Superelevation Transition",AnalysisType="Superelevation Mitigation"),"Warning: The cross-slope for all lanes going through rollover needs to be 0.02 ft/ft when doing a Superelevation analysis to ensure equation accuracy.","") -> 
B33: User-Defined Type | J33: User-Defined Mean Profile Depth (in.) | M33: 0.05
J34: User-Defined Manning's n | M34: 0.03
B35: Permeability (in/hr) | E35: 0
D37: 1 | E37: 2 | F37: 3 | G37: 4 | H37: 5 | I37: 6 | J37: 7 | K37: 8 | L37: 9 | M37: 10 | N37: 11 | O37: 12
B38: Description
B39: Design Speed (mph)
B40: Cross Slope (ft/ft)
B41: Width (ft.)
C43: 0 | D43: =C43-D41*D40 -> 0 | E43: 0 | F43: 0 | G43: 0 | H43: 0 | I43: 0 | J43: 0 | K43: 0 | L43: 0 | M43: 0 | N43: 0 | O43: 0
C44: 0 | D44: =D41 -> 0 | E44: =D44+E41 -> 0 | F44: =E44+F41 -> 0 | G44: 0 | H44: 0 | I44: 0 | J44: =I44+J41 -> 0 | K44: 0 | L44: =K44+L41 -> 0 | M44: 0 | N44: 0 | O44: 0
C46: =MIN($C$43:$O$43) -> 0 | D46: =MIN($C$43:$O$43) -> 0 | E46: 0 | F46: 0 | G46: 0 | H46: 0 | I46: 0 | J46: 0 | K46: 0 | L46: 0 | M46: 0 | N46: 0 | O46: 0
C47: 0 | D47: =C47+D41 -> 0 | E47: =D47+E41 -> 0 | F47: =E47+F41 -> 0 | G47: 0 | H47: 0 | I47: 0 | J47: 0 | K47: 0 | L47: 0 | M47: 0 | N47: 0 | O47: 0
B54: Scenario Roadway Typical
B57: Environmental Inputs
B59: Deterministic Analysis
B61: Rainfall Intensity (in/hr) | E61: 2 | I61: NCDOT Default Values: 2 in/hr and 32°F
B62: Temperature (deg. F) | E62: 32 | I62: <-- Note: Temperature is only needed for PAVDRN WFT Model
B65: Analysis Results
B67: Deterministic Analysis
B69: Drainage Path Length (in feet)
B70: Plane Number | D70: 1 | E70: 2 | F70: 3 | G70: 4 | H70: 5 | I70: 6 | J70: 7 | K70: 8 | L70: 9 | M70: 10 | N70: 11 | O70: 12
B71: Param \ Lane | D71: =IF(D38<>"",D38,"") -> 
B72: Total Slope (%) | D72: =IF(AND(D40<>"",D41<>""),SQRT($E$31^2+(D40*100)^2),"") -> 
B73: DP / Lane (ft.) | D73: =IF(D72<>"",D41*SQRT(1+($E$31/(D40*100))^2),"") -> 
D74: =IF(D73<>"",IF(D40<0,E74+D73,0),0) -> 0 | E74: =IF(E73<>"",IF(E40<0,F74+E73,0),0) -> 0 | F74: 0 | G74: 0 | H74: 0 | I74: 0 | J74: 0 | K74: 0 | L74: 0 | M74: 0 | N74: 0 | O74: 0
D75: =IF(D73<>"",IF(D40>0,D73+C75,0),0) -> 0 | E75: 0 | F75: 0 | G75: 0 | H75: 0 | I75: 0 | J75: 0 | K75: 0 | L75: 0 | M75: 0 | N75: 0 | O75: 0
B76: Total DP (ft.) | D76: =IF(D73<>"",MAX(D74:D75),"") ->  | E76: =IF(E73<>"",MAX(E74:E75),"") -> 
B78: Intermediate Variables
B80: Kin. Viscosity (ft2/s) | E80: =KVis.V0*EXP(KVis.a+KVis.b*273.16/(273.16+CONVERT(HP!$E$62,"F","C"))+KVis.c*(273.16/(273.16+CONVERT(HP!$E$62,"F","C")))^2)*CONVERT(1,"m","ft")^2*10^(-6) -> 1.925038816e-05 | I80: <-- Note: Viscosity is only used by PAVDRN WFT Model
B81: Mean Texture Depth (in.) | E81: =IF(AND(Deterministic.Texture="",User.Defined.Texture=""),"",IF($J$31="Mean Texture Depth (in.)",Deterministic.Texture,IF(Deterministic.Surf.Type="Dense Graded Asphalt (DGAC)",CONVERT(MPD.to.MTD.DGFC.a*(CONVERT(Deterministic.Texture,"in","mm"))+MPD.to.MTD.DGFC.b,"mm","in"),IF(Deterministic.Surf.Type="Open Graded Friction Course (OGFC)",MPD.to.MTD.OGFC.a*Deterministic.Texture+MPD.to.MTD.OGFC.b,IF(Deterministic.Surf.Type="Concrete Pavement (PCC)",MPD.to.MTD.LGD.a*Deterministic.Texture+MPD.to.MTD.LGD.b,IF(Deterministic.Surf.Type="Ultra-Thin Bonded Wearing Course",CONVERT(MPD.to.MTD.DGFC.a*(CONVERT(Deterministic.Texture,"in","mm"))+MPD.to.MTD.DGFC.b,"mm","in"),IF(Deterministic.Surf.Type="User-Defined",CONVERT(MPD.to.MTD.DGFC.a*(CONVERT(User.Defined.Texture,"in","mm"))+MPD.to.MTD.DGFC.b,"mm","in")))))))) -> FALSE
B83: Reynold's Number and Manning's Table | G83: <-- Note: Reynold's Number and Manning's N value are only used by PAVDRN WFT Model
B84: Plane Number | D84: 1 | E84: 2 | F84: 3 | G84: 4 | H84: 5 | I84: 6 | J84: 7 | K84: 8 | L84: 9 | M84: 10 | N84: 11 | O84: 12
B85: Param \ Lane | D85: =IF(D38<>"",D38,"") -> 
B86: Reynold's No. | D86: =IF(D76<>"",D76*($E$61-$E$35)/12/3600/$E$80,"") ->  | E86: =IF(E76<>"",E76*($E$61-$E$35)/12/3600/$E$80,"") -> 
B87: Manning's N | D87: =IF(D86<>"",IF(OR(Deterministic.Surf.Type="Dense Graded Asphalt (DGAC)",Deterministic.Surf.Type="User Defined Dense Graded Asphalt (DGAC)"),Manning.DGFC.Const*HP!D86^Manning.DGFC.NR,IF(OR(Deterministic.Surf.Type="Open Graded Friction Course (OGFC)",Deterministic.Surf.Type="User Defined Open Graded Friction Course (OGFC)"),Manning.OGFC.Const*HP!D86^Manning.OGFC.NR*(HP!D72/100)^Manning.OGFC.Slope,IF(D86<240,Manning.PCC.NR.lt.240.Const*D86^Manning.PCC.NR.lt.240.NR,IF(D86<500,Manning.PCC.NR.lt.500.Const*HP!D86^Manning.PCC.NR.lt.500.NR,IF(HP!D86<1000,Manning.PCC.NR.lt.1000.Const*HP!D86^Manning.PCC.NR.lt.1000.NR,0.017))))),"") ->  | E87: =IF(E86<>"",IF(OR(Deterministic.Surf.Type="Dense Graded Asphalt (DGAC)",Deterministic.Surf.Type="User Defined Dense Graded Asphalt (DGAC)"),Manning.DGFC.Const*HP!E86^Manning.DGFC.NR,IF(OR(Deterministic.Surf.Type="Open Graded Friction Course (OGFC)",Deterministic.Surf.Type="User Defined Open Graded Friction Course (OGFC)"),Manning.OGFC.Const*HP!E86^Manning.OGFC.NR*(HP!E72/100)^Manning.OGFC.Slope,IF(E86<240,Manning.PCC.NR.lt.240.Const*E86^Manning.PCC.NR.lt.240.NR,IF(E86<500,Manning.PCC.NR.lt.500.Const*HP!E86^Manning.PCC.NR.lt.500.NR,IF(HP!E86<1000,Manning.PCC.NR.lt.1000.Const*HP!E86^Manning.PCC.NR.lt.1000.NR,0.017))))),"") ->  | F87: =IF(F86<>"",IF(OR(Deterministic.Surf.Type="Dense Graded Asphalt (DGAC)",Deterministic.Surf.Type="User Defined Dense Graded Asphalt (DGAC)"),Manning.DGFC.Const*HP!F86^Manning.DGFC.NR,IF(OR(Deterministic.Surf.Type="Open Graded Friction Course (OGFC)",Deterministic.Surf.Type="User Defined Open Graded Friction Course (OGFC)"),Manning.OGFC.Const*HP!F86^Manning.OGFC.NR*(HP!F72/100)^Manning.OGFC.Slope,IF(F86<240,Manning.PCC.NR.lt.240.Const*F86^Manning.PCC.NR.lt.240.NR,IF(F86<500,Manning.PCC.NR.lt.500.Const*HP!F86^Manning.PCC.NR.lt.500.NR,IF(HP!F86<1000,Manning.PCC.NR.lt.1000.Const*HP!F86^Manning.PCC.NR.lt.1000.NR,0.017))))),"") ->  | G87: =IF(G86<>"",IF(OR(Deterministic.Surf.Type="Dense Graded Asphalt (DGAC)",Deterministic.Surf.Type="User Defined Dense Graded Asphalt (DGAC)"),Manning.DGFC.Const*HP!G86^Manning.DGFC.NR,IF(OR(Deterministic.Surf.Type="Open Graded Friction Course (OGFC)",Deterministic.Surf.Type="User Defined Open Graded Friction Course (OGFC)"),Manning.OGFC.Const*HP!G86^Manning.OGFC.NR*(HP!G72/100)^Manning.OGFC.Slope,IF(G86<240,Manning.PCC.NR.lt.240.Const*G86^Manning.PCC.NR.lt.240.NR,IF(G86<500,Manning.PCC.NR.lt.500.Const*HP!G86^Manning.PCC.NR.lt.500.NR,IF(HP!G86<1000,Manning.PCC.NR.lt.1000.Const*HP!G86^Manning.PCC.NR.lt.1000.NR,0.017))))),"") ->  | H87: =IF(H86<>"",IF(OR(Deterministic.Surf.Type="Dense Graded Asphalt (DGAC)",Deterministic.Surf.Type="User Defined Dense Graded Asphalt (DGAC)"),Manning.DGFC.Const*HP!H86^Manning.DGFC.NR,IF(OR(Deterministic.Surf.Type="Open Graded Friction Course (OGFC)",Deterministic.Surf.Type="User Defined Open Graded Friction Course (OGFC)"),Manning.OGFC.Const*HP!H86^Manning.OGFC.NR*(HP!H72/100)^Manning.OGFC.Slope,IF(H86<240,Manning.PCC.NR.lt.240.Const*H86^Manning.PCC.NR.lt.240.NR,IF(H86<500,Manning.PCC.NR.lt.500.Const*HP!H86^Manning.PCC.NR.lt.500.NR,IF(HP!H86<1000,Manning.PCC.NR.lt.1000.Const*HP!H86^Manning.PCC.NR.lt.1000.NR,0.017))))),"") ->  | I87: =IF(I86<>"",IF(OR(Deterministic.Surf.Type="Dense Graded Asphalt (DGAC)",Deterministic.Surf.Type="User Defined Dense Graded Asphalt (DGAC)"),Manning.DGFC.Const*HP!I86^Manning.DGFC.NR,IF(OR(Deterministic.Surf.Type="Open Graded Friction Course (OGFC)",Deterministic.Surf.Type="User Defined Open Graded Friction Course (OGFC)"),Manning.OGFC.Const*HP!I86^Manning.OGFC.NR*(HP!I72/100)^Manning.OGFC.Slope,IF(I86<240,Manning.PCC.NR.lt.240.Const*I86^Manning.PCC.NR.lt.240.NR,IF(I86<500,Manning.PCC.NR.lt.500.Const*HP!I86^Manning.PCC.NR.lt.500.NR,IF(HP!I86<1000,Manning.PCC.NR.lt.1000.Const*HP!I86^Manning.PCC.NR.lt.1000.NR,0.017))))),"") ->  | J87: =IF(J86<>"",IF(OR(Deterministic.Surf.Type="Dense Graded Asphalt (DGAC)",Deterministic.Surf.Type="User Defined Dense Graded Asphalt (DGAC)"),Manning.DGFC.Const*HP!J86^Manning.DGFC.NR,IF(OR(Deterministic.Surf.Type="Open Graded Friction Course (OGFC)",Deterministic.Surf.Type="User Defined Open Graded Friction Course (OGFC)"),Manning.OGFC.Const*HP!J86^Manning.OGFC.NR*(HP!J72/100)^Manning.OGFC.Slope,IF(J86<240,Manning.PCC.NR.lt.240.Const*J86^Manning.PCC.NR.lt.240.NR,IF(J86<500,Manning.PCC.NR.lt.500.Const*HP!J86^Manning.PCC.NR.lt.500.NR,IF(HP!J86<1000,Manning.PCC.NR.lt.1000.Const*HP!J86^Manning.PCC.NR.lt.1000.NR,0.017))))),"") ->  | K87: =IF(K86<>"",IF(OR(Deterministic.Surf.Type="Dense Graded Asphalt (DGAC)",Deterministic.Surf.Type="User Defined Dense Graded Asphalt (DGAC)"),Manning.DGFC.Const*HP!K86^Manning.DGFC.NR,IF(OR(Deterministic.Surf.Type="Open Graded Friction Course (OGFC)",Deterministic.Surf.Type="User Defined Open Graded Friction Course (OGFC)"),Manning.OGFC.Const*HP!K86^Manning.OGFC.NR*(HP!K72/100)^Manning.OGFC.Slope,IF(K86<240,Manning.PCC.NR.lt.240.Const*K86^Manning.PCC.NR.lt.240.NR,IF(K86<500,Manning.PCC.NR.lt.500.Const*HP!K86^Manning.PCC.NR.lt.500.NR,IF(HP!K86<1000,Manning.PCC.NR.lt.1000.Const*HP!K86^Manning.PCC.NR.lt.1000.NR,0.017))))),"") ->  | L87: =IF(L86<>"",IF(OR(Deterministic.Surf.Type="Dense Graded Asphalt (DGAC)",Deterministic.Surf.Type="User Defined Dense Graded Asphalt (DGAC)"),Manning.DGFC.Const*HP!L86^Manning.DGFC.NR,IF(OR(Deterministic.Surf.Type="Open Graded Friction Course (OGFC)",Deterministic.Surf.Type="User Defined Open Graded Friction Course (OGFC)"),Manning.OGFC.Const*HP!L86^Manning.OGFC.NR*(HP!L72/100)^Manning.OGFC.Slope,IF(L86<240,Manning.PCC.NR.lt.240.Const*L86^Manning.PCC.NR.lt.240.NR,IF(L86<500,Manning.PCC.NR.lt.500.Const*HP!L86^Manning.PCC.NR.lt.500.NR,IF(HP!L86<1000,Manning.PCC.NR.lt.1000.Const*HP!L86^Manning.PCC.NR.lt.1000.NR,0.017))))),"") ->  | M87: =IF(M86<>"",IF(OR(Deterministic.Surf.Type="Dense Graded Asphalt (DGAC)",Deterministic.Surf.Type="User Defined Dense Graded Asphalt (DGAC)"),Manning.DGFC.Const*HP!M86^Manning.DGFC.NR,IF(OR(Deterministic.Surf.Type="Open Graded Friction Course (OGFC)",Deterministic.Surf.Type="User Defined Open Graded Friction Course (OGFC)"),Manning.OGFC.Const*HP!M86^Manning.OGFC.NR*(HP!M72/100)^Manning.OGFC.Slope,IF(M86<240,Manning.PCC.NR.lt.240.Const*M86^Manning.PCC.NR.lt.240.NR,IF(M86<500,Manning.PCC.NR.lt.500.Const*HP!M86^Manning.PCC.NR.lt.500.NR,IF(HP!M86<1000,Manning.PCC.NR.lt.1000.Const*HP!M86^Manning.PCC.NR.lt.1000.NR,0.017))))),"") ->  | N87: =IF(N86<>"",IF(OR(Deterministic.Surf.Type="Dense Graded Asphalt (DGAC)",Deterministic.Surf.Type="User Defined Dense Graded Asphalt (DGAC)"),Manning.DGFC.Const*HP!N86^Manning.DGFC.NR,IF(OR(Deterministic.Surf.Type="Open Graded Friction Course (OGFC)",Deterministic.Surf.Type="User Defined Open Graded Friction Course (OGFC)"),Manning.OGFC.Const*HP!N86^Manning.OGFC.NR*(HP!N72/100)^Manning.OGFC.Slope,IF(N86<240,Manning.PCC.NR.lt.240.Const*N86^Manning.PCC.NR.lt.240.NR,IF(N86<500,Manning.PCC.NR.lt.500.Const*HP!N86^Manning.PCC.NR.lt.500.NR,IF(HP!N86<1000,Manning.PCC.NR.lt.1000.Const*HP!N86^Manning.PCC.NR.lt.1000.NR,0.017))))),"") ->  | O87: =IF(O86<>"",IF(OR(Deterministic.Surf.Type="Dense Graded Asphalt (DGAC)",Deterministic.Surf.Type="User Defined Dense Graded Asphalt (DGAC)"),Manning.DGFC.Const*HP!O86^Manning.DGFC.NR,IF(OR(Deterministic.Surf.Type="Open Graded Friction Course (OGFC)",Deterministic.Surf.Type="User Defined Open Graded Friction Course (OGFC)"),Manning.OGFC.Const*HP!O86^Manning.OGFC.NR*(HP!O72/100)^Manning.OGFC.Slope,IF(O86<240,Manning.PCC.NR.lt.240.Const*O86^Manning.PCC.NR.lt.240.NR,IF(O86<500,Manning.PCC.NR.lt.500.Const*HP!O86^Manning.PCC.NR.lt.500.NR,IF(HP!O86<1000,Manning.PCC.NR.lt.1000.Const*HP!O86^Manning.PCC.NR.lt.1000.NR,0.017))))),"") -> 
B94: PAVDRN Variables
B95: Plane Number | D95: 1 | E95: 2 | F95: 3 | G95: 4 | H95: 5 | I95: 6 | J95: 7 | K95: 8 | L95: 9 | M95: 10 | N95: 11 | O95: 12
B96: Intensity (in/hr) | C96: Variable | D96: Shoulder | E96: Lane 1 | F96: Lane 2 | G96: Lane 3 | H96: Lane 4 | I96: Lane 5 | J96: Lane 6 | K96: Lane 7 | L96: Lane 8 | M96: Lane 9 | N96: Lane 10 | O96: Lane 11
B97: 0.1 | C97: Reynolds | D97: =IF(D76<>"",D76*($B$97-$E$35)/12/3600/$E$80,"") ->  | E97: =IF(E76<>"",E76*($B$97-$E$35)/12/3600/$E$80,"") -> 
C98: Manning's n | D98: =IF(D86<>"",IF(Deterministic.Surf.Type="Dense Graded Asphalt (DGAC)",Manning.DGFC.Const*D97^Manning.DGFC.NR,IF(Deterministic.Surf.Type="Open Graded Friction Course (OGFC)",Manning.OGFC.Const*D97^Manning.OGFC.NR*(HP!D72/100)^Manning.OGFC.Slope,IF(Deterministic.Surf.Type="User-Defined",User.Defined.ManningValue,IF(D97<240,Manning.PCC.NR.lt.240.Const*D97^Manning.PCC.NR.lt.240.NR,IF(D97<500,Manning.PCC.NR.lt.500.Const*D97^Manning.PCC.NR.lt.500.NR,IF(D97<1000,Manning.PCC.NR.lt.1000.Const*D97^Manning.PCC.NR.lt.1000.NR,0.017)))))),"") ->  | E98: =IF(E86<>"",IF(Deterministic.Surf.Type="Dense Graded Asphalt (DGAC)",Manning.DGFC.Const*E97^Manning.DGFC.NR,IF(Deterministic.Surf.Type="Open Graded Friction Course (OGFC)",Manning.OGFC.Const*E97^Manning.OGFC.NR*(HP!E72/100)^Manning.OGFC.Slope,IF(Deterministic.Surf.Type="User-Defined",User.Defined.ManningValue,IF(E97<240,Manning.PCC.NR.lt.240.Const*E97^Manning.PCC.NR.lt.240.NR,IF(E97<500,Manning.PCC.NR.lt.500.Const*E97^Manning.PCC.NR.lt.500.NR,IF(E97<1000,Manning.PCC.NR.lt.1000.Const*E97^Manning.PCC.NR.lt.1000.NR,0.017)))))),"") ->  | F98: =IF(F86<>"",IF(Deterministic.Surf.Type="Dense Graded Asphalt (DGAC)",Manning.DGFC.Const*F97^Manning.DGFC.NR,IF(Deterministic.Surf.Type="Open Graded Friction Course (OGFC)",Manning.OGFC.Const*F97^Manning.OGFC.NR*(HP!F72/100)^Manning.OGFC.Slope,IF(Deterministic.Surf.Type="User-Defined",User.Defined.ManningValue,IF(F97<240,Manning.PCC.NR.lt.240.Const*F97^Manning.PCC.NR.lt.240.NR,IF(F97<500,Manning.PCC.NR.lt.500.Const*F97^Manning.PCC.NR.lt.500.NR,IF(F97<1000,Manning.PCC.NR.lt.1000.Const*F97^Manning.PCC.NR.lt.1000.NR,0.017)))))),"") ->  | G98: =IF(G86<>"",IF(Deterministic.Surf.Type="Dense Graded Asphalt (DGAC)",Manning.DGFC.Const*G97^Manning.DGFC.NR,IF(Deterministic.Surf.Type="Open Graded Friction Course (OGFC)",Manning.OGFC.Const*G97^Manning.OGFC.NR*(HP!G72/100)^Manning.OGFC.Slope,IF(Deterministic.Surf.Type="User-Defined",User.Defined.ManningValue,IF(G97<240,Manning.PCC.NR.lt.240.Const*G97^Manning.PCC.NR.lt.240.NR,IF(G97<500,Manning.PCC.NR.lt.500.Const*G97^Manning.PCC.NR.lt.500.NR,IF(G97<1000,Manning.PCC.NR.lt.1000.Const*G97^Manning.PCC.NR.lt.1000.NR,0.017)))))),"") ->  | H98: =IF(H86<>"",IF(Deterministic.Surf.Type="Dense Graded Asphalt (DGAC)",Manning.DGFC.Const*H97^Manning.DGFC.NR,IF(Deterministic.Surf.Type="Open Graded Friction Course (OGFC)",Manning.OGFC.Const*H97^Manning.OGFC.NR*(HP!H72/100)^Manning.OGFC.Slope,IF(Deterministic.Surf.Type="User-Defined",User.Defined.ManningValue,IF(H97<240,Manning.PCC.NR.lt.240.Const*H97^Manning.PCC.NR.lt.240.NR,IF(H97<500,Manning.PCC.NR.lt.500.Const*H97^Manning.PCC.NR.lt.500.NR,IF(H97<1000,Manning.PCC.NR.lt.1000.Const*H97^Manning.PCC.NR.lt.1000.NR,0.017)))))),"") ->  | I98: =IF(I86<>"",IF(Deterministic.Surf.Type="Dense Graded Asphalt (DGAC)",Manning.DGFC.Const*I97^Manning.DGFC.NR,IF(Deterministic.Surf.Type="Open Graded Friction Course (OGFC)",Manning.OGFC.Const*I97^Manning.OGFC.NR*(HP!I72/100)^Manning.OGFC.Slope,IF(Deterministic.Surf.Type="User-Defined",User.Defined.ManningValue,IF(I97<240,Manning.PCC.NR.lt.240.Const*I97^Manning.PCC.NR.lt.240.NR,IF(I97<500,Manning.PCC.NR.lt.500.Const*I97^Manning.PCC.NR.lt.500.NR,IF(I97<1000,Manning.PCC.NR.lt.1000.Const*I97^Manning.PCC.NR.lt.1000.NR,0.017)))))),"") ->  | J98: =IF(J86<>"",IF(Deterministic.Surf.Type="Dense Graded Asphalt (DGAC)",Manning.DGFC.Const*J97^Manning.DGFC.NR,IF(Deterministic.Surf.Type="Open Graded Friction Course (OGFC)",Manning.OGFC.Const*J97^Manning.OGFC.NR*(HP!J72/100)^Manning.OGFC.Slope,IF(Deterministic.Surf.Type="User-Defined",User.Defined.ManningValue,IF(J97<240,Manning.PCC.NR.lt.240.Const*J97^Manning.PCC.NR.lt.240.NR,IF(J97<500,Manning.PCC.NR.lt.500.Const*J97^Manning.PCC.NR.lt.500.NR,IF(J97<1000,Manning.PCC.NR.lt.1000.Const*J97^Manning.PCC.NR.lt.1000.NR,0.017)))))),"") ->  | K98: =IF(K86<>"",IF(Deterministic.Surf.Type="Dense Graded Asphalt (DGAC)",Manning.DGFC.Const*K97^Manning.DGFC.NR,IF(Deterministic.Surf.Type="Open Graded Friction Course (OGFC)",Manning.OGFC.Const*K97^Manning.OGFC.NR*(HP!K72/100)^Manning.OGFC.Slope,IF(Deterministic.Surf.Type="User-Defined",User.Defined.ManningValue,IF(K97<240,Manning.PCC.NR.lt.240.Const*K97^Manning.PCC.NR.lt.240.NR,IF(K97<500,Manning.PCC.NR.lt.500.Const*K97^Manning.PCC.NR.lt.500.NR,IF(K97<1000,Manning.PCC.NR.lt.1000.Const*K97^Manning.PCC.NR.lt.1000.NR,0.017)))))),"") ->  | L98: =IF(L86<>"",IF(Deterministic.Surf.Type="Dense Graded Asphalt (DGAC)",Manning.DGFC.Const*L97^Manning.DGFC.NR,IF(Deterministic.Surf.Type="Open Graded Friction Course (OGFC)",Manning.OGFC.Const*L97^Manning.OGFC.NR*(HP!L72/100)^Manning.OGFC.Slope,IF(Deterministic.Surf.Type="User-Defined",User.Defined.ManningValue,IF(L97<240,Manning.PCC.NR.lt.240.Const*L97^Manning.PCC.NR.lt.240.NR,IF(L97<500,Manning.PCC.NR.lt.500.Const*L97^Manning.PCC.NR.lt.500.NR,IF(L97<1000,Manning.PCC.NR.lt.1000.Const*L97^Manning.PCC.NR.lt.1000.NR,0.017)))))),"") ->  | M98: =IF(M86<>"",IF(Deterministic.Surf.Type="Dense Graded Asphalt (DGAC)",Manning.DGFC.Const*M97^Manning.DGFC.NR,IF(Deterministic.Surf.Type="Open Graded Friction Course (OGFC)",Manning.OGFC.Const*M97^Manning.OGFC.NR*(HP!M72/100)^Manning.OGFC.Slope,IF(Deterministic.Surf.Type="User-Defined",User.Defined.ManningValue,IF(M97<240,Manning.PCC.NR.lt.240.Const*M97^Manning.PCC.NR.lt.240.NR,IF(M97<500,Manning.PCC.NR.lt.500.Const*M97^Manning.PCC.NR.lt.500.NR,IF(M97<1000,Manning.PCC.NR.lt.1000.Const*M97^Manning.PCC.NR.lt.1000.NR,0.017)))))),"") ->  | N98: =IF(N86<>"",IF(Deterministic.Surf.Type="Dense Graded Asphalt (DGAC)",Manning.DGFC.Const*N97^Manning.DGFC.NR,IF(Deterministic.Surf.Type="Open Graded Friction Course (OGFC)",Manning.OGFC.Const*N97^Manning.OGFC.NR*(HP!N72/100)^Manning.OGFC.Slope,IF(Deterministic.Surf.Type="User-Defined",User.Defined.ManningValue,IF(N97<240,Manning.PCC.NR.lt.240.Const*N97^Manning.PCC.NR.lt.240.NR,IF(N97<500,Manning.PCC.NR.lt.500.Const*N97^Manning.PCC.NR.lt.500.NR,IF(N97<1000,Manning.PCC.NR.lt.1000.Const*N97^Manning.PCC.NR.lt.1000.NR,0.017)))))),"") ->  | O98: =IF(O86<>"",IF(Deterministic.Surf.Type="Dense Graded Asphalt (DGAC)",Manning.DGFC.Const*O97^Manning.DGFC.NR,IF(Deterministic.Surf.Type="Open Graded Friction Course (OGFC)",Manning.OGFC.Const*O97^Manning.OGFC.NR*(HP!O72/100)^Manning.OGFC.Slope,IF(Deterministic.Surf.Type="User-Defined",User.Defined.ManningValue,IF(O97<240,Manning.PCC.NR.lt.240.Const*O97^Manning.PCC.NR.lt.240.NR,IF(O97<500,Manning.PCC.NR.lt.500.Const*O97^Manning.PCC.NR.lt.500.NR,IF(O97<1000,Manning.PCC.NR.lt.1000.Const*O97^Manning.PCC.NR.lt.1000.NR,0.017)))))),"") -> 
B99: 0.25 | C99: Reynolds | D99: =IF(D76<>"",D76*($B$99-$E$35)/12/3600/$E$80,"") -> 
C100: Manning's n | D100: =IF(D86<>"",IF(Deterministic.Surf.Type="Dense Graded Asphalt (DGAC)",Manning.DGFC.Const*D99^Manning.DGFC.NR,IF(Deterministic.Surf.Type="Open Graded Friction Course (OGFC)",Manning.OGFC.Const*D99^Manning.OGFC.NR*(HP!D72/100)^Manning.OGFC.Slope,IF(Deterministic.Surf.Type="User-Defined",User.Defined.ManningValue,IF(D99<240,Manning.PCC.NR.lt.240.Const*D99^Manning.PCC.NR.lt.240.NR,IF(D99<500,Manning.PCC.NR.lt.500.Const*D99^Manning.PCC.NR.lt.500.NR,IF(D99<1000,Manning.PCC.NR.lt.1000.Const*D99^Manning.PCC.NR.lt.1000.NR,0.017)))))),"") ->  | E100: =IF(E86<>"",IF(Deterministic.Surf.Type="Dense Graded Asphalt (DGAC)",Manning.DGFC.Const*E99^Manning.DGFC.NR,IF(Deterministic.Surf.Type="Open Graded Friction Course (OGFC)",Manning.OGFC.Const*E99^Manning.OGFC.NR*(HP!E72/100)^Manning.OGFC.Slope,IF(Deterministic.Surf.Type="User-Defined",User.Defined.ManningValue,IF(E99<240,Manning.PCC.NR.lt.240.Const*E99^Manning.PCC.NR.lt.240.NR,IF(E99<500,Manning.PCC.NR.lt.500.Const*E99^Manning.PCC.NR.lt.500.NR,IF(E99<1000,Manning.PCC.NR.lt.1000.Const*E99^Manning.PCC.NR.lt.1000.NR,0.017)))))),"") ->  | F100: =IF(F86<>"",IF(Deterministic.Surf.Type="Dense Graded Asphalt (DGAC)",Manning.DGFC.Const*F99^Manning.DGFC.NR,IF(Deterministic.Surf.Type="Open Graded Friction Course (OGFC)",Manning.OGFC.Const*F99^Manning.OGFC.NR*(HP!F72/100)^Manning.OGFC.Slope,IF(Deterministic.Surf.Type="User-Defined",User.Defined.ManningValue,IF(F99<240,Manning.PCC.NR.lt.240.Const*F99^Manning.PCC.NR.lt.240.NR,IF(F99<500,Manning.PCC.NR.lt.500.Const*F99^Manning.PCC.NR.lt.500.NR,IF(F99<1000,Manning.PCC.NR.lt.1000.Const*F99^Manning.PCC.NR.lt.1000.NR,0.017)))))),"") ->  | G100: =IF(G86<>"",IF(Deterministic.Surf.Type="Dense Graded Asphalt (DGAC)",Manning.DGFC.Const*G99^Manning.DGFC.NR,IF(Deterministic.Surf.Type="Open Graded Friction Course (OGFC)",Manning.OGFC.Const*G99^Manning.OGFC.NR*(HP!G72/100)^Manning.OGFC.Slope,IF(Deterministic.Surf.Type="User-Defined",User.Defined.ManningValue,IF(G99<240,Manning.PCC.NR.lt.240.Const*G99^Manning.PCC.NR.lt.240.NR,IF(G99<500,Manning.PCC.NR.lt.500.Const*G99^Manning.PCC.NR.lt.500.NR,IF(G99<1000,Manning.PCC.NR.lt.1000.Const*G99^Manning.PCC.NR.lt.1000.NR,0.017)))))),"") ->  | H100: =IF(H86<>"",IF(Deterministic.Surf.Type="Dense Graded Asphalt (DGAC)",Manning.DGFC.Const*H99^Manning.DGFC.NR,IF(Deterministic.Surf.Type="Open Graded Friction Course (OGFC)",Manning.OGFC.Const*H99^Manning.OGFC.NR*(HP!H72/100)^Manning.OGFC.Slope,IF(Deterministic.Surf.Type="User-Defined",User.Defined.ManningValue,IF(H99<240,Manning.PCC.NR.lt.240.Const*H99^Manning.PCC.NR.lt.240.NR,IF(H99<500,Manning.PCC.NR.lt.500.Const*H99^Manning.PCC.NR.lt.500.NR,IF(H99<1000,Manning.PCC.NR.lt.1000.Const*H99^Manning.PCC.NR.lt.1000.NR,0.017)))))),"") ->  | I100: =IF(I86<>"",IF(Deterministic.Surf.Type="Dense Graded Asphalt (DGAC)",Manning.DGFC.Const*I99^Manning.DGFC.NR,IF(Deterministic.Surf.Type="Open Graded Friction Course (OGFC)",Manning.OGFC.Const*I99^Manning.OGFC.NR*(HP!I72/100)^Manning.OGFC.Slope,IF(Deterministic.Surf.Type="User-Defined",User.Defined.ManningValue,IF(I99<240,Manning.PCC.NR.lt.240.Const*I99^Manning.PCC.NR.lt.240.NR,IF(I99<500,Manning.PCC.NR.lt.500.Const*I99^Manning.PCC.NR.lt.500.NR,IF(I99<1000,Manning.PCC.NR.lt.1000.Const*I99^Manning.PCC.NR.lt.1000.NR,0.017)))))),"") ->  | J100: =IF(J86<>"",IF(Deterministic.Surf.Type="Dense Graded Asphalt (DGAC)",Manning.DGFC.Const*J99^Manning.DGFC.NR,IF(Deterministic.Surf.Type="Open Graded Friction Course (OGFC)",Manning.OGFC.Const*J99^Manning.OGFC.NR*(HP!J72/100)^Manning.OGFC.Slope,IF(Deterministic.Surf.Type="User-Defined",User.Defined.ManningValue,IF(J99<240,Manning.PCC.NR.lt.240.Const*J99^Manning.PCC.NR.lt.240.NR,IF(J99<500,Manning.PCC.NR.lt.500.Const*J99^Manning.PCC.NR.lt.500.NR,IF(J99<1000,Manning.PCC.NR.lt.1000.Const*J99^Manning.PCC.NR.lt.1000.NR,0.017)))))),"") ->  | K100: =IF(K86<>"",IF(Deterministic.Surf.Type="Dense Graded Asphalt (DGAC)",Manning.DGFC.Const*K99^Manning.DGFC.NR,IF(Deterministic.Surf.Type="Open Graded Friction Course (OGFC)",Manning.OGFC.Const*K99^Manning.OGFC.NR*(HP!K72/100)^Manning.OGFC.Slope,IF(Deterministic.Surf.Type="User-Defined",User.Defined.ManningValue,IF(K99<240,Manning.PCC.NR.lt.240.Const*K99^Manning.PCC.NR.lt.240.NR,IF(K99<500,Manning.PCC.NR.lt.500.Const*K99^Manning.PCC.NR.lt.500.NR,IF(K99<1000,Manning.PCC.NR.lt.1000.Const*K99^Manning.PCC.NR.lt.1000.NR,0.017)))))),"") ->  | L100: =IF(L86<>"",IF(Deterministic.Surf.Type="Dense Graded Asphalt (DGAC)",Manning.DGFC.Const*L99^Manning.DGFC.NR,IF(Deterministic.Surf.Type="Open Graded Friction Course (OGFC)",Manning.OGFC.Const*L99^Manning.OGFC.NR*(HP!L72/100)^Manning.OGFC.Slope,IF(Deterministic.Surf.Type="User-Defined",User.Defined.ManningValue,IF(L99<240,Manning.PCC.NR.lt.240.Const*L99^Manning.PCC.NR.lt.240.NR,IF(L99<500,Manning.PCC.NR.lt.500.Const*L99^Manning.PCC.NR.lt.500.NR,IF(L99<1000,Manning.PCC.NR.lt.1000.Const*L99^Manning.PCC.NR.lt.1000.NR,0.017)))))),"") ->  | M100: =IF(M86<>"",IF(Deterministic.Surf.Type="Dense Graded Asphalt (DGAC)",Manning.DGFC.Const*M99^Manning.DGFC.NR,IF(Deterministic.Surf.Type="Open Graded Friction Course (OGFC)",Manning.OGFC.Const*M99^Manning.OGFC.NR*(HP!M72/100)^Manning.OGFC.Slope,IF(Deterministic.Surf.Type="User-Defined",User.Defined.ManningValue,IF(M99<240,Manning.PCC.NR.lt.240.Const*M99^Manning.PCC.NR.lt.240.NR,IF(M99<500,Manning.PCC.NR.lt.500.Const*M99^Manning.PCC.NR.lt.500.NR,IF(M99<1000,Manning.PCC.NR.lt.1000.Const*M99^Manning.PCC.NR.lt.1000.NR,0.017)))))),"") ->  | N100: =IF(N86<>"",IF(Deterministic.Surf.Type="Dense Graded Asphalt (DGAC)",Manning.DGFC.Const*N99^Manning.DGFC.NR,IF(Deterministic.Surf.Type="Open Graded Friction Course (OGFC)",Manning.OGFC.Const*N99^Manning.OGFC.NR*(HP!N72/100)^Manning.OGFC.Slope,IF(Deterministic.Surf.Type="User-Defined",User.Defined.ManningValue,IF(N99<240,Manning.PCC.NR.lt.240.Const*N99^Manning.PCC.NR.lt.240.NR,IF(N99<500,Manning.PCC.NR.lt.500.Const*N99^Manning.PCC.NR.lt.500.NR,IF(N99<1000,Manning.PCC.NR.lt.1000.Const*N99^Manning.PCC.NR.lt.1000.NR,0.017)))))),"") ->  | O100: =IF(O86<>"",IF(Deterministic.Surf.Type="Dense Graded Asphalt (DGAC)",Manning.DGFC.Const*O99^Manning.DGFC.NR,IF(Deterministic.Surf.Type="Open Graded Friction Course (OGFC)",Manning.OGFC.Const*O99^Manning.OGFC.NR*(HP!O72/100)^Manning.OGFC.Slope,IF(Deterministic.Surf.Type="User-Defined",User.Defined.ManningValue,IF(O99<240,Manning.PCC.NR.lt.240.Const*O99^Manning.PCC.NR.lt.240.NR,IF(O99<500,Manning.PCC.NR.lt.500.Const*O99^Manning.PCC.NR.lt.500.NR,IF(O99<1000,Manning.PCC.NR.lt.1000.Const*O99^Manning.PCC.NR.lt.1000.NR,0.017)))))),"") -> 
B101: 0.5 | C101: Reynolds | D101: =IF(D76<>"",D76*($B$101-$E$35)/12/3600/$E$80,"") -> 
C102: Manning's n | D102: =IF(D86<>"",IF(Deterministic.Surf.Type="Dense Graded Asphalt (DGAC)",Manning.DGFC.Const*D101^Manning.DGFC.NR,IF(Deterministic.Surf.Type="Open Graded Friction Course (OGFC)",Manning.OGFC.Const*D101^Manning.OGFC.NR*(HP!D72/100)^Manning.OGFC.Slope,IF(Deterministic.Surf.Type="User-Defined",User.Defined.ManningValue,IF(D101<240,Manning.PCC.NR.lt.240.Const*D101^Manning.PCC.NR.lt.240.NR,IF(D101<500,Manning.PCC.NR.lt.500.Const*D101^Manning.PCC.NR.lt.500.NR,IF(D101<1000,Manning.PCC.NR.lt.1000.Const*D101^Manning.PCC.NR.lt.1000.NR,0.017)))))),"") ->  | E102: =IF(E86<>"",IF(Deterministic.Surf.Type="Dense Graded Asphalt (DGAC)",Manning.DGFC.Const*E101^Manning.DGFC.NR,IF(Deterministic.Surf.Type="Open Graded Friction Course (OGFC)",Manning.OGFC.Const*E101^Manning.OGFC.NR*(HP!E72/100)^Manning.OGFC.Slope,IF(Deterministic.Surf.Type="User-Defined",User.Defined.ManningValue,IF(E101<240,Manning.PCC.NR.lt.240.Const*E101^Manning.PCC.NR.lt.240.NR,IF(E101<500,Manning.PCC.NR.lt.500.Const*E101^Manning.PCC.NR.lt.500.NR,IF(E101<1000,Manning.PCC.NR.lt.1000.Const*E101^Manning.PCC.NR.lt.1000.NR,0.017)))))),"") ->  | F102: =IF(F86<>"",IF(Deterministic.Surf.Type="Dense Graded Asphalt (DGAC)",Manning.DGFC.Const*F101^Manning.DGFC.NR,IF(Deterministic.Surf.Type="Open Graded Friction Course (OGFC)",Manning.OGFC.Const*F101^Manning.OGFC.NR*(HP!F72/100)^Manning.OGFC.Slope,IF(Deterministic.Surf.Type="User-Defined",User.Defined.ManningValue,IF(F101<240,Manning.PCC.NR.lt.240.Const*F101^Manning.PCC.NR.lt.240.NR,IF(F101<500,Manning.PCC.NR.lt.500.Const*F101^Manning.PCC.NR.lt.500.NR,IF(F101<1000,Manning.PCC.NR.lt.1000.Const*F101^Manning.PCC.NR.lt.1000.NR,0.017)))))),"") ->  | G102: =IF(G86<>"",IF(Deterministic.Surf.Type="Dense Graded Asphalt (DGAC)",Manning.DGFC.Const*G101^Manning.DGFC.NR,IF(Deterministic.Surf.Type="Open Graded Friction Course (OGFC)",Manning.OGFC.Const*G101^Manning.OGFC.NR*(HP!G72/100)^Manning.OGFC.Slope,IF(Deterministic.Surf.Type="User-Defined",User.Defined.ManningValue,IF(G101<240,Manning.PCC.NR.lt.240.Const*G101^Manning.PCC.NR.lt.240.NR,IF(G101<500,Manning.PCC.NR.lt.500.Const*G101^Manning.PCC.NR.lt.500.NR,IF(G101<1000,Manning.PCC.NR.lt.1000.Const*G101^Manning.PCC.NR.lt.1000.NR,0.017)))))),"") ->  | H102: =IF(H86<>"",IF(Deterministic.Surf.Type="Dense Graded Asphalt (DGAC)",Manning.DGFC.Const*H101^Manning.DGFC.NR,IF(Deterministic.Surf.Type="Open Graded Friction Course (OGFC)",Manning.OGFC.Const*H101^Manning.OGFC.NR*(HP!H72/100)^Manning.OGFC.Slope,IF(Deterministic.Surf.Type="User-Defined",User.Defined.ManningValue,IF(H101<240,Manning.PCC.NR.lt.240.Const*H101^Manning.PCC.NR.lt.240.NR,IF(H101<500,Manning.PCC.NR.lt.500.Const*H101^Manning.PCC.NR.lt.500.NR,IF(H101<1000,Manning.PCC.NR.lt.1000.Const*H101^Manning.PCC.NR.lt.1000.NR,0.017)))))),"") ->  | I102: =IF(I86<>"",IF(Deterministic.Surf.Type="Dense Graded Asphalt (DGAC)",Manning.DGFC.Const*I101^Manning.DGFC.NR,IF(Deterministic.Surf.Type="Open Graded Friction Course (OGFC)",Manning.OGFC.Const*I101^Manning.OGFC.NR*(HP!I72/100)^Manning.OGFC.Slope,IF(Deterministic.Surf.Type="User-Defined",User.Defined.ManningValue,IF(I101<240,Manning.PCC.NR.lt.240.Const*I101^Manning.PCC.NR.lt.240.NR,IF(I101<500,Manning.PCC.NR.lt.500.Const*I101^Manning.PCC.NR.lt.500.NR,IF(I101<1000,Manning.PCC.NR.lt.1000.Const*I101^Manning.PCC.NR.lt.1000.NR,0.017)))))),"") ->  | J102: =IF(J86<>"",IF(Deterministic.Surf.Type="Dense Graded Asphalt (DGAC)",Manning.DGFC.Const*J101^Manning.DGFC.NR,IF(Deterministic.Surf.Type="Open Graded Friction Course (OGFC)",Manning.OGFC.Const*J101^Manning.OGFC.NR*(HP!J72/100)^Manning.OGFC.Slope,IF(Deterministic.Surf.Type="User-Defined",User.Defined.ManningValue,IF(J101<240,Manning.PCC.NR.lt.240.Const*J101^Manning.PCC.NR.lt.240.NR,IF(J101<500,Manning.PCC.NR.lt.500.Const*J101^Manning.PCC.NR.lt.500.NR,IF(J101<1000,Manning.PCC.NR.lt.1000.Const*J101^Manning.PCC.NR.lt.1000.NR,0.017)))))),"") ->  | K102: =IF(K86<>"",IF(Deterministic.Surf.Type="Dense Graded Asphalt (DGAC)",Manning.DGFC.Const*K101^Manning.DGFC.NR,IF(Deterministic.Surf.Type="Open Graded Friction Course (OGFC)",Manning.OGFC.Const*K101^Manning.OGFC.NR*(HP!K72/100)^Manning.OGFC.Slope,IF(Deterministic.Surf.Type="User-Defined",User.Defined.ManningValue,IF(K101<240,Manning.PCC.NR.lt.240.Const*K101^Manning.PCC.NR.lt.240.NR,IF(K101<500,Manning.PCC.NR.lt.500.Const*K101^Manning.PCC.NR.lt.500.NR,IF(K101<1000,Manning.PCC.NR.lt.1000.Const*K101^Manning.PCC.NR.lt.1000.NR,0.017)))))),"") ->  | L102: =IF(L86<>"",IF(Deterministic.Surf.Type="Dense Graded Asphalt (DGAC)",Manning.DGFC.Const*L101^Manning.DGFC.NR,IF(Deterministic.Surf.Type="Open Graded Friction Course (OGFC)",Manning.OGFC.Const*L101^Manning.OGFC.NR*(HP!L72/100)^Manning.OGFC.Slope,IF(Deterministic.Surf.Type="User-Defined",User.Defined.ManningValue,IF(L101<240,Manning.PCC.NR.lt.240.Const*L101^Manning.PCC.NR.lt.240.NR,IF(L101<500,Manning.PCC.NR.lt.500.Const*L101^Manning.PCC.NR.lt.500.NR,IF(L101<1000,Manning.PCC.NR.lt.1000.Const*L101^Manning.PCC.NR.lt.1000.NR,0.017)))))),"") ->  | M102: =IF(M86<>"",IF(Deterministic.Surf.Type="Dense Graded Asphalt (DGAC)",Manning.DGFC.Const*M101^Manning.DGFC.NR,IF(Deterministic.Surf.Type="Open Graded Friction Course (OGFC)",Manning.OGFC.Const*M101^Manning.OGFC.NR*(HP!M72/100)^Manning.OGFC.Slope,IF(Deterministic.Surf.Type="User-Defined",User.Defined.ManningValue,IF(M101<240,Manning.PCC.NR.lt.240.Const*M101^Manning.PCC.NR.lt.240.NR,IF(M101<500,Manning.PCC.NR.lt.500.Const*M101^Manning.PCC.NR.lt.500.NR,IF(M101<1000,Manning.PCC.NR.lt.1000.Const*M101^Manning.PCC.NR.lt.1000.NR,0.017)))))),"") ->  | N102: =IF(N86<>"",IF(Deterministic.Surf.Type="Dense Graded Asphalt (DGAC)",Manning.DGFC.Const*N101^Manning.DGFC.NR,IF(Deterministic.Surf.Type="Open Graded Friction Course (OGFC)",Manning.OGFC.Const*N101^Manning.OGFC.NR*(HP!N72/100)^Manning.OGFC.Slope,IF(Deterministic.Surf.Type="User-Defined",User.Defined.ManningValue,IF(N101<240,Manning.PCC.NR.lt.240.Const*N101^Manning.PCC.NR.lt.240.NR,IF(N101<500,Manning.PCC.NR.lt.500.Const*N101^Manning.PCC.NR.lt.500.NR,IF(N101<1000,Manning.PCC.NR.lt.1000.Const*N101^Manning.PCC.NR.lt.1000.NR,0.017)))))),"") ->  | O102: =IF(O86<>"",IF(Deterministic.Surf.Type="Dense Graded Asphalt (DGAC)",Manning.DGFC.Const*O101^Manning.DGFC.NR,IF(Deterministic.Surf.Type="Open Graded Friction Course (OGFC)",Manning.OGFC.Const*O101^Manning.OGFC.NR*(HP!O72/100)^Manning.OGFC.Slope,IF(Deterministic.Surf.Type="User-Defined",User.Defined.ManningValue,IF(O101<240,Manning.PCC.NR.lt.240.Const*O101^Manning.PCC.NR.lt.240.NR,IF(O101<500,Manning.PCC.NR.lt.500.Const*O101^Manning.PCC.NR.lt.500.NR,IF(O101<1000,Manning.PCC.NR.lt.1000.Const*O101^Manning.PCC.NR.lt.1000.NR,0.017)))))),"") -> 
B103: 1 | C103: Reynolds | D103: =IF(D76<>"",D76*($B$103-$E$35)/12/3600/$E$80,"") -> 
C104: Manning's n | D104: =IF(D86<>"",IF(Deterministic.Surf.Type="Dense Graded Asphalt (DGAC)",Manning.DGFC.Const*D103^Manning.DGFC.NR,IF(Deterministic.Surf.Type="Open Graded Friction Course (OGFC)",Manning.OGFC.Const*D103^Manning.OGFC.NR*(HP!D72/100)^Manning.OGFC.Slope,IF(Deterministic.Surf.Type="User-Defined",User.Defined.ManningValue,IF(D103<240,Manning.PCC.NR.lt.240.Const*D103^Manning.PCC.NR.lt.240.NR,IF(D103<500,Manning.PCC.NR.lt.500.Const*D103^Manning.PCC.NR.lt.500.NR,IF(D103<1000,Manning.PCC.NR.lt.1000.Const*D103^Manning.PCC.NR.lt.1000.NR,0.017)))))),"") ->  | E104: =IF(E86<>"",IF(Deterministic.Surf.Type="Dense Graded Asphalt (DGAC)",Manning.DGFC.Const*E103^Manning.DGFC.NR,IF(Deterministic.Surf.Type="Open Graded Friction Course (OGFC)",Manning.OGFC.Const*E103^Manning.OGFC.NR*(HP!E72/100)^Manning.OGFC.Slope,IF(Deterministic.Surf.Type="User-Defined",User.Defined.ManningValue,IF(E103<240,Manning.PCC.NR.lt.240.Const*E103^Manning.PCC.NR.lt.240.NR,IF(E103<500,Manning.PCC.NR.lt.500.Const*E103^Manning.PCC.NR.lt.500.NR,IF(E103<1000,Manning.PCC.NR.lt.1000.Const*E103^Manning.PCC.NR.lt.1000.NR,0.017)))))),"") ->  | F104: =IF(F86<>"",IF(Deterministic.Surf.Type="Dense Graded Asphalt (DGAC)",Manning.DGFC.Const*F103^Manning.DGFC.NR,IF(Deterministic.Surf.Type="Open Graded Friction Course (OGFC)",Manning.OGFC.Const*F103^Manning.OGFC.NR*(HP!F72/100)^Manning.OGFC.Slope,IF(Deterministic.Surf.Type="User-Defined",User.Defined.ManningValue,IF(F103<240,Manning.PCC.NR.lt.240.Const*F103^Manning.PCC.NR.lt.240.NR,IF(F103<500,Manning.PCC.NR.lt.500.Const*F103^Manning.PCC.NR.lt.500.NR,IF(F103<1000,Manning.PCC.NR.lt.1000.Const*F103^Manning.PCC.NR.lt.1000.NR,0.017)))))),"") ->  | G104: =IF(G86<>"",IF(Deterministic.Surf.Type="Dense Graded Asphalt (DGAC)",Manning.DGFC.Const*G103^Manning.DGFC.NR,IF(Deterministic.Surf.Type="Open Graded Friction Course (OGFC)",Manning.OGFC.Const*G103^Manning.OGFC.NR*(HP!G72/100)^Manning.OGFC.Slope,IF(Deterministic.Surf.Type="User-Defined",User.Defined.ManningValue,IF(G103<240,Manning.PCC.NR.lt.240.Const*G103^Manning.PCC.NR.lt.240.NR,IF(G103<500,Manning.PCC.NR.lt.500.Const*G103^Manning.PCC.NR.lt.500.NR,IF(G103<1000,Manning.PCC.NR.lt.1000.Const*G103^Manning.PCC.NR.lt.1000.NR,0.017)))))),"") ->  | H104: =IF(H86<>"",IF(Deterministic.Surf.Type="Dense Graded Asphalt (DGAC)",Manning.DGFC.Const*H103^Manning.DGFC.NR,IF(Deterministic.Surf.Type="Open Graded Friction Course (OGFC)",Manning.OGFC.Const*H103^Manning.OGFC.NR*(HP!H72/100)^Manning.OGFC.Slope,IF(Deterministic.Surf.Type="User-Defined",User.Defined.ManningValue,IF(H103<240,Manning.PCC.NR.lt.240.Const*H103^Manning.PCC.NR.lt.240.NR,IF(H103<500,Manning.PCC.NR.lt.500.Const*H103^Manning.PCC.NR.lt.500.NR,IF(H103<1000,Manning.PCC.NR.lt.1000.Const*H103^Manning.PCC.NR.lt.1000.NR,0.017)))))),"") ->  | I104: =IF(I86<>"",IF(Deterministic.Surf.Type="Dense Graded Asphalt (DGAC)",Manning.DGFC.Const*I103^Manning.DGFC.NR,IF(Deterministic.Surf.Type="Open Graded Friction Course (OGFC)",Manning.OGFC.Const*I103^Manning.OGFC.NR*(HP!I72/100)^Manning.OGFC.Slope,IF(Deterministic.Surf.Type="User-Defined",User.Defined.ManningValue,IF(I103<240,Manning.PCC.NR.lt.240.Const*I103^Manning.PCC.NR.lt.240.NR,IF(I103<500,Manning.PCC.NR.lt.500.Const*I103^Manning.PCC.NR.lt.500.NR,IF(I103<1000,Manning.PCC.NR.lt.1000.Const*I103^Manning.PCC.NR.lt.1000.NR,0.017)))))),"") ->  | J104: =IF(J86<>"",IF(Deterministic.Surf.Type="Dense Graded Asphalt (DGAC)",Manning.DGFC.Const*J103^Manning.DGFC.NR,IF(Deterministic.Surf.Type="Open Graded Friction Course (OGFC)",Manning.OGFC.Const*J103^Manning.OGFC.NR*(HP!J72/100)^Manning.OGFC.Slope,IF(Deterministic.Surf.Type="User-Defined",User.Defined.ManningValue,IF(J103<240,Manning.PCC.NR.lt.240.Const*J103^Manning.PCC.NR.lt.240.NR,IF(J103<500,Manning.PCC.NR.lt.500.Const*J103^Manning.PCC.NR.lt.500.NR,IF(J103<1000,Manning.PCC.NR.lt.1000.Const*J103^Manning.PCC.NR.lt.1000.NR,0.017)))))),"") ->  | K104: =IF(K86<>"",IF(Deterministic.Surf.Type="Dense Graded Asphalt (DGAC)",Manning.DGFC.Const*K103^Manning.DGFC.NR,IF(Deterministic.Surf.Type="Open Graded Friction Course (OGFC)",Manning.OGFC.Const*K103^Manning.OGFC.NR*(HP!K72/100)^Manning.OGFC.Slope,IF(Deterministic.Surf.Type="User-Defined",User.Defined.ManningValue,IF(K103<240,Manning.PCC.NR.lt.240.Const*K103^Manning.PCC.NR.lt.240.NR,IF(K103<500,Manning.PCC.NR.lt.500.Const*K103^Manning.PCC.NR.lt.500.NR,IF(K103<1000,Manning.PCC.NR.lt.1000.Const*K103^Manning.PCC.NR.lt.1000.NR,0.017)))))),"") ->  | L104: =IF(L86<>"",IF(Deterministic.Surf.Type="Dense Graded Asphalt (DGAC)",Manning.DGFC.Const*L103^Manning.DGFC.NR,IF(Deterministic.Surf.Type="Open Graded Friction Course (OGFC)",Manning.OGFC.Const*L103^Manning.OGFC.NR*(HP!L72/100)^Manning.OGFC.Slope,IF(Deterministic.Surf.Type="User-Defined",User.Defined.ManningValue,IF(L103<240,Manning.PCC.NR.lt.240.Const*L103^Manning.PCC.NR.lt.240.NR,IF(L103<500,Manning.PCC.NR.lt.500.Const*L103^Manning.PCC.NR.lt.500.NR,IF(L103<1000,Manning.PCC.NR.lt.1000.Const*L103^Manning.PCC.NR.lt.1000.NR,0.017)))))),"") ->  | M104: =IF(M86<>"",IF(Deterministic.Surf.Type="Dense Graded Asphalt (DGAC)",Manning.DGFC.Const*M103^Manning.DGFC.NR,IF(Deterministic.Surf.Type="Open Graded Friction Course (OGFC)",Manning.OGFC.Const*M103^Manning.OGFC.NR*(HP!M72/100)^Manning.OGFC.Slope,IF(Deterministic.Surf.Type="User-Defined",User.Defined.ManningValue,IF(M103<240,Manning.PCC.NR.lt.240.Const*M103^Manning.PCC.NR.lt.240.NR,IF(M103<500,Manning.PCC.NR.lt.500.Const*M103^Manning.PCC.NR.lt.500.NR,IF(M103<1000,Manning.PCC.NR.lt.1000.Const*M103^Manning.PCC.NR.lt.1000.NR,0.017)))))),"") ->  | N104: =IF(N86<>"",IF(Deterministic.Surf.Type="Dense Graded Asphalt (DGAC)",Manning.DGFC.Const*N103^Manning.DGFC.NR,IF(Deterministic.Surf.Type="Open Graded Friction Course (OGFC)",Manning.OGFC.Const*N103^Manning.OGFC.NR*(HP!N72/100)^Manning.OGFC.Slope,IF(Deterministic.Surf.Type="User-Defined",User.Defined.ManningValue,IF(N103<240,Manning.PCC.NR.lt.240.Const*N103^Manning.PCC.NR.lt.240.NR,IF(N103<500,Manning.PCC.NR.lt.500.Const*N103^Manning.PCC.NR.lt.500.NR,IF(N103<1000,Manning.PCC.NR.lt.1000.Const*N103^Manning.PCC.NR.lt.1000.NR,0.017)))))),"") ->  | O104: =IF(O86<>"",IF(Deterministic.Surf.Type="Dense Graded Asphalt (DGAC)",Manning.DGFC.Const*O103^Manning.DGFC.NR,IF(Deterministic.Surf.Type="Open Graded Friction Course (OGFC)",Manning.OGFC.Const*O103^Manning.OGFC.NR*(HP!O72/100)^Manning.OGFC.Slope,IF(Deterministic.Surf.Type="User-Defined",User.Defined.ManningValue,IF(O103<240,Manning.PCC.NR.lt.240.Const*O103^Manning.PCC.NR.lt.240.NR,IF(O103<500,Manning.PCC.NR.lt.500.Const*O103^Manning.PCC.NR.lt.500.NR,IF(O103<1000,Manning.PCC.NR.lt.1000.Const*O103^Manning.PCC.NR.lt.1000.NR,0.017)))))),"") -> 
B105: 2 | C105: Reynolds | D105: =IF(D76<>"",D76*($B$105-$E$35)/12/3600/$E$80,"") -> 
C106: Manning's n | D106: =IF(D86<>"",IF(Deterministic.Surf.Type="Dense Graded Asphalt (DGAC)",Manning.DGFC.Const*D105^Manning.DGFC.NR,IF(Deterministic.Surf.Type="Open Graded Friction Course (OGFC)",Manning.OGFC.Const*D105^Manning.OGFC.NR*(HP!D72/100)^Manning.OGFC.Slope,IF(Deterministic.Surf.Type="User-Defined",User.Defined.ManningValue,IF(D105<240,Manning.PCC.NR.lt.240.Const*D105^Manning.PCC.NR.lt.240.NR,IF(D105<500,Manning.PCC.NR.lt.500.Const*D105^Manning.PCC.NR.lt.500.NR,IF(D105<1000,Manning.PCC.NR.lt.1000.Const*D105^Manning.PCC.NR.lt.1000.NR,0.017)))))),"") ->  | E106: =IF(E86<>"",IF(Deterministic.Surf.Type="Dense Graded Asphalt (DGAC)",Manning.DGFC.Const*E105^Manning.DGFC.NR,IF(Deterministic.Surf.Type="Open Graded Friction Course (OGFC)",Manning.OGFC.Const*E105^Manning.OGFC.NR*(HP!E72/100)^Manning.OGFC.Slope,IF(Deterministic.Surf.Type="User-Defined",User.Defined.ManningValue,IF(E105<240,Manning.PCC.NR.lt.240.Const*E105^Manning.PCC.NR.lt.240.NR,IF(E105<500,Manning.PCC.NR.lt.500.Const*E105^Manning.PCC.NR.lt.500.NR,IF(E105<1000,Manning.PCC.NR.lt.1000.Const*E105^Manning.PCC.NR.lt.1000.NR,0.017)))))),"") ->  | F106: =IF(F86<>"",IF(Deterministic.Surf.Type="Dense Graded Asphalt (DGAC)",Manning.DGFC.Const*F105^Manning.DGFC.NR,IF(Deterministic.Surf.Type="Open Graded Friction Course (OGFC)",Manning.OGFC.Const*F105^Manning.OGFC.NR*(HP!F72/100)^Manning.OGFC.Slope,IF(Deterministic.Surf.Type="User-Defined",User.Defined.ManningValue,IF(F105<240,Manning.PCC.NR.lt.240.Const*F105^Manning.PCC.NR.lt.240.NR,IF(F105<500,Manning.PCC.NR.lt.500.Const*F105^Manning.PCC.NR.lt.500.NR,IF(F105<1000,Manning.PCC.NR.lt.1000.Const*F105^Manning.PCC.NR.lt.1000.NR,0.017)))))),"") ->  | G106: =IF(G86<>"",IF(Deterministic.Surf.Type="Dense Graded Asphalt (DGAC)",Manning.DGFC.Const*G105^Manning.DGFC.NR,IF(Deterministic.Surf.Type="Open Graded Friction Course (OGFC)",Manning.OGFC.Const*G105^Manning.OGFC.NR*(HP!G72/100)^Manning.OGFC.Slope,IF(Deterministic.Surf.Type="User-Defined",User.Defined.ManningValue,IF(G105<240,Manning.PCC.NR.lt.240.Const*G105^Manning.PCC.NR.lt.240.NR,IF(G105<500,Manning.PCC.NR.lt.500.Const*G105^Manning.PCC.NR.lt.500.NR,IF(G105<1000,Manning.PCC.NR.lt.1000.Const*G105^Manning.PCC.NR.lt.1000.NR,0.017)))))),"") ->  | H106: =IF(H86<>"",IF(Deterministic.Surf.Type="Dense Graded Asphalt (DGAC)",Manning.DGFC.Const*H105^Manning.DGFC.NR,IF(Deterministic.Surf.Type="Open Graded Friction Course (OGFC)",Manning.OGFC.Const*H105^Manning.OGFC.NR*(HP!H72/100)^Manning.OGFC.Slope,IF(Deterministic.Surf.Type="User-Defined",User.Defined.ManningValue,IF(H105<240,Manning.PCC.NR.lt.240.Const*H105^Manning.PCC.NR.lt.240.NR,IF(H105<500,Manning.PCC.NR.lt.500.Const*H105^Manning.PCC.NR.lt.500.NR,IF(H105<1000,Manning.PCC.NR.lt.1000.Const*H105^Manning.PCC.NR.lt.1000.NR,0.017)))))),"") ->  | I106: =IF(I86<>"",IF(Deterministic.Surf.Type="Dense Graded Asphalt (DGAC)",Manning.DGFC.Const*I105^Manning.DGFC.NR,IF(Deterministic.Surf.Type="Open Graded Friction Course (OGFC)",Manning.OGFC.Const*I105^Manning.OGFC.NR*(HP!I72/100)^Manning.OGFC.Slope,IF(Deterministic.Surf.Type="User-Defined",User.Defined.ManningValue,IF(I105<240,Manning.PCC.NR.lt.240.Const*I105^Manning.PCC.NR.lt.240.NR,IF(I105<500,Manning.PCC.NR.lt.500.Const*I105^Manning.PCC.NR.lt.500.NR,IF(I105<1000,Manning.PCC.NR.lt.1000.Const*I105^Manning.PCC.NR.lt.1000.NR,0.017)))))),"") ->  | J106: =IF(J86<>"",IF(Deterministic.Surf.Type="Dense Graded Asphalt (DGAC)",Manning.DGFC.Const*J105^Manning.DGFC.NR,IF(Deterministic.Surf.Type="Open Graded Friction Course (OGFC)",Manning.OGFC.Const*J105^Manning.OGFC.NR*(HP!J72/100)^Manning.OGFC.Slope,IF(Deterministic.Surf.Type="User-Defined",User.Defined.ManningValue,IF(J105<240,Manning.PCC.NR.lt.240.Const*J105^Manning.PCC.NR.lt.240.NR,IF(J105<500,Manning.PCC.NR.lt.500.Const*J105^Manning.PCC.NR.lt.500.NR,IF(J105<1000,Manning.PCC.NR.lt.1000.Const*J105^Manning.PCC.NR.lt.1000.NR,0.017)))))),"") ->  | K106: =IF(K86<>"",IF(Deterministic.Surf.Type="Dense Graded Asphalt (DGAC)",Manning.DGFC.Const*K105^Manning.DGFC.NR,IF(Deterministic.Surf.Type="Open Graded Friction Course (OGFC)",Manning.OGFC.Const*K105^Manning.OGFC.NR*(HP!K72/100)^Manning.OGFC.Slope,IF(Deterministic.Surf.Type="User-Defined",User.Defined.ManningValue,IF(K105<240,Manning.PCC.NR.lt.240.Const*K105^Manning.PCC.NR.lt.240.NR,IF(K105<500,Manning.PCC.NR.lt.500.Const*K105^Manning.PCC.NR.lt.500.NR,IF(K105<1000,Manning.PCC.NR.lt.1000.Const*K105^Manning.PCC.NR.lt.1000.NR,0.017)))))),"") ->  | L106: =IF(L86<>"",IF(Deterministic.Surf.Type="Dense Graded Asphalt (DGAC)",Manning.DGFC.Const*L105^Manning.DGFC.NR,IF(Deterministic.Surf.Type="Open Graded Friction Course (OGFC)",Manning.OGFC.Const*L105^Manning.OGFC.NR*(HP!L72/100)^Manning.OGFC.Slope,IF(Deterministic.Surf.Type="User-Defined",User.Defined.ManningValue,IF(L105<240,Manning.PCC.NR.lt.240.Const*L105^Manning.PCC.NR.lt.240.NR,IF(L105<500,Manning.PCC.NR.lt.500.Const*L105^Manning.PCC.NR.lt.500.NR,IF(L105<1000,Manning.PCC.NR.lt.1000.Const*L105^Manning.PCC.NR.lt.1000.NR,0.017)))))),"") ->  | M106: =IF(M86<>"",IF(Deterministic.Surf.Type="Dense Graded Asphalt (DGAC)",Manning.DGFC.Const*M105^Manning.DGFC.NR,IF(Deterministic.Surf.Type="Open Graded Friction Course (OGFC)",Manning.OGFC.Const*M105^Manning.OGFC.NR*(HP!M72/100)^Manning.OGFC.Slope,IF(Deterministic.Surf.Type="User-Defined",User.Defined.ManningValue,IF(M105<240,Manning.PCC.NR.lt.240.Const*M105^Manning.PCC.NR.lt.240.NR,IF(M105<500,Manning.PCC.NR.lt.500.Const*M105^Manning.PCC.NR.lt.500.NR,IF(M105<1000,Manning.PCC.NR.lt.1000.Const*M105^Manning.PCC.NR.lt.1000.NR,0.017)))))),"") ->  | N106: =IF(N86<>"",IF(Deterministic.Surf.Type="Dense Graded Asphalt (DGAC)",Manning.DGFC.Const*N105^Manning.DGFC.NR,IF(Deterministic.Surf.Type="Open Graded Friction Course (OGFC)",Manning.OGFC.Const*N105^Manning.OGFC.NR*(HP!N72/100)^Manning.OGFC.Slope,IF(Deterministic.Surf.Type="User-Defined",User.Defined.ManningValue,IF(N105<240,Manning.PCC.NR.lt.240.Const*N105^Manning.PCC.NR.lt.240.NR,IF(N105<500,Manning.PCC.NR.lt.500.Const*N105^Manning.PCC.NR.lt.500.NR,IF(N105<1000,Manning.PCC.NR.lt.1000.Const*N105^Manning.PCC.NR.lt.1000.NR,0.017)))))),"") ->  | O106: =IF(O86<>"",IF(Deterministic.Surf.Type="Dense Graded Asphalt (DGAC)",Manning.DGFC.Const*O105^Manning.DGFC.NR,IF(Deterministic.Surf.Type="Open Graded Friction Course (OGFC)",Manning.OGFC.Const*O105^Manning.OGFC.NR*(HP!O72/100)^Manning.OGFC.Slope,IF(Deterministic.Surf.Type="User-Defined",User.Defined.ManningValue,IF(O105<240,Manning.PCC.NR.lt.240.Const*O105^Manning.PCC.NR.lt.240.NR,IF(O105<500,Manning.PCC.NR.lt.500.Const*O105^Manning.PCC.NR.lt.500.NR,IF(O105<1000,Manning.PCC.NR.lt.1000.Const*O105^Manning.PCC.NR.lt.1000.NR,0.017)))))),"") -> 
B107: 3 | C107: Reynolds | D107: =IF(D76<>"",D76*($B$107-$E$35)/12/3600/$E$80,"") -> 
C108: Manning's n | D108: =IF(D86<>"",IF(Deterministic.Surf.Type="Dense Graded Asphalt (DGAC)",Manning.DGFC.Const*D107^Manning.DGFC.NR,IF(Deterministic.Surf.Type="Open Graded Friction Course (OGFC)",Manning.OGFC.Const*D107^Manning.OGFC.NR*(HP!D72/100)^Manning.OGFC.Slope,IF(Deterministic.Surf.Type="User-Defined",User.Defined.ManningValue,IF(D107<240,Manning.PCC.NR.lt.240.Const*D107^Manning.PCC.NR.lt.240.NR,IF(D107<500,Manning.PCC.NR.lt.500.Const*D107^Manning.PCC.NR.lt.500.NR,IF(D107<1000,Manning.PCC.NR.lt.1000.Const*D107^Manning.PCC.NR.lt.1000.NR,0.017)))))),"") ->  | E108: =IF(E86<>"",IF(Deterministic.Surf.Type="Dense Graded Asphalt (DGAC)",Manning.DGFC.Const*E107^Manning.DGFC.NR,IF(Deterministic.Surf.Type="Open Graded Friction Course (OGFC)",Manning.OGFC.Const*E107^Manning.OGFC.NR*(HP!E72/100)^Manning.OGFC.Slope,IF(Deterministic.Surf.Type="User-Defined",User.Defined.ManningValue,IF(E107<240,Manning.PCC.NR.lt.240.Const*E107^Manning.PCC.NR.lt.240.NR,IF(E107<500,Manning.PCC.NR.lt.500.Const*E107^Manning.PCC.NR.lt.500.NR,IF(E107<1000,Manning.PCC.NR.lt.1000.Const*E107^Manning.PCC.NR.lt.1000.NR,0.017)))))),"") ->  | F108: =IF(F86<>"",IF(Deterministic.Surf.Type="Dense Graded Asphalt (DGAC)",Manning.DGFC.Const*F107^Manning.DGFC.NR,IF(Deterministic.Surf.Type="Open Graded Friction Course (OGFC)",Manning.OGFC.Const*F107^Manning.OGFC.NR*(HP!F72/100)^Manning.OGFC.Slope,IF(Deterministic.Surf.Type="User-Defined",User.Defined.ManningValue,IF(F107<240,Manning.PCC.NR.lt.240.Const*F107^Manning.PCC.NR.lt.240.NR,IF(F107<500,Manning.PCC.NR.lt.500.Const*F107^Manning.PCC.NR.lt.500.NR,IF(F107<1000,Manning.PCC.NR.lt.1000.Const*F107^Manning.PCC.NR.lt.1000.NR,0.017)))))),"") ->  | G108: =IF(G86<>"",IF(Deterministic.Surf.Type="Dense Graded Asphalt (DGAC)",Manning.DGFC.Const*G107^Manning.DGFC.NR,IF(Deterministic.Surf.Type="Open Graded Friction Course (OGFC)",Manning.OGFC.Const*G107^Manning.OGFC.NR*(HP!G72/100)^Manning.OGFC.Slope,IF(Deterministic.Surf.Type="User-Defined",User.Defined.ManningValue,IF(G107<240,Manning.PCC.NR.lt.240.Const*G107^Manning.PCC.NR.lt.240.NR,IF(G107<500,Manning.PCC.NR.lt.500.Const*G107^Manning.PCC.NR.lt.500.NR,IF(G107<1000,Manning.PCC.NR.lt.1000.Const*G107^Manning.PCC.NR.lt.1000.NR,0.017)))))),"") ->  | H108: =IF(H86<>"",IF(Deterministic.Surf.Type="Dense Graded Asphalt (DGAC)",Manning.DGFC.Const*H107^Manning.DGFC.NR,IF(Deterministic.Surf.Type="Open Graded Friction Course (OGFC)",Manning.OGFC.Const*H107^Manning.OGFC.NR*(HP!H72/100)^Manning.OGFC.Slope,IF(Deterministic.Surf.Type="User-Defined",User.Defined.ManningValue,IF(H107<240,Manning.PCC.NR.lt.240.Const*H107^Manning.PCC.NR.lt.240.NR,IF(H107<500,Manning.PCC.NR.lt.500.Const*H107^Manning.PCC.NR.lt.500.NR,IF(H107<1000,Manning.PCC.NR.lt.1000.Const*H107^Manning.PCC.NR.lt.1000.NR,0.017)))))),"") ->  | I108: =IF(I86<>"",IF(Deterministic.Surf.Type="Dense Graded Asphalt (DGAC)",Manning.DGFC.Const*I107^Manning.DGFC.NR,IF(Deterministic.Surf.Type="Open Graded Friction Course (OGFC)",Manning.OGFC.Const*I107^Manning.OGFC.NR*(HP!I72/100)^Manning.OGFC.Slope,IF(Deterministic.Surf.Type="User-Defined",User.Defined.ManningValue,IF(I107<240,Manning.PCC.NR.lt.240.Const*I107^Manning.PCC.NR.lt.240.NR,IF(I107<500,Manning.PCC.NR.lt.500.Const*I107^Manning.PCC.NR.lt.500.NR,IF(I107<1000,Manning.PCC.NR.lt.1000.Const*I107^Manning.PCC.NR.lt.1000.NR,0.017)))))),"") ->  | J108: =IF(J86<>"",IF(Deterministic.Surf.Type="Dense Graded Asphalt (DGAC)",Manning.DGFC.Const*J107^Manning.DGFC.NR,IF(Deterministic.Surf.Type="Open Graded Friction Course (OGFC)",Manning.OGFC.Const*J107^Manning.OGFC.NR*(HP!J72/100)^Manning.OGFC.Slope,IF(Deterministic.Surf.Type="User-Defined",User.Defined.ManningValue,IF(J107<240,Manning.PCC.NR.lt.240.Const*J107^Manning.PCC.NR.lt.240.NR,IF(J107<500,Manning.PCC.NR.lt.500.Const*J107^Manning.PCC.NR.lt.500.NR,IF(J107<1000,Manning.PCC.NR.lt.1000.Const*J107^Manning.PCC.NR.lt.1000.NR,0.017)))))),"") ->  | K108: =IF(K86<>"",IF(Deterministic.Surf.Type="Dense Graded Asphalt (DGAC)",Manning.DGFC.Const*K107^Manning.DGFC.NR,IF(Deterministic.Surf.Type="Open Graded Friction Course (OGFC)",Manning.OGFC.Const*K107^Manning.OGFC.NR*(HP!K72/100)^Manning.OGFC.Slope,IF(Deterministic.Surf.Type="User-Defined",User.Defined.ManningValue,IF(K107<240,Manning.PCC.NR.lt.240.Const*K107^Manning.PCC.NR.lt.240.NR,IF(K107<500,Manning.PCC.NR.lt.500.Const*K107^Manning.PCC.NR.lt.500.NR,IF(K107<1000,Manning.PCC.NR.lt.1000.Const*K107^Manning.PCC.NR.lt.1000.NR,0.017)))))),"") ->  | L108: =IF(L86<>"",IF(Deterministic.Surf.Type="Dense Graded Asphalt (DGAC)",Manning.DGFC.Const*L107^Manning.DGFC.NR,IF(Deterministic.Surf.Type="Open Graded Friction Course (OGFC)",Manning.OGFC.Const*L107^Manning.OGFC.NR*(HP!L72/100)^Manning.OGFC.Slope,IF(Deterministic.Surf.Type="User-Defined",User.Defined.ManningValue,IF(L107<240,Manning.PCC.NR.lt.240.Const*L107^Manning.PCC.NR.lt.240.NR,IF(L107<500,Manning.PCC.NR.lt.500.Const*L107^Manning.PCC.NR.lt.500.NR,IF(L107<1000,Manning.PCC.NR.lt.1000.Const*L107^Manning.PCC.NR.lt.1000.NR,0.017)))))),"") ->  | M108: =IF(M86<>"",IF(Deterministic.Surf.Type="Dense Graded Asphalt (DGAC)",Manning.DGFC.Const*M107^Manning.DGFC.NR,IF(Deterministic.Surf.Type="Open Graded Friction Course (OGFC)",Manning.OGFC.Const*M107^Manning.OGFC.NR*(HP!M72/100)^Manning.OGFC.Slope,IF(Deterministic.Surf.Type="User-Defined",User.Defined.ManningValue,IF(M107<240,Manning.PCC.NR.lt.240.Const*M107^Manning.PCC.NR.lt.240.NR,IF(M107<500,Manning.PCC.NR.lt.500.Const*M107^Manning.PCC.NR.lt.500.NR,IF(M107<1000,Manning.PCC.NR.lt.1000.Const*M107^Manning.PCC.NR.lt.1000.NR,0.017)))))),"") ->  | N108: =IF(N86<>"",IF(Deterministic.Surf.Type="Dense Graded Asphalt (DGAC)",Manning.DGFC.Const*N107^Manning.DGFC.NR,IF(Deterministic.Surf.Type="Open Graded Friction Course (OGFC)",Manning.OGFC.Const*N107^Manning.OGFC.NR*(HP!N72/100)^Manning.OGFC.Slope,IF(Deterministic.Surf.Type="User-Defined",User.Defined.ManningValue,IF(N107<240,Manning.PCC.NR.lt.240.Const*N107^Manning.PCC.NR.lt.240.NR,IF(N107<500,Manning.PCC.NR.lt.500.Const*N107^Manning.PCC.NR.lt.500.NR,IF(N107<1000,Manning.PCC.NR.lt.1000.Const*N107^Manning.PCC.NR.lt.1000.NR,0.017)))))),"") ->  | O108: =IF(O86<>"",IF(Deterministic.Surf.Type="Dense Graded Asphalt (DGAC)",Manning.DGFC.Const*O107^Manning.DGFC.NR,IF(Deterministic.Surf.Type="Open Graded Friction Course (OGFC)",Manning.OGFC.Const*O107^Manning.OGFC.NR*(HP!O72/100)^Manning.OGFC.Slope,IF(Deterministic.Surf.Type="User-Defined",User.Defined.ManningValue,IF(O107<240,Manning.PCC.NR.lt.240.Const*O107^Manning.PCC.NR.lt.240.NR,IF(O107<500,Manning.PCC.NR.lt.500.Const*O107^Manning.PCC.NR.lt.500.NR,IF(O107<1000,Manning.PCC.NR.lt.1000.Const*O107^Manning.PCC.NR.lt.1000.NR,0.017)))))),"") -> 
B109: 4 | C109: Reynolds | D109: =IF(D76<>"",D76*($B$109-$E$35)/12/3600/$E$80,"") -> 
C110: Manning's n | D110: =IF(D86<>"",IF(Deterministic.Surf.Type="Dense Graded Asphalt (DGAC)",Manning.DGFC.Const*D109^Manning.DGFC.NR,IF(Deterministic.Surf.Type="Open Graded Friction Course (OGFC)",Manning.OGFC.Const*D109^Manning.OGFC.NR*(HP!D72/100)^Manning.OGFC.Slope,IF(Deterministic.Surf.Type="User-Defined",User.Defined.ManningValue,IF(D109<240,Manning.PCC.NR.lt.240.Const*D109^Manning.PCC.NR.lt.240.NR,IF(D109<500,Manning.PCC.NR.lt.500.Const*D109^Manning.PCC.NR.lt.500.NR,IF(D109<1000,Manning.PCC.NR.lt.1000.Const*D109^Manning.PCC.NR.lt.1000.NR,0.017)))))),"") ->  | E110: =IF(E86<>"",IF(Deterministic.Surf.Type="Dense Graded Asphalt (DGAC)",Manning.DGFC.Const*E109^Manning.DGFC.NR,IF(Deterministic.Surf.Type="Open Graded Friction Course (OGFC)",Manning.OGFC.Const*E109^Manning.OGFC.NR*(HP!E72/100)^Manning.OGFC.Slope,IF(Deterministic.Surf.Type="User-Defined",User.Defined.ManningValue,IF(E109<240,Manning.PCC.NR.lt.240.Const*E109^Manning.PCC.NR.lt.240.NR,IF(E109<500,Manning.PCC.NR.lt.500.Const*E109^Manning.PCC.NR.lt.500.NR,IF(E109<1000,Manning.PCC.NR.lt.1000.Const*E109^Manning.PCC.NR.lt.1000.NR,0.017)))))),"") ->  | F110: =IF(F86<>"",IF(Deterministic.Surf.Type="Dense Graded Asphalt (DGAC)",Manning.DGFC.Const*F109^Manning.DGFC.NR,IF(Deterministic.Surf.Type="Open Graded Friction Course (OGFC)",Manning.OGFC.Const*F109^Manning.OGFC.NR*(HP!F72/100)^Manning.OGFC.Slope,IF(Deterministic.Surf.Type="User-Defined",User.Defined.ManningValue,IF(F109<240,Manning.PCC.NR.lt.240.Const*F109^Manning.PCC.NR.lt.240.NR,IF(F109<500,Manning.PCC.NR.lt.500.Const*F109^Manning.PCC.NR.lt.500.NR,IF(F109<1000,Manning.PCC.NR.lt.1000.Const*F109^Manning.PCC.NR.lt.1000.NR,0.017)))))),"") ->  | G110: =IF(G86<>"",IF(Deterministic.Surf.Type="Dense Graded Asphalt (DGAC)",Manning.DGFC.Const*G109^Manning.DGFC.NR,IF(Deterministic.Surf.Type="Open Graded Friction Course (OGFC)",Manning.OGFC.Const*G109^Manning.OGFC.NR*(HP!G72/100)^Manning.OGFC.Slope,IF(Deterministic.Surf.Type="User-Defined",User.Defined.ManningValue,IF(G109<240,Manning.PCC.NR.lt.240.Const*G109^Manning.PCC.NR.lt.240.NR,IF(G109<500,Manning.PCC.NR.lt.500.Const*G109^Manning.PCC.NR.lt.500.NR,IF(G109<1000,Manning.PCC.NR.lt.1000.Const*G109^Manning.PCC.NR.lt.1000.NR,0.017)))))),"") ->  | H110: =IF(H86<>"",IF(Deterministic.Surf.Type="Dense Graded Asphalt (DGAC)",Manning.DGFC.Const*H109^Manning.DGFC.NR,IF(Deterministic.Surf.Type="Open Graded Friction Course (OGFC)",Manning.OGFC.Const*H109^Manning.OGFC.NR*(HP!H72/100)^Manning.OGFC.Slope,IF(Deterministic.Surf.Type="User-Defined",User.Defined.ManningValue,IF(H109<240,Manning.PCC.NR.lt.240.Const*H109^Manning.PCC.NR.lt.240.NR,IF(H109<500,Manning.PCC.NR.lt.500.Const*H109^Manning.PCC.NR.lt.500.NR,IF(H109<1000,Manning.PCC.NR.lt.1000.Const*H109^Manning.PCC.NR.lt.1000.NR,0.017)))))),"") ->  | I110: =IF(I86<>"",IF(Deterministic.Surf.Type="Dense Graded Asphalt (DGAC)",Manning.DGFC.Const*I109^Manning.DGFC.NR,IF(Deterministic.Surf.Type="Open Graded Friction Course (OGFC)",Manning.OGFC.Const*I109^Manning.OGFC.NR*(HP!I72/100)^Manning.OGFC.Slope,IF(Deterministic.Surf.Type="User-Defined",User.Defined.ManningValue,IF(I109<240,Manning.PCC.NR.lt.240.Const*I109^Manning.PCC.NR.lt.240.NR,IF(I109<500,Manning.PCC.NR.lt.500.Const*I109^Manning.PCC.NR.lt.500.NR,IF(I109<1000,Manning.PCC.NR.lt.1000.Const*I109^Manning.PCC.NR.lt.1000.NR,0.017)))))),"") ->  | J110: =IF(J86<>"",IF(Deterministic.Surf.Type="Dense Graded Asphalt (DGAC)",Manning.DGFC.Const*J109^Manning.DGFC.NR,IF(Deterministic.Surf.Type="Open Graded Friction Course (OGFC)",Manning.OGFC.Const*J109^Manning.OGFC.NR*(HP!J72/100)^Manning.OGFC.Slope,IF(Deterministic.Surf.Type="User-Defined",User.Defined.ManningValue,IF(J109<240,Manning.PCC.NR.lt.240.Const*J109^Manning.PCC.NR.lt.240.NR,IF(J109<500,Manning.PCC.NR.lt.500.Const*J109^Manning.PCC.NR.lt.500.NR,IF(J109<1000,Manning.PCC.NR.lt.1000.Const*J109^Manning.PCC.NR.lt.1000.NR,0.017)))))),"") ->  | K110: =IF(K86<>"",IF(Deterministic.Surf.Type="Dense Graded Asphalt (DGAC)",Manning.DGFC.Const*K109^Manning.DGFC.NR,IF(Deterministic.Surf.Type="Open Graded Friction Course (OGFC)",Manning.OGFC.Const*K109^Manning.OGFC.NR*(HP!K72/100)^Manning.OGFC.Slope,IF(Deterministic.Surf.Type="User-Defined",User.Defined.ManningValue,IF(K109<240,Manning.PCC.NR.lt.240.Const*K109^Manning.PCC.NR.lt.240.NR,IF(K109<500,Manning.PCC.NR.lt.500.Const*K109^Manning.PCC.NR.lt.500.NR,IF(K109<1000,Manning.PCC.NR.lt.1000.Const*K109^Manning.PCC.NR.lt.1000.NR,0.017)))))),"") ->  | L110: =IF(L86<>"",IF(Deterministic.Surf.Type="Dense Graded Asphalt (DGAC)",Manning.DGFC.Const*L109^Manning.DGFC.NR,IF(Deterministic.Surf.Type="Open Graded Friction Course (OGFC)",Manning.OGFC.Const*L109^Manning.OGFC.NR*(HP!L72/100)^Manning.OGFC.Slope,IF(Deterministic.Surf.Type="User-Defined",User.Defined.ManningValue,IF(L109<240,Manning.PCC.NR.lt.240.Const*L109^Manning.PCC.NR.lt.240.NR,IF(L109<500,Manning.PCC.NR.lt.500.Const*L109^Manning.PCC.NR.lt.500.NR,IF(L109<1000,Manning.PCC.NR.lt.1000.Const*L109^Manning.PCC.NR.lt.1000.NR,0.017)))))),"") ->  | M110: =IF(M86<>"",IF(Deterministic.Surf.Type="Dense Graded Asphalt (DGAC)",Manning.DGFC.Const*M109^Manning.DGFC.NR,IF(Deterministic.Surf.Type="Open Graded Friction Course (OGFC)",Manning.OGFC.Const*M109^Manning.OGFC.NR*(HP!M72/100)^Manning.OGFC.Slope,IF(Deterministic.Surf.Type="User-Defined",User.Defined.ManningValue,IF(M109<240,Manning.PCC.NR.lt.240.Const*M109^Manning.PCC.NR.lt.240.NR,IF(M109<500,Manning.PCC.NR.lt.500.Const*M109^Manning.PCC.NR.lt.500.NR,IF(M109<1000,Manning.PCC.NR.lt.1000.Const*M109^Manning.PCC.NR.lt.1000.NR,0.017)))))),"") ->  | N110: =IF(N86<>"",IF(Deterministic.Surf.Type="Dense Graded Asphalt (DGAC)",Manning.DGFC.Const*N109^Manning.DGFC.NR,IF(Deterministic.Surf.Type="Open Graded Friction Course (OGFC)",Manning.OGFC.Const*N109^Manning.OGFC.NR*(HP!N72/100)^Manning.OGFC.Slope,IF(Deterministic.Surf.Type="User-Defined",User.Defined.ManningValue,IF(N109<240,Manning.PCC.NR.lt.240.Const*N109^Manning.PCC.NR.lt.240.NR,IF(N109<500,Manning.PCC.NR.lt.500.Const*N109^Manning.PCC.NR.lt.500.NR,IF(N109<1000,Manning.PCC.NR.lt.1000.Const*N109^Manning.PCC.NR.lt.1000.NR,0.017)))))),"") ->  | O110: =IF(O86<>"",IF(Deterministic.Surf.Type="Dense Graded Asphalt (DGAC)",Manning.DGFC.Const*O109^Manning.DGFC.NR,IF(Deterministic.Surf.Type="Open Graded Friction Course (OGFC)",Manning.OGFC.Const*O109^Manning.OGFC.NR*(HP!O72/100)^Manning.OGFC.Slope,IF(Deterministic.Surf.Type="User-Defined",User.Defined.ManningValue,IF(O109<240,Manning.PCC.NR.lt.240.Const*O109^Manning.PCC.NR.lt.240.NR,IF(O109<500,Manning.PCC.NR.lt.500.Const*O109^Manning.PCC.NR.lt.500.NR,IF(O109<1000,Manning.PCC.NR.lt.1000.Const*O109^Manning.PCC.NR.lt.1000.NR,0.017)))))),"") -> 
A115: Gallaway | Q115: NZ Mod
A116: Plane Number | B116: 1 | C116: 2 | D116: 3 | E116: 4 | F116: 5 | G116: 6 | H116: 7 | I116: 8 | J116: 9 | K116: 10 | L116: 11 | M116: 12 | Q116: Plane Number | R116: 1 | S116: 2 | T116: 3 | U116: 4 | V116: 5 | W116: 6 | X116: 7 | Y116: 8 | Z116: 9 | AA116: 10 | AB116: 11 | AC116: 12
A117: Intensity (in/hr) | B117: Shoulder | C117: Lane 1 | D117: Lane 2 | E117: Lane 3 | F117: Lane 4 | G117: Lane 5 | H117: Lane 6 | I117: Lane 7 | J117: Lane 8 | K117: Lane 9 | L117: Lane 10 | M117: Lane 11 | Q117: Intensity (in/hr) | R117: Shoulder | S117: Lane 1 | T117: Lane 2 | U117: Lane 3 | V117: Lane 4 | W117: Lane 5 | X117: Lane 6 | Y117: Lane 7 | Z117: Lane 8 | AA117: Lane 9 | AB117: Lane 10 | AC117: Lane 11
A118: 0.1 | B118: =IF(AND(HP!D$72<>"",HP!D$39<>""),(WFT.G.Const*HP!$E$81^WFT.G.MTD*HP!D$76^WFT.G.DP*$A$118^WFT.G.Int*(HP!D$72/100)^WFT.G.Slope-HP!$E$81)*HP!$G$19,"") ->  | C118: =IF(AND(HP!E$72<>"",HP!E$39<>""),(WFT.G.Const*HP!$E$81^WFT.G.MTD*HP!E$76^WFT.G.DP*$A$118^WFT.G.Int*(HP!E$72/100)^WFT.G.Slope-HP!$E$81)*HP!$G$19,"") ->  | D118: =IF(AND(HP!F$72<>"",HP!F$39<>""),(WFT.G.Const*HP!$E$81^WFT.G.MTD*HP!F$76^WFT.G.DP*$A$118^WFT.G.Int*(HP!F$72/100)^WFT.G.Slope-HP!$E$81)*HP!$G$19,"") ->  | E118: =IF(AND(HP!G$72<>"",HP!G$39<>""),(WFT.G.Const*HP!$E$81^WFT.G.MTD*HP!G$76^WFT.G.DP*$A$118^WFT.G.Int*(HP!G$72/100)^WFT.G.Slope-HP!$E$81)*HP!$G$19,"") ->  | F118: =IF(AND(HP!H$72<>"",HP!H$39<>""),(WFT.G.Const*HP!$E$81^WFT.G.MTD*HP!H$76^WFT.G.DP*$A$118^WFT.G.Int*(HP!H$72/100)^WFT.G.Slope-HP!$E$81)*HP!$G$19,"") ->  | G118: =IF(AND(HP!I$72<>"",HP!I$39<>""),(WFT.G.Const*HP!$E$81^WFT.G.MTD*HP!I$76^WFT.G.DP*$A$118^WFT.G.Int*(HP!I$72/100)^WFT.G.Slope-HP!$E$81)*HP!$G$19,"") ->  | H118: =IF(AND(HP!J$72<>"",HP!J$39<>""),(WFT.G.Const*HP!$E$81^WFT.G.MTD*HP!J$76^WFT.G.DP*$A$118^WFT.G.Int*(HP!J$72/100)^WFT.G.Slope-HP!$E$81)*HP!$G$19,"") ->  | I118: =IF(AND(HP!K$72<>"",HP!K$39<>""),(WFT.G.Const*HP!$E$81^WFT.G.MTD*HP!K$76^WFT.G.DP*$A$118^WFT.G.Int*(HP!K$72/100)^WFT.G.Slope-HP!$E$81)*HP!$G$19,"") ->  | J118: =IF(AND(HP!L$72<>"",HP!L$39<>""),(WFT.G.Const*HP!$E$81^WFT.G.MTD*HP!L$76^WFT.G.DP*$A$118^WFT.G.Int*(HP!L$72/100)^WFT.G.Slope-HP!$E$81)*HP!$G$19,"") ->  | K118: =IF(AND(HP!M$72<>"",HP!M$39<>""),(WFT.G.Const*HP!$E$81^WFT.G.MTD*HP!M$76^WFT.G.DP*$A$118^WFT.G.Int*(HP!M$72/100)^WFT.G.Slope-HP!$E$81)*HP!$G$19,"") ->  | L118: =IF(AND(HP!N$72<>"",HP!N$39<>""),(WFT.G.Const*HP!$E$81^WFT.G.MTD*HP!N$76^WFT.G.DP*$A$118^WFT.G.Int*(HP!N$72/100)^WFT.G.Slope-HP!$E$81)*HP!$G$19,"") ->  | M118: =IF(AND(HP!O$72<>"",HP!O$39<>""),(WFT.G.Const*HP!$E$81^WFT.G.MTD*HP!O$76^WFT.G.DP*$A$118^WFT.G.Int*(HP!O$72/100)^WFT.G.Slope-HP!$E$81)*HP!$G$19,"") ->  | Q118: 0.1 | R118: =IF(AND(HP!D$72<>"",HP!D$39<>""),(CONVERT(WFT.N.Const*CONVERT(HP!$E$81,"in","mm")^WFT.N.MTD*CONVERT(HP!D$76,"ft","m")^WFT.N.DP*CONVERT(($Q$118),"in","mm")^WFT.N.Int*(HP!D$72/100)^WFT.N.Slope,"mm","in")-HP!$E$81)*HP!$G$19,"") ->  | S118: =IF(AND(HP!E$72<>"",HP!E$39<>""),(CONVERT(WFT.N.Const*CONVERT(HP!$E$81,"in","mm")^WFT.N.MTD*CONVERT(HP!E$76,"ft","m")^WFT.N.DP*CONVERT(($Q$118),"in","mm")^WFT.N.Int*(HP!E$72/100)^WFT.N.Slope,"mm","in")-HP!$E$81)*HP!$G$19,"") ->  | T118: =IF(AND(HP!F$72<>"",HP!F$39<>""),(CONVERT(WFT.N.Const*CONVERT(HP!$E$81,"in","mm")^WFT.N.MTD*CONVERT(HP!F$76,"ft","m")^WFT.N.DP*CONVERT(($Q$118),"in","mm")^WFT.N.Int*(HP!F$72/100)^WFT.N.Slope,"mm","in")-HP!$E$81)*HP!$G$19,"") ->  | U118: =IF(AND(HP!G$72<>"",HP!G$39<>""),(CONVERT(WFT.N.Const*CONVERT(HP!$E$81,"in","mm")^WFT.N.MTD*CONVERT(HP!G$76,"ft","m")^WFT.N.DP*CONVERT(($Q$118),"in","mm")^WFT.N.Int*(HP!G$72/100)^WFT.N.Slope,"mm","in")-HP!$E$81)*HP!$G$19,"") ->  | V118: =IF(AND(HP!H$72<>"",HP!H$39<>""),(CONVERT(WFT.N.Const*CONVERT(HP!$E$81,"in","mm")^WFT.N.MTD*CONVERT(HP!H$76,"ft","m")^WFT.N.DP*CONVERT(($Q$118),"in","mm")^WFT.N.Int*(HP!H$72/100)^WFT.N.Slope,"mm","in")-HP!$E$81)*HP!$G$19,"") ->  | W118: =IF(AND(HP!I$72<>"",HP!I$39<>""),(CONVERT(WFT.N.Const*CONVERT(HP!$E$81,"in","mm")^WFT.N.MTD*CONVERT(HP!I$76,"ft","m")^WFT.N.DP*CONVERT(($Q$118),"in","mm")^WFT.N.Int*(HP!I$72/100)^WFT.N.Slope,"mm","in")-HP!$E$81)*HP!$G$19,"") ->  | X118: =IF(AND(HP!J$72<>"",HP!J$39<>""),(CONVERT(WFT.N.Const*CONVERT(HP!$E$81,"in","mm")^WFT.N.MTD*CONVERT(HP!J$76,"ft","m")^WFT.N.DP*CONVERT(($Q$118),"in","mm")^WFT.N.Int*(HP!J$72/100)^WFT.N.Slope,"mm","in")-HP!$E$81)*HP!$G$19,"") ->  | Y118: =IF(AND(HP!K$72<>"",HP!K$39<>""),(CONVERT(WFT.N.Const*CONVERT(HP!$E$81,"in","mm")^WFT.N.MTD*CONVERT(HP!K$76,"ft","m")^WFT.N.DP*CONVERT(($Q$118),"in","mm")^WFT.N.Int*(HP!K$72/100)^WFT.N.Slope,"mm","in")-HP!$E$81)*HP!$G$19,"") ->  | Z118: =IF(AND(HP!L$72<>"",HP!L$39<>""),(CONVERT(WFT.N.Const*CONVERT(HP!$E$81,"in","mm")^WFT.N.MTD*CONVERT(HP!L$76,"ft","m")^WFT.N.DP*CONVERT(($Q$118),"in","mm")^WFT.N.Int*(HP!L$72/100)^WFT.N.Slope,"mm","in")-HP!$E$81)*HP!$G$19,"") ->  | AA118: =IF(AND(HP!M$72<>"",HP!M$39<>""),(CONVERT(WFT.N.Const*CONVERT(HP!$E$81,"in","mm")^WFT.N.MTD*CONVERT(HP!M$76,"ft","m")^WFT.N.DP*CONVERT(($Q$118),"in","mm")^WFT.N.Int*(HP!M$72/100)^WFT.N.Slope,"mm","in")-HP!$E$81)*HP!$G$19,"") ->  | AB118: =IF(AND(HP!N$72<>"",HP!N$39<>""),(CONVERT(WFT.N.Const*CONVERT(HP!$E$81,"in","mm")^WFT.N.MTD*CONVERT(HP!N$76,"ft","m")^WFT.N.DP*CONVERT(($Q$118),"in","mm")^WFT.N.Int*(HP!N$72/100)^WFT.N.Slope,"mm","in")-HP!$E$81)*HP!$G$19,"") ->  | AC118: =IF(AND(HP!O$72<>"",HP!O$39<>""),(CONVERT(WFT.N.Const*CONVERT(HP!$E$81,"in","mm")^WFT.N.MTD*CONVERT(HP!O$76,"ft","m")^WFT.N.DP*CONVERT(($Q$118),"in","mm")^WFT.N.Int*(HP!O$72/100)^WFT.N.Slope,"mm","in")-HP!$E$81)*HP!$G$19,"") -> 
A119: 0.25 | B119: =IF(AND(HP!D$72<>"",HP!D$39<>""),(WFT.G.Const*HP!$E$81^WFT.G.MTD*HP!D$76^WFT.G.DP*$A$119^WFT.G.Int*(HP!D$72/100)^WFT.G.Slope-HP!$E$81)*HP!$G$19,"") ->  | C119: =IF(AND(HP!E$72<>"",HP!E$39<>""),(WFT.G.Const*HP!$E$81^WFT.G.MTD*HP!E$76^WFT.G.DP*$A$119^WFT.G.Int*(HP!E$72/100)^WFT.G.Slope-HP!$E$81)*HP!$G$19,"") ->  | D119: =IF(AND(HP!F$72<>"",HP!F$39<>""),(WFT.G.Const*HP!$E$81^WFT.G.MTD*HP!F$76^WFT.G.DP*$A$119^WFT.G.Int*(HP!F$72/100)^WFT.G.Slope-HP!$E$81)*HP!$G$19,"") ->  | E119: =IF(AND(HP!G$72<>"",HP!G$39<>""),(WFT.G.Const*HP!$E$81^WFT.G.MTD*HP!G$76^WFT.G.DP*$A$119^WFT.G.Int*(HP!G$72/100)^WFT.G.Slope-HP!$E$81)*HP!$G$19,"") ->  | F119: =IF(AND(HP!H$72<>"",HP!H$39<>""),(WFT.G.Const*HP!$E$81^WFT.G.MTD*HP!H$76^WFT.G.DP*$A$119^WFT.G.Int*(HP!H$72/100)^WFT.G.Slope-HP!$E$81)*HP!$G$19,"") ->  | G119: =IF(AND(HP!I$72<>"",HP!I$39<>""),(WFT.G.Const*HP!$E$81^WFT.G.MTD*HP!I$76^WFT.G.DP*$A$119^WFT.G.Int*(HP!I$72/100)^WFT.G.Slope-HP!$E$81)*HP!$G$19,"") ->  | H119: =IF(AND(HP!J$72<>"",HP!J$39<>""),(WFT.G.Const*HP!$E$81^WFT.G.MTD*HP!J$76^WFT.G.DP*$A$119^WFT.G.Int*(HP!J$72/100)^WFT.G.Slope-HP!$E$81)*HP!$G$19,"") ->  | I119: =IF(AND(HP!K$72<>"",HP!K$39<>""),(WFT.G.Const*HP!$E$81^WFT.G.MTD*HP!K$76^WFT.G.DP*$A$119^WFT.G.Int*(HP!K$72/100)^WFT.G.Slope-HP!$E$81)*HP!$G$19,"") ->  | J119: =IF(AND(HP!L$72<>"",HP!L$39<>""),(WFT.G.Const*HP!$E$81^WFT.G.MTD*HP!L$76^WFT.G.DP*$A$119^WFT.G.Int*(HP!L$72/100)^WFT.G.Slope-HP!$E$81)*HP!$G$19,"") ->  | K119: =IF(AND(HP!M$72<>"",HP!M$39<>""),(WFT.G.Const*HP!$E$81^WFT.G.MTD*HP!M$76^WFT.G.DP*$A$119^WFT.G.Int*(HP!M$72/100)^WFT.G.Slope-HP!$E$81)*HP!$G$19,"") ->  | L119: =IF(AND(HP!N$72<>"",HP!N$39<>""),(WFT.G.Const*HP!$E$81^WFT.G.MTD*HP!N$76^WFT.G.DP*$A$119^WFT.G.Int*(HP!N$72/100)^WFT.G.Slope-HP!$E$81)*HP!$G$19,"") ->  | M119: =IF(AND(HP!O$72<>"",HP!O$39<>""),(WFT.G.Const*HP!$E$81^WFT.G.MTD*HP!O$76^WFT.G.DP*$A$119^WFT.G.Int*(HP!O$72/100)^WFT.G.Slope-HP!$E$81)*HP!$G$19,"") ->  | Q119: 0.25 | R119: =IF(AND(HP!D$72<>"",HP!D$39<>""),(CONVERT(WFT.N.Const*CONVERT(HP!$E$81,"in","mm")^WFT.N.MTD*CONVERT(HP!D$76,"ft","m")^WFT.N.DP*CONVERT(($Q$119),"in","mm")^WFT.N.Int*(HP!D$72/100)^WFT.N.Slope,"mm","in")-HP!$E$81)*HP!$G$19,"") ->  | S119: =IF(AND(HP!E$72<>"",HP!E$39<>""),(CONVERT(WFT.N.Const*CONVERT(HP!$E$81,"in","mm")^WFT.N.MTD*CONVERT(HP!E$76,"ft","m")^WFT.N.DP*CONVERT(($Q$119),"in","mm")^WFT.N.Int*(HP!E$72/100)^WFT.N.Slope,"mm","in")-HP!$E$81)*HP!$G$19,"") ->  | T119: =IF(AND(HP!F$72<>"",HP!F$39<>""),(CONVERT(WFT.N.Const*CONVERT(HP!$E$81,"in","mm")^WFT.N.MTD*CONVERT(HP!F$76,"ft","m")^WFT.N.DP*CONVERT(($Q$119),"in","mm")^WFT.N.Int*(HP!F$72/100)^WFT.N.Slope,"mm","in")-HP!$E$81)*HP!$G$19,"") ->  | U119: =IF(AND(HP!G$72<>"",HP!G$39<>""),(CONVERT(WFT.N.Const*CONVERT(HP!$E$81,"in","mm")^WFT.N.MTD*CONVERT(HP!G$76,"ft","m")^WFT.N.DP*CONVERT(($Q$119),"in","mm")^WFT.N.Int*(HP!G$72/100)^WFT.N.Slope,"mm","in")-HP!$E$81)*HP!$G$19,"") ->  | V119: =IF(AND(HP!H$72<>"",HP!H$39<>""),(CONVERT(WFT.N.Const*CONVERT(HP!$E$81,"in","mm")^WFT.N.MTD*CONVERT(HP!H$76,"ft","m")^WFT.N.DP*CONVERT(($Q$119),"in","mm")^WFT.N.Int*(HP!H$72/100)^WFT.N.Slope,"mm","in")-HP!$E$81)*HP!$G$19,"") ->  | W119: =IF(AND(HP!I$72<>"",HP!I$39<>""),(CONVERT(WFT.N.Const*CONVERT(HP!$E$81,"in","mm")^WFT.N.MTD*CONVERT(HP!I$76,"ft","m")^WFT.N.DP*CONVERT(($Q$119),"in","mm")^WFT.N.Int*(HP!I$72/100)^WFT.N.Slope,"mm","in")-HP!$E$81)*HP!$G$19,"") ->  | X119: =IF(AND(HP!J$72<>"",HP!J$39<>""),(CONVERT(WFT.N.Const*CONVERT(HP!$E$81,"in","mm")^WFT.N.MTD*CONVERT(HP!J$76,"ft","m")^WFT.N.DP*CONVERT(($Q$119),"in","mm")^WFT.N.Int*(HP!J$72/100)^WFT.N.Slope,"mm","in")-HP!$E$81)*HP!$G$19,"") ->  | Y119: =IF(AND(HP!K$72<>"",HP!K$39<>""),(CONVERT(WFT.N.Const*CONVERT(HP!$E$81,"in","mm")^WFT.N.MTD*CONVERT(HP!K$76,"ft","m")^WFT.N.DP*CONVERT(($Q$119),"in","mm")^WFT.N.Int*(HP!K$72/100)^WFT.N.Slope,"mm","in")-HP!$E$81)*HP!$G$19,"") ->  | Z119: =IF(AND(HP!L$72<>"",HP!L$39<>""),(CONVERT(WFT.N.Const*CONVERT(HP!$E$81,"in","mm")^WFT.N.MTD*CONVERT(HP!L$76,"ft","m")^WFT.N.DP*CONVERT(($Q$119),"in","mm")^WFT.N.Int*(HP!L$72/100)^WFT.N.Slope,"mm","in")-HP!$E$81)*HP!$G$19,"") ->  | AA119: =IF(AND(HP!M$72<>"",HP!M$39<>""),(CONVERT(WFT.N.Const*CONVERT(HP!$E$81,"in","mm")^WFT.N.MTD*CONVERT(HP!M$76,"ft","m")^WFT.N.DP*CONVERT(($Q$119),"in","mm")^WFT.N.Int*(HP!M$72/100)^WFT.N.Slope,"mm","in")-HP!$E$81)*HP!$G$19,"") ->  | AB119: =IF(AND(HP!N$72<>"",HP!N$39<>""),(CONVERT(WFT.N.Const*CONVERT(HP!$E$81,"in","mm")^WFT.N.MTD*CONVERT(HP!N$76,"ft","m")^WFT.N.DP*CONVERT(($Q$119),"in","mm")^WFT.N.Int*(HP!N$72/100)^WFT.N.Slope,"mm","in")-HP!$E$81)*HP!$G$19,"") ->  | AC119: =IF(AND(HP!O$72<>"",HP!O$39<>""),(CONVERT(WFT.N.Const*CONVERT(HP!$E$81,"in","mm")^WFT.N.MTD*CONVERT(HP!O$76,"ft","m")^WFT.N.DP*CONVERT(($Q$119),"in","mm")^WFT.N.Int*(HP!O$72/100)^WFT.N.Slope,"mm","in")-HP!$E$81)*HP!$G$19,"") -> 
A120: 0.5 | B120: =IF(AND(HP!D$72<>"",HP!D$39<>""),(WFT.G.Const*HP!$E$81^WFT.G.MTD*HP!D$76^WFT.G.DP*$A$120^WFT.G.Int*(HP!D$72/100)^WFT.G.Slope-HP!$E$81)*HP!$G$19,"") ->  | C120: =IF(AND(HP!E$72<>"",HP!E$39<>""),(WFT.G.Const*HP!$E$81^WFT.G.MTD*HP!E$76^WFT.G.DP*$A$120^WFT.G.Int*(HP!E$72/100)^WFT.G.Slope-HP!$E$81)*HP!$G$19,"") ->  | D120: =IF(AND(HP!F$72<>"",HP!F$39<>""),(WFT.G.Const*HP!$E$81^WFT.G.MTD*HP!F$76^WFT.G.DP*$A$120^WFT.G.Int*(HP!F$72/100)^WFT.G.Slope-HP!$E$81)*HP!$G$19,"") ->  | E120: =IF(AND(HP!G$72<>"",HP!G$39<>""),(WFT.G.Const*HP!$E$81^WFT.G.MTD*HP!G$76^WFT.G.DP*$A$120^WFT.G.Int*(HP!G$72/100)^WFT.G.Slope-HP!$E$81)*HP!$G$19,"") ->  | F120: =IF(AND(HP!H$72<>"",HP!H$39<>""),(WFT.G.Const*HP!$E$81^WFT.G.MTD*HP!H$76^WFT.G.DP*$A$120^WFT.G.Int*(HP!H$72/100)^WFT.G.Slope-HP!$E$81)*HP!$G$19,"") ->  | G120: =IF(AND(HP!I$72<>"",HP!I$39<>""),(WFT.G.Const*HP!$E$81^WFT.G.MTD*HP!I$76^WFT.G.DP*$A$120^WFT.G.Int*(HP!I$72/100)^WFT.G.Slope-HP!$E$81)*HP!$G$19,"") ->  | H120: =IF(AND(HP!J$72<>"",HP!J$39<>""),(WFT.G.Const*HP!$E$81^WFT.G.MTD*HP!J$76^WFT.G.DP*$A$120^WFT.G.Int*(HP!J$72/100)^WFT.G.Slope-HP!$E$81)*HP!$G$19,"") ->  | I120: =IF(AND(HP!K$72<>"",HP!K$39<>""),(WFT.G.Const*HP!$E$81^WFT.G.MTD*HP!K$76^WFT.G.DP*$A$120^WFT.G.Int*(HP!K$72/100)^WFT.G.Slope-HP!$E$81)*HP!$G$19,"") ->  | J120: =IF(AND(HP!L$72<>"",HP!L$39<>""),(WFT.G.Const*HP!$E$81^WFT.G.MTD*HP!L$76^WFT.G.DP*$A$120^WFT.G.Int*(HP!L$72/100)^WFT.G.Slope-HP!$E$81)*HP!$G$19,"") ->  | K120: =IF(AND(HP!M$72<>"",HP!M$39<>""),(WFT.G.Const*HP!$E$81^WFT.G.MTD*HP!M$76^WFT.G.DP*$A$120^WFT.G.Int*(HP!M$72/100)^WFT.G.Slope-HP!$E$81)*HP!$G$19,"") ->  | L120: =IF(AND(HP!N$72<>"",HP!N$39<>""),(WFT.G.Const*HP!$E$81^WFT.G.MTD*HP!N$76^WFT.G.DP*$A$120^WFT.G.Int*(HP!N$72/100)^WFT.G.Slope-HP!$E$81)*HP!$G$19,"") ->  | M120: =IF(AND(HP!O$72<>"",HP!O$39<>""),(WFT.G.Const*HP!$E$81^WFT.G.MTD*HP!O$76^WFT.G.DP*$A$120^WFT.G.Int*(HP!O$72/100)^WFT.G.Slope-HP!$E$81)*HP!$G$19,"") ->  | Q120: 0.5 | R120: =IF(AND(HP!D$72<>"",HP!D$39<>""),(CONVERT(WFT.N.Const*CONVERT(HP!$E$81,"in","mm")^WFT.N.MTD*CONVERT(HP!D$76,"ft","m")^WFT.N.DP*CONVERT(($Q$120),"in","mm")^WFT.N.Int*(HP!D$72/100)^WFT.N.Slope,"mm","in")-HP!$E$81)*HP!$G$19,"") ->  | S120: =IF(AND(HP!E$72<>"",HP!E$39<>""),(CONVERT(WFT.N.Const*CONVERT(HP!$E$81,"in","mm")^WFT.N.MTD*CONVERT(HP!E$76,"ft","m")^WFT.N.DP*CONVERT(($Q$120),"in","mm")^WFT.N.Int*(HP!E$72/100)^WFT.N.Slope,"mm","in")-HP!$E$81)*HP!$G$19,"") ->  | T120: =IF(AND(HP!F$72<>"",HP!F$39<>""),(CONVERT(WFT.N.Const*CONVERT(HP!$E$81,"in","mm")^WFT.N.MTD*CONVERT(HP!F$76,"ft","m")^WFT.N.DP*CONVERT(($Q$120),"in","mm")^WFT.N.Int*(HP!F$72/100)^WFT.N.Slope,"mm","in")-HP!$E$81)*HP!$G$19,"") ->  | U120: =IF(AND(HP!G$72<>"",HP!G$39<>""),(CONVERT(WFT.N.Const*CONVERT(HP!$E$81,"in","mm")^WFT.N.MTD*CONVERT(HP!G$76,"ft","m")^WFT.N.DP*CONVERT(($Q$120),"in","mm")^WFT.N.Int*(HP!G$72/100)^WFT.N.Slope,"mm","in")-HP!$E$81)*HP!$G$19,"") ->  | V120: =IF(AND(HP!H$72<>"",HP!H$39<>""),(CONVERT(WFT.N.Const*CONVERT(HP!$E$81,"in","mm")^WFT.N.MTD*CONVERT(HP!H$76,"ft","m")^WFT.N.DP*CONVERT(($Q$120),"in","mm")^WFT.N.Int*(HP!H$72/100)^WFT.N.Slope,"mm","in")-HP!$E$81)*HP!$G$19,"") ->  | W120: =IF(AND(HP!I$72<>"",HP!I$39<>""),(CONVERT(WFT.N.Const*CONVERT(HP!$E$81,"in","mm")^WFT.N.MTD*CONVERT(HP!I$76,"ft","m")^WFT.N.DP*CONVERT(($Q$120),"in","mm")^WFT.N.Int*(HP!I$72/100)^WFT.N.Slope,"mm","in")-HP!$E$81)*HP!$G$19,"") ->  | X120: =IF(AND(HP!J$72<>"",HP!J$39<>""),(CONVERT(WFT.N.Const*CONVERT(HP!$E$81,"in","mm")^WFT.N.MTD*CONVERT(HP!J$76,"ft","m")^WFT.N.DP*CONVERT(($Q$120),"in","mm")^WFT.N.Int*(HP!J$72/100)^WFT.N.Slope,"mm","in")-HP!$E$81)*HP!$G$19,"") ->  | Y120: =IF(AND(HP!K$72<>"",HP!K$39<>""),(CONVERT(WFT.N.Const*CONVERT(HP!$E$81,"in","mm")^WFT.N.MTD*CONVERT(HP!K$76,"ft","m")^WFT.N.DP*CONVERT(($Q$120),"in","mm")^WFT.N.Int*(HP!K$72/100)^WFT.N.Slope,"mm","in")-HP!$E$81)*HP!$G$19,"") ->  | Z120: =IF(AND(HP!L$72<>"",HP!L$39<>""),(CONVERT(WFT.N.Const*CONVERT(HP!$E$81,"in","mm")^WFT.N.MTD*CONVERT(HP!L$76,"ft","m")^WFT.N.DP*CONVERT(($Q$120),"in","mm")^WFT.N.Int*(HP!L$72/100)^WFT.N.Slope,"mm","in")-HP!$E$81)*HP!$G$19,"") ->  | AA120: =IF(AND(HP!M$72<>"",HP!M$39<>""),(CONVERT(WFT.N.Const*CONVERT(HP!$E$81,"in","mm")^WFT.N.MTD*CONVERT(HP!M$76,"ft","m")^WFT.N.DP*CONVERT(($Q$120),"in","mm")^WFT.N.Int*(HP!M$72/100)^WFT.N.Slope,"mm","in")-HP!$E$81)*HP!$G$19,"") ->  | AB120: =IF(AND(HP!N$72<>"",HP!N$39<>""),(CONVERT(WFT.N.Const*CONVERT(HP!$E$81,"in","mm")^WFT.N.MTD*CONVERT(HP!N$76,"ft","m")^WFT.N.DP*CONVERT(($Q$120),"in","mm")^WFT.N.Int*(HP!N$72/100)^WFT.N.Slope,"mm","in")-HP!$E$81)*HP!$G$19,"") ->  | AC120: =IF(AND(HP!O$72<>"",HP!O$39<>""),(CONVERT(WFT.N.Const*CONVERT(HP!$E$81,"in","mm")^WFT.N.MTD*CONVERT(HP!O$76,"ft","m")^WFT.N.DP*CONVERT(($Q$120),"in","mm")^WFT.N.Int*(HP!O$72/100)^WFT.N.Slope,"mm","in")-HP!$E$81)*HP!$G$19,"") -> 
A121: 1 | B121: =IF(AND(HP!D$72<>"",HP!D$39<>""),(WFT.G.Const*HP!$E$81^WFT.G.MTD*HP!D$76^WFT.G.DP*$A$121^WFT.G.Int*(HP!D$72/100)^WFT.G.Slope-HP!$E$81)*HP!$G$19,"") ->  | C121: =IF(AND(HP!E$72<>"",HP!E$39<>""),(WFT.G.Const*HP!$E$81^WFT.G.MTD*HP!E$76^WFT.G.DP*$A$121^WFT.G.Int*(HP!E$72/100)^WFT.G.Slope-HP!$E$81)*HP!$G$19,"") ->  | D121: =IF(AND(HP!F$72<>"",HP!F$39<>""),(WFT.G.Const*HP!$E$81^WFT.G.MTD*HP!F$76^WFT.G.DP*$A$121^WFT.G.Int*(HP!F$72/100)^WFT.G.Slope-HP!$E$81)*HP!$G$19,"") ->  | E121: =IF(AND(HP!G$72<>"",HP!G$39<>""),(WFT.G.Const*HP!$E$81^WFT.G.MTD*HP!G$76^WFT.G.DP*$A$121^WFT.G.Int*(HP!G$72/100)^WFT.G.Slope-HP!$E$81)*HP!$G$19,"") ->  | F121: =IF(AND(HP!H$72<>"",HP!H$39<>""),(WFT.G.Const*HP!$E$81^WFT.G.MTD*HP!H$76^WFT.G.DP*$A$121^WFT.G.Int*(HP!H$72/100)^WFT.G.Slope-HP!$E$81)*HP!$G$19,"") ->  | G121: =IF(AND(HP!I$72<>"",HP!I$39<>""),(WFT.G.Const*HP!$E$81^WFT.G.MTD*HP!I$76^WFT.G.DP*$A$121^WFT.G.Int*(HP!I$72/100)^WFT.G.Slope-HP!$E$81)*HP!$G$19,"") ->  | H121: =IF(AND(HP!J$72<>"",HP!J$39<>""),(WFT.G.Const*HP!$E$81^WFT.G.MTD*HP!J$76^WFT.G.DP*$A$121^WFT.G.Int*(HP!J$72/100)^WFT.G.Slope-HP!$E$81)*HP!$G$19,"") ->  | I121: =IF(AND(HP!K$72<>"",HP!K$39<>""),(WFT.G.Const*HP!$E$81^WFT.G.MTD*HP!K$76^WFT.G.DP*$A$121^WFT.G.Int*(HP!K$72/100)^WFT.G.Slope-HP!$E$81)*HP!$G$19,"") ->  | J121: =IF(AND(HP!L$72<>"",HP!L$39<>""),(WFT.G.Const*HP!$E$81^WFT.G.MTD*HP!L$76^WFT.G.DP*$A$121^WFT.G.Int*(HP!L$72/100)^WFT.G.Slope-HP!$E$81)*HP!$G$19,"") ->  | K121: =IF(AND(HP!M$72<>"",HP!M$39<>""),(WFT.G.Const*HP!$E$81^WFT.G.MTD*HP!M$76^WFT.G.DP*$A$121^WFT.G.Int*(HP!M$72/100)^WFT.G.Slope-HP!$E$81)*HP!$G$19,"") ->  | L121: =IF(AND(HP!N$72<>"",HP!N$39<>""),(WFT.G.Const*HP!$E$81^WFT.G.MTD*HP!N$76^WFT.G.DP*$A$121^WFT.G.Int*(HP!N$72/100)^WFT.G.Slope-HP!$E$81)*HP!$G$19,"") ->  | M121: =IF(AND(HP!O$72<>"",HP!O$39<>""),(WFT.G.Const*HP!$E$81^WFT.G.MTD*HP!O$76^WFT.G.DP*$A$121^WFT.G.Int*(HP!O$72/100)^WFT.G.Slope-HP!$E$81)*HP!$G$19,"") ->  | Q121: 1 | R121: =IF(AND(HP!D$72<>"",HP!D$39<>""),(CONVERT(WFT.N.Const*CONVERT(HP!$E$81,"in","mm")^WFT.N.MTD*CONVERT(HP!D$76,"ft","m")^WFT.N.DP*CONVERT(($Q$121),"in","mm")^WFT.N.Int*(HP!D$72/100)^WFT.N.Slope,"mm","in")-HP!$E$81)*HP!$G$19,"") ->  | S121: =IF(AND(HP!E$72<>"",HP!E$39<>""),(CONVERT(WFT.N.Const*CONVERT(HP!$E$81,"in","mm")^WFT.N.MTD*CONVERT(HP!E$76,"ft","m")^WFT.N.DP*CONVERT(($Q$121),"in","mm")^WFT.N.Int*(HP!E$72/100)^WFT.N.Slope,"mm","in")-HP!$E$81)*HP!$G$19,"") ->  | T121: =IF(AND(HP!F$72<>"",HP!F$39<>""),(CONVERT(WFT.N.Const*CONVERT(HP!$E$81,"in","mm")^WFT.N.MTD*CONVERT(HP!F$76,"ft","m")^WFT.N.DP*CONVERT(($Q$121),"in","mm")^WFT.N.Int*(HP!F$72/100)^WFT.N.Slope,"mm","in")-HP!$E$81)*HP!$G$19,"") ->  | U121: =IF(AND(HP!G$72<>"",HP!G$39<>""),(CONVERT(WFT.N.Const*CONVERT(HP!$E$81,"in","mm")^WFT.N.MTD*CONVERT(HP!G$76,"ft","m")^WFT.N.DP*CONVERT(($Q$121),"in","mm")^WFT.N.Int*(HP!G$72/100)^WFT.N.Slope,"mm","in")-HP!$E$81)*HP!$G$19,"") ->  | V121: =IF(AND(HP!H$72<>"",HP!H$39<>""),(CONVERT(WFT.N.Const*CONVERT(HP!$E$81,"in","mm")^WFT.N.MTD*CONVERT(HP!H$76,"ft","m")^WFT.N.DP*CONVERT(($Q$121),"in","mm")^WFT.N.Int*(HP!H$72/100)^WFT.N.Slope,"mm","in")-HP!$E$81)*HP!$G$19,"") ->  | W121: =IF(AND(HP!I$72<>"",HP!I$39<>""),(CONVERT(WFT.N.Const*CONVERT(HP!$E$81,"in","mm")^WFT.N.MTD*CONVERT(HP!I$76,"ft","m")^WFT.N.DP*CONVERT(($Q$121),"in","mm")^WFT.N.Int*(HP!I$72/100)^WFT.N.Slope,"mm","in")-HP!$E$81)*HP!$G$19,"") ->  | X121: =IF(AND(HP!J$72<>"",HP!J$39<>""),(CONVERT(WFT.N.Const*CONVERT(HP!$E$81,"in","mm")^WFT.N.MTD*CONVERT(HP!J$76,"ft","m")^WFT.N.DP*CONVERT(($Q$121),"in","mm")^WFT.N.Int*(HP!J$72/100)^WFT.N.Slope,"mm","in")-HP!$E$81)*HP!$G$19,"") ->  | Y121: =IF(AND(HP!K$72<>"",HP!K$39<>""),(CONVERT(WFT.N.Const*CONVERT(HP!$E$81,"in","mm")^WFT.N.MTD*CONVERT(HP!K$76,"ft","m")^WFT.N.DP*CONVERT(($Q$121),"in","mm")^WFT.N.Int*(HP!K$72/100)^WFT.N.Slope,"mm","in")-HP!$E$81)*HP!$G$19,"") ->  | Z121: =IF(AND(HP!L$72<>"",HP!L$39<>""),(CONVERT(WFT.N.Const*CONVERT(HP!$E$81,"in","mm")^WFT.N.MTD*CONVERT(HP!L$76,"ft","m")^WFT.N.DP*CONVERT(($Q$121),"in","mm")^WFT.N.Int*(HP!L$72/100)^WFT.N.Slope,"mm","in")-HP!$E$81)*HP!$G$19,"") ->  | AA121: =IF(AND(HP!M$72<>"",HP!M$39<>""),(CONVERT(WFT.N.Const*CONVERT(HP!$E$81,"in","mm")^WFT.N.MTD*CONVERT(HP!M$76,"ft","m")^WFT.N.DP*CONVERT(($Q$121),"in","mm")^WFT.N.Int*(HP!M$72/100)^WFT.N.Slope,"mm","in")-HP!$E$81)*HP!$G$19,"") ->  | AB121: =IF(AND(HP!N$72<>"",HP!N$39<>""),(CONVERT(WFT.N.Const*CONVERT(HP!$E$81,"in","mm")^WFT.N.MTD*CONVERT(HP!N$76,"ft","m")^WFT.N.DP*CONVERT(($Q$121),"in","mm")^WFT.N.Int*(HP!N$72/100)^WFT.N.Slope,"mm","in")-HP!$E$81)*HP!$G$19,"") ->  | AC121: =IF(AND(HP!O$72<>"",HP!O$39<>""),(CONVERT(WFT.N.Const*CONVERT(HP!$E$81,"in","mm")^WFT.N.MTD*CONVERT(HP!O$76,"ft","m")^WFT.N.DP*CONVERT(($Q$121),"in","mm")^WFT.N.Int*(HP!O$72/100)^WFT.N.Slope,"mm","in")-HP!$E$81)*HP!$G$19,"") -> 
A122: 2 | B122: =IF(AND(HP!D$72<>"",HP!D$39<>""),(WFT.G.Const*HP!$E$81^WFT.G.MTD*HP!D$76^WFT.G.DP*$A$122^WFT.G.Int*(HP!D$72/100)^WFT.G.Slope-HP!$E$81)*HP!$G$19,"") ->  | C122: =IF(AND(HP!E$72<>"",HP!E$39<>""),(WFT.G.Const*HP!$E$81^WFT.G.MTD*HP!E$76^WFT.G.DP*$A$122^WFT.G.Int*(HP!E$72/100)^WFT.G.Slope-HP!$E$81)*HP!$G$19,"") ->  | D122: =IF(AND(HP!F$72<>"",HP!F$39<>""),(WFT.G.Const*HP!$E$81^WFT.G.MTD*HP!F$76^WFT.G.DP*$A$122^WFT.G.Int*(HP!F$72/100)^WFT.G.Slope-HP!$E$81)*HP!$G$19,"") ->  | E122: =IF(AND(HP!G$72<>"",HP!G$39<>""),(WFT.G.Const*HP!$E$81^WFT.G.MTD*HP!G$76^WFT.G.DP*$A$122^WFT.G.Int*(HP!G$72/100)^WFT.G.Slope-HP!$E$81)*HP!$G$19,"") ->  | F122: =IF(AND(HP!H$72<>"",HP!H$39<>""),(WFT.G.Const*HP!$E$81^WFT.G.MTD*HP!H$76^WFT.G.DP*$A$122^WFT.G.Int*(HP!H$72/100)^WFT.G.Slope-HP!$E$81)*HP!$G$19,"") ->  | G122: =IF(AND(HP!I$72<>"",HP!I$39<>""),(WFT.G.Const*HP!$E$81^WFT.G.MTD*HP!I$76^WFT.G.DP*$A$122^WFT.G.Int*(HP!I$72/100)^WFT.G.Slope-HP!$E$81)*HP!$G$19,"") ->  | H122: =IF(AND(HP!J$72<>"",HP!J$39<>""),(WFT.G.Const*HP!$E$81^WFT.G.MTD*HP!J$76^WFT.G.DP*$A$122^WFT.G.Int*(HP!J$72/100)^WFT.G.Slope-HP!$E$81)*HP!$G$19,"") ->  | I122: =IF(AND(HP!K$72<>"",HP!K$39<>""),(WFT.G.Const*HP!$E$81^WFT.G.MTD*HP!K$76^WFT.G.DP*$A$122^WFT.G.Int*(HP!K$72/100)^WFT.G.Slope-HP!$E$81)*HP!$G$19,"") ->  | J122: =IF(AND(HP!L$72<>"",HP!L$39<>""),(WFT.G.Const*HP!$E$81^WFT.G.MTD*HP!L$76^WFT.G.DP*$A$122^WFT.G.Int*(HP!L$72/100)^WFT.G.Slope-HP!$E$81)*HP!$G$19,"") ->  | K122: =IF(AND(HP!M$72<>"",HP!M$39<>""),(WFT.G.Const*HP!$E$81^WFT.G.MTD*HP!M$76^WFT.G.DP*$A$122^WFT.G.Int*(HP!M$72/100)^WFT.G.Slope-HP!$E$81)*HP!$G$19,"") ->  | L122: =IF(AND(HP!N$72<>"",HP!N$39<>""),(WFT.G.Const*HP!$E$81^WFT.G.MTD*HP!N$76^WFT.G.DP*$A$122^WFT.G.Int*(HP!N$72/100)^WFT.G.Slope-HP!$E$81)*HP!$G$19,"") ->  | M122: =IF(AND(HP!O$72<>"",HP!O$39<>""),(WFT.G.Const*HP!$E$81^WFT.G.MTD*HP!O$76^WFT.G.DP*$A$122^WFT.G.Int*(HP!O$72/100)^WFT.G.Slope-HP!$E$81)*HP!$G$19,"") ->  | Q122: 2 | R122: =IF(AND(HP!D$72<>"",HP!D$39<>""),(CONVERT(WFT.N.Const*CONVERT(HP!$E$81,"in","mm")^WFT.N.MTD*CONVERT(HP!D$76,"ft","m")^WFT.N.DP*CONVERT(($Q$122),"in","mm")^WFT.N.Int*(HP!D$72/100)^WFT.N.Slope,"mm","in")-HP!$E$81)*HP!$G$19,"") ->  | S122: =IF(AND(HP!E$72<>"",HP!E$39<>""),(CONVERT(WFT.N.Const*CONVERT(HP!$E$81,"in","mm")^WFT.N.MTD*CONVERT(HP!E$76,"ft","m")^WFT.N.DP*CONVERT(($Q$122),"in","mm")^WFT.N.Int*(HP!E$72/100)^WFT.N.Slope,"mm","in")-HP!$E$81)*HP!$G$19,"") ->  | T122: =IF(AND(HP!F$72<>"",HP!F$39<>""),(CONVERT(WFT.N.Const*CONVERT(HP!$E$81,"in","mm")^WFT.N.MTD*CONVERT(HP!F$76,"ft","m")^WFT.N.DP*CONVERT(($Q$122),"in","mm")^WFT.N.Int*(HP!F$72/100)^WFT.N.Slope,"mm","in")-HP!$E$81)*HP!$G$19,"") ->  | U122: =IF(AND(HP!G$72<>"",HP!G$39<>""),(CONVERT(WFT.N.Const*CONVERT(HP!$E$81,"in","mm")^WFT.N.MTD*CONVERT(HP!G$76,"ft","m")^WFT.N.DP*CONVERT(($Q$122),"in","mm")^WFT.N.Int*(HP!G$72/100)^WFT.N.Slope,"mm","in")-HP!$E$81)*HP!$G$19,"") ->  | V122: =IF(AND(HP!H$72<>"",HP!H$39<>""),(CONVERT(WFT.N.Const*CONVERT(HP!$E$81,"in","mm")^WFT.N.MTD*CONVERT(HP!H$76,"ft","m")^WFT.N.DP*CONVERT(($Q$122),"in","mm")^WFT.N.Int*(HP!H$72/100)^WFT.N.Slope,"mm","in")-HP!$E$81)*HP!$G$19,"") ->  | W122: =IF(AND(HP!I$72<>"",HP!I$39<>""),(CONVERT(WFT.N.Const*CONVERT(HP!$E$81,"in","mm")^WFT.N.MTD*CONVERT(HP!I$76,"ft","m")^WFT.N.DP*CONVERT(($Q$122),"in","mm")^WFT.N.Int*(HP!I$72/100)^WFT.N.Slope,"mm","in")-HP!$E$81)*HP!$G$19,"") ->  | X122: =IF(AND(HP!J$72<>"",HP!J$39<>""),(CONVERT(WFT.N.Const*CONVERT(HP!$E$81,"in","mm")^WFT.N.MTD*CONVERT(HP!J$76,"ft","m")^WFT.N.DP*CONVERT(($Q$122),"in","mm")^WFT.N.Int*(HP!J$72/100)^WFT.N.Slope,"mm","in")-HP!$E$81)*HP!$G$19,"") ->  | Y122: =IF(AND(HP!K$72<>"",HP!K$39<>""),(CONVERT(WFT.N.Const*CONVERT(HP!$E$81,"in","mm")^WFT.N.MTD*CONVERT(HP!K$76,"ft","m")^WFT.N.DP*CONVERT(($Q$122),"in","mm")^WFT.N.Int*(HP!K$72/100)^WFT.N.Slope,"mm","in")-HP!$E$81)*HP!$G$19,"") ->  | Z122: =IF(AND(HP!L$72<>"",HP!L$39<>""),(CONVERT(WFT.N.Const*CONVERT(HP!$E$81,"in","mm")^WFT.N.MTD*CONVERT(HP!L$76,"ft","m")^WFT.N.DP*CONVERT(($Q$122),"in","mm")^WFT.N.Int*(HP!L$72/100)^WFT.N.Slope,"mm","in")-HP!$E$81)*HP!$G$19,"") ->  | AA122: =IF(AND(HP!M$72<>"",HP!M$39<>""),(CONVERT(WFT.N.Const*CONVERT(HP!$E$81,"in","mm")^WFT.N.MTD*CONVERT(HP!M$76,"ft","m")^WFT.N.DP*CONVERT(($Q$122),"in","mm")^WFT.N.Int*(HP!M$72/100)^WFT.N.Slope,"mm","in")-HP!$E$81)*HP!$G$19,"") ->  | AB122: =IF(AND(HP!N$72<>"",HP!N$39<>""),(CONVERT(WFT.N.Const*CONVERT(HP!$E$81,"in","mm")^WFT.N.MTD*CONVERT(HP!N$76,"ft","m")^WFT.N.DP*CONVERT(($Q$122),"in","mm")^WFT.N.Int*(HP!N$72/100)^WFT.N.Slope,"mm","in")-HP!$E$81)*HP!$G$19,"") ->  | AC122: =IF(AND(HP!O$72<>"",HP!O$39<>""),(CONVERT(WFT.N.Const*CONVERT(HP!$E$81,"in","mm")^WFT.N.MTD*CONVERT(HP!O$76,"ft","m")^WFT.N.DP*CONVERT(($Q$122),"in","mm")^WFT.N.Int*(HP!O$72/100)^WFT.N.Slope,"mm","in")-HP!$E$81)*HP!$G$19,"") -> 
A123: 3 | B123: =IF(AND(HP!D$72<>"",HP!D$39<>""),(WFT.G.Const*HP!$E$81^WFT.G.MTD*HP!D$76^WFT.G.DP*$A$123^WFT.G.Int*(HP!D$72/100)^WFT.G.Slope-HP!$E$81)*HP!$G$19,"") ->  | C123: =IF(AND(HP!E$72<>"",HP!E$39<>""),(WFT.G.Const*HP!$E$81^WFT.G.MTD*HP!E$76^WFT.G.DP*$A$123^WFT.G.Int*(HP!E$72/100)^WFT.G.Slope-HP!$E$81)*HP!$G$19,"") ->  | D123: =IF(AND(HP!F$72<>"",HP!F$39<>""),(WFT.G.Const*HP!$E$81^WFT.G.MTD*HP!F$76^WFT.G.DP*$A$123^WFT.G.Int*(HP!F$72/100)^WFT.G.Slope-HP!$E$81)*HP!$G$19,"") ->  | E123: =IF(AND(HP!G$72<>"",HP!G$39<>""),(WFT.G.Const*HP!$E$81^WFT.G.MTD*HP!G$76^WFT.G.DP*$A$123^WFT.G.Int*(HP!G$72/100)^WFT.G.Slope-HP!$E$81)*HP!$G$19,"") ->  | F123: =IF(AND(HP!H$72<>"",HP!H$39<>""),(WFT.G.Const*HP!$E$81^WFT.G.MTD*HP!H$76^WFT.G.DP*$A$123^WFT.G.Int*(HP!H$72/100)^WFT.G.Slope-HP!$E$81)*HP!$G$19,"") ->  | G123: =IF(AND(HP!I$72<>"",HP!I$39<>""),(WFT.G.Const*HP!$E$81^WFT.G.MTD*HP!I$76^WFT.G.DP*$A$123^WFT.G.Int*(HP!I$72/100)^WFT.G.Slope-HP!$E$81)*HP!$G$19,"") ->  | H123: =IF(AND(HP!J$72<>"",HP!J$39<>""),(WFT.G.Const*HP!$E$81^WFT.G.MTD*HP!J$76^WFT.G.DP*$A$123^WFT.G.Int*(HP!J$72/100)^WFT.G.Slope-HP!$E$81)*HP!$G$19,"") ->  | I123: =IF(AND(HP!K$72<>"",HP!K$39<>""),(WFT.G.Const*HP!$E$81^WFT.G.MTD*HP!K$76^WFT.G.DP*$A$123^WFT.G.Int*(HP!K$72/100)^WFT.G.Slope-HP!$E$81)*HP!$G$19,"") ->  | J123: =IF(AND(HP!L$72<>"",HP!L$39<>""),(WFT.G.Const*HP!$E$81^WFT.G.MTD*HP!L$76^WFT.G.DP*$A$123^WFT.G.Int*(HP!L$72/100)^WFT.G.Slope-HP!$E$81)*HP!$G$19,"") ->  | K123: =IF(AND(HP!M$72<>"",HP!M$39<>""),(WFT.G.Const*HP!$E$81^WFT.G.MTD*HP!M$76^WFT.G.DP*$A$123^WFT.G.Int*(HP!M$72/100)^WFT.G.Slope-HP!$E$81)*HP!$G$19,"") ->  | L123: =IF(AND(HP!N$72<>"",HP!N$39<>""),(WFT.G.Const*HP!$E$81^WFT.G.MTD*HP!N$76^WFT.G.DP*$A$123^WFT.G.Int*(HP!N$72/100)^WFT.G.Slope-HP!$E$81)*HP!$G$19,"") ->  | M123: =IF(AND(HP!O$72<>"",HP!O$39<>""),(WFT.G.Const*HP!$E$81^WFT.G.MTD*HP!O$76^WFT.G.DP*$A$123^WFT.G.Int*(HP!O$72/100)^WFT.G.Slope-HP!$E$81)*HP!$G$19,"") ->  | Q123: 3 | R123: =IF(AND(HP!D$72<>"",HP!D$39<>""),(CONVERT(WFT.N.Const*CONVERT(HP!$E$81,"in","mm")^WFT.N.MTD*CONVERT(HP!D$76,"ft","m")^WFT.N.DP*CONVERT(($Q$123),"in","mm")^WFT.N.Int*(HP!D$72/100)^WFT.N.Slope,"mm","in")-HP!$E$81)*HP!$G$19,"") ->  | S123: =IF(AND(HP!E$72<>"",HP!E$39<>""),(CONVERT(WFT.N.Const*CONVERT(HP!$E$81,"in","mm")^WFT.N.MTD*CONVERT(HP!E$76,"ft","m")^WFT.N.DP*CONVERT(($Q$123),"in","mm")^WFT.N.Int*(HP!E$72/100)^WFT.N.Slope,"mm","in")-HP!$E$81)*HP!$G$19,"") ->  | T123: =IF(AND(HP!F$72<>"",HP!F$39<>""),(CONVERT(WFT.N.Const*CONVERT(HP!$E$81,"in","mm")^WFT.N.MTD*CONVERT(HP!F$76,"ft","m")^WFT.N.DP*CONVERT(($Q$123),"in","mm")^WFT.N.Int*(HP!F$72/100)^WFT.N.Slope,"mm","in")-HP!$E$81)*HP!$G$19,"") ->  | U123: =IF(AND(HP!G$72<>"",HP!G$39<>""),(CONVERT(WFT.N.Const*CONVERT(HP!$E$81,"in","mm")^WFT.N.MTD*CONVERT(HP!G$76,"ft","m")^WFT.N.DP*CONVERT(($Q$123),"in","mm")^WFT.N.Int*(HP!G$72/100)^WFT.N.Slope,"mm","in")-HP!$E$81)*HP!$G$19,"") ->  | V123: =IF(AND(HP!H$72<>"",HP!H$39<>""),(CONVERT(WFT.N.Const*CONVERT(HP!$E$81,"in","mm")^WFT.N.MTD*CONVERT(HP!H$76,"ft","m")^WFT.N.DP*CONVERT(($Q$123),"in","mm")^WFT.N.Int*(HP!H$72/100)^WFT.N.Slope,"mm","in")-HP!$E$81)*HP!$G$19,"") ->  | W123: =IF(AND(HP!I$72<>"",HP!I$39<>""),(CONVERT(WFT.N.Const*CONVERT(HP!$E$81,"in","mm")^WFT.N.MTD*CONVERT(HP!I$76,"ft","m")^WFT.N.DP*CONVERT(($Q$123),"in","mm")^WFT.N.Int*(HP!I$72/100)^WFT.N.Slope,"mm","in")-HP!$E$81)*HP!$G$19,"") ->  | X123: =IF(AND(HP!J$72<>"",HP!J$39<>""),(CONVERT(WFT.N.Const*CONVERT(HP!$E$81,"in","mm")^WFT.N.MTD*CONVERT(HP!J$76,"ft","m")^WFT.N.DP*CONVERT(($Q$123),"in","mm")^WFT.N.Int*(HP!J$72/100)^WFT.N.Slope,"mm","in")-HP!$E$81)*HP!$G$19,"") ->  | Y123: =IF(AND(HP!K$72<>"",HP!K$39<>""),(CONVERT(WFT.N.Const*CONVERT(HP!$E$81,"in","mm")^WFT.N.MTD*CONVERT(HP!K$76,"ft","m")^WFT.N.DP*CONVERT(($Q$123),"in","mm")^WFT.N.Int*(HP!K$72/100)^WFT.N.Slope,"mm","in")-HP!$E$81)*HP!$G$19,"") ->  | Z123: =IF(AND(HP!L$72<>"",HP!L$39<>""),(CONVERT(WFT.N.Const*CONVERT(HP!$E$81,"in","mm")^WFT.N.MTD*CONVERT(HP!L$76,"ft","m")^WFT.N.DP*CONVERT(($Q$123),"in","mm")^WFT.N.Int*(HP!L$72/100)^WFT.N.Slope,"mm","in")-HP!$E$81)*HP!$G$19,"") ->  | AA123: =IF(AND(HP!M$72<>"",HP!M$39<>""),(CONVERT(WFT.N.Const*CONVERT(HP!$E$81,"in","mm")^WFT.N.MTD*CONVERT(HP!M$76,"ft","m")^WFT.N.DP*CONVERT(($Q$123),"in","mm")^WFT.N.Int*(HP!M$72/100)^WFT.N.Slope,"mm","in")-HP!$E$81)*HP!$G$19,"") ->  | AB123: =IF(AND(HP!N$72<>"",HP!N$39<>""),(CONVERT(WFT.N.Const*CONVERT(HP!$E$81,"in","mm")^WFT.N.MTD*CONVERT(HP!N$76,"ft","m")^WFT.N.DP*CONVERT(($Q$123),"in","mm")^WFT.N.Int*(HP!N$72/100)^WFT.N.Slope,"mm","in")-HP!$E$81)*HP!$G$19,"") ->  | AC123: =IF(AND(HP!O$72<>"",HP!O$39<>""),(CONVERT(WFT.N.Const*CONVERT(HP!$E$81,"in","mm")^WFT.N.MTD*CONVERT(HP!O$76,"ft","m")^WFT.N.DP*CONVERT(($Q$123),"in","mm")^WFT.N.Int*(HP!O$72/100)^WFT.N.Slope,"mm","in")-HP!$E$81)*HP!$G$19,"") -> 
A124: 4 | B124: =IF(AND(HP!D$72<>"",HP!D$39<>""),(WFT.G.Const*HP!$E$81^WFT.G.MTD*HP!D$76^WFT.G.DP*$A$124^WFT.G.Int*(HP!D$72/100)^WFT.G.Slope-HP!$E$81)*HP!$G$19,"") ->  | C124: =IF(AND(HP!E$72<>"",HP!E$39<>""),(WFT.G.Const*HP!$E$81^WFT.G.MTD*HP!E$76^WFT.G.DP*$A$124^WFT.G.Int*(HP!E$72/100)^WFT.G.Slope-HP!$E$81)*HP!$G$19,"") ->  | D124: =IF(AND(HP!F$72<>"",HP!F$39<>""),(WFT.G.Const*HP!$E$81^WFT.G.MTD*HP!F$76^WFT.G.DP*$A$124^WFT.G.Int*(HP!F$72/100)^WFT.G.Slope-HP!$E$81)*HP!$G$19,"") ->  | E124: =IF(AND(HP!G$72<>"",HP!G$39<>""),(WFT.G.Const*HP!$E$81^WFT.G.MTD*HP!G$76^WFT.G.DP*$A$124^WFT.G.Int*(HP!G$72/100)^WFT.G.Slope-HP!$E$81)*HP!$G$19,"") ->  | F124: =IF(AND(HP!H$72<>"",HP!H$39<>""),(WFT.G.Const*HP!$E$81^WFT.G.MTD*HP!H$76^WFT.G.DP*$A$124^WFT.G.Int*(HP!H$72/100)^WFT.G.Slope-HP!$E$81)*HP!$G$19,"") ->  | G124: =IF(AND(HP!I$72<>"",HP!I$39<>""),(WFT.G.Const*HP!$E$81^WFT.G.MTD*HP!I$76^WFT.G.DP*$A$124^WFT.G.Int*(HP!I$72/100)^WFT.G.Slope-HP!$E$81)*HP!$G$19,"") ->  | H124: =IF(AND(HP!J$72<>"",HP!J$39<>""),(WFT.G.Const*HP!$E$81^WFT.G.MTD*HP!J$76^WFT.G.DP*$A$124^WFT.G.Int*(HP!J$72/100)^WFT.G.Slope-HP!$E$81)*HP!$G$19,"") ->  | I124: =IF(AND(HP!K$72<>"",HP!K$39<>""),(WFT.G.Const*HP!$E$81^WFT.G.MTD*HP!K$76^WFT.G.DP*$A$124^WFT.G.Int*(HP!K$72/100)^WFT.G.Slope-HP!$E$81)*HP!$G$19,"") ->  | J124: =IF(AND(HP!L$72<>"",HP!L$39<>""),(WFT.G.Const*HP!$E$81^WFT.G.MTD*HP!L$76^WFT.G.DP*$A$124^WFT.G.Int*(HP!L$72/100)^WFT.G.Slope-HP!$E$81)*HP!$G$19,"") ->  | K124: =IF(AND(HP!M$72<>"",HP!M$39<>""),(WFT.G.Const*HP!$E$81^WFT.G.MTD*HP!M$76^WFT.G.DP*$A$124^WFT.G.Int*(HP!M$72/100)^WFT.G.Slope-HP!$E$81)*HP!$G$19,"") ->  | L124: =IF(AND(HP!N$72<>"",HP!N$39<>""),(WFT.G.Const*HP!$E$81^WFT.G.MTD*HP!N$76^WFT.G.DP*$A$124^WFT.G.Int*(HP!N$72/100)^WFT.G.Slope-HP!$E$81)*HP!$G$19,"") ->  | M124: =IF(AND(HP!O$72<>"",HP!O$39<>""),(WFT.G.Const*HP!$E$81^WFT.G.MTD*HP!O$76^WFT.G.DP*$A$124^WFT.G.Int*(HP!O$72/100)^WFT.G.Slope-HP!$E$81)*HP!$G$19,"") ->  | Q124: 4 | R124: =IF(AND(HP!D$72<>"",HP!D$39<>""),(CONVERT(WFT.N.Const*CONVERT(HP!$E$81,"in","mm")^WFT.N.MTD*CONVERT(HP!D$76,"ft","m")^WFT.N.DP*CONVERT(($Q$124),"in","mm")^WFT.N.Int*(HP!D$72/100)^WFT.N.Slope,"mm","in")-HP!$E$81)*HP!$G$19,"") ->  | S124: =IF(AND(HP!E$72<>"",HP!E$39<>""),(CONVERT(WFT.N.Const*CONVERT(HP!$E$81,"in","mm")^WFT.N.MTD*CONVERT(HP!E$76,"ft","m")^WFT.N.DP*CONVERT(($Q$124),"in","mm")^WFT.N.Int*(HP!E$72/100)^WFT.N.Slope,"mm","in")-HP!$E$81)*HP!$G$19,"") ->  | T124: =IF(AND(HP!F$72<>"",HP!F$39<>""),(CONVERT(WFT.N.Const*CONVERT(HP!$E$81,"in","mm")^WFT.N.MTD*CONVERT(HP!F$76,"ft","m")^WFT.N.DP*CONVERT(($Q$124),"in","mm")^WFT.N.Int*(HP!F$72/100)^WFT.N.Slope,"mm","in")-HP!$E$81)*HP!$G$19,"") ->  | U124: =IF(AND(HP!G$72<>"",HP!G$39<>""),(CONVERT(WFT.N.Const*CONVERT(HP!$E$81,"in","mm")^WFT.N.MTD*CONVERT(HP!G$76,"ft","m")^WFT.N.DP*CONVERT(($Q$124),"in","mm")^WFT.N.Int*(HP!G$72/100)^WFT.N.Slope,"mm","in")-HP!$E$81)*HP!$G$19,"") ->  | V124: =IF(AND(HP!H$72<>"",HP!H$39<>""),(CONVERT(WFT.N.Const*CONVERT(HP!$E$81,"in","mm")^WFT.N.MTD*CONVERT(HP!H$76,"ft","m")^WFT.N.DP*CONVERT(($Q$124),"in","mm")^WFT.N.Int*(HP!H$72/100)^WFT.N.Slope,"mm","in")-HP!$E$81)*HP!$G$19,"") ->  | W124: =IF(AND(HP!I$72<>"",HP!I$39<>""),(CONVERT(WFT.N.Const*CONVERT(HP!$E$81,"in","mm")^WFT.N.MTD*CONVERT(HP!I$76,"ft","m")^WFT.N.DP*CONVERT(($Q$124),"in","mm")^WFT.N.Int*(HP!I$72/100)^WFT.N.Slope,"mm","in")-HP!$E$81)*HP!$G$19,"") ->  | X124: =IF(AND(HP!J$72<>"",HP!J$39<>""),(CONVERT(WFT.N.Const*CONVERT(HP!$E$81,"in","mm")^WFT.N.MTD*CONVERT(HP!J$76,"ft","m")^WFT.N.DP*CONVERT(($Q$124),"in","mm")^WFT.N.Int*(HP!J$72/100)^WFT.N.Slope,"mm","in")-HP!$E$81)*HP!$G$19,"") ->  | Y124: =IF(AND(HP!K$72<>"",HP!K$39<>""),(CONVERT(WFT.N.Const*CONVERT(HP!$E$81,"in","mm")^WFT.N.MTD*CONVERT(HP!K$76,"ft","m")^WFT.N.DP*CONVERT(($Q$124),"in","mm")^WFT.N.Int*(HP!K$72/100)^WFT.N.Slope,"mm","in")-HP!$E$81)*HP!$G$19,"") ->  | Z124: =IF(AND(HP!L$72<>"",HP!L$39<>""),(CONVERT(WFT.N.Const*CONVERT(HP!$E$81,"in","mm")^WFT.N.MTD*CONVERT(HP!L$76,"ft","m")^WFT.N.DP*CONVERT(($Q$124),"in","mm")^WFT.N.Int*(HP!L$72/100)^WFT.N.Slope,"mm","in")-HP!$E$81)*HP!$G$19,"") ->  | AA124: =IF(AND(HP!M$72<>"",HP!M$39<>""),(CONVERT(WFT.N.Const*CONVERT(HP!$E$81,"in","mm")^WFT.N.MTD*CONVERT(HP!M$76,"ft","m")^WFT.N.DP*CONVERT(($Q$124),"in","mm")^WFT.N.Int*(HP!M$72/100)^WFT.N.Slope,"mm","in")-HP!$E$81)*HP!$G$19,"") ->  | AB124: =IF(AND(HP!N$72<>"",HP!N$39<>""),(CONVERT(WFT.N.Const*CONVERT(HP!$E$81,"in","mm")^WFT.N.MTD*CONVERT(HP!N$76,"ft","m")^WFT.N.DP*CONVERT(($Q$124),"in","mm")^WFT.N.Int*(HP!N$72/100)^WFT.N.Slope,"mm","in")-HP!$E$81)*HP!$G$19,"") ->  | AC124: =IF(AND(HP!O$72<>"",HP!O$39<>""),(CONVERT(WFT.N.Const*CONVERT(HP!$E$81,"in","mm")^WFT.N.MTD*CONVERT(HP!O$76,"ft","m")^WFT.N.DP*CONVERT(($Q$124),"in","mm")^WFT.N.Int*(HP!O$72/100)^WFT.N.Slope,"mm","in")-HP!$E$81)*HP!$G$19,"") -> 
A127: UK RRL | Q127: PAVDRN
A128: Plane Number | B128: 1 | C128: 2 | D128: 3 | E128: 4 | F128: 5 | G128: 6 | H128: 7 | I128: 8 | J128: 9 | K128: 10 | L128: 11 | M128: 12 | Q128: Plane Number | R128: 1 | S128: 2 | T128: 3 | U128: 4 | V128: 5 | W128: 6 | X128: 7 | Y128: 8 | Z128: 9 | AA128: 10 | AB128: 11 | AC128: 12
A129: Intensity (in/hr) | B129: Shoulder | C129: Lane 1 | D129: Lane 2 | E129: Lane 3 | F129: Lane 4 | G129: Lane 5 | H129: Lane 6 | I129: Lane 7 | J129: Lane 8 | K129: Lane 9 | L129: Lane 10 | M129: Lane 11 | Q129: Intensity (in/hr) | R129: Shoulder | S129: Lane 1 | T129: Lane 2 | U129: Lane 3 | V129: Lane 4 | W129: Lane 5 | X129: Lane 6 | Y129: Lane 7 | Z129: Lane 8 | AA129: Lane 9 | AB129: Lane 10 | AC129: Lane 11
A130: 0.1 | B130: =IF(AND(HP!D$72<>"",HP!D$39<>""),(CONVERT(WFT.U.Const*CONVERT(HP!D$76,"ft","m")^WFT.U.DP*CONVERT(($A$130),"in","mm")^WFT.U.Int*(HP!D$72/100)^WFT.U.Slope,"mm","in")-HP!$E$81)*HP!$G$19,"") ->  | C130: =IF(AND(HP!E$72<>"",HP!E$39<>""),(CONVERT(WFT.U.Const*CONVERT(HP!E$76,"ft","m")^WFT.U.DP*CONVERT(($A$130),"in","mm")^WFT.U.Int*(HP!E$72/100)^WFT.U.Slope,"mm","in")-HP!$E$81)*HP!$G$19,"") ->  | D130: =IF(AND(HP!F$72<>"",HP!F$39<>""),(CONVERT(WFT.U.Const*CONVERT(HP!F$76,"ft","m")^WFT.U.DP*CONVERT(($A$130),"in","mm")^WFT.U.Int*(HP!F$72/100)^WFT.U.Slope,"mm","in")-HP!$E$81)*HP!$G$19,"") ->  | E130: =IF(AND(HP!G$72<>"",HP!G$39<>""),(CONVERT(WFT.U.Const*CONVERT(HP!G$76,"ft","m")^WFT.U.DP*CONVERT(($A$130),"in","mm")^WFT.U.Int*(HP!G$72/100)^WFT.U.Slope,"mm","in")-HP!$E$81)*HP!$G$19,"") ->  | F130: =IF(AND(HP!H$72<>"",HP!H$39<>""),(CONVERT(WFT.U.Const*CONVERT(HP!H$76,"ft","m")^WFT.U.DP*CONVERT(($A$130),"in","mm")^WFT.U.Int*(HP!H$72/100)^WFT.U.Slope,"mm","in")-HP!$E$81)*HP!$G$19,"") ->  | G130: =IF(AND(HP!I$72<>"",HP!I$39<>""),(CONVERT(WFT.U.Const*CONVERT(HP!I$76,"ft","m")^WFT.U.DP*CONVERT(($A$130),"in","mm")^WFT.U.Int*(HP!I$72/100)^WFT.U.Slope,"mm","in")-HP!$E$81)*HP!$G$19,"") ->  | H130: =IF(AND(HP!J$72<>"",HP!J$39<>""),(CONVERT(WFT.U.Const*CONVERT(HP!J$76,"ft","m")^WFT.U.DP*CONVERT(($A$130),"in","mm")^WFT.U.Int*(HP!J$72/100)^WFT.U.Slope,"mm","in")-HP!$E$81)*HP!$G$19,"") ->  | I130: =IF(AND(HP!K$72<>"",HP!K$39<>""),(CONVERT(WFT.U.Const*CONVERT(HP!K$76,"ft","m")^WFT.U.DP*CONVERT(($A$130),"in","mm")^WFT.U.Int*(HP!K$72/100)^WFT.U.Slope,"mm","in")-HP!$E$81)*HP!$G$19,"") ->  | J130: =IF(AND(HP!L$72<>"",HP!L$39<>""),(CONVERT(WFT.U.Const*CONVERT(HP!L$76,"ft","m")^WFT.U.DP*CONVERT(($A$130),"in","mm")^WFT.U.Int*(HP!L$72/100)^WFT.U.Slope,"mm","in")-HP!$E$81)*HP!$G$19,"") ->  | K130: =IF(AND(HP!M$72<>"",HP!M$39<>""),(CONVERT(WFT.U.Const*CONVERT(HP!M$76,"ft","m")^WFT.U.DP*CONVERT(($A$130),"in","mm")^WFT.U.Int*(HP!M$72/100)^WFT.U.Slope,"mm","in")-HP!$E$81)*HP!$G$19,"") ->  | L130: =IF(AND(HP!N$72<>"",HP!N$39<>""),(CONVERT(WFT.U.Const*CONVERT(HP!N$76,"ft","m")^WFT.U.DP*CONVERT(($A$130),"in","mm")^WFT.U.Int*(HP!N$72/100)^WFT.U.Slope,"mm","in")-HP!$E$81)*HP!$G$19,"") ->  | M130: =IF(AND(HP!O$72<>"",HP!O$39<>""),(CONVERT(WFT.U.Const*CONVERT(HP!O$76,"ft","m")^WFT.U.DP*CONVERT(($A$130),"in","mm")^WFT.U.Int*(HP!O$72/100)^WFT.U.Slope,"mm","in")-HP!$E$81)*HP!$G$19,"") ->  | Q130: 0.1 | R130: =IF(AND(HP!D$72<>"",HP!D$39<>""),(CONVERT(WFT.P.Const*D98^WFT.P.Manni*CONVERT(HP!D$76,"ft","m")^WFT.P.DP*CONVERT(($Q$130),"in","mm")^WFT.P.Int*(HP!D$72/100)^WFT.P.Slope,"mm","in")-HP!$E$81)*HP!$G$19,"") ->  | S130: =IF(AND(HP!E$72<>"",HP!E$39<>""),(CONVERT(WFT.P.Const*E98^WFT.P.Manni*CONVERT(HP!E$76,"ft","m")^WFT.P.DP*CONVERT(($Q$130),"in","mm")^WFT.P.Int*(HP!E$72/100)^WFT.P.Slope,"mm","in")-HP!$E$81)*HP!$G$19,"") ->  | T130: =IF(AND(HP!F$72<>"",HP!F$39<>""),(CONVERT(WFT.P.Const*F98^WFT.P.Manni*CONVERT(HP!F$76,"ft","m")^WFT.P.DP*CONVERT(($Q$130),"in","mm")^WFT.P.Int*(HP!F$72/100)^WFT.P.Slope,"mm","in")-HP!$E$81)*HP!$G$19,"") ->  | U130: =IF(AND(HP!G$72<>"",HP!G$39<>""),(CONVERT(WFT.P.Const*G98^WFT.P.Manni*CONVERT(HP!G$76,"ft","m")^WFT.P.DP*CONVERT(($Q$130),"in","mm")^WFT.P.Int*(HP!G$72/100)^WFT.P.Slope,"mm","in")-HP!$E$81)*HP!$G$19,"") ->  | V130: =IF(AND(HP!H$72<>"",HP!H$39<>""),(CONVERT(WFT.P.Const*H98^WFT.P.Manni*CONVERT(HP!H$76,"ft","m")^WFT.P.DP*CONVERT(($Q$130),"in","mm")^WFT.P.Int*(HP!H$72/100)^WFT.P.Slope,"mm","in")-HP!$E$81)*HP!$G$19,"") ->  | W130: =IF(AND(HP!I$72<>"",HP!I$39<>""),(CONVERT(WFT.P.Const*I98^WFT.P.Manni*CONVERT(HP!I$76,"ft","m")^WFT.P.DP*CONVERT(($Q$130),"in","mm")^WFT.P.Int*(HP!I$72/100)^WFT.P.Slope,"mm","in")-HP!$E$81)*HP!$G$19,"") ->  | X130: =IF(AND(HP!J$72<>"",HP!J$39<>""),(CONVERT(WFT.P.Const*J98^WFT.P.Manni*CONVERT(HP!J$76,"ft","m")^WFT.P.DP*CONVERT(($Q$130),"in","mm")^WFT.P.Int*(HP!J$72/100)^WFT.P.Slope,"mm","in")-HP!$E$81)*HP!$G$19,"") ->  | Y130: =IF(AND(HP!K$72<>"",HP!K$39<>""),(CONVERT(WFT.P.Const*K98^WFT.P.Manni*CONVERT(HP!K$76,"ft","m")^WFT.P.DP*CONVERT(($Q$130),"in","mm")^WFT.P.Int*(HP!K$72/100)^WFT.P.Slope,"mm","in")-HP!$E$81)*HP!$G$19,"") ->  | Z130: =IF(AND(HP!L$72<>"",HP!L$39<>""),(CONVERT(WFT.P.Const*L98^WFT.P.Manni*CONVERT(HP!L$76,"ft","m")^WFT.P.DP*CONVERT(($Q$130),"in","mm")^WFT.P.Int*(HP!L$72/100)^WFT.P.Slope,"mm","in")-HP!$E$81)*HP!$G$19,"") ->  | AA130: =IF(AND(HP!M$72<>"",HP!M$39<>""),(CONVERT(WFT.P.Const*M98^WFT.P.Manni*CONVERT(HP!M$76,"ft","m")^WFT.P.DP*CONVERT(($Q$130),"in","mm")^WFT.P.Int*(HP!M$72/100)^WFT.P.Slope,"mm","in")-HP!$E$81)*HP!$G$19,"") ->  | AB130: =IF(AND(HP!N$72<>"",HP!N$39<>""),(CONVERT(WFT.P.Const*N98^WFT.P.Manni*CONVERT(HP!N$76,"ft","m")^WFT.P.DP*CONVERT(($Q$130),"in","mm")^WFT.P.Int*(HP!N$72/100)^WFT.P.Slope,"mm","in")-HP!$E$81)*HP!$G$19,"") ->  | AC130: =IF(AND(HP!O$72<>"",HP!O$39<>""),(CONVERT(WFT.P.Const*O98^WFT.P.Manni*CONVERT(HP!O$76,"ft","m")^WFT.P.DP*CONVERT(($Q$130),"in","mm")^WFT.P.Int*(HP!O$72/100)^WFT.P.Slope,"mm","in")-HP!$E$81)*HP!$G$19,"") -> 
A131: 0.25 | B131: =IF(AND(HP!D$72<>"",HP!D$39<>""),(CONVERT(WFT.U.Const*CONVERT(HP!D$76,"ft","m")^WFT.U.DP*CONVERT(($A$131),"in","mm")^WFT.U.Int*(HP!D$72/100)^WFT.U.Slope,"mm","in")-HP!$E$81)*HP!$G$19,"") ->  | C131: =IF(AND(HP!E$72<>"",HP!E$39<>""),(CONVERT(WFT.U.Const*CONVERT(HP!E$76,"ft","m")^WFT.U.DP*CONVERT(($A$131),"in","mm")^WFT.U.Int*(HP!E$72/100)^WFT.U.Slope,"mm","in")-HP!$E$81)*HP!$G$19,"") ->  | D131: =IF(AND(HP!F$72<>"",HP!F$39<>""),(CONVERT(WFT.U.Const*CONVERT(HP!F$76,"ft","m")^WFT.U.DP*CONVERT(($A$131),"in","mm")^WFT.U.Int*(HP!F$72/100)^WFT.U.Slope,"mm","in")-HP!$E$81)*HP!$G$19,"") ->  | E131: =IF(AND(HP!G$72<>"",HP!G$39<>""),(CONVERT(WFT.U.Const*CONVERT(HP!G$76,"ft","m")^WFT.U.DP*CONVERT(($A$131),"in","mm")^WFT.U.Int*(HP!G$72/100)^WFT.U.Slope,"mm","in")-HP!$E$81)*HP!$G$19,"") ->  | F131: =IF(AND(HP!H$72<>"",HP!H$39<>""),(CONVERT(WFT.U.Const*CONVERT(HP!H$76,"ft","m")^WFT.U.DP*CONVERT(($A$131),"in","mm")^WFT.U.Int*(HP!H$72/100)^WFT.U.Slope,"mm","in")-HP!$E$81)*HP!$G$19,"") ->  | G131: =IF(AND(HP!I$72<>"",HP!I$39<>""),(CONVERT(WFT.U.Const*CONVERT(HP!I$76,"ft","m")^WFT.U.DP*CONVERT(($A$131),"in","mm")^WFT.U.Int*(HP!I$72/100)^WFT.U.Slope,"mm","in")-HP!$E$81)*HP!$G$19,"") ->  | H131: =IF(AND(HP!J$72<>"",HP!J$39<>""),(CONVERT(WFT.U.Const*CONVERT(HP!J$76,"ft","m")^WFT.U.DP*CONVERT(($A$131),"in","mm")^WFT.U.Int*(HP!J$72/100)^WFT.U.Slope,"mm","in")-HP!$E$81)*HP!$G$19,"") ->  | I131: =IF(AND(HP!K$72<>"",HP!K$39<>""),(CONVERT(WFT.U.Const*CONVERT(HP!K$76,"ft","m")^WFT.U.DP*CONVERT(($A$131),"in","mm")^WFT.U.Int*(HP!K$72/100)^WFT.U.Slope,"mm","in")-HP!$E$81)*HP!$G$19,"") ->  | J131: =IF(AND(HP!L$72<>"",HP!L$39<>""),(CONVERT(WFT.U.Const*CONVERT(HP!L$76,"ft","m")^WFT.U.DP*CONVERT(($A$131),"in","mm")^WFT.U.Int*(HP!L$72/100)^WFT.U.Slope,"mm","in")-HP!$E$81)*HP!$G$19,"") ->  | K131: =IF(AND(HP!M$72<>"",HP!M$39<>""),(CONVERT(WFT.U.Const*CONVERT(HP!M$76,"ft","m")^WFT.U.DP*CONVERT(($A$131),"in","mm")^WFT.U.Int*(HP!M$72/100)^WFT.U.Slope,"mm","in")-HP!$E$81)*HP!$G$19,"") ->  | L131: =IF(AND(HP!N$72<>"",HP!N$39<>""),(CONVERT(WFT.U.Const*CONVERT(HP!N$76,"ft","m")^WFT.U.DP*CONVERT(($A$131),"in","mm")^WFT.U.Int*(HP!N$72/100)^WFT.U.Slope,"mm","in")-HP!$E$81)*HP!$G$19,"") ->  | M131: =IF(AND(HP!O$72<>"",HP!O$39<>""),(CONVERT(WFT.U.Const*CONVERT(HP!O$76,"ft","m")^WFT.U.DP*CONVERT(($A$131),"in","mm")^WFT.U.Int*(HP!O$72/100)^WFT.U.Slope,"mm","in")-HP!$E$81)*HP!$G$19,"") ->  | Q131: 0.25 | R131: =IF(AND(HP!D$72<>"",HP!D$39<>""),(CONVERT(WFT.P.Const*HP!D100^WFT.P.Manni*CONVERT(HP!D$76,"ft","m")^WFT.P.DP*CONVERT(($Q$131),"in","mm")^WFT.P.Int*(HP!D$72/100)^WFT.P.Slope,"mm","in")-HP!$E$81)*HP!$G$19,"") ->  | S131: =IF(AND(HP!E$72<>"",HP!E$39<>""),(CONVERT(WFT.P.Const*HP!E100^WFT.P.Manni*CONVERT(HP!E$76,"ft","m")^WFT.P.DP*CONVERT(($Q$131),"in","mm")^WFT.P.Int*(HP!E$72/100)^WFT.P.Slope,"mm","in")-HP!$E$81)*HP!$G$19,"") ->  | T131: =IF(AND(HP!F$72<>"",HP!F$39<>""),(CONVERT(WFT.P.Const*HP!F100^WFT.P.Manni*CONVERT(HP!F$76,"ft","m")^WFT.P.DP*CONVERT(($Q$131),"in","mm")^WFT.P.Int*(HP!F$72/100)^WFT.P.Slope,"mm","in")-HP!$E$81)*HP!$G$19,"") ->  | U131: =IF(AND(HP!G$72<>"",HP!G$39<>""),(CONVERT(WFT.P.Const*HP!G100^WFT.P.Manni*CONVERT(HP!G$76,"ft","m")^WFT.P.DP*CONVERT(($Q$131),"in","mm")^WFT.P.Int*(HP!G$72/100)^WFT.P.Slope,"mm","in")-HP!$E$81)*HP!$G$19,"") ->  | V131: =IF(AND(HP!H$72<>"",HP!H$39<>""),(CONVERT(WFT.P.Const*HP!H100^WFT.P.Manni*CONVERT(HP!H$76,"ft","m")^WFT.P.DP*CONVERT(($Q$131),"in","mm")^WFT.P.Int*(HP!H$72/100)^WFT.P.Slope,"mm","in")-HP!$E$81)*HP!$G$19,"") ->  | W131: =IF(AND(HP!I$72<>"",HP!I$39<>""),(CONVERT(WFT.P.Const*HP!I100^WFT.P.Manni*CONVERT(HP!I$76,"ft","m")^WFT.P.DP*CONVERT(($Q$131),"in","mm")^WFT.P.Int*(HP!I$72/100)^WFT.P.Slope,"mm","in")-HP!$E$81)*HP!$G$19,"") ->  | X131: =IF(AND(HP!J$72<>"",HP!J$39<>""),(CONVERT(WFT.P.Const*HP!J100^WFT.P.Manni*CONVERT(HP!J$76,"ft","m")^WFT.P.DP*CONVERT(($Q$131),"in","mm")^WFT.P.Int*(HP!J$72/100)^WFT.P.Slope,"mm","in")-HP!$E$81)*HP!$G$19,"") ->  | Y131: =IF(AND(HP!K$72<>"",HP!K$39<>""),(CONVERT(WFT.P.Const*HP!K100^WFT.P.Manni*CONVERT(HP!K$76,"ft","m")^WFT.P.DP*CONVERT(($Q$131),"in","mm")^WFT.P.Int*(HP!K$72/100)^WFT.P.Slope,"mm","in")-HP!$E$81)*HP!$G$19,"") ->  | Z131: =IF(AND(HP!L$72<>"",HP!L$39<>""),(CONVERT(WFT.P.Const*HP!L100^WFT.P.Manni*CONVERT(HP!L$76,"ft","m")^WFT.P.DP*CONVERT(($Q$131),"in","mm")^WFT.P.Int*(HP!L$72/100)^WFT.P.Slope,"mm","in")-HP!$E$81)*HP!$G$19,"") ->  | AA131: =IF(AND(HP!M$72<>"",HP!M$39<>""),(CONVERT(WFT.P.Const*HP!M100^WFT.P.Manni*CONVERT(HP!M$76,"ft","m")^WFT.P.DP*CONVERT(($Q$131),"in","mm")^WFT.P.Int*(HP!M$72/100)^WFT.P.Slope,"mm","in")-HP!$E$81)*HP!$G$19,"") ->  | AB131: =IF(AND(HP!N$72<>"",HP!N$39<>""),(CONVERT(WFT.P.Const*HP!N100^WFT.P.Manni*CONVERT(HP!N$76,"ft","m")^WFT.P.DP*CONVERT(($Q$131),"in","mm")^WFT.P.Int*(HP!N$72/100)^WFT.P.Slope,"mm","in")-HP!$E$81)*HP!$G$19,"") ->  | AC131: =IF(AND(HP!O$72<>"",HP!O$39<>""),(CONVERT(WFT.P.Const*HP!O100^WFT.P.Manni*CONVERT(HP!O$76,"ft","m")^WFT.P.DP*CONVERT(($Q$131),"in","mm")^WFT.P.Int*(HP!O$72/100)^WFT.P.Slope,"mm","in")-HP!$E$81)*HP!$G$19,"") -> 
A132: 0.5 | B132: =IF(AND(HP!D$72<>"",HP!D$39<>""),(CONVERT(WFT.U.Const*CONVERT(HP!D$76,"ft","m")^WFT.U.DP*CONVERT(($A$132),"in","mm")^WFT.U.Int*(HP!D$72/100)^WFT.U.Slope,"mm","in")-HP!$E$81)*HP!$G$19,"") ->  | C132: =IF(AND(HP!E$72<>"",HP!E$39<>""),(CONVERT(WFT.U.Const*CONVERT(HP!E$76,"ft","m")^WFT.U.DP*CONVERT(($A$132),"in","mm")^WFT.U.Int*(HP!E$72/100)^WFT.U.Slope,"mm","in")-HP!$E$81)*HP!$G$19,"") ->  | D132: =IF(AND(HP!F$72<>"",HP!F$39<>""),(CONVERT(WFT.U.Const*CONVERT(HP!F$76,"ft","m")^WFT.U.DP*CONVERT(($A$132),"in","mm")^WFT.U.Int*(HP!F$72/100)^WFT.U.Slope,"mm","in")-HP!$E$81)*HP!$G$19,"") ->  | E132: =IF(AND(HP!G$72<>"",HP!G$39<>""),(CONVERT(WFT.U.Const*CONVERT(HP!G$76,"ft","m")^WFT.U.DP*CONVERT(($A$132),"in","mm")^WFT.U.Int*(HP!G$72/100)^WFT.U.Slope,"mm","in")-HP!$E$81)*HP!$G$19,"") ->  | F132: =IF(AND(HP!H$72<>"",HP!H$39<>""),(CONVERT(WFT.U.Const*CONVERT(HP!H$76,"ft","m")^WFT.U.DP*CONVERT(($A$132),"in","mm")^WFT.U.Int*(HP!H$72/100)^WFT.U.Slope,"mm","in")-HP!$E$81)*HP!$G$19,"") ->  | G132: =IF(AND(HP!I$72<>"",HP!I$39<>""),(CONVERT(WFT.U.Const*CONVERT(HP!I$76,"ft","m")^WFT.U.DP*CONVERT(($A$132),"in","mm")^WFT.U.Int*(HP!I$72/100)^WFT.U.Slope,"mm","in")-HP!$E$81)*HP!$G$19,"") ->  | H132: =IF(AND(HP!J$72<>"",HP!J$39<>""),(CONVERT(WFT.U.Const*CONVERT(HP!J$76,"ft","m")^WFT.U.DP*CONVERT(($A$132),"in","mm")^WFT.U.Int*(HP!J$72/100)^WFT.U.Slope,"mm","in")-HP!$E$81)*HP!$G$19,"") ->  | I132: =IF(AND(HP!K$72<>"",HP!K$39<>""),(CONVERT(WFT.U.Const*CONVERT(HP!K$76,"ft","m")^WFT.U.DP*CONVERT(($A$132),"in","mm")^WFT.U.Int*(HP!K$72/100)^WFT.U.Slope,"mm","in")-HP!$E$81)*HP!$G$19,"") ->  | J132: =IF(AND(HP!L$72<>"",HP!L$39<>""),(CONVERT(WFT.U.Const*CONVERT(HP!L$76,"ft","m")^WFT.U.DP*CONVERT(($A$132),"in","mm")^WFT.U.Int*(HP!L$72/100)^WFT.U.Slope,"mm","in")-HP!$E$81)*HP!$G$19,"") ->  | K132: =IF(AND(HP!M$72<>"",HP!M$39<>""),(CONVERT(WFT.U.Const*CONVERT(HP!M$76,"ft","m")^WFT.U.DP*CONVERT(($A$132),"in","mm")^WFT.U.Int*(HP!M$72/100)^WFT.U.Slope,"mm","in")-HP!$E$81)*HP!$G$19,"") ->  | L132: =IF(AND(HP!N$72<>"",HP!N$39<>""),(CONVERT(WFT.U.Const*CONVERT(HP!N$76,"ft","m")^WFT.U.DP*CONVERT(($A$132),"in","mm")^WFT.U.Int*(HP!N$72/100)^WFT.U.Slope,"mm","in")-HP!$E$81)*HP!$G$19,"") ->  | M132: =IF(AND(HP!O$72<>"",HP!O$39<>""),(CONVERT(WFT.U.Const*CONVERT(HP!O$76,"ft","m")^WFT.U.DP*CONVERT(($A$132),"in","mm")^WFT.U.Int*(HP!O$72/100)^WFT.U.Slope,"mm","in")-HP!$E$81)*HP!$G$19,"") ->  | Q132: 0.5 | R132: =IF(AND(HP!D$72<>"",HP!D$39<>""),(CONVERT(WFT.P.Const*D102^WFT.P.Manni*CONVERT(HP!D$76,"ft","m")^WFT.P.DP*CONVERT(($Q$132),"in","mm")^WFT.P.Int*(HP!D$72/100)^WFT.P.Slope,"mm","in")-HP!$E$81)*HP!$G$19,"") ->  | S132: =IF(AND(HP!E$72<>"",HP!E$39<>""),(CONVERT(WFT.P.Const*E102^WFT.P.Manni*CONVERT(HP!E$76,"ft","m")^WFT.P.DP*CONVERT(($Q$132),"in","mm")^WFT.P.Int*(HP!E$72/100)^WFT.P.Slope,"mm","in")-HP!$E$81)*HP!$G$19,"") ->  | T132: =IF(AND(HP!F$72<>"",HP!F$39<>""),(CONVERT(WFT.P.Const*F102^WFT.P.Manni*CONVERT(HP!F$76,"ft","m")^WFT.P.DP*CONVERT(($Q$132),"in","mm")^WFT.P.Int*(HP!F$72/100)^WFT.P.Slope,"mm","in")-HP!$E$81)*HP!$G$19,"") ->  | U132: =IF(AND(HP!G$72<>"",HP!G$39<>""),(CONVERT(WFT.P.Const*G102^WFT.P.Manni*CONVERT(HP!G$76,"ft","m")^WFT.P.DP*CONVERT(($Q$132),"in","mm")^WFT.P.Int*(HP!G$72/100)^WFT.P.Slope,"mm","in")-HP!$E$81)*HP!$G$19,"") ->  | V132: =IF(AND(HP!H$72<>"",HP!H$39<>""),(CONVERT(WFT.P.Const*H102^WFT.P.Manni*CONVERT(HP!H$76,"ft","m")^WFT.P.DP*CONVERT(($Q$132),"in","mm")^WFT.P.Int*(HP!H$72/100)^WFT.P.Slope,"mm","in")-HP!$E$81)*HP!$G$19,"") ->  | W132: =IF(AND(HP!I$72<>"",HP!I$39<>""),(CONVERT(WFT.P.Const*I102^WFT.P.Manni*CONVERT(HP!I$76,"ft","m")^WFT.P.DP*CONVERT(($Q$132),"in","mm")^WFT.P.Int*(HP!I$72/100)^WFT.P.Slope,"mm","in")-HP!$E$81)*HP!$G$19,"") ->  | X132: =IF(AND(HP!J$72<>"",HP!J$39<>""),(CONVERT(WFT.P.Const*J102^WFT.P.Manni*CONVERT(HP!J$76,"ft","m")^WFT.P.DP*CONVERT(($Q$132),"in","mm")^WFT.P.Int*(HP!J$72/100)^WFT.P.Slope,"mm","in")-HP!$E$81)*HP!$G$19,"") ->  | Y132: =IF(AND(HP!K$72<>"",HP!K$39<>""),(CONVERT(WFT.P.Const*K102^WFT.P.Manni*CONVERT(HP!K$76,"ft","m")^WFT.P.DP*CONVERT(($Q$132),"in","mm")^WFT.P.Int*(HP!K$72/100)^WFT.P.Slope,"mm","in")-HP!$E$81)*HP!$G$19,"") ->  | Z132: =IF(AND(HP!L$72<>"",HP!L$39<>""),(CONVERT(WFT.P.Const*L102^WFT.P.Manni*CONVERT(HP!L$76,"ft","m")^WFT.P.DP*CONVERT(($Q$132),"in","mm")^WFT.P.Int*(HP!L$72/100)^WFT.P.Slope,"mm","in")-HP!$E$81)*HP!$G$19,"") ->  | AA132: =IF(AND(HP!M$72<>"",HP!M$39<>""),(CONVERT(WFT.P.Const*M102^WFT.P.Manni*CONVERT(HP!M$76,"ft","m")^WFT.P.DP*CONVERT(($Q$132),"in","mm")^WFT.P.Int*(HP!M$72/100)^WFT.P.Slope,"mm","in")-HP!$E$81)*HP!$G$19,"") ->  | AB132: =IF(AND(HP!N$72<>"",HP!N$39<>""),(CONVERT(WFT.P.Const*N102^WFT.P.Manni*CONVERT(HP!N$76,"ft","m")^WFT.P.DP*CONVERT(($Q$132),"in","mm")^WFT.P.Int*(HP!N$72/100)^WFT.P.Slope,"mm","in")-HP!$E$81)*HP!$G$19,"") ->  | AC132: =IF(AND(HP!O$72<>"",HP!O$39<>""),(CONVERT(WFT.P.Const*O102^WFT.P.Manni*CONVERT(HP!O$76,"ft","m")^WFT.P.DP*CONVERT(($Q$132),"in","mm")^WFT.P.Int*(HP!O$72/100)^WFT.P.Slope,"mm","in")-HP!$E$81)*HP!$G$19,"") -> 
A133: 1 | B133: =IF(AND(HP!D$72<>"",HP!D$39<>""),(CONVERT(WFT.U.Const*CONVERT(HP!D$76,"ft","m")^WFT.U.DP*CONVERT(($A$133),"in","mm")^WFT.U.Int*(HP!D$72/100)^WFT.U.Slope,"mm","in")-HP!$E$81)*HP!$G$19,"") ->  | C133: =IF(AND(HP!E$72<>"",HP!E$39<>""),(CONVERT(WFT.U.Const*CONVERT(HP!E$76,"ft","m")^WFT.U.DP*CONVERT(($A$133),"in","mm")^WFT.U.Int*(HP!E$72/100)^WFT.U.Slope,"mm","in")-HP!$E$81)*HP!$G$19,"") ->  | D133: =IF(AND(HP!F$72<>"",HP!F$39<>""),(CONVERT(WFT.U.Const*CONVERT(HP!F$76,"ft","m")^WFT.U.DP*CONVERT(($A$133),"in","mm")^WFT.U.Int*(HP!F$72/100)^WFT.U.Slope,"mm","in")-HP!$E$81)*HP!$G$19,"") ->  | E133: =IF(AND(HP!G$72<>"",HP!G$39<>""),(CONVERT(WFT.U.Const*CONVERT(HP!G$76,"ft","m")^WFT.U.DP*CONVERT(($A$133),"in","mm")^WFT.U.Int*(HP!G$72/100)^WFT.U.Slope,"mm","in")-HP!$E$81)*HP!$G$19,"") ->  | F133: =IF(AND(HP!H$72<>"",HP!H$39<>""),(CONVERT(WFT.U.Const*CONVERT(HP!H$76,"ft","m")^WFT.U.DP*CONVERT(($A$133),"in","mm")^WFT.U.Int*(HP!H$72/100)^WFT.U.Slope,"mm","in")-HP!$E$81)*HP!$G$19,"") ->  | G133: =IF(AND(HP!I$72<>"",HP!I$39<>""),(CONVERT(WFT.U.Const*CONVERT(HP!I$76,"ft","m")^WFT.U.DP*CONVERT(($A$133),"in","mm")^WFT.U.Int*(HP!I$72/100)^WFT.U.Slope,"mm","in")-HP!$E$81)*HP!$G$19,"") ->  | H133: =IF(AND(HP!J$72<>"",HP!J$39<>""),(CONVERT(WFT.U.Const*CONVERT(HP!J$76,"ft","m")^WFT.U.DP*CONVERT(($A$133),"in","mm")^WFT.U.Int*(HP!J$72/100)^WFT.U.Slope,"mm","in")-HP!$E$81)*HP!$G$19,"") ->  | I133: =IF(AND(HP!K$72<>"",HP!K$39<>""),(CONVERT(WFT.U.Const*CONVERT(HP!K$76,"ft","m")^WFT.U.DP*CONVERT(($A$133),"in","mm")^WFT.U.Int*(HP!K$72/100)^WFT.U.Slope,"mm","in")-HP!$E$81)*HP!$G$19,"") ->  | J133: =IF(AND(HP!L$72<>"",HP!L$39<>""),(CONVERT(WFT.U.Const*CONVERT(HP!L$76,"ft","m")^WFT.U.DP*CONVERT(($A$133),"in","mm")^WFT.U.Int*(HP!L$72/100)^WFT.U.Slope,"mm","in")-HP!$E$81)*HP!$G$19,"") ->  | K133: =IF(AND(HP!M$72<>"",HP!M$39<>""),(CONVERT(WFT.U.Const*CONVERT(HP!M$76,"ft","m")^WFT.U.DP*CONVERT(($A$133),"in","mm")^WFT.U.Int*(HP!M$72/100)^WFT.U.Slope,"mm","in")-HP!$E$81)*HP!$G$19,"") ->  | L133: =IF(AND(HP!N$72<>"",HP!N$39<>""),(CONVERT(WFT.U.Const*CONVERT(HP!N$76,"ft","m")^WFT.U.DP*CONVERT(($A$133),"in","mm")^WFT.U.Int*(HP!N$72/100)^WFT.U.Slope,"mm","in")-HP!$E$81)*HP!$G$19,"") ->  | M133: =IF(AND(HP!O$72<>"",HP!O$39<>""),(CONVERT(WFT.U.Const*CONVERT(HP!O$76,"ft","m")^WFT.U.DP*CONVERT(($A$133),"in","mm")^WFT.U.Int*(HP!O$72/100)^WFT.U.Slope,"mm","in")-HP!$E$81)*HP!$G$19,"") ->  | Q133: 1 | R133: =IF(AND(HP!D$72<>"",HP!D$39<>""),(CONVERT(WFT.P.Const*D104^WFT.P.Manni*CONVERT(HP!D$76,"ft","m")^WFT.P.DP*CONVERT(($Q$133),"in","mm")^WFT.P.Int*(HP!D$72/100)^WFT.P.Slope,"mm","in")-HP!$E$81)*HP!$G$19,"") ->  | S133: =IF(AND(HP!E$72<>"",HP!E$39<>""),(CONVERT(WFT.P.Const*E104^WFT.P.Manni*CONVERT(HP!E$76,"ft","m")^WFT.P.DP*CONVERT(($Q$133),"in","mm")^WFT.P.Int*(HP!E$72/100)^WFT.P.Slope,"mm","in")-HP!$E$81)*HP!$G$19,"") ->  | T133: =IF(AND(HP!F$72<>"",HP!F$39<>""),(CONVERT(WFT.P.Const*F104^WFT.P.Manni*CONVERT(HP!F$76,"ft","m")^WFT.P.DP*CONVERT(($Q$133),"in","mm")^WFT.P.Int*(HP!F$72/100)^WFT.P.Slope,"mm","in")-HP!$E$81)*HP!$G$19,"") ->  | U133: =IF(AND(HP!G$72<>"",HP!G$39<>""),(CONVERT(WFT.P.Const*G104^WFT.P.Manni*CONVERT(HP!G$76,"ft","m")^WFT.P.DP*CONVERT(($Q$133),"in","mm")^WFT.P.Int*(HP!G$72/100)^WFT.P.Slope,"mm","in")-HP!$E$81)*HP!$G$19,"") ->  | V133: =IF(AND(HP!H$72<>"",HP!H$39<>""),(CONVERT(WFT.P.Const*H104^WFT.P.Manni*CONVERT(HP!H$76,"ft","m")^WFT.P.DP*CONVERT(($Q$133),"in","mm")^WFT.P.Int*(HP!H$72/100)^WFT.P.Slope,"mm","in")-HP!$E$81)*HP!$G$19,"") ->  | W133: =IF(AND(HP!I$72<>"",HP!I$39<>""),(CONVERT(WFT.P.Const*I104^WFT.P.Manni*CONVERT(HP!I$76,"ft","m")^WFT.P.DP*CONVERT(($Q$133),"in","mm")^WFT.P.Int*(HP!I$72/100)^WFT.P.Slope,"mm","in")-HP!$E$81)*HP!$G$19,"") ->  | X133: =IF(AND(HP!J$72<>"",HP!J$39<>""),(CONVERT(WFT.P.Const*J104^WFT.P.Manni*CONVERT(HP!J$76,"ft","m")^WFT.P.DP*CONVERT(($Q$133),"in","mm")^WFT.P.Int*(HP!J$72/100)^WFT.P.Slope,"mm","in")-HP!$E$81)*HP!$G$19,"") ->  | Y133: =IF(AND(HP!K$72<>"",HP!K$39<>""),(CONVERT(WFT.P.Const*K104^WFT.P.Manni*CONVERT(HP!K$76,"ft","m")^WFT.P.DP*CONVERT(($Q$133),"in","mm")^WFT.P.Int*(HP!K$72/100)^WFT.P.Slope,"mm","in")-HP!$E$81)*HP!$G$19,"") ->  | Z133: =IF(AND(HP!L$72<>"",HP!L$39<>""),(CONVERT(WFT.P.Const*L104^WFT.P.Manni*CONVERT(HP!L$76,"ft","m")^WFT.P.DP*CONVERT(($Q$133),"in","mm")^WFT.P.Int*(HP!L$72/100)^WFT.P.Slope,"mm","in")-HP!$E$81)*HP!$G$19,"") ->  | AA133: =IF(AND(HP!M$72<>"",HP!M$39<>""),(CONVERT(WFT.P.Const*M104^WFT.P.Manni*CONVERT(HP!M$76,"ft","m")^WFT.P.DP*CONVERT(($Q$133),"in","mm")^WFT.P.Int*(HP!M$72/100)^WFT.P.Slope,"mm","in")-HP!$E$81)*HP!$G$19,"") ->  | AB133: =IF(AND(HP!N$72<>"",HP!N$39<>""),(CONVERT(WFT.P.Const*N104^WFT.P.Manni*CONVERT(HP!N$76,"ft","m")^WFT.P.DP*CONVERT(($Q$133),"in","mm")^WFT.P.Int*(HP!N$72/100)^WFT.P.Slope,"mm","in")-HP!$E$81)*HP!$G$19,"") ->  | AC133: =IF(AND(HP!O$72<>"",HP!O$39<>""),(CONVERT(WFT.P.Const*O104^WFT.P.Manni*CONVERT(HP!O$76,"ft","m")^WFT.P.DP*CONVERT(($Q$133),"in","mm")^WFT.P.Int*(HP!O$72/100)^WFT.P.Slope,"mm","in")-HP!$E$81)*HP!$G$19,"") -> 
A134: 2 | B134: =IF(AND(HP!D$72<>"",HP!D$39<>""),(CONVERT(WFT.U.Const*CONVERT(HP!D$76,"ft","m")^WFT.U.DP*CONVERT(($A$134),"in","mm")^WFT.U.Int*(HP!D$72/100)^WFT.U.Slope,"mm","in")-HP!$E$81)*HP!$G$19,"") ->  | C134: =IF(AND(HP!E$72<>"",HP!E$39<>""),(CONVERT(WFT.U.Const*CONVERT(HP!E$76,"ft","m")^WFT.U.DP*CONVERT(($A$134),"in","mm")^WFT.U.Int*(HP!E$72/100)^WFT.U.Slope,"mm","in")-HP!$E$81)*HP!$G$19,"") ->  | D134: =IF(AND(HP!F$72<>"",HP!F$39<>""),(CONVERT(WFT.U.Const*CONVERT(HP!F$76,"ft","m")^WFT.U.DP*CONVERT(($A$134),"in","mm")^WFT.U.Int*(HP!F$72/100)^WFT.U.Slope,"mm","in")-HP!$E$81)*HP!$G$19,"") ->  | E134: =IF(AND(HP!G$72<>"",HP!G$39<>""),(CONVERT(WFT.U.Const*CONVERT(HP!G$76,"ft","m")^WFT.U.DP*CONVERT(($A$134),"in","mm")^WFT.U.Int*(HP!G$72/100)^WFT.U.Slope,"mm","in")-HP!$E$81)*HP!$G$19,"") ->  | F134: =IF(AND(HP!H$72<>"",HP!H$39<>""),(CONVERT(WFT.U.Const*CONVERT(HP!H$76,"ft","m")^WFT.U.DP*CONVERT(($A$134),"in","mm")^WFT.U.Int*(HP!H$72/100)^WFT.U.Slope,"mm","in")-HP!$E$81)*HP!$G$19,"") ->  | G134: =IF(AND(HP!I$72<>"",HP!I$39<>""),(CONVERT(WFT.U.Const*CONVERT(HP!I$76,"ft","m")^WFT.U.DP*CONVERT(($A$134),"in","mm")^WFT.U.Int*(HP!I$72/100)^WFT.U.Slope,"mm","in")-HP!$E$81)*HP!$G$19,"") ->  | H134: =IF(AND(HP!J$72<>"",HP!J$39<>""),(CONVERT(WFT.U.Const*CONVERT(HP!J$76,"ft","m")^WFT.U.DP*CONVERT(($A$134),"in","mm")^WFT.U.Int*(HP!J$72/100)^WFT.U.Slope,"mm","in")-HP!$E$81)*HP!$G$19,"") ->  | I134: =IF(AND(HP!K$72<>"",HP!K$39<>""),(CONVERT(WFT.U.Const*CONVERT(HP!K$76,"ft","m")^WFT.U.DP*CONVERT(($A$134),"in","mm")^WFT.U.Int*(HP!K$72/100)^WFT.U.Slope,"mm","in")-HP!$E$81)*HP!$G$19,"") ->  | J134: =IF(AND(HP!L$72<>"",HP!L$39<>""),(CONVERT(WFT.U.Const*CONVERT(HP!L$76,"ft","m")^WFT.U.DP*CONVERT(($A$134),"in","mm")^WFT.U.Int*(HP!L$72/100)^WFT.U.Slope,"mm","in")-HP!$E$81)*HP!$G$19,"") ->  | K134: =IF(AND(HP!M$72<>"",HP!M$39<>""),(CONVERT(WFT.U.Const*CONVERT(HP!M$76,"ft","m")^WFT.U.DP*CONVERT(($A$134),"in","mm")^WFT.U.Int*(HP!M$72/100)^WFT.U.Slope,"mm","in")-HP!$E$81)*HP!$G$19,"") ->  | L134: =IF(AND(HP!N$72<>"",HP!N$39<>""),(CONVERT(WFT.U.Const*CONVERT(HP!N$76,"ft","m")^WFT.U.DP*CONVERT(($A$134),"in","mm")^WFT.U.Int*(HP!N$72/100)^WFT.U.Slope,"mm","in")-HP!$E$81)*HP!$G$19,"") ->  | M134: =IF(AND(HP!O$72<>"",HP!O$39<>""),(CONVERT(WFT.U.Const*CONVERT(HP!O$76,"ft","m")^WFT.U.DP*CONVERT(($A$134),"in","mm")^WFT.U.Int*(HP!O$72/100)^WFT.U.Slope,"mm","in")-HP!$E$81)*HP!$G$19,"") ->  | Q134: 2 | R134: =IF(AND(HP!D$72<>"",HP!D$39<>""),(CONVERT(WFT.P.Const*D106^WFT.P.Manni*CONVERT(HP!D$76,"ft","m")^WFT.P.DP*CONVERT(($Q$134),"in","mm")^WFT.P.Int*(HP!D$72/100)^WFT.P.Slope,"mm","in")-HP!$E$81)*HP!$G$19,"") ->  | S134: =IF(AND(HP!E$72<>"",HP!E$39<>""),(CONVERT(WFT.P.Const*E106^WFT.P.Manni*CONVERT(HP!E$76,"ft","m")^WFT.P.DP*CONVERT(($Q$134),"in","mm")^WFT.P.Int*(HP!E$72/100)^WFT.P.Slope,"mm","in")-HP!$E$81)*HP!$G$19,"") ->  | T134: =IF(AND(HP!F$72<>"",HP!F$39<>""),(CONVERT(WFT.P.Const*F106^WFT.P.Manni*CONVERT(HP!F$76,"ft","m")^WFT.P.DP*CONVERT(($Q$134),"in","mm")^WFT.P.Int*(HP!F$72/100)^WFT.P.Slope,"mm","in")-HP!$E$81)*HP!$G$19,"") ->  | U134: =IF(AND(HP!G$72<>"",HP!G$39<>""),(CONVERT(WFT.P.Const*G106^WFT.P.Manni*CONVERT(HP!G$76,"ft","m")^WFT.P.DP*CONVERT(($Q$134),"in","mm")^WFT.P.Int*(HP!G$72/100)^WFT.P.Slope,"mm","in")-HP!$E$81)*HP!$G$19,"") ->  | V134: =IF(AND(HP!H$72<>"",HP!H$39<>""),(CONVERT(WFT.P.Const*H106^WFT.P.Manni*CONVERT(HP!H$76,"ft","m")^WFT.P.DP*CONVERT(($Q$134),"in","mm")^WFT.P.Int*(HP!H$72/100)^WFT.P.Slope,"mm","in")-HP!$E$81)*HP!$G$19,"") ->  | W134: =IF(AND(HP!I$72<>"",HP!I$39<>""),(CONVERT(WFT.P.Const*I106^WFT.P.Manni*CONVERT(HP!I$76,"ft","m")^WFT.P.DP*CONVERT(($Q$134),"in","mm")^WFT.P.Int*(HP!I$72/100)^WFT.P.Slope,"mm","in")-HP!$E$81)*HP!$G$19,"") ->  | X134: =IF(AND(HP!J$72<>"",HP!J$39<>""),(CONVERT(WFT.P.Const*J106^WFT.P.Manni*CONVERT(HP!J$76,"ft","m")^WFT.P.DP*CONVERT(($Q$134),"in","mm")^WFT.P.Int*(HP!J$72/100)^WFT.P.Slope,"mm","in")-HP!$E$81)*HP!$G$19,"") ->  | Y134: =IF(AND(HP!K$72<>"",HP!K$39<>""),(CONVERT(WFT.P.Const*K106^WFT.P.Manni*CONVERT(HP!K$76,"ft","m")^WFT.P.DP*CONVERT(($Q$134),"in","mm")^WFT.P.Int*(HP!K$72/100)^WFT.P.Slope,"mm","in")-HP!$E$81)*HP!$G$19,"") ->  | Z134: =IF(AND(HP!L$72<>"",HP!L$39<>""),(CONVERT(WFT.P.Const*L106^WFT.P.Manni*CONVERT(HP!L$76,"ft","m")^WFT.P.DP*CONVERT(($Q$134),"in","mm")^WFT.P.Int*(HP!L$72/100)^WFT.P.Slope,"mm","in")-HP!$E$81)*HP!$G$19,"") ->  | AA134: =IF(AND(HP!M$72<>"",HP!M$39<>""),(CONVERT(WFT.P.Const*M106^WFT.P.Manni*CONVERT(HP!M$76,"ft","m")^WFT.P.DP*CONVERT(($Q$134),"in","mm")^WFT.P.Int*(HP!M$72/100)^WFT.P.Slope,"mm","in")-HP!$E$81)*HP!$G$19,"") ->  | AB134: =IF(AND(HP!N$72<>"",HP!N$39<>""),(CONVERT(WFT.P.Const*N106^WFT.P.Manni*CONVERT(HP!N$76,"ft","m")^WFT.P.DP*CONVERT(($Q$134),"in","mm")^WFT.P.Int*(HP!N$72/100)^WFT.P.Slope,"mm","in")-HP!$E$81)*HP!$G$19,"") ->  | AC134: =IF(AND(HP!O$72<>"",HP!O$39<>""),(CONVERT(WFT.P.Const*O106^WFT.P.Manni*CONVERT(HP!O$76,"ft","m")^WFT.P.DP*CONVERT(($Q$134),"in","mm")^WFT.P.Int*(HP!O$72/100)^WFT.P.Slope,"mm","in")-HP!$E$81)*HP!$G$19,"") -> 
A135: 3 | B135: =IF(AND(HP!D$72<>"",HP!D$39<>""),(CONVERT(WFT.U.Const*CONVERT(HP!D$76,"ft","m")^WFT.U.DP*CONVERT(($A$135),"in","mm")^WFT.U.Int*(HP!D$72/100)^WFT.U.Slope,"mm","in")-HP!$E$81)*HP!$G$19,"") ->  | C135: =IF(AND(HP!E$72<>"",HP!E$39<>""),(CONVERT(WFT.U.Const*CONVERT(HP!E$76,"ft","m")^WFT.U.DP*CONVERT(($A$135),"in","mm")^WFT.U.Int*(HP!E$72/100)^WFT.U.Slope,"mm","in")-HP!$E$81)*HP!$G$19,"") ->  | D135: =IF(AND(HP!F$72<>"",HP!F$39<>""),(CONVERT(WFT.U.Const*CONVERT(HP!F$76,"ft","m")^WFT.U.DP*CONVERT(($A$135),"in","mm")^WFT.U.Int*(HP!F$72/100)^WFT.U.Slope,"mm","in")-HP!$E$81)*HP!$G$19,"") ->  | E135: =IF(AND(HP!G$72<>"",HP!G$39<>""),(CONVERT(WFT.U.Const*CONVERT(HP!G$76,"ft","m")^WFT.U.DP*CONVERT(($A$135),"in","mm")^WFT.U.Int*(HP!G$72/100)^WFT.U.Slope,"mm","in")-HP!$E$81)*HP!$G$19,"") ->  | F135: =IF(AND(HP!H$72<>"",HP!H$39<>""),(CONVERT(WFT.U.Const*CONVERT(HP!H$76,"ft","m")^WFT.U.DP*CONVERT(($A$135),"in","mm")^WFT.U.Int*(HP!H$72/100)^WFT.U.Slope,"mm","in")-HP!$E$81)*HP!$G$19,"") ->  | G135: =IF(AND(HP!I$72<>"",HP!I$39<>""),(CONVERT(WFT.U.Const*CONVERT(HP!I$76,"ft","m")^WFT.U.DP*CONVERT(($A$135),"in","mm")^WFT.U.Int*(HP!I$72/100)^WFT.U.Slope,"mm","in")-HP!$E$81)*HP!$G$19,"") ->  | H135: =IF(AND(HP!J$72<>"",HP!J$39<>""),(CONVERT(WFT.U.Const*CONVERT(HP!J$76,"ft","m")^WFT.U.DP*CONVERT(($A$135),"in","mm")^WFT.U.Int*(HP!J$72/100)^WFT.U.Slope,"mm","in")-HP!$E$81)*HP!$G$19,"") ->  | I135: =IF(AND(HP!K$72<>"",HP!K$39<>""),(CONVERT(WFT.U.Const*CONVERT(HP!K$76,"ft","m")^WFT.U.DP*CONVERT(($A$135),"in","mm")^WFT.U.Int*(HP!K$72/100)^WFT.U.Slope,"mm","in")-HP!$E$81)*HP!$G$19,"") ->  | J135: =IF(AND(HP!L$72<>"",HP!L$39<>""),(CONVERT(WFT.U.Const*CONVERT(HP!L$76,"ft","m")^WFT.U.DP*CONVERT(($A$135),"in","mm")^WFT.U.Int*(HP!L$72/100)^WFT.U.Slope,"mm","in")-HP!$E$81)*HP!$G$19,"") ->  | K135: =IF(AND(HP!M$72<>"",HP!M$39<>""),(CONVERT(WFT.U.Const*CONVERT(HP!M$76,"ft","m")^WFT.U.DP*CONVERT(($A$135),"in","mm")^WFT.U.Int*(HP!M$72/100)^WFT.U.Slope,"mm","in")-HP!$E$81)*HP!$G$19,"") ->  | L135: =IF(AND(HP!N$72<>"",HP!N$39<>""),(CONVERT(WFT.U.Const*CONVERT(HP!N$76,"ft","m")^WFT.U.DP*CONVERT(($A$135),"in","mm")^WFT.U.Int*(HP!N$72/100)^WFT.U.Slope,"mm","in")-HP!$E$81)*HP!$G$19,"") ->  | M135: =IF(AND(HP!O$72<>"",HP!O$39<>""),(CONVERT(WFT.U.Const*CONVERT(HP!O$76,"ft","m")^WFT.U.DP*CONVERT(($A$135),"in","mm")^WFT.U.Int*(HP!O$72/100)^WFT.U.Slope,"mm","in")-HP!$E$81)*HP!$G$19,"") ->  | Q135: 3 | R135: =IF(AND(HP!D$72<>"",HP!D$39<>""),(CONVERT(WFT.P.Const*D108^WFT.P.Manni*CONVERT(HP!D$76,"ft","m")^WFT.P.DP*CONVERT(($Q$135),"in","mm")^WFT.P.Int*(HP!D$72/100)^WFT.P.Slope,"mm","in")-HP!$E$81)*HP!$G$19,"") ->  | S135: =IF(AND(HP!E$72<>"",HP!E$39<>""),(CONVERT(WFT.P.Const*E108^WFT.P.Manni*CONVERT(HP!E$76,"ft","m")^WFT.P.DP*CONVERT(($Q$135),"in","mm")^WFT.P.Int*(HP!E$72/100)^WFT.P.Slope,"mm","in")-HP!$E$81)*HP!$G$19,"") ->  | T135: =IF(AND(HP!F$72<>"",HP!F$39<>""),(CONVERT(WFT.P.Const*F108^WFT.P.Manni*CONVERT(HP!F$76,"ft","m")^WFT.P.DP*CONVERT(($Q$135),"in","mm")^WFT.P.Int*(HP!F$72/100)^WFT.P.Slope,"mm","in")-HP!$E$81)*HP!$G$19,"") ->  | U135: =IF(AND(HP!G$72<>"",HP!G$39<>""),(CONVERT(WFT.P.Const*G108^WFT.P.Manni*CONVERT(HP!G$76,"ft","m")^WFT.P.DP*CONVERT(($Q$135),"in","mm")^WFT.P.Int*(HP!G$72/100)^WFT.P.Slope,"mm","in")-HP!$E$81)*HP!$G$19,"") ->  | V135: =IF(AND(HP!H$72<>"",HP!H$39<>""),(CONVERT(WFT.P.Const*H108^WFT.P.Manni*CONVERT(HP!H$76,"ft","m")^WFT.P.DP*CONVERT(($Q$135),"in","mm")^WFT.P.Int*(HP!H$72/100)^WFT.P.Slope,"mm","in")-HP!$E$81)*HP!$G$19,"") ->  | W135: =IF(AND(HP!I$72<>"",HP!I$39<>""),(CONVERT(WFT.P.Const*I108^WFT.P.Manni*CONVERT(HP!I$76,"ft","m")^WFT.P.DP*CONVERT(($Q$135),"in","mm")^WFT.P.Int*(HP!I$72/100)^WFT.P.Slope,"mm","in")-HP!$E$81)*HP!$G$19,"") ->  | X135: =IF(AND(HP!J$72<>"",HP!J$39<>""),(CONVERT(WFT.P.Const*J108^WFT.P.Manni*CONVERT(HP!J$76,"ft","m")^WFT.P.DP*CONVERT(($Q$135),"in","mm")^WFT.P.Int*(HP!J$72/100)^WFT.P.Slope,"mm","in")-HP!$E$81)*HP!$G$19,"") ->  | Y135: =IF(AND(HP!K$72<>"",HP!K$39<>""),(CONVERT(WFT.P.Const*K108^WFT.P.Manni*CONVERT(HP!K$76,"ft","m")^WFT.P.DP*CONVERT(($Q$135),"in","mm")^WFT.P.Int*(HP!K$72/100)^WFT.P.Slope,"mm","in")-HP!$E$81)*HP!$G$19,"") ->  | Z135: =IF(AND(HP!L$72<>"",HP!L$39<>""),(CONVERT(WFT.P.Const*L108^WFT.P.Manni*CONVERT(HP!L$76,"ft","m")^WFT.P.DP*CONVERT(($Q$135),"in","mm")^WFT.P.Int*(HP!L$72/100)^WFT.P.Slope,"mm","in")-HP!$E$81)*HP!$G$19,"") ->  | AA135: =IF(AND(HP!M$72<>"",HP!M$39<>""),(CONVERT(WFT.P.Const*M108^WFT.P.Manni*CONVERT(HP!M$76,"ft","m")^WFT.P.DP*CONVERT(($Q$135),"in","mm")^WFT.P.Int*(HP!M$72/100)^WFT.P.Slope,"mm","in")-HP!$E$81)*HP!$G$19,"") ->  | AB135: =IF(AND(HP!N$72<>"",HP!N$39<>""),(CONVERT(WFT.P.Const*N108^WFT.P.Manni*CONVERT(HP!N$76,"ft","m")^WFT.P.DP*CONVERT(($Q$135),"in","mm")^WFT.P.Int*(HP!N$72/100)^WFT.P.Slope,"mm","in")-HP!$E$81)*HP!$G$19,"") ->  | AC135: =IF(AND(HP!O$72<>"",HP!O$39<>""),(CONVERT(WFT.P.Const*O108^WFT.P.Manni*CONVERT(HP!O$76,"ft","m")^WFT.P.DP*CONVERT(($Q$135),"in","mm")^WFT.P.Int*(HP!O$72/100)^WFT.P.Slope,"mm","in")-HP!$E$81)*HP!$G$19,"") -> 
A136: 4 | B136: =IF(AND(HP!D$72<>"",HP!D$39<>""),(CONVERT(WFT.U.Const*CONVERT(HP!D$76,"ft","m")^WFT.U.DP*CONVERT(($A$136),"in","mm")^WFT.U.Int*(HP!D$72/100)^WFT.U.Slope,"mm","in")-HP!$E$81)*HP!$G$19,"") ->  | C136: =IF(AND(HP!E$72<>"",HP!E$39<>""),(CONVERT(WFT.U.Const*CONVERT(HP!E$76,"ft","m")^WFT.U.DP*CONVERT(($A$136),"in","mm")^WFT.U.Int*(HP!E$72/100)^WFT.U.Slope,"mm","in")-HP!$E$81)*HP!$G$19,"") ->  | D136: =IF(AND(HP!F$72<>"",HP!F$39<>""),(CONVERT(WFT.U.Const*CONVERT(HP!F$76,"ft","m")^WFT.U.DP*CONVERT(($A$136),"in","mm")^WFT.U.Int*(HP!F$72/100)^WFT.U.Slope,"mm","in")-HP!$E$81)*HP!$G$19,"") ->  | E136: =IF(AND(HP!G$72<>"",HP!G$39<>""),(CONVERT(WFT.U.Const*CONVERT(HP!G$76,"ft","m")^WFT.U.DP*CONVERT(($A$136),"in","mm")^WFT.U.Int*(HP!G$72/100)^WFT.U.Slope,"mm","in")-HP!$E$81)*HP!$G$19,"") ->  | F136: =IF(AND(HP!H$72<>"",HP!H$39<>""),(CONVERT(WFT.U.Const*CONVERT(HP!H$76,"ft","m")^WFT.U.DP*CONVERT(($A$136),"in","mm")^WFT.U.Int*(HP!H$72/100)^WFT.U.Slope,"mm","in")-HP!$E$81)*HP!$G$19,"") ->  | G136: =IF(AND(HP!I$72<>"",HP!I$39<>""),(CONVERT(WFT.U.Const*CONVERT(HP!I$76,"ft","m")^WFT.U.DP*CONVERT(($A$136),"in","mm")^WFT.U.Int*(HP!I$72/100)^WFT.U.Slope,"mm","in")-HP!$E$81)*HP!$G$19,"") ->  | H136: =IF(AND(HP!J$72<>"",HP!J$39<>""),(CONVERT(WFT.U.Const*CONVERT(HP!J$76,"ft","m")^WFT.U.DP*CONVERT(($A$136),"in","mm")^WFT.U.Int*(HP!J$72/100)^WFT.U.Slope,"mm","in")-HP!$E$81)*HP!$G$19,"") ->  | I136: =IF(AND(HP!K$72<>"",HP!K$39<>""),(CONVERT(WFT.U.Const*CONVERT(HP!K$76,"ft","m")^WFT.U.DP*CONVERT(($A$136),"in","mm")^WFT.U.Int*(HP!K$72/100)^WFT.U.Slope,"mm","in")-HP!$E$81)*HP!$G$19,"") ->  | J136: =IF(AND(HP!L$72<>"",HP!L$39<>""),(CONVERT(WFT.U.Const*CONVERT(HP!L$76,"ft","m")^WFT.U.DP*CONVERT(($A$136),"in","mm")^WFT.U.Int*(HP!L$72/100)^WFT.U.Slope,"mm","in")-HP!$E$81)*HP!$G$19,"") ->  | K136: =IF(AND(HP!M$72<>"",HP!M$39<>""),(CONVERT(WFT.U.Const*CONVERT(HP!M$76,"ft","m")^WFT.U.DP*CONVERT(($A$136),"in","mm")^WFT.U.Int*(HP!M$72/100)^WFT.U.Slope,"mm","in")-HP!$E$81)*HP!$G$19,"") ->  | L136: =IF(AND(HP!N$72<>"",HP!N$39<>""),(CONVERT(WFT.U.Const*CONVERT(HP!N$76,"ft","m")^WFT.U.DP*CONVERT(($A$136),"in","mm")^WFT.U.Int*(HP!N$72/100)^WFT.U.Slope,"mm","in")-HP!$E$81)*HP!$G$19,"") ->  | M136: =IF(AND(HP!O$72<>"",HP!O$39<>""),(CONVERT(WFT.U.Const*CONVERT(HP!O$76,"ft","m")^WFT.U.DP*CONVERT(($A$136),"in","mm")^WFT.U.Int*(HP!O$72/100)^WFT.U.Slope,"mm","in")-HP!$E$81)*HP!$G$19,"") ->  | Q136: 4 | R136: =IF(AND(HP!D$72<>"",HP!D$39<>""),(CONVERT(WFT.P.Const*D110^WFT.P.Manni*CONVERT(HP!D$76,"ft","m")^WFT.P.DP*CONVERT(($Q$136),"in","mm")^WFT.P.Int*(HP!D$72/100)^WFT.P.Slope,"mm","in")-HP!$E$81)*HP!$G$19,"") ->  | S136: =IF(AND(HP!E$72<>"",HP!E$39<>""),(CONVERT(WFT.P.Const*E110^WFT.P.Manni*CONVERT(HP!E$76,"ft","m")^WFT.P.DP*CONVERT(($Q$136),"in","mm")^WFT.P.Int*(HP!E$72/100)^WFT.P.Slope,"mm","in")-HP!$E$81)*HP!$G$19,"") ->  | T136: =IF(AND(HP!F$72<>"",HP!F$39<>""),(CONVERT(WFT.P.Const*F110^WFT.P.Manni*CONVERT(HP!F$76,"ft","m")^WFT.P.DP*CONVERT(($Q$136),"in","mm")^WFT.P.Int*(HP!F$72/100)^WFT.P.Slope,"mm","in")-HP!$E$81)*HP!$G$19,"") ->  | U136: =IF(AND(HP!G$72<>"",HP!G$39<>""),(CONVERT(WFT.P.Const*G110^WFT.P.Manni*CONVERT(HP!G$76,"ft","m")^WFT.P.DP*CONVERT(($Q$136),"in","mm")^WFT.P.Int*(HP!G$72/100)^WFT.P.Slope,"mm","in")-HP!$E$81)*HP!$G$19,"") ->  | V136: =IF(AND(HP!H$72<>"",HP!H$39<>""),(CONVERT(WFT.P.Const*H110^WFT.P.Manni*CONVERT(HP!H$76,"ft","m")^WFT.P.DP*CONVERT(($Q$136),"in","mm")^WFT.P.Int*(HP!H$72/100)^WFT.P.Slope,"mm","in")-HP!$E$81)*HP!$G$19,"") ->  | W136: =IF(AND(HP!I$72<>"",HP!I$39<>""),(CONVERT(WFT.P.Const*I110^WFT.P.Manni*CONVERT(HP!I$76,"ft","m")^WFT.P.DP*CONVERT(($Q$136),"in","mm")^WFT.P.Int*(HP!I$72/100)^WFT.P.Slope,"mm","in")-HP!$E$81)*HP!$G$19,"") ->  | X136: =IF(AND(HP!J$72<>"",HP!J$39<>""),(CONVERT(WFT.P.Const*J110^WFT.P.Manni*CONVERT(HP!J$76,"ft","m")^WFT.P.DP*CONVERT(($Q$136),"in","mm")^WFT.P.Int*(HP!J$72/100)^WFT.P.Slope,"mm","in")-HP!$E$81)*HP!$G$19,"") ->  | Y136: =IF(AND(HP!K$72<>"",HP!K$39<>""),(CONVERT(WFT.P.Const*K110^WFT.P.Manni*CONVERT(HP!K$76,"ft","m")^WFT.P.DP*CONVERT(($Q$136),"in","mm")^WFT.P.Int*(HP!K$72/100)^WFT.P.Slope,"mm","in")-HP!$E$81)*HP!$G$19,"") ->  | Z136: =IF(AND(HP!L$72<>"",HP!L$39<>""),(CONVERT(WFT.P.Const*L110^WFT.P.Manni*CONVERT(HP!L$76,"ft","m")^WFT.P.DP*CONVERT(($Q$136),"in","mm")^WFT.P.Int*(HP!L$72/100)^WFT.P.Slope,"mm","in")-HP!$E$81)*HP!$G$19,"") ->  | AA136: =IF(AND(HP!M$72<>"",HP!M$39<>""),(CONVERT(WFT.P.Const*M110^WFT.P.Manni*CONVERT(HP!M$76,"ft","m")^WFT.P.DP*CONVERT(($Q$136),"in","mm")^WFT.P.Int*(HP!M$72/100)^WFT.P.Slope,"mm","in")-HP!$E$81)*HP!$G$19,"") ->  | AB136: =IF(AND(HP!N$72<>"",HP!N$39<>""),(CONVERT(WFT.P.Const*N110^WFT.P.Manni*CONVERT(HP!N$76,"ft","m")^WFT.P.DP*CONVERT(($Q$136),"in","mm")^WFT.P.Int*(HP!N$72/100)^WFT.P.Slope,"mm","in")-HP!$E$81)*HP!$G$19,"") ->  | AC136: =IF(AND(HP!O$72<>"",HP!O$39<>""),(CONVERT(WFT.P.Const*O110^WFT.P.Manni*CONVERT(HP!O$76,"ft","m")^WFT.P.DP*CONVERT(($Q$136),"in","mm")^WFT.P.Int*(HP!O$72/100)^WFT.P.Slope,"mm","in")-HP!$E$81)*HP!$G$19,"") -> 
A141: Speed Difference (mph) | B141: Predicted Hydroplaning Speed (mph | C141: Lane | D141: Design Speed | E141: Cross Slope | F141: Lane Width | G141: Total Width | H141: WFT Avg (in) | I141: Predicted Driver Speed (mph) | J141: Pavement Type | K141: Intensity
A142: =IFERROR(IF(B142="",-999,D251),"") -> -999 | B142: =D255 ->  | C142: =D38 -> 0 | D142: =D39 -> 0 | E142: =D40 -> 0 | F142: =D41 -> 0 | G142: =IF(D41<>"",F142,"") ->  | H142: =D253 ->  | I142: =D254 ->  | K142: =D252 -> 
A143: =IFERROR(IF(B143="",-999,F251),"") -> -999 | B143: =F255 ->  | C143: =E38 -> 0 | D143: =E39 -> 0 | E143: =E40 -> 0 | F143: =E41 -> 0 | G143: =IF(E41<>"",IF(E142*E143>0,G142+F143,F143),"") ->  | H143: =F253 ->  | I143: =F254 ->  | K143: =F252 -> 
A144: =IFERROR(IF(B144="",-999,H251),"") -> -999 | B144: =H255 ->  | C144: =F38 -> 0 | D144: =F39 -> 0 | E144: =F40 -> 0 | F144: =F41 -> 0 | G144: =IF(F41<>"",IF(E143*E144>0,G143+F144,F144),"") ->  | H144: =H253 ->  | I144: =H254 ->  | K144: =H252 -> 
A145: =IFERROR(IF(B145="",-999,J251),"") -> -999 | B145: =J255 ->  | C145: =G38 -> 0 | D145: =G39 -> 0 | E145: =G40 -> 0 | F145: =G41 -> 0 | G145: =IF(G41<>"",IF(E144*E145>0,G144+F145,F145),"") ->  | H145: =J253 ->  | I145: =J254 ->  | K145: =J252 -> 
A146: =IFERROR(IF(B146="",-999,L251),"") -> -999 | B146: =L255 ->  | C146: =H38 -> 0 | D146: =H39 -> 0 | E146: =H40 -> 0 | F146: =H41 -> 0 | G146: =IF(H41<>"",IF(E145*E146>0,G145+F146,F146),"") ->  | H146: =L253 ->  | I146: =L254 ->  | K146: =L252 -> 
A147: =IFERROR(IF(B147="",-999,N251),"") -> -999 | B147: =N255 ->  | C147: =I38 -> 0 | D147: =I39 -> 0 | E147: =I40 -> 0 | F147: =I41 -> 0 | G147: =IF(I41<>"",IF(E146*E147>0,G146+F147,F147),"") ->  | H147: =N253 ->  | I147: =N254 ->  | K147: =N252 -> 
A148: =IFERROR(IF(B148="",-999,P251),"") -> -999 | B148: =P255 ->  | C148: =J38 -> 0 | D148: =J39 -> 0 | E148: =J40 -> 0 | F148: =J41 -> 0 | G148: =IF(J41<>"",IF(E147*E148>0,G147+F148,F148),"") ->  | H148: =P253 ->  | I148: =P254 ->  | K148: =P252 -> 
A149: =IFERROR(IF(B149="",-999,R251),"") -> -999 | B149: =R255 ->  | C149: =K38 -> 0 | D149: =K39 -> 0 | E149: =K40 -> 0 | F149: =K41 -> 0 | G149: =IF(K41<>"",IF(E148*E149>0,G148+F149,F149),"") ->  | H149: =R253 ->  | I149: =R254 ->  | K149: =R252 -> 
A150: =IFERROR(IF(B150="",-999,T251),"") -> -999 | B150: =T255 ->  | C150: =L38 -> 0 | D150: =L39 -> 0 | E150: =L40 -> 0 | F150: =L41 -> 0 | G150: =IF(L41<>"",IF(E149*E150>0,G149+F150,F150),"") ->  | H150: =T253 ->  | I150: =T254 ->  | K150: =T252 -> 
A151: =IFERROR(IF(B151="",-999,V251),"") -> -999 | B151: =V255 ->  | C151: =M38 -> 0 | D151: =M39 -> 0 | E151: =M40 -> 0 | F151: =M41 -> 0 | G151: =IF(L41<>"",IF(E150*E151>0,G150+F151,F151),"") ->  | H151: =V253 ->  | I151: =V254 ->  | K151: =V252 -> 
A152: =IFERROR(IF(B152="",-999,X251),"") -> -999 | B152: =X255 ->  | C152: =N38 -> 0 | D152: =N39 -> 0 | E152: =N40 -> 0 | F152: =N41 -> 0 | G152: =IF(M41<>"",IF(E151*E152>0,G151+F152,F152),"") ->  | H152: =X253 ->  | I152: =X254 ->  | K152: =X252 -> 
A153: =IFERROR(IF(B153="",-999,Z251),"") -> -999 | B153: =Z255 ->  | C153: =O38 -> 0 | D153: =O39 -> 0 | E153: =O40 -> 0 | F153: =O41 -> 0 | G153: =IF(N41<>"",IF(E152*E153>0,G152+F153,F153),"") ->  | H153: =Z253 ->  | I153: =Z254 ->  | K153: =Z252 -> 
B161: Preliminary | C161: 3 | D161: 4 | E161: 5 | F161: 6 | G161: 7 | H161: 8 | I161: 9 | J161: 10 | K161: 11 | L161: 12 | M161: 13 | N161: 14 | O161: 15 | P161: 16 | Q161: 17 | R161: 18 | S161: 19 | T161: 20 | U161: 21
B162: Typical Section | C162: Analysis Type | D162: Align | E162: Sta. | F162: Direction | G162: Lane | H162: Design Speed (mph) | I162: Rainfall Intensity (I, in./hr) | J162: Long.Slope (%) | K162: Cross Slope (ft/ft) | L162: Pavement Width (ft.) | M162: Pavement Surf. Mat. (DGAC, OGFC, or PCC) | N162: Hydroplaning Avg WFT (mm) | O162: Hydroplaning Avg WFT (in) | P162: PAVDRN Hydroplaning Speed Using Avg WFT (mph) | Q162: PAVDRN Hydroplaning Speed Adjusted for Modern Tires (+5mph) | R162: Predicted Driver Speed (mph) | S162: Speed delta (max) | T162: Pavement Notes | U162: Design Notes
B163: =Area.Concern -> 0 | C163: =AnalysisType -> 0 | D163: =Roadway.Section -> 0 | E163: =Station -> 0 | F163: =Roadway.Direction -> 0 | G163: =IFERROR(VLOOKUP($Q$163,$B$142:$K$153,2,FALSE),"") -> 0 | H163: =IFERROR(VLOOKUP($Q$163,$B$142:$K$153,3,FALSE),"") -> 0 | I163: =IFERROR(VLOOKUP($Q$163,$B$142:$K$153,10,FALSE),"") ->  | J163: =$E$31 -> 0 | K163: =IFERROR(VLOOKUP($Q$163,$B$142:$K$153,4,FALSE),"") -> 0 | L163: =IFERROR(VLOOKUP($Q$163,$B$142:$K$153,6,FALSE),"") ->  | M163: =IF(OR(Deterministic.Surf.Type="Dense Graded Asphalt (DGAC)",Deterministic.Surf.Type="User Defined Dense Graded Asphalt (DGAC)"),"DGAC",IF(OR(Deterministic.Surf.Type="Open Graded Friction Course (OGFC)",Deterministic.Surf.Type="User Defined Open Graded Friction Course (OGFC)"),"OGFC",IF(OR(Deterministic.Surf.Type="Concrete Pavement (PCC)",Deterministic.Surf.Type="User Defined Concrete Pavement (PCC)"),"PCC",IF(Deterministic.Surf.Type="Ultra-Thin Bonded Wearing Course","UTBWC", IF(Deterministic.Surf.Type="User-Defined","User-Defined",""))))) ->  | N163: =IF(AND(AnalysisType="Superelevation Transition",No.Lanes=""),"",IF(LongGrade="","",IF(Deterministic.Surf.Type="","",IF(Deterministic.Texture="","",$O$163*25.4)))) ->  | O163: =IF(LongGrade="","",IF(Deterministic.Surf.Type="","",IF(Deterministic.Texture="","",VLOOKUP($Q$163,$B$142:$J$153,7,FALSE)))) ->  | P163: =IF(AND(AnalysisType="Superelevation Transition",No.Lanes=""),"",IF(LongGrade="","",IF(Deterministic.Surf.Type="","",IF(Deterministic.Texture="","",$Q$163-5)))) ->  | Q163: =IFERROR(VLOOKUP($S$163,$A$142:$J$153,2,FALSE),"") ->  | R163: =IFERROR((VLOOKUP($Q$163,$B$142:$K$153,8,FALSE)),"") ->  | S163: =IFERROR(MAX(A142:A153),"") -> -999 | T163: =IF(Deterministic.Surf.Type="User-Defined",User.Defined.Name,"") ->  | U163: =IF(D21="","",D21) -> 
B166: Final | T166: 20 | U166: 21
B167: Areas of Concern | C167: Analysis Type | D167: Alignment | E167: Sta. | F167: Direction | G167: Lane | H167: Posted Speed (mph) | I167: Rainfall Intensity (I, in./hr) | J167: Long.Slope (%) | K167: Cross Slope (ft/ft) | L167: Pavement Width (ft.) | M167: Pavement Surf. Mat. (DGAC, OGFC, or PCC) | N167: Hydroplaning Avg WFT (mm) | O167: Hydroplaning Avg WFT (in) | P167: PAVDRN Hydroplaning Speed Using Avg WFT (mph) | Q167: PAVDRN Hydroplaning Speed Adjusted for Modern Tires (+5mph) | R167: Predicted Driver Speed (mph) | S167: Speed delta (max) | T167: Pavement Notes | U167: Design Notes
B168: =Area.Concern -> 0 | C168: =AnalysisType -> 0 | D168: =Roadway.Section -> 0 | E168: =Station -> 0 | F168: =Roadway.Direction -> 0 | G168: =IFERROR(VLOOKUP($Q$168,$B$142:$I$153,2,FALSE),"") -> 0 | H168: =IFERROR(VLOOKUP($Q$168,$B$142:$I$153,3,FALSE),"") -> 0 | I168: =IFERROR(VLOOKUP($Q$168,$B$142:$K$153,10,FALSE),"") ->  | J168: =$E$31 -> 0 | K168: =IFERROR(VLOOKUP($Q$168,$B$142:$I$153,4,FALSE),"") -> 0 | L168: =IFERROR(VLOOKUP($Q$168,$B$142:$I$153,6,FALSE),"") ->  | M168: =IF(OR(Deterministic.Surf.Type="Dense Graded Asphalt (DGAC)",Deterministic.Surf.Type="User Defined Dense Graded Asphalt (DGAC)"),"DGAC",IF(OR(Deterministic.Surf.Type="Open Graded Friction Course (OGFC)",Deterministic.Surf.Type="User Defined Open Graded Friction Course (OGFC)"),"OGFC",IF(OR(Deterministic.Surf.Type="Concrete Pavement (PCC)",Deterministic.Surf.Type="User Defined Concrete Pavement (PCC)"),"PCC",IF(Deterministic.Surf.Type="Ultra-Thin Bonded Wearing Course","UTBWC",IF(Deterministic.Surf.Type="User-Defined","User-Defined",""))))) ->  | N168: =IF(AND(AnalysisType="Superelevation Transition",No.Lanes=""),"",IF(LongGrade="","",IF(Deterministic.Surf.Type="","",IF(Deterministic.Texture="","",$O$168*25.4)))) ->  | O168: =IF(LongGrade="","",IF(Deterministic.Surf.Type="","",IF(Deterministic.Texture="","",VLOOKUP($Q$163,$B$142:$J$153,7,FALSE)))) ->  | P168: =IF(AND(AnalysisType="Superelevation Transition",No.Lanes=""),"",IF(LongGrade="","",IF(Deterministic.Surf.Type="","",IF(Deterministic.Texture="","",$Q$168-5)))) ->  | Q168: =IFERROR(VLOOKUP($S$168,$A$142:$J$153,2,FALSE),"") ->  | R168: =IFERROR((VLOOKUP($Q$168,$B$142:$I$153,8,FALSE)),"") ->  | S168: =IFERROR(MAX($A$142:$A$153),"") -> -999 | T168: =IF(Deterministic.Surf.Type="User-Defined",User.Defined.Name,"") ->  | U168: =IF(D21="","",D21) -> 
B172: Risk Analysis Results
B173: Based on AVERAGE WFT, PAVDRN HPS Model, and a worst-case scenario rainfall intensity (in/hr)
B175: Description | D175: =IF(D38="","",D38) -> 
B176: Rainfall Intensity (in/hr) | D176: =IF(AND(AnalysisType="Superelevation Transition",No.Lanes=""),"",IF(LongGrade="","",IF(Deterministic.Surf.Type="","",IF(AND(Deterministic.Texture="",User.Defined.Texture=""),"",IF(D205="","",D252))))) ->  | E176: =IF(AND(AnalysisType="Superelevation Transition",No.Lanes=""),"",IF(LongGrade="","",IF(Deterministic.Surf.Type="","",IF(AND(Deterministic.Texture="",User.Defined.Texture=""),"",IF(E205="","",F252))))) ->  | F176: =IF(AND(AnalysisType="Superelevation Transition",No.Lanes=""),"",IF(LongGrade="","",IF(Deterministic.Surf.Type="","",IF(AND(Deterministic.Texture="",User.Defined.Texture=""),"",IF(F205="","",H252))))) ->  | G176: =IF(AND(AnalysisType="Superelevation Transition",No.Lanes=""),"",IF(LongGrade="","",IF(Deterministic.Surf.Type="","",IF(AND(Deterministic.Texture="",User.Defined.Texture=""),"",IF(G205="","",J252))))) ->  | H176: =IF(AND(AnalysisType="Superelevation Transition",No.Lanes=""),"",IF(LongGrade="","",IF(Deterministic.Surf.Type="","",IF(AND(Deterministic.Texture="",User.Defined.Texture=""),"",IF(H205="","",L252))))) ->  | I176: =IF(AND(AnalysisType="Superelevation Transition",No.Lanes=""),"",IF(LongGrade="","",IF(Deterministic.Surf.Type="","",IF(AND(Deterministic.Texture="",User.Defined.Texture=""),"",IF(I205="","",N252))))) ->  | J176: =IF(AND(AnalysisType="Superelevation Transition",No.Lanes=""),"",IF(LongGrade="","",IF(Deterministic.Surf.Type="","",IF(AND(Deterministic.Texture="",User.Defined.Texture=""),"",IF(J205="","",P252))))) ->  | K176: =IF(AND(AnalysisType="Superelevation Transition",No.Lanes=""),"",IF(LongGrade="","",IF(Deterministic.Surf.Type="","",IF(AND(Deterministic.Texture="",User.Defined.Texture=""),"",IF(K205="","",R252))))) ->  | L176: =IF(AND(AnalysisType="Superelevation Transition",No.Lanes=""),"",IF(LongGrade="","",IF(Deterministic.Surf.Type="","",IF(AND(Deterministic.Texture="",User.Defined.Texture=""),"",IF(L205="","",T252))))) ->  | M176: =IF(AND(AnalysisType="Superelevation Transition",No.Lanes=""),"",IF(LongGrade="","",IF(Deterministic.Surf.Type="","",IF(AND(Deterministic.Texture="",User.Defined.Texture=""),"",IF(M205="","",V252))))) ->  | N176: =IF(AND(AnalysisType="Superelevation Transition",No.Lanes=""),"",IF(LongGrade="","",IF(Deterministic.Surf.Type="","",IF(AND(Deterministic.Texture="",User.Defined.Texture=""),"",IF(N205="","",X252))))) ->  | O176: =IF(AND(AnalysisType="Superelevation Transition",No.Lanes=""),"",IF(LongGrade="","",IF(Deterministic.Surf.Type="","",IF(AND(Deterministic.Texture="",User.Defined.Texture=""),"",IF(O205="","",Z252))))) -> 
B177: Water Film Thickness (in) | D177: =IF(AND(AnalysisType="Superelevation Transition",No.Lanes=""),"",IF(LongGrade="","",IF(Deterministic.Surf.Type="","",IF(AND(Deterministic.Texture="",User.Defined.Texture=""),"",IF(D205="","",IF(D253<0,0,D253)))))) ->  | E177: =IF(AND(AnalysisType="Superelevation Transition",No.Lanes=""),"",IF(LongGrade="","",IF(Deterministic.Surf.Type="","",IF(AND(Deterministic.Texture="",User.Defined.Texture=""),"",IF(E205="","",IF(F253<0,0,F253)))))) ->  | F177: =IF(AND(AnalysisType="Superelevation Transition",No.Lanes=""),"",IF(LongGrade="","",IF(Deterministic.Surf.Type="","",IF(AND(Deterministic.Texture="",User.Defined.Texture=""),"",IF(F205="","",IF(H253<0,0,H253)))))) ->  | G177: =IF(AND(AnalysisType="Superelevation Transition",No.Lanes=""),"",IF(LongGrade="","",IF(Deterministic.Surf.Type="","",IF(AND(Deterministic.Texture="",User.Defined.Texture=""),"",IF(G205="","",IF(J253<0,0,J253)))))) ->  | H177: =IF(AND(AnalysisType="Superelevation Transition",No.Lanes=""),"",IF(LongGrade="","",IF(Deterministic.Surf.Type="","",IF(AND(Deterministic.Texture="",User.Defined.Texture=""),"",IF(H205="","",IF(L253<0,0,L253)))))) ->  | I177: =IF(AND(AnalysisType="Superelevation Transition",No.Lanes=""),"",IF(LongGrade="","",IF(Deterministic.Surf.Type="","",IF(AND(Deterministic.Texture="",User.Defined.Texture=""),"",IF(I205="","",IF(N253<0,0,N253)))))) ->  | J177: =IF(AND(AnalysisType="Superelevation Transition",No.Lanes=""),"",IF(LongGrade="","",IF(Deterministic.Surf.Type="","",IF(AND(Deterministic.Texture="",User.Defined.Texture=""),"",IF(J205="","",IF(P253<0,0,P253)))))) ->  | K177: =IF(AND(AnalysisType="Superelevation Transition",No.Lanes=""),"",IF(LongGrade="","",IF(Deterministic.Surf.Type="","",IF(AND(Deterministic.Texture="",User.Defined.Texture=""),"",IF(K205="","",IF(R253<0,0,R253)))))) ->  | L177: =IF(AND(AnalysisType="Superelevation Transition",No.Lanes=""),"",IF(LongGrade="","",IF(Deterministic.Surf.Type="","",IF(AND(Deterministic.Texture="",User.Defined.Texture=""),"",IF(L205="","",IF(T253<0,0,T253)))))) ->  | M177: =IF(AND(AnalysisType="Superelevation Transition",No.Lanes=""),"",IF(LongGrade="","",IF(Deterministic.Surf.Type="","",IF(AND(Deterministic.Texture="",User.Defined.Texture=""),"",IF(M205="","",IF(V253<0,0,V253)))))) ->  | N177: =IF(AND(AnalysisType="Superelevation Transition",No.Lanes=""),"",IF(LongGrade="","",IF(Deterministic.Surf.Type="","",IF(AND(Deterministic.Texture="",User.Defined.Texture=""),"",IF(N205="","",IF(X253<0,0,X253)))))) ->  | O177: =IF(AND(AnalysisType="Superelevation Transition",No.Lanes=""),"",IF(LongGrade="","",IF(Deterministic.Surf.Type="","",IF(AND(Deterministic.Texture="",User.Defined.Texture=""),"",IF(O205="","",IF(Z253<0,0,Z253)))))) -> 
B178: Driver Speed (mph) | D178: =IF(LongGrade="","",IF(Deterministic.Surf.Type="","",IF(D216="","",IF(D253<0,"NA",D254)))) ->  | E178: =IF(LongGrade="","",IF(Deterministic.Surf.Type="","",IF(E216="","",IF(F253<0,"NA",F254)))) ->  | F178: =IF(LongGrade="","",IF(Deterministic.Surf.Type="","",IF(F216="","",IF(H253<0,"NA",H254)))) ->  | G178: =IF(LongGrade="","",IF(Deterministic.Surf.Type="","",IF(G216="","",IF(J253<0,"NA",J254)))) ->  | H178: =IF(LongGrade="","",IF(Deterministic.Surf.Type="","",IF(H216="","",IF(L253<0,"NA",L254)))) ->  | I178: =IF(LongGrade="","",IF(Deterministic.Surf.Type="","",IF(I216="","",IF(N253<0,"NA",N254)))) ->  | J178: =IF(LongGrade="","",IF(Deterministic.Surf.Type="","",IF(J216="","",IF(P253<0,"NA",P254)))) ->  | K178: =IF(LongGrade="","",IF(Deterministic.Surf.Type="","",IF(K216="","",IF(R253<0,"NA",R254)))) ->  | L178: =IF(LongGrade="","",IF(Deterministic.Surf.Type="","",IF(L216="","",IF(T253<0,"NA",T254)))) ->  | M178: =IF(LongGrade="","",IF(Deterministic.Surf.Type="","",IF(M216="","",IF(V253<0,"NA",V254)))) ->  | N178: =IF(LongGrade="","",IF(Deterministic.Surf.Type="","",IF(N216="","",IF(X253<0,"NA",X254)))) ->  | O178: =IF(LongGrade="","",IF(Deterministic.Surf.Type="","",IF(O216="","",IF(Z253<0,"NA",Z254)))) -> 
B179: Hydroplaning Speed* (mph) | D179: =IF(AND(AnalysisType="Superelevation Transition",No.Lanes=""),"",IF(LongGrade="","",IF(Deterministic.Surf.Type="","",IF(AND(Deterministic.Texture="",User.Defined.Texture=""),"",IF(D228="","",IF(D255=999,"NA",D255)))))) ->  | E179: =IF(AND(AnalysisType="Superelevation Transition",No.Lanes=""),"",IF(LongGrade="","",IF(Deterministic.Surf.Type="","",IF(AND(Deterministic.Texture="",User.Defined.Texture=""),"",IF(E228="","",IF(F255=999,"NA",F255)))))) ->  | F179: =IF(AND(AnalysisType="Superelevation Transition",No.Lanes=""),"",IF(LongGrade="","",IF(Deterministic.Surf.Type="","",IF(AND(Deterministic.Texture="",User.Defined.Texture=""),"",IF(F228="","",IF(H255=999,"NA",H255)))))) ->  | G179: =IF(AND(AnalysisType="Superelevation Transition",No.Lanes=""),"",IF(LongGrade="","",IF(Deterministic.Surf.Type="","",IF(AND(Deterministic.Texture="",User.Defined.Texture=""),"",IF(G228="","",IF(J255=999,"NA",J255)))))) ->  | H179: =IF(AND(AnalysisType="Superelevation Transition",No.Lanes=""),"",IF(LongGrade="","",IF(Deterministic.Surf.Type="","",IF(AND(Deterministic.Texture="",User.Defined.Texture=""),"",IF(H228="","",IF(L255=999, "NA",L255)))))) ->  | I179: =IF(AND(AnalysisType="Superelevation Transition",No.Lanes=""),"",IF(LongGrade="","",IF(Deterministic.Surf.Type="","",IF(AND(Deterministic.Texture="",User.Defined.Texture=""),"",IF(I228="","",IF(N255=999,"NA",N255)))))) ->  | J179: =IF(AND(AnalysisType="Superelevation Transition",No.Lanes=""),"",IF(LongGrade="","",IF(Deterministic.Surf.Type="","",IF(AND(Deterministic.Texture="",User.Defined.Texture=""),"",IF(J228="","",IF(P255=999,"NA",P255)))))) ->  | K179: =IF(AND(AnalysisType="Superelevation Transition",No.Lanes=""),"",IF(LongGrade="","",IF(Deterministic.Surf.Type="","",IF(AND(Deterministic.Texture="",User.Defined.Texture=""),"",IF(K228="","",IF(R255=999,"NA",R255)))))) ->  | L179: =IF(AND(AnalysisType="Superelevation Transition",No.Lanes=""),"",IF(LongGrade="","",IF(Deterministic.Surf.Type="","",IF(AND(Deterministic.Texture="",User.Defined.Texture=""),"",IF(L228="","",IF(T255=999,"NA",T255)))))) ->  | M179: =IF(AND(AnalysisType="Superelevation Transition",No.Lanes=""),"",IF(LongGrade="","",IF(Deterministic.Surf.Type="","",IF(AND(Deterministic.Texture="",User.Defined.Texture=""),"",IF(M228="","",IF(V255=999,"NA",V255)))))) ->  | N179: =IF(AND(AnalysisType="Superelevation Transition",No.Lanes=""),"",IF(LongGrade="","",IF(Deterministic.Surf.Type="","",IF(AND(Deterministic.Texture="",User.Defined.Texture=""),"",IF(N228="","",IF(X255=999,"NA",X255)))))) ->  | O179: =IF(AND(AnalysisType="Superelevation Transition",No.Lanes=""),"",IF(LongGrade="","",IF(Deterministic.Surf.Type="","",IF(AND(Deterministic.Texture="",User.Defined.Texture=""),"",IF(O228="","",IF(Z255=999,"NA",Z255)))))) -> 
B180: * The speed has been adjusted up +5 mph to account for Modern Tires.
B182: Max WFT Condition within the SE Rollover
B183: Rainfall Intensity (in/hr) | D183: =IF(AND(AnalysisType="Superelevation Transition",No.Lanes=""),"",IF(LongGrade="","",IF(Deterministic.Surf.Type="","",IF(AND(Deterministic.Texture="",User.Defined.Texture=""),"",IF(D205="","",I163))))) -> 
B184: Water Film Thickness (in) | D184: =IF(AND(AnalysisType="Superelevation Transition",No.Lanes=""),"",IF(LongGrade="","",IF(Deterministic.Surf.Type="","",IF(AND(Deterministic.Texture="",User.Defined.Texture=""),"",IF(D205="","",IF(O163<0,0,O163)))))) -> 
B185: Driver Speed (mph) | D185: =IF(LongGrade="","",IF(Deterministic.Surf.Type="","",IF(D216="","",IF(O163<0,"NA",R163)))) -> 
B186: Hydroplaning Speed* (mph) | D186: =IF(AND(AnalysisType="Superelevation Transition",No.Lanes=""),"",IF(LongGrade="","",IF(Deterministic.Surf.Type="","",IF(AND(Deterministic.Texture="",User.Defined.Texture=""),"",IF(D228="","",Q163))))) -> 
B187: * The speed has been adjusted up +5 mph to account for Modern Tires.
B189: Possible Hydroplane Conditions
B190: High | E190: Low | J190: None
B193: High: HPS is ≥ 4 mph Below the Predicted Driver Speed. Mitigation methods required.
B194: Low: HPS is ≥ 2 mph Below The Predicted Driver Speed. More potential for adverse conditions. Evaluate Mitigation methods needed and provide engineering justification if none are required which may include driver responsibility.
B196: None: HPS is greater than Predicted Driver Speed
B199: Risk Analysis Results
B200: (Based on AVERAGE WFT and PAVDRN HPS Models)
B201: Predicted Water Film Thickness (in.)
B203: Plane Number | D203: 1 | E203: 2 | F203: 3 | G203: 4 | H203: 5 | I203: 6 | J203: 7 | K203: 8 | L203: 9 | M203: 10 | N203: 11 | O203: 12
B204: Intensity (in/hr) | D204: =IF(D38<>"",D38,"") -> 
B205: =ModelParameters!A45 -> 0.1 | D205: =IF($B$118="","",AVERAGE($B$118,$R$118,$B$130,$R$130)) ->  | E205: =IF($C$118="","",AVERAGE($C$118,$S$118,$C$130,$S$130)) ->  | F205: =IF($D$118="","",AVERAGE($D$118,$T$118,$D$130,$T$130)) ->  | G205: =IF($E$118="","",AVERAGE($E$118,$U$118,$E$130,$U$130)) ->  | H205: =IF($F$118="","",AVERAGE($F$118,$V$118,$F$130,$V$130)) ->  | I205: =IF($G$118="","",AVERAGE($G$118,$W$118,$G$130,$W$130)) ->  | J205: =IF($H$118="","",AVERAGE($H$118,$X$118,$H$130,$X$130)) ->  | K205: =IF($I$118="","",AVERAGE($I$118,$Y$118,$I$130,$Y$130)) ->  | L205: =IF($J$118="","",AVERAGE($J$118,$Z$118,$J$130,$Z$130)) ->  | M205: =IF($K$118="","",AVERAGE($K$118,$AA$118,$K$130,$AA$130)) ->  | N205: =IF($L$118="","",AVERAGE($L$118,$AB$118,$L$130,$AB$130)) ->  | O205: =IF($M$118="","",AVERAGE($M$118,$AC$118,$M$130,$AC$130)) -> 
B206: =ModelParameters!A46 -> 0.25 | D206: =IF($B$119="","",AVERAGE($B$119,$R$119,$B$131,$R$131)) ->  | E206: =IF($C$119="","",AVERAGE($C$119,$S$119,$C$131,$S$131)) ->  | F206: =IF($D$119="","",AVERAGE($D$119,$T$119,$D$131,$T$131)) ->  | G206: =IF($E$119="","",AVERAGE($E$119,$U$119,$E$131,$U$131)) ->  | H206: =IF($F$119="","",AVERAGE($F$119,$V$119,$F$131,$V$131)) ->  | I206: =IF($G$119="","",AVERAGE($G$119,$W$119,$G$131,$W$131)) ->  | J206: =IF($H$119="","",AVERAGE($H$119,$X$119,$H$131,$X$131)) ->  | K206: =IF($I$119="","",AVERAGE($I$119,$Y$119,$I$131,$Y$131)) ->  | L206: =IF($J$119="","",AVERAGE($J$119,$Z$119,$J$131,$Z$131)) ->  | M206: =IF($K$119="","",AVERAGE($K$119,$AA$119,$K$131,$AA$131)) ->  | N206: =IF($L$119="","",AVERAGE($L$119,$AB$119,$L$131,$AB$131)) ->  | O206: =IF($M$119="","",AVERAGE($M$119,$AC$119,$M$131,$AC$131)) -> 
B207: =ModelParameters!A47 -> 0.5 | D207: =IF($B$120="","",AVERAGE($B$120,$R$120,$B$132,$R$132)) ->  | E207: =IF($C$120="","",AVERAGE($C$120,$S$120,$C$132,$S$132)) ->  | F207: =IF($D$120="","",AVERAGE($D$120,$T$120,$D$132,$T$132)) ->  | G207: =IF($E$120="","",AVERAGE($E$120,$U$120,$E$132,$U$132)) ->  | H207: =IF($F$120="","",AVERAGE($F$120,$V$120,$F$132,$V$132)) ->  | I207: =IF($G$120="","",AVERAGE($G$120,$W$120,$G$132,$W$132)) ->  | J207: =IF($H$120="","",AVERAGE($H$120,$X$120,$H$132,$X$132)) ->  | K207: =IF($I$120="","",AVERAGE($I$120,$Y$120,$I$132,$Y$132)) ->  | L207: =IF($J$120="","",AVERAGE($J$120,$Z$120,$J$132,$Z$132)) ->  | M207: =IF($K$120="","",AVERAGE($K$120,$AA$120,$K$132,$AA$132)) ->  | N207: =IF($L$120="","",AVERAGE($L$120,$AB$120,$L$132,$AB$132)) ->  | O207: =IF($M$120="","",AVERAGE($M$120,$AC$120,$M$132,$AC$132)) -> 
B208: =ModelParameters!A48 -> 1 | D208: =IF($B$121="","",AVERAGE($B$121,$R$121,$B$133,$R$133)) ->  | E208: =IF($C$121="","",AVERAGE($C$121,$S$121,$C$133,$S$133)) ->  | F208: =IF($D$121="","",AVERAGE($D$121,$T$121,$D$133,$T$133)) ->  | G208: =IF($E$121="","",AVERAGE($E$121,$U$121,$E$133,$U$133)) ->  | H208: =IF($F$121="","",AVERAGE($F$121,$V$121,$F$133,$V$133)) ->  | I208: =IF($G$121="","",AVERAGE($G$121,$W$121,$G$133,$W$133)) ->  | J208: =IF($H$121="","",AVERAGE($H$121,$X$121,$H$133,$X$133)) ->  | K208: =IF($I$121="","",AVERAGE($I$121,$Y$121,$I$133,$Y$133)) ->  | L208: =IF($J$121="","",AVERAGE($J$121,$Z$121,$J$133,$Z$133)) ->  | M208: =IF($K$121="","",AVERAGE($K$121,$AA$121,$K$133,$AA$133)) ->  | N208: =IF($L$121="","",AVERAGE($L$121,$AB$121,$L$133,$AB$133)) ->  | O208: =IF($M$121="","",AVERAGE($M$121,$AC$121,$M$133,$AC$133)) -> 
B209: =ModelParameters!A49 -> 2 | D209: =IF($B$122="","",AVERAGE($B$122,$R$122,$B$134,$R$134)) ->  | E209: =IF($C$122="","",AVERAGE($C$122,$S$122,$C$134,$S$134)) ->  | F209: =IF($D$122="","",AVERAGE($D$122,$T$122,$D$134,$T$134)) ->  | G209: =IF($E$122="","",AVERAGE($E$122,$U$122,$E$134,$U$134)) ->  | H209: =IF($F$122="","",AVERAGE($F$122,$V$122,$F$134,$V$134)) ->  | I209: =IF($G$122="","",AVERAGE($G$122,$W$122,$G$134,$W$134)) ->  | J209: =IF($H$122="","",AVERAGE($H$122,$X$122,$H$134,$X$134)) ->  | K209: =IF($I$122="","",AVERAGE($I$122,$Y$122,$I$134,$Y$134)) ->  | L209: =IF($J$122="","",AVERAGE($J$122,$Z$122,$J$134,$Z$134)) ->  | M209: =IF($K$122="","",AVERAGE($K$122,$AA$122,$K$134,$AA$134)) ->  | N209: =IF($L$122="","",AVERAGE($L$122,$AB$122,$L$134,$AB$134)) ->  | O209: =IF($M$122="","",AVERAGE($M$122,$AC$122,$M$134,$AC$134)) -> 
B210: =ModelParameters!A50 -> 3 | D210: =IF($B$123="","",AVERAGE($B$123,$R$123,$B$135,$R$135)) ->  | E210: =IF($C$123="","",AVERAGE($C$123,$S$123,$C$135,$S$135)) ->  | F210: =IF($D$123="","",AVERAGE($D$123,$T$123,$D$135,$T$135)) ->  | G210: =IF($E$123="","",AVERAGE($E$123,$U$123,$E$135,$U$135)) ->  | H210: =IF($F$123="","",AVERAGE($F$123,$V$123,$F$135,$V$135)) ->  | I210: =IF($G$123="","",AVERAGE($G$123,$W$123,$G$135,$W$135)) ->  | J210: =IF($H$123="","",AVERAGE($H$123,$X$123,$H$135,$X$135)) ->  | K210: =IF($I$123="","",AVERAGE($I$123,$Y$123,$I$135,$Y$135)) ->  | L210: =IF($J$123="","",AVERAGE($J$123,$Z$123,$J$135,$Z$135)) ->  | M210: =IF($K$123="","",AVERAGE($K$123,$AA$123,$K$135,$AA$135)) ->  | N210: =IF($L$123="","",AVERAGE($L$123,$AB$123,$L$135,$AB$135)) ->  | O210: =IF($M$123="","",AVERAGE($M$123,$AC$123,$M$135,$AC$135)) -> 
B211: =ModelParameters!A51 -> 4 | D211: =IF($B$124="","",AVERAGE($B$124,$R$124,$B$136,$R$136)) ->  | E211: =IF($C$124="","",AVERAGE($C$124,$S$124,$C$136,$S$136)) ->  | F211: =IF($D$124="","",AVERAGE($D$124,$T$124,$D$136,$T$136)) ->  | G211: =IF($E$124="","",AVERAGE($E$124,$U$124,$E$136,$U$136)) ->  | H211: =IF($F$124="","",AVERAGE($F$124,$V$124,$F$136,$V$136)) ->  | I211: =IF($G$124="","",AVERAGE($G$124,$W$124,$G$136,$W$136)) ->  | J211: =IF($H$124="","",AVERAGE($H$124,$X$124,$H$136,$X$136)) ->  | K211: =IF($I$124="","",AVERAGE($I$124,$Y$124,$I$136,$Y$136)) ->  | L211: =IF($J$124="","",AVERAGE($J$124,$Z$124,$J$136,$Z$136)) ->  | M211: =IF($K$124="","",AVERAGE($K$124,$AA$124,$K$136,$AA$136)) ->  | N211: =IF($L$124="","",AVERAGE($L$124,$AB$124,$L$136,$AB$136)) ->  | O211: =IF($M$124="","",AVERAGE($M$124,$AC$124,$M$136,$AC$136)) -> 
B213: Predicted Driver Speed (mph)
B214: Plane Number | D214: 1 | E214: 2 | F214: 3 | G214: 4 | H214: 5 | I214: 6 | J214: 7 | K214: 8 | L214: 9 | M214: 10 | N214: 11 | O214: 12
B215: Intensity (in/hr) | D215: =IF(D38<>"",D38,"") -> 
B216: =ModelParameters!A45 -> 0.1 | D216: =IF(D$39<>"",MAX(D$39-ModelParameters!$B45,45),"") ->  | E216: =IF(E$39<>"",MAX(E$39-ModelParameters!$B45,45),"") ->  | F216: =IF(F$39<>"",MAX(F$39-ModelParameters!$B45,45),"") ->  | G216: =IF(G$39<>"",MAX(G$39-ModelParameters!$B45,45),"") ->  | H216: =IF(H$39<>"",MAX(H$39-ModelParameters!$B45,45),"") ->  | I216: =IF(I$39<>"",MAX(I$39-ModelParameters!$B45,45),"") ->  | J216: =IF(J$39<>"",MAX(J$39-ModelParameters!$B45,45),"") ->  | K216: =IF(K$39<>"",MAX(K$39-ModelParameters!$B45,45),"") ->  | L216: =IF(L$39<>"",MAX(L$39-ModelParameters!$B45,45),"") ->  | M216: =IF(M$39<>"",MAX(M$39-ModelParameters!$B45,45),"") ->  | N216: =IF(N$39<>"",MAX(N$39-ModelParameters!$B45,45),"") ->  | O216: =IF(O$39<>"",MAX(O$39-ModelParameters!$B45,45),"") -> 
B217: =ModelParameters!A46 -> 0.25 | D217: =IF(D$39<>"",MAX(D$39-ModelParameters!$B46,45),"") ->  | E217: =IF(E$39<>"",MAX(E$39-ModelParameters!$B46,45),"") ->  | F217: =IF(F$39<>"",MAX(F$39-ModelParameters!$B46,45),"") ->  | G217: =IF(G$39<>"",MAX(G$39-ModelParameters!$B46,45),"") ->  | H217: =IF(H$39<>"",MAX(H$39-ModelParameters!$B46,45),"") ->  | I217: =IF(I$39<>"",MAX(I$39-ModelParameters!$B46,45),"") ->  | J217: =IF(J$39<>"",MAX(J$39-ModelParameters!$B46,45),"") ->  | K217: =IF(K$39<>"",MAX(K$39-ModelParameters!$B46,45),"") ->  | L217: =IF(L$39<>"",MAX(L$39-ModelParameters!$B46,45),"") ->  | M217: =IF(M$39<>"",MAX(M$39-ModelParameters!$B46,45),"") ->  | N217: =IF(N$39<>"",MAX(N$39-ModelParameters!$B46,45),"") ->  | O217: =IF(O$39<>"",MAX(O$39-ModelParameters!$B46,45),"") -> 
B218: =ModelParameters!A47 -> 0.5 | D218: =IF(D$39<>"",MAX(D$39-ModelParameters!$B47,45),"") ->  | E218: =IF(E$39<>"",MAX(E$39-ModelParameters!$B47,45),"") ->  | F218: =IF(F$39<>"",MAX(F$39-ModelParameters!$B47,45),"") ->  | G218: =IF(G$39<>"",MAX(G$39-ModelParameters!$B47,45),"") ->  | H218: =IF(H$39<>"",MAX(H$39-ModelParameters!$B47,45),"") ->  | I218: =IF(I$39<>"",MAX(I$39-ModelParameters!$B47,45),"") ->  | J218: =IF(J$39<>"",MAX(J$39-ModelParameters!$B47,45),"") ->  | K218: =IF(K$39<>"",MAX(K$39-ModelParameters!$B47,45),"") ->  | L218: =IF(L$39<>"",MAX(L$39-ModelParameters!$B47,45),"") ->  | M218: =IF(M$39<>"",MAX(M$39-ModelParameters!$B47,45),"") ->  | N218: =IF(N$39<>"",MAX(N$39-ModelParameters!$B47,45),"") ->  | O218: =IF(O$39<>"",MAX(O$39-ModelParameters!$B47,45),"") -> 
B219: =ModelParameters!A48 -> 1 | D219: =IF(D$39<>"",MAX(D$39-ModelParameters!$B48,45),"") ->  | E219: =IF(E$39<>"",MAX(E$39-ModelParameters!$B48,45),"") ->  | F219: =IF(F$39<>"",MAX(F$39-ModelParameters!$B48,45),"") ->  | G219: =IF(G$39<>"",MAX(G$39-ModelParameters!$B48,45),"") ->  | H219: =IF(H$39<>"",MAX(H$39-ModelParameters!$B48,45),"") ->  | I219: =IF(I$39<>"",MAX(I$39-ModelParameters!$B48,45),"") ->  | J219: =IF(J$39<>"",MAX(J$39-ModelParameters!$B48,45),"") ->  | K219: =IF(K$39<>"",MAX(K$39-ModelParameters!$B48,45),"") ->  | L219: =IF(L$39<>"",MAX(L$39-ModelParameters!$B48,45),"") ->  | M219: =IF(M$39<>"",MAX(M$39-ModelParameters!$B48,45),"") ->  | N219: =IF(N$39<>"",MAX(N$39-ModelParameters!$B48,45),"") ->  | O219: =IF(O$39<>"",MAX(O$39-ModelParameters!$B48,45),"") -> 
B220: =ModelParameters!A49 -> 2 | D220: =IF(D$39<>"",MAX(D$39-ModelParameters!$B49,45),"") ->  | E220: =IF(E$39<>"",MAX(E$39-ModelParameters!$B49,45),"") ->  | F220: =IF(F$39<>"",MAX(F$39-ModelParameters!$B49,45),"") ->  | G220: =IF(G$39<>"",MAX(G$39-ModelParameters!$B49,45),"") ->  | H220: =IF(H$39<>"",MAX(H$39-ModelParameters!$B49,45),"") ->  | I220: =IF(I$39<>"",MAX(I$39-ModelParameters!$B49,45),"") ->  | J220: =IF(J$39<>"",MAX(J$39-ModelParameters!$B49,45),"") ->  | K220: =IF(K$39<>"",MAX(K$39-ModelParameters!$B49,45),"") ->  | L220: =IF(L$39<>"",MAX(L$39-ModelParameters!$B49,45),"") ->  | M220: =IF(M$39<>"",MAX(M$39-ModelParameters!$B49,45),"") ->  | N220: =IF(N$39<>"",MAX(N$39-ModelParameters!$B49,45),"") ->  | O220: =IF(O$39<>"",MAX(O$39-ModelParameters!$B49,45),"") -> 
B221: =ModelParameters!A50 -> 3 | D221: =IF(D$39="","",ModelParameters!$C50) ->  | E221: =IF(E$39="","",ModelParameters!$C50) ->  | F221: =IF(F$39="","",ModelParameters!$C50) ->  | G221: =IF(G$39="","",ModelParameters!$C50) ->  | H221: =IF(H$39="","",ModelParameters!$C50) ->  | I221: =IF(I$39="","",ModelParameters!$C50) ->  | J221: =IF(J$39="","",ModelParameters!$C50) ->  | K221: =IF(K$39="","",ModelParameters!$C50) ->  | L221: =IF(L$39="","",ModelParameters!$C50) ->  | M221: =IF(M$39="","",ModelParameters!$C50) ->  | N221: =IF(N$39="","",ModelParameters!$C50) ->  | O221: =IF(O$39="","",ModelParameters!$C50) -> 
B222: =ModelParameters!A51 -> 4 | D222: =IF(D$39="","",ModelParameters!$C51) ->  | E222: =IF(E$39="","",ModelParameters!$C51) ->  | F222: =IF(F$39="","",ModelParameters!$C51) ->  | G222: =IF(G$39="","",ModelParameters!$C51) ->  | H222: =IF(H$39="","",ModelParameters!$C51) ->  | I222: =IF(I$39="","",ModelParameters!$C51) ->  | J222: =IF(J$39="","",ModelParameters!$C51) ->  | K222: =IF(K$39="","",ModelParameters!$C51) ->  | L222: =IF(L$39="","",ModelParameters!$C51) ->  | M222: =IF(M$39="","",ModelParameters!$C51) ->  | N222: =IF(N$39="","",ModelParameters!$C51) ->  | O222: =IF(O$39="","",ModelParameters!$C51) -> 
B224: Predicted Hydroplaning Speed (mph)
B225: “These speeds are increased by 5MPH to account for Gunaratne research.”
B226: Plane Number | D226: 1 | E226: 2 | F226: 3 | G226: 4 | H226: 5 | I226: 6 | J226: 7 | K226: 8 | L226: 9 | M226: 10 | N226: 11 | O226: 12
B227: Intensity (in/hr) | D227: =IF(D38<>"",D38,"") -> 
B228: =ModelParameters!A45 -> 0.1 | D228: =IF(D205="","",IF(D205<0,999,MAX(HP.P.WFT.lt.24.Const*D205^HP.P.WFT.lt.24.WFT, HP.P.WFT.gt.24.Const*MAX(A1.a*D205^A1.WFT+A1.b,(A2.a*D205^A2.WFT+A2.b)*$E$81^A2.MTD))+5)) ->  | E228: =IF(E205="","",IF(E205<0,999,MAX(HP.P.WFT.lt.24.Const*E205^HP.P.WFT.lt.24.WFT, HP.P.WFT.gt.24.Const*MAX(A1.a*E205^A1.WFT+A1.b,(A2.a*E205^A2.WFT+A2.b)*$E$81^A2.MTD))+5)) -> 
B229: =ModelParameters!A46 -> 0.25 | D229: =IF(D206="","",IF(D206<0,999,MAX(HP.P.WFT.lt.24.Const*D206^HP.P.WFT.lt.24.WFT, HP.P.WFT.gt.24.Const*MAX(A1.a*D206^A1.WFT+A1.b,(A2.a*D206^A2.WFT+A2.b)*$E$81^A2.MTD))+5)) ->  | E229: =IF(E206="","",IF(E206<0,999,MAX(HP.P.WFT.lt.24.Const*E206^HP.P.WFT.lt.24.WFT, HP.P.WFT.gt.24.Const*MAX(A1.a*E206^A1.WFT+A1.b,(A2.a*E206^A2.WFT+A2.b)*$E$81^A2.MTD))+5)) -> 
B230: =ModelParameters!A47 -> 0.5 | D230: =IF(D207="","",IF(D207<0,999,MAX(HP.P.WFT.lt.24.Const*D207^HP.P.WFT.lt.24.WFT, HP.P.WFT.gt.24.Const*MAX(A1.a*D207^A1.WFT+A1.b,(A2.a*D207^A2.WFT+A2.b)*$E$81^A2.MTD))+5)) ->  | E230: =IF(E207="","",IF(E207<0,999,MAX(HP.P.WFT.lt.24.Const*E207^HP.P.WFT.lt.24.WFT, HP.P.WFT.gt.24.Const*MAX(A1.a*E207^A1.WFT+A1.b,(A2.a*E207^A2.WFT+A2.b)*$E$81^A2.MTD))+5)) -> 
B231: =ModelParameters!A48 -> 1 | D231: =IF(D208="","",IF(D208<0,999,MAX(HP.P.WFT.lt.24.Const*D208^HP.P.WFT.lt.24.WFT, HP.P.WFT.gt.24.Const*MAX(A1.a*D208^A1.WFT+A1.b,(A2.a*D208^A2.WFT+A2.b)*$E$81^A2.MTD))+5)) -> 
B232: =ModelParameters!A49 -> 2 | D232: =IF(D209="","",IF(D209<0,999,MAX(HP.P.WFT.lt.24.Const*D209^HP.P.WFT.lt.24.WFT, HP.P.WFT.gt.24.Const*MAX(A1.a*D209^A1.WFT+A1.b,(A2.a*D209^A2.WFT+A2.b)*$E$81^A2.MTD))+5)) -> 
B233: =ModelParameters!A50 -> 3 | D233: =IF(D210="","",IF(D210<0,999,MAX(HP.P.WFT.lt.24.Const*D210^HP.P.WFT.lt.24.WFT, HP.P.WFT.gt.24.Const*MAX(A1.a*D210^A1.WFT+A1.b,(A2.a*D210^A2.WFT+A2.b)*$E$81^A2.MTD))+5)) -> 
B234: =ModelParameters!A51 -> 4 | D234: =IF(D211="","",IF(D211<0,999,MAX(HP.P.WFT.lt.24.Const*D211^HP.P.WFT.lt.24.WFT, HP.P.WFT.gt.24.Const*MAX(A1.a*D211^A1.WFT+A1.b,(A2.a*D211^A2.WFT+A2.b)*$E$81^A2.MTD))+5)) -> 
B240: Speed delta (mph)
B242: Plane Number | D242: 1 | F242: 2 | H242: 3 | J242: 4 | L242: 5 | N242: 6 | P242: 7 | R242: 8 | T242: 9 | V242: 10 | X242: 11 | Z242: 12
B243: Intensity (in/hr) | D243: =IF(D38<>"",D38,"") ->  | E243: Intensity (in/hr) | F243: =IF(E38<>"",E38,"") ->  | G243: Intensity (in/hr) | H243: =IF(F38<>"",F38,"") ->  | I243: Intensity (in/hr) | J243: =IF(G38<>"",G38,"") ->  | K243: Intensity (in/hr) | L243: =IF(H38<>"",H38,"") ->  | M243: Intensity (in/hr) | N243: =IF(I38<>"",I38,"") ->  | O243: Intensity (in/hr) | P243: =IF(J38<>"",J38,"") ->  | Q243: Intensity (in/hr) | R243: =IF(K38<>"",K38,"") ->  | S243: Intensity (in/hr) | T243: =IF(L38<>"",L38,"") ->  | U243: Intensity (in/hr) | V243: =IF(M38<>"",M38,"") ->  | W243: Intensity (in/hr) | X243: =IF(N38<>"",N38,"") ->  | Y243: Intensity (in/hr) | Z243: =IF(O38<>"",O38,"") ->  | AA243: Intensity (in/hr)
B244: =ModelParameters!A45 -> 0.1 | D244: =IFERROR(D216-D228,"") ->  | E244: 0.1 | F244: =IFERROR(E216-E228,"") ->  | G244: 0.1 | H244: =IFERROR(F216-F228,"") ->  | I244: 0.1 | J244: =IFERROR(G216-G228,"") ->  | K244: 0.1 | L244: =IFERROR(H216-H228,"") ->  | M244: 0.1 | N244: =IFERROR(I216-I228,"") ->  | O244: 0.1 | P244: =IFERROR(J216-J228,"") ->  | Q244: 0.1 | R244: =IFERROR(K216-K228,"") ->  | S244: 0.1 | T244: =IFERROR(L216-L228,"") ->  | U244: 0.1 | V244: =IFERROR(M216-M228,"") ->  | W244: 0.1 | X244: =IFERROR(N216-N228,"") ->  | Y244: 0.1 | Z244: =IFERROR(O216-O228,"") ->  | AA244: 0.1
B245: =ModelParameters!A46 -> 0.25 | D245: =IFERROR(D217-D229,"") ->  | E245: 0.25 | F245: =IFERROR(E217-E229,"") ->  | G245: 0.25 | H245: =IFERROR(F217-F229,"") ->  | I245: 0.25 | J245: =IFERROR(G217-G229,"") ->  | K245: 0.25 | L245: =IFERROR(H217-H229,"") ->  | M245: 0.25 | N245: =IFERROR(I217-I229,"") ->  | O245: 0.25 | P245: =IFERROR(J217-J229,"") ->  | Q245: 0.25 | R245: =IFERROR(K217-K229,"") ->  | S245: 0.25 | T245: =IFERROR(L217-L229,"") ->  | U245: 0.25 | V245: =IFERROR(M217-M229,"") ->  | W245: 0.25 | X245: =IFERROR(N217-N229,"") ->  | Y245: 0.25 | Z245: =IFERROR(O217-O229,"") ->  | AA245: 0.25
B246: =ModelParameters!A47 -> 0.5 | E246: 0.5 | G246: 0.5 | I246: 0.5 | K246: 0.5 | M246: 0.5 | O246: 0.5 | Q246: 0.5 | S246: 0.5 | U246: 0.5 | W246: 0.5 | Y246: 0.5 | AA246: 0.5
B247: =ModelParameters!A48 -> 1 | E247: 1 | G247: 1 | I247: 1 | K247: 1 | M247: 1 | O247: 1 | Q247: 1 | S247: 1 | U247: 1 | W247: 1 | Y247: 1 | AA247: 1
B248: =ModelParameters!A49 -> 2 | E248: 2 | G248: 2 | I248: 2 | K248: 2 | M248: 2 | O248: 2 | Q248: 2 | S248: 2 | U248: 2 | W248: 2 | Y248: 2 | AA248: 2
B249: =ModelParameters!A50 -> 3 | D249: =IFERROR(D221-D233,"") ->  | E249: 3 | G249: 3 | I249: 3 | K249: 3 | M249: 3 | O249: 3 | Q249: 3 | S249: 3 | U249: 3 | W249: 3 | Y249: 3 | AA249: 3
B250: =ModelParameters!A51 -> 4 | E250: 4 | G250: 4 | I250: 4 | K250: 4 | M250: 4 | O250: 4 | Q250: 4 | S250: 4 | U250: 4 | W250: 4 | Y250: 4 | AA250: 4
B251: Max Delta | D251: =IFERROR(MAX(D244:D250),"") -> 0 | F251: =IFERROR(MAX(F244:F250),"") -> 0 | H251: =IFERROR(MAX(H244:H250),"") -> 0 | J251: 0 | L251: 0 | N251: 0 | P251: 0 | R251: 0 | T251: 0 | V251: 0 | X251: 0 | Z251: 0
B252: Max Delta Intensity | D252: =IFERROR(VLOOKUP(D251,D244:E250,2,FALSE),"") ->  | F252: =IFERROR(VLOOKUP(F251,F244:G250,2,FALSE),"") ->  | H252: =IFERROR(VLOOKUP(H251,H244:I250,2,FALSE),"") ->  | J252: =IFERROR(VLOOKUP(J251,J244:K250,2,FALSE),"") ->  | L252: =IFERROR(VLOOKUP(L251,L244:M250,2,FALSE),"") ->  | N252: =IFERROR(VLOOKUP(N251,N244:O250,2,FALSE),"") ->  | P252: =IFERROR(VLOOKUP(P251,P244:Q250,2,FALSE),"") ->  | R252: =IFERROR(VLOOKUP(R251,R244:S250,2,FALSE),"") ->  | T252: =IFERROR(VLOOKUP(T251,T244:U250,2,FALSE),"") ->  | V252: =IFERROR(VLOOKUP(V251,V244:W250,2,FALSE),"") ->  | X252: =IFERROR(VLOOKUP(X251,X244:Y250,2,FALSE),"") ->  | Z252: =IFERROR(VLOOKUP(Z251,Z244:AA250,2,FALSE),"") -> 
B253: Max Delta WFT | D253: =IFERROR(VLOOKUP(D252,B205:O211,3,TRUE),"") ->  | F253: =IFERROR(VLOOKUP(F252,B205:O211,4,TRUE),"") ->  | H253: =IFERROR(VLOOKUP(H252,B205:O211,5,TRUE),"") ->  | J253: =IFERROR(VLOOKUP(J252,B205:O211,6,TRUE),"") ->  | L253: =IFERROR(VLOOKUP(L252,B205:O211,7,TRUE),"") ->  | N253: =IFERROR(VLOOKUP(N252,B205:O211,8,TRUE),"") ->  | P253: =IFERROR(VLOOKUP(P252,B205:O211,9,TRUE),"") ->  | R253: =IFERROR(VLOOKUP(R252,B205:O211,10,TRUE),"") ->  | T253: =IFERROR(VLOOKUP(T252,B205:O211,11,TRUE),"") ->  | V253: =IFERROR(VLOOKUP(V252,B205:O211,12,TRUE),"") ->  | X253: =IFERROR(VLOOKUP(X252,B205:O211,13,TRUE),"") ->  | Z253: =IFERROR(VLOOKUP(Z252,B205:O211,14,TRUE),"") -> 
B254: Max Delta Driver Speed | D254: =IFERROR(VLOOKUP(D252,B216:O222,3,TRUE),"") ->  | F254: =IFERROR(VLOOKUP(F252,B216:O222,4,TRUE),"") ->  | H254: =IFERROR(VLOOKUP(H252,B216:O222,5,TRUE),"") ->  | J254: =IFERROR(VLOOKUP(J252,B216:O222,6,TRUE),"") ->  | L254: =IFERROR(VLOOKUP(L252,B216:O222,7,TRUE),"") ->  | N254: =IFERROR(VLOOKUP(N252,B216:O222,8,TRUE),"") ->  | P254: =IFERROR(VLOOKUP(P252,B216:O222,9,TRUE),"") ->  | R254: =IFERROR(VLOOKUP(R252,B216:O222,10,TRUE),"") ->  | T254: =IFERROR(VLOOKUP(T252,B216:O222,11,TRUE),"") ->  | V254: =IFERROR(VLOOKUP(V252,B216:O222,12,TRUE),"") ->  | X254: =IFERROR(VLOOKUP(X252,B216:O222,13,TRUE),"") ->  | Z254: =IFERROR(VLOOKUP(Z252,B216:O222,14,TRUE),"") -> 
B255: Max Delta HPS | D255: =IFERROR(VLOOKUP(D252,B228:O234,3,TRUE),"") ->  | F255: =IFERROR(VLOOKUP(F252,B228:O234,4,TRUE),"") ->  | H255: =IFERROR(VLOOKUP(H252,B228:O234,5,TRUE),"") ->  | J255: =IFERROR(VLOOKUP(J252,B228:O234,6,TRUE),"") ->  | L255: =IFERROR(VLOOKUP(L252,B228:O234,7,TRUE),"") ->  | N255: =IFERROR(VLOOKUP(N252,B228:O234,8,TRUE),"") ->  | P255: =IFERROR(VLOOKUP(P252,B228:O234,9,TRUE),"") ->  | R255: =IFERROR(VLOOKUP(R252,B228:O234,10,TRUE),"") ->  | T255: =IFERROR(VLOOKUP(T252,B228:O234,11,TRUE),"") ->  | V255: =IFERROR(VLOOKUP(V252,B228:O234,12,TRUE),"") ->  | X255: =IFERROR(VLOOKUP(X252,B228:O234,13,TRUE),"") ->  | Z255: =IFERROR(VLOOKUP(Z252,B228:O234,14,TRUE),"") -> 

Sheet Prelim Assessment Table
A2: Hydraulics Designer: | B2: Designer's Name
A3: Reviewer: | E3: Preliminary Hydroplaning Assessment of Typical Sections
A4: Date: | B4: 2022-07-26
A5: Project TIP #: | B5: Example
A7: Typical Section | B7: Analysis Description | C7: Alignment | D7: Station | E7: Direction | F7: Lane | G7: Design Speed (mph) | H7: Rainfall Intensity (I, in/hr) | I7: Long. Slope (%) | J7: Cross Slope (ft/ft) | K7: Pavement Width (ft) | L7: Pavement Surface Material | M7: Hydroplaning Average WFT (in) | N7: PAVDRN Hydroplaning Speed (mph) | O7: Predicted Driver Speed (mph) | P7: Analysis Notes | Q7: User-Defined Pavement Notes
A8: Typical Section 1 - Assumed 5% Long. Grade (tangent section) [Ex 1.0] | B8: Greater than 36 ft. of Impervious Pavement | C8: L | D8: Sta. or Mile Marker | E8: Northbound | F8: Lane 4 | G8: 70 | H8: 2 | I8: 5 | J8: 0.02 | K8: 36 | L8: DGAC | M8: 0.08045539725 | N8: 55.01522045 | O8: 58 | P8: Dense graded asphalt and a 0.02 ft/ft cross slope over 3 lanes fails
A9: Typical Section 1 - Assumed 5% Long. Grade (tangent section) [Ex 1.1] | B9: Mitigation | C9: L | D9: Sta. or Mile Marker | E9: Northbound | F9: Lane 4 | G9: 70 | H9: 2 | I9: 5 | J9: 0.03 | K9: 36 | L9: DGAC | M9: 0.07295122429 | N9: 56.29978447 | O9: 58 | P9: Hydroplaning Potential is lower w/ 0.03 ft/ft cross slope but below the predicted driver speed
A10: Typical Section 1 - Assumed 5% Long. Grade (tangent section) [Ex 1.2] | B10: Mitigation | C10: L | D10: Sta. or Mile Marker | E10: Northbound | F10: Lane 4 | G10: 70 | H10: 2 | I10: 5 | J10: 0.03 | K10: 36 | L10: PCC | M10: 0.06071704769 | N10: 58.79767693 | O10: 58 | P10: Concrete Pavement (PCC) Surface Passes
A11: Typical Section 1 - Assumed 5% Long. Grade (tangent section) [Ex 1.3] | B11: Mitigation | C11: L | D11: Sta. or Mile Marker | E11: Northbound | F11: Lane 4 | G11: 70 | H11: 2 | I11: 5 | J11: 0.03 | K11: 36 | L11: UTBWC | M11: 0.05758854748 | N11: 59.53984804 | O11: 58 | P11: Ultra-Thin Bonded Wearing Course Surface Passes
A12: Typical Section 1 - Assumed 5% Long. Grade (tangent section) [Ex 1.4] | B12: Mitigation | C12: L | D12: Sta. or Mile Marker | E12: Northbound | F12: Lane 4 | G12: 70 | H12: 2 | I12: 5 | J12: 0.03 | K12: 36 | L12: OGFC | M12: 0.05133346372 | N12: 61.68728716 | O12: 58 | P12: Open Graded Friction Course Surface Passes
B31: Possible Hydroplane Conditions
B32: High | D32: Low | G32: None
B35: High: HPS is ≥ 4 mph Below the Predicted Driver Speed. Mitigation methods required.
B36: Low: HPS is ≥ 2 mph Below The Predicted Driver Speed. More potential for adverse conditions. Evaluate Mitigation methods needed and provide engineering justification if none are required which may include driver responsibility.
B38: None: HPS is greater than Predicted Driver Speed
J116: =IF(E116="","", E116-12) -> 

Sheet Ex 1.0
D1: Hydroplaning Analysis Tool
B4: General Inputs | L4: Date | M4: 2022-07-26
B6: TIP | D6: Example | I6: Designer | L6: Designer's Name
B8: County | D8: Johnston | I8: NCDOT Division No. | L8: Division 4
B10: Project Description | D10: Short Description of the Project
B12: Typical Section/Area of Concern | D12: Typical Section 1 - Assumed 5% Long. Grade (tangent section) [Ex 1.0] | I12: Alignment | L12: L
B14: Assessment Type | D14: Preliminary | I14: Station/Milepost Range | L14: Sta. or Mile Marker
B16: Analysis Description | D16: Greater than 36 ft. of Impervious Pavement | I16: Direction | L16: Northbound
B19: Superelevation Transition | D19: # of lanes | F19: Factor | G19: =IF(OR(AnalysisType="Superelevation Transition",AnalysisType="Superelevation Mitigation"),IF(No.Lanes=2,1.8,IF(No.Lanes=3,1.5,IF(No.Lanes>=4,1.3,""))),1) -> 1
B21: Analysis Notes | D21: Dense graded asphalt and a 0.02 ft/ft cross slope over 3 lanes fails
B23: Analysis Options
B25: Select Analysis Option | E25: Deterministic (Default)
B26: Risk Analysis, per NCDOT rules | E26: Yes
B27: Pavement Inputs
B29: Deterministic Analysis
B31: Longitudinal Grade (%) | E31: 5 | J31: Mean Profile Depth (in.) | M31: 0.024
B32: Surface Type | E32: Dense Graded Asphalt (DGAC) | J32: =IF(OR(AnalysisType="Superelevation Transition",AnalysisType="Superelevation Mitigation"),"Warning: The cross-slope for all lanes going through rollover needs to be 0.02 ft/ft when doing a Superelevation analysis to ensure equation accuracy.","") -> 
B33: User-Defined Type | J33: User-Defined Mean Profile Depth (in.) | M33: 0.05
J34: User-Defined Manning's n | M34: 0.03
B35: Permeability (in/hr) | E35: 0
D37: 1 | E37: 2 | F37: 3 | G37: 4 | H37: 5 | I37: 6 | J37: 7 | K37: 8 | L37: 9 | M37: 10 | N37: 11 | O37: 12
B38: Description | D38: Inside Shoulder | E38: Lane 1 | F38: Lane 2 | G38: Lane 3 | H38: Lane 4 | I38: Shoulder
B39: Design Speed (mph) | D39: 45 | E39: 70 | F39: 70 | G39: 70 | H39: 70 | I39: 45
B40: Cross Slope (ft/ft) | D40: -0.04 | E40: -0.02 | F40: 0.02 | G40: 0.02 | H40: 0.02 | I40: 0.04
B41: Width (ft.) | D41: 12 | E41: 12 | F41: 12 | G41: 12 | H41: 12 | I41: 14
C43: 0 | D43: =C43-D41*D40 -> 0.48 | E43: 0.72 | F43: 0.48 | G43: 0.24 | H43: 0 | I43: -0.56 | J43: -0.56 | K43: -0.56 | L43: -0.56 | M43: -0.56 | N43: -0.56 | O43: -0.56
C44: 0 | D44: =D41 -> 12 | E44: =D44+E41 -> 24 | F44: =E44+F41 -> 36 | G44: 48 | H44: 60 | I44: 74 | J44: =I44+J41 -> 74 | K44: 74 | L44: =K44+L41 -> 74 | M44: 74 | N44: 74 | O44: 74
C46: =MIN($C$43:$O$43) -> -0.56 | D46: =MIN($C$43:$O$43) -> -0.56 | E46: -0.56 | F46: -0.56 | G46: -0.56 | H46: -0.56 | I46: -0.56 | J46: -0.56 | K46: -0.56 | L46: -0.56 | M46: -0.56 | N46: -0.56 | O46: -0.56
C47: 0 | D47: =C47+D41 -> 12 | E47: =D47+E41 -> 24 | F47: =E47+F41 -> 36 | G47: 48 | H47: 60 | I47: 74 | J47: 74 | K47: 74 | L47: 74 | M47: 74 | N47: 74 | O47: 74
B54: Scenario Roadway Typical
B57: Environmental Inputs
B59: Deterministic Analysis
B61: Rainfall Intensity (in/hr) | E61: 2 | I61: NCDOT Default Values: 2 in/hr and 32°F
B62: Temperature (deg. F) | E62: 32 | I62: <-- Note: Temperature is only needed for PAVDRN WFT Model
B65: Analysis Results
B67: Deterministic Analysis
B69: Drainage Path Length (in feet)
B70: Plane Number | D70: 1 | E70: 2 | F70: 3 | G70: 4 | H70: 5 | I70: 6 | J70: 7 | K70: 8 | L70: 9 | M70: 10 | N70: 11 | O70: 12
B71: Param \ Lane | D71: =IF(D38<>"",D38,"") -> Inside Shoulder | E71: Lane 1 | F71: Lane 2 | G71: Lane 3 | H71: Lane 4 | I71: Shoulder
B72: Total Slope (%) | D72: =IF(AND(D40<>"",D41<>""),SQRT($E$31^2+(D40*100)^2),"") -> 6.403124237 | E72: 5.385164807 | F72: 5.385164807 | G72: 5.385164807 | H72: 5.385164807 | I72: 6.403124237
B73: DP / Lane (ft.) | D73: =IF(D72<>"",D41*SQRT(1+($E$31/(D40*100))^2),"") -> 19.20937271 | E73: 32.31098884 | F73: 32.31098884 | G73: 32.31098884 | H73: 32.31098884 | I73: 22.41093483
D74: =IF(D73<>"",IF(D40<0,E74+D73,0),0) -> 51.52036156 | E74: =IF(E73<>"",IF(E40<0,F74+E73,0),0) -> 32.31098884 | F74: 0 | G74: 0 | H74: 0 | I74: 0 | J74: 0 | K74: 0 | L74: 0 | M74: 0 | N74: 0 | O74: 0
D75: =IF(D73<>"",IF(D40>0,D73+C75,0),0) -> 0 | E75: 0 | F75: 32.31098884 | G75: 64.62197769 | H75: 96.93296653 | I75: 119.3439014 | J75: 0 | K75: 0 | L75: 0 | M75: 0 | N75: 0 | O75: 0
B76: Total DP (ft.) | D76: =IF(D73<>"",MAX(D74:D75),"") -> 51.52036156 | E76: =IF(E73<>"",MAX(E74:E75),"") -> 32.31098884 | F76: 32.31098884 | G76: 64.62197769 | H76: 96.93296653 | I76: 119.3439014
B78: Intermediate Variables
B80: Kin. Viscosity (ft2/s) | E80: =KVis.V0*EXP(KVis.a+KVis.b*273.16/(273.16+CONVERT('Ex 1.0'!$E$62,"F","C"))+KVis.c*(273.16/(273.16+CONVERT('Ex 1.0'!$E$62,"F","C")))^2)*CONVERT(1,"m","ft")^2*10^(-6) -> 1.925038816e-05 | I80: <-- Note: Viscosity is only used by PAVDRN WFT Model
B81: Mean Texture Depth (in.) | E81: =IF(AND(Deterministic.Texture="",User.Defined.Texture=""),"",IF($J$31="Mean Texture Depth (in.)",Deterministic.Texture,IF(Deterministic.Surf.Type="Dense Graded Asphalt (DGAC)",CONVERT(MPD.to.MTD.DGFC.a*(CONVERT(Deterministic.Texture,"in","mm"))+MPD.to.MTD.DGFC.b,"mm","in"),IF(Deterministic.Surf.Type="Open Graded Friction Course (OGFC)",MPD.to.MTD.OGFC.a*Deterministic.Texture+MPD.to.MTD.OGFC.b,IF(Deterministic.Surf.Type="Concrete Pavement (PCC)",MPD.to.MTD.LGD.a*Deterministic.Texture+MPD.to.MTD.LGD.b,IF(Deterministic.Surf.Type="Ultra-Thin Bonded Wearing Course",CONVERT(MPD.to.MTD.DGFC.a*(CONVERT(Deterministic.Texture,"in","mm"))+MPD.to.MTD.DGFC.b,"mm","in"),IF(Deterministic.Surf.Type="User-Defined",CONVERT(MPD.to.MTD.DGFC.a*(CONVERT(User.Defined.Texture,"in","mm"))+MPD.to.MTD.DGFC.b,"mm","in")))))))) -> 0.02707401575
B83: Reynold's Number and Manning's Table | G83: <-- Note: Reynold's Number and Manning's N value are only used by PAVDRN WFT Model
B84: Plane Number | D84: 1 | E84: 2 | F84: 3 | G84: 4 | H84: 5 | I84: 6 | J84: 7 | K84: 8 | L84: 9 | M84: 10 | N84: 11 | O84: 12
B85: Param \ Lane | D85: =IF(D38<>"",D38,"") -> Inside Shoulder | E85: Lane 1 | F85: Lane 2 | G85: Lane 3 | H85: Lane 4 | I85: Shoulder
B86: Reynold's No. | D86: =IF(D76<>"",D76*($E$61-$E$35)/12/3600/$E$80,"") -> 123.904095 | E86: =IF(E76<>"",E76*($E$61-$E$35)/12/3600/$E$80,"") -> 77.70643897 | F86: 77.70643897 | G86: 155.4128779 | H86: 233.1193169 | I86: 287.0165823
B87: Manning's N | D87: =IF(D86<>"",IF(OR(Deterministic.Surf.Type="Dense Graded Asphalt (DGAC)",Deterministic.Surf.Type="User Defined Dense Graded Asphalt (DGAC)"),Manning.DGFC.Const*'Ex 1.0'!D86^Manning.DGFC.NR,IF(OR(Deterministic.Surf.Type="Open Graded Friction Course (OGFC)",Deterministic.Surf.Type="User Defined Open Graded Friction Course (OGFC)"),Manning.OGFC.Const*'Ex 1.0'!D86^Manning.OGFC.NR*('Ex 1.0'!D72/100)^Manning.OGFC.Slope,IF(D86<240,Manning.PCC.NR.lt.240.Const*D86^Manning.PCC.NR.lt.240.NR,IF(D86<500,Manning.PCC.NR.lt.500.Const*'Ex 1.0'!D86^Manning.PCC.NR.lt.500.NR,IF('Ex 1.0'!D86<1000,Manning.PCC.NR.lt.1000.Const*'Ex 1.0'!D86^Manning.PCC.NR.lt.1000.NR,0.017))))),"") -> 0.03557975313 | E87: =IF(E86<>"",IF(OR(Deterministic.Surf.Type="Dense Graded Asphalt (DGAC)",Deterministic.Surf.Type="User Defined Dense Graded Asphalt (DGAC)"),Manning.DGFC.Const*'Ex 1.0'!E86^Manning.DGFC.NR,IF(OR(Deterministic.Surf.Type="Open Graded Friction Course (OGFC)",Deterministic.Surf.Type="User Defined Open Graded Friction Course (OGFC)"),Manning.OGFC.Const*'Ex 1.0'!E86^Manning.OGFC.NR*('Ex 1.0'!E72/100)^Manning.OGFC.Slope,IF(E86<240,Manning.PCC.NR.lt.240.Const*E86^Manning.PCC.NR.lt.240.NR,IF(E86<500,Manning.PCC.NR.lt.500.Const*'Ex 1.0'!E86^Manning.PCC.NR.lt.500.NR,IF('Ex 1.0'!E86<1000,Manning.PCC.NR.lt.1000.Const*'Ex 1.0'!E86^Manning.PCC.NR.lt.1000.NR,0.017))))),"") -> 0.03858871492 | F87: =IF(F86<>"",IF(OR(Deterministic.Surf.Type="Dense Graded Asphalt (DGAC)",Deterministic.Surf.Type="User Defined Dense Graded Asphalt (DGAC)"),Manning.DGFC.Const*'Ex 1.0'!F86^Manning.DGFC.NR,IF(OR(Deterministic.Surf.Type="Open Graded Friction Course (OGFC)",Deterministic.Surf.Type="User Defined Open Graded Friction Course (OGFC)"),Manning.OGFC.Const*'Ex 1.0'!F86^Manning.OGFC.NR*('Ex 1.0'!F72/100)^Manning.OGFC.Slope,IF(F86<240,Manning.PCC.NR.lt.240.Const*F86^Manning.PCC.NR.lt.240.NR,IF(F86<500,Manning.PCC.NR.lt.500.Const*'Ex 1.0'!F86^Manning.PCC.NR.lt.500.NR,IF('Ex 1.0'!F86<1000,Manning.PCC.NR.lt.1000.Const*'Ex 1.0'!F86^Manning.PCC.NR.lt.1000.NR,0.017))))),"") -> 0.03858871492 | G87: =IF(G86<>"",IF(OR(Deterministic.Surf.Type="Dense Graded Asphalt (DGAC)",Deterministic.Surf.Type="User Defined Dense Graded Asphalt (DGAC)"),Manning.DGFC.Const*'Ex 1.0'!G86^Manning.DGFC.NR,IF(OR(Deterministic.Surf.Type="Open Graded Friction Course (OGFC)",Deterministic.Surf.Type="User Defined Open Graded Friction Course (OGFC)"),Manning.OGFC.Const*'Ex 1.0'!G86^Manning.OGFC.NR*('Ex 1.0'!G72/100)^Manning.OGFC.Slope,IF(G86<240,Manning.PCC.NR.lt.240.Const*G86^Manning.PCC.NR.lt.240.NR,IF(G86<500,Manning.PCC.NR.lt.500.Const*'Ex 1.0'!G86^Manning.PCC.NR.lt.500.NR,IF('Ex 1.0'!G86<1000,Manning.PCC.NR.lt.1000.Const*'Ex 1.0'!G86^Manning.PCC.NR.lt.1000.NR,0.017))))),"") -> 0.0342043307 | H87: =IF(H86<>"",IF(OR(Deterministic.Surf.Type="Dense Graded Asphalt (DGAC)",Deterministic.Surf.Type="User Defined Dense Graded Asphalt (DGAC)"),Manning.DGFC.Const*'Ex 1.0'!H86^Manning.DGFC.NR,IF(OR(Deterministic.Surf.Type="Open Graded Friction Course (OGFC)",Deterministic.Surf.Type="User Defined Open Graded Friction Course (OGFC)"),Manning.OGFC.Const*'Ex 1.0'!H86^Manning.OGFC.NR*('Ex 1.0'!H72/100)^Manning.OGFC.Slope,IF(H86<240,Manning.PCC.NR.lt.240.Const*H86^Manning.PCC.NR.lt.240.NR,IF(H86<500,Manning.PCC.NR.lt.500.Const*'Ex 1.0'!H86^Manning.PCC.NR.lt.500.NR,IF('Ex 1.0'!H86<1000,Manning.PCC.NR.lt.1000.Const*'Ex 1.0'!H86^Manning.PCC.NR.lt.1000.NR,0.017))))),"") -> 0.03187434123 | I87: =IF(I86<>"",IF(OR(Deterministic.Surf.Type="Dense Graded Asphalt (DGAC)",Deterministic.Surf.Type="User Defined Dense Graded Asphalt (DGAC)"),Manning.DGFC.Const*'Ex 1.0'!I86^Manning.DGFC.NR,IF(OR(Deterministic.Surf.Type="Open Graded Friction Course (OGFC)",Deterministic.Surf.Type="User Defined Open Graded Friction Course (OGFC)"),Manning.OGFC.Const*'Ex 1.0'!I86^Manning.OGFC.NR*('Ex 1.0'!I72/100)^Manning.OGFC.Slope,IF(I86<240,Manning.PCC.NR.lt.240.Const*I86^Manning.PCC.NR.lt.240.NR,IF(I86<500,Manning.PCC.NR.lt.500.Const*'Ex 1.0'!I86^Manning.PCC.NR.lt.500.NR,IF('Ex 1.0'!I86<1000,Manning.PCC.NR.lt.1000.Const*'Ex 1.0'!I86^Manning.PCC.NR.lt.1000.NR,0.017))))),"") -> 0.03074142671 | J87: =IF(J86<>"",IF(OR(Deterministic.Surf.Type="Dense Graded Asphalt (DGAC)",Deterministic.Surf.Type="User Defined Dense Graded Asphalt (DGAC)"),Manning.DGFC.Const*'Ex 1.0'!J86^Manning.DGFC.NR,IF(OR(Deterministic.Surf.Type="Open Graded Friction Course (OGFC)",Deterministic.Surf.Type="User Defined Open Graded Friction Course (OGFC)"),Manning.OGFC.Const*'Ex 1.0'!J86^Manning.OGFC.NR*('Ex 1.0'!J72/100)^Manning.OGFC.Slope,IF(J86<240,Manning.PCC.NR.lt.240.Const*J86^Manning.PCC.NR.lt.240.NR,IF(J86<500,Manning.PCC.NR.lt.500.Const*'Ex 1.0'!J86^Manning.PCC.NR.lt.500.NR,IF('Ex 1.0'!J86<1000,Manning.PCC.NR.lt.1000.Const*'Ex 1.0'!J86^Manning.PCC.NR.lt.1000.NR,0.017))))),"") ->  | K87: =IF(K86<>"",IF(OR(Deterministic.Surf.Type="Dense Graded Asphalt (DGAC)",Deterministic.Surf.Type="User Defined Dense Graded Asphalt (DGAC)"),Manning.DGFC.Const*'Ex 1.0'!K86^Manning.DGFC.NR,IF(OR(Deterministic.Surf.Type="Open Graded Friction Course (OGFC)",Deterministic.Surf.Type="User Defined Open Graded Friction Course (OGFC)"),Manning.OGFC.Const*'Ex 1.0'!K86^Manning.OGFC.NR*('Ex 1.0'!K72/100)^Manning.OGFC.Slope,IF(K86<240,Manning.PCC.NR.lt.240.Const*K86^Manning.PCC.NR.lt.240.NR,IF(K86<500,Manning.PCC.NR.lt.500.Const*'Ex 1.0'!K86^Manning.PCC.NR.lt.500.NR,IF('Ex 1.0'!K86<1000,Manning.PCC.NR.lt.1000.Const*'Ex 1.0'!K86^Manning.PCC.NR.lt.1000.NR,0.017))))),"") ->  | L87: =IF(L86<>"",IF(OR(Deterministic.Surf.Type="Dense Graded Asphalt (DGAC)",Deterministic.Surf.Type="User Defined Dense Graded Asphalt (DGAC)"),Manning.DGFC.Const*'Ex 1.0'!L86^Manning.DGFC.NR,IF(OR(Deterministic.Surf.Type="Open Graded Friction Course (OGFC)",Deterministic.Surf.Type="User Defined Open Graded Friction Course (OGFC)"),Manning.OGFC.Const*'Ex 1.0'!L86^Manning.OGFC.NR*('Ex 1.0'!L72/100)^Manning.OGFC.Slope,IF(L86<240,Manning.PCC.NR.lt.240.Const*L86^Manning.PCC.NR.lt.240.NR,IF(L86<500,Manning.PCC.NR.lt.500.Const*'Ex 1.0'!L86^Manning.PCC.NR.lt.500.NR,IF('Ex 1.0'!L86<1000,Manning.PCC.NR.lt.1000.Const*'Ex 1.0'!L86^Manning.PCC.NR.lt.1000.NR,0.017))))),"") ->  | M87: =IF(M86<>"",IF(OR(Deterministic.Surf.Type="Dense Graded Asphalt (DGAC)",Deterministic.Surf.Type="User Defined Dense Graded Asphalt (DGAC)"),Manning.DGFC.Const*'Ex 1.0'!M86^Manning.DGFC.NR,IF(OR(Deterministic.Surf.Type="Open Graded Friction Course (OGFC)",Deterministic.Surf.Type="User Defined Open Graded Friction Course (OGFC)"),Manning.OGFC.Const*'Ex 1.0'!M86^Manning.OGFC.NR*('Ex 1.0'!M72/100)^Manning.OGFC.Slope,IF(M86<240,Manning.PCC.NR.lt.240.Const*M86^Manning.PCC.NR.lt.240.NR,IF(M86<500,Manning.PCC.NR.lt.500.Const*'Ex 1.0'!M86^Manning.PCC.NR.lt.500.NR,IF('Ex 1.0'!M86<1000,Manning.PCC.NR.lt.1000.Const*'Ex 1.0'!M86^Manning.PCC.NR.lt.1000.NR,0.017))))),"") ->  | N87: =IF(N86<>"",IF(OR(Deterministic.Surf.Type="Dense Graded Asphalt (DGAC)",Deterministic.Surf.Type="User Defined Dense Graded Asphalt (DGAC)"),Manning.DGFC.Const*'Ex 1.0'!N86^Manning.DGFC.NR,IF(OR(Deterministic.Surf.Type="Open Graded Friction Course (OGFC)",Deterministic.Surf.Type="User Defined Open Graded Friction Course (OGFC)"),Manning.OGFC.Const*'Ex 1.0'!N86^Manning.OGFC.NR*('Ex 1.0'!N72/100)^Manning.OGFC.Slope,IF(N86<240,Manning.PCC.NR.lt.240.Const*N86^Manning.PCC.NR.lt.240.NR,IF(N86<500,Manning.PCC.NR.lt.500.Const*'Ex 1.0'!N86^Manning.PCC.NR.lt.500.NR,IF('Ex 1.0'!N86<1000,Manning.PCC.NR.lt.1000.Const*'Ex 1.0'!N86^Manning.PCC.NR.lt.1000.NR,0.017))))),"") ->  | O87: =IF(O86<>"",IF(OR(Deterministic.Surf.Type="Dense Graded Asphalt (DGAC)",Deterministic.Surf.Type="User Defined Dense Graded Asphalt (DGAC)"),Manning.DGFC.Const*'Ex 1.0'!O86^Manning.DGFC.NR,IF(OR(Deterministic.Surf.Type="Open Graded Friction Course (OGFC)",Deterministic.Surf.Type="User Defined Open Graded Friction Course (OGFC)"),Manning.OGFC.Const*'Ex 1.0'!O86^Manning.OGFC.NR*('Ex 1.0'!O72/100)^Manning.OGFC.Slope,IF(O86<240,Manning.PCC.NR.lt.240.Const*O86^Manning.PCC.NR.lt.240.NR,IF(O86<500,Manning.PCC.NR.lt.500.Const*'Ex 1.0'!O86^Manning.PCC.NR.lt.500.NR,IF('Ex 1.0'!O86<1000,Manning.PCC.NR.lt.1000.Const*'Ex 1.0'!O86^Manning.PCC.NR.lt.1000.NR,0.017))))),"") -> 
B94: PAVDRN Variables
B95: Plane Number | D95: 1 | E95: 2 | F95: 3 | G95: 4 | H95: 5 | I95: 6 | J95: 7 | K95: 8 | L95: 9 | M95: 10 | N95: 11 | O95: 12
B96: Intensity (in/hr) | C96: Variable | D96: Shoulder | E96: Lane 1 | F96: Lane 2 | G96: Lane 3 | H96: Lane 4 | I96: Lane 5 | J96: Lane 6 | K96: Lane 7 | L96: Lane 8 | M96: Lane 9 | N96: Lane 10 | O96: Lane 11
B97: 0.1 | C97: Reynolds | D97: =IF(D76<>"",D76*($B$97-$E$35)/12/3600/$E$80,"") -> 6.19520475 | E97: =IF(E76<>"",E76*($B$97-$E$35)/12/3600/$E$80,"") -> 3.885321949 | F97: 3.885321949 | G97: 7.770643897 | H97: 11.65596585 | I97: 14.35082911
C98: Manning's n | D98: =IF(D86<>"",IF(Deterministic.Surf.Type="Dense Graded Asphalt (DGAC)",Manning.DGFC.Const*D97^Manning.DGFC.NR,IF(Deterministic.Surf.Type="Open Graded Friction Course (OGFC)",Manning.OGFC.Const*D97^Manning.OGFC.NR*('Ex 1.0'!D72/100)^Manning.OGFC.Slope,IF(Deterministic.Surf.Type="User-Defined",User.Defined.ManningValue,IF(D97<240,Manning.PCC.NR.lt.240.Const*D97^Manning.PCC.NR.lt.240.NR,IF(D97<500,Manning.PCC.NR.lt.500.Const*D97^Manning.PCC.NR.lt.500.NR,IF(D97<1000,Manning.PCC.NR.lt.1000.Const*D97^Manning.PCC.NR.lt.1000.NR,0.017)))))),"") -> 0.05992142732 | E98: =IF(E86<>"",IF(Deterministic.Surf.Type="Dense Graded Asphalt (DGAC)",Manning.DGFC.Const*E97^Manning.DGFC.NR,IF(Deterministic.Surf.Type="Open Graded Friction Course (OGFC)",Manning.OGFC.Const*E97^Manning.OGFC.NR*('Ex 1.0'!E72/100)^Manning.OGFC.Slope,IF(Deterministic.Surf.Type="User-Defined",User.Defined.ManningValue,IF(E97<240,Manning.PCC.NR.lt.240.Const*E97^Manning.PCC.NR.lt.240.NR,IF(E97<500,Manning.PCC.NR.lt.500.Const*E97^Manning.PCC.NR.lt.500.NR,IF(E97<1000,Manning.PCC.NR.lt.1000.Const*E97^Manning.PCC.NR.lt.1000.NR,0.017)))))),"") -> 0.06498895223 | F98: =IF(F86<>"",IF(Deterministic.Surf.Type="Dense Graded Asphalt (DGAC)",Manning.DGFC.Const*F97^Manning.DGFC.NR,IF(Deterministic.Surf.Type="Open Graded Friction Course (OGFC)",Manning.OGFC.Const*F97^Manning.OGFC.NR*('Ex 1.0'!F72/100)^Manning.OGFC.Slope,IF(Deterministic.Surf.Type="User-Defined",User.Defined.ManningValue,IF(F97<240,Manning.PCC.NR.lt.240.Const*F97^Manning.PCC.NR.lt.240.NR,IF(F97<500,Manning.PCC.NR.lt.500.Const*F97^Manning.PCC.NR.lt.500.NR,IF(F97<1000,Manning.PCC.NR.lt.1000.Const*F97^Manning.PCC.NR.lt.1000.NR,0.017)))))),"") -> 0.06498895223 | G98: =IF(G86<>"",IF(Deterministic.Surf.Type="Dense Graded Asphalt (DGAC)",Manning.DGFC.Const*G97^Manning.DGFC.NR,IF(Deterministic.Surf.Type="Open Graded Friction Course (OGFC)",Manning.OGFC.Const*G97^Manning.OGFC.NR*('Ex 1.0'!G72/100)^Manning.OGFC.Slope,IF(Deterministic.Surf.Type="User-Defined",User.Defined.ManningValue,IF(G97<240,Manning.PCC.NR.lt.240.Const*G97^Manning.PCC.NR.lt.240.NR,IF(G97<500,Manning.PCC.NR.lt.500.Const*G97^Manning.PCC.NR.lt.500.NR,IF(G97<1000,Manning.PCC.NR.lt.1000.Const*G97^Manning.PCC.NR.lt.1000.NR,0.017)))))),"") -> 0.05760501791 | H98: =IF(H86<>"",IF(Deterministic.Surf.Type="Dense Graded Asphalt (DGAC)",Manning.DGFC.Const*H97^Manning.DGFC.NR,IF(Deterministic.Surf.Type="Open Graded Friction Course (OGFC)",Manning.OGFC.Const*H97^Manning.OGFC.NR*('Ex 1.0'!H72/100)^Manning.OGFC.Slope,IF(Deterministic.Surf.Type="User-Defined",User.Defined.ManningValue,IF(H97<240,Manning.PCC.NR.lt.240.Const*H97^Manning.PCC.NR.lt.240.NR,IF(H97<500,Manning.PCC.NR.lt.500.Const*H97^Manning.PCC.NR.lt.500.NR,IF(H97<1000,Manning.PCC.NR.lt.1000.Const*H97^Manning.PCC.NR.lt.1000.NR,0.017)))))),"") -> 0.05368098015 | I98: =IF(I86<>"",IF(Deterministic.Surf.Type="Dense Graded Asphalt (DGAC)",Manning.DGFC.Const*I97^Manning.DGFC.NR,IF(Deterministic.Surf.Type="Open Graded Friction Course (OGFC)",Manning.OGFC.Const*I97^Manning.OGFC.NR*('Ex 1.0'!I72/100)^Manning.OGFC.Slope,IF(Deterministic.Surf.Type="User-Defined",User.Defined.ManningValue,IF(I97<240,Manning.PCC.NR.lt.240.Const*I97^Manning.PCC.NR.lt.240.NR,IF(I97<500,Manning.PCC.NR.lt.500.Const*I97^Manning.PCC.NR.lt.500.NR,IF(I97<1000,Manning.PCC.NR.lt.1000.Const*I97^Manning.PCC.NR.lt.1000.NR,0.017)))))),"") -> 0.05177298896 | J98: =IF(J86<>"",IF(Deterministic.Surf.Type="Dense Graded Asphalt (DGAC)",Manning.DGFC.Const*J97^Manning.DGFC.NR,IF(Deterministic.Surf.Type="Open Graded Friction Course (OGFC)",Manning.OGFC.Const*J97^Manning.OGFC.NR*('Ex 1.0'!J72/100)^Manning.OGFC.Slope,IF(Deterministic.Surf.Type="User-Defined",User.Defined.ManningValue,IF(J97<240,Manning.PCC.NR.lt.240.Const*J97^Manning.PCC.NR.lt.240.NR,IF(J97<500,Manning.PCC.NR.lt.500.Const*J97^Manning.PCC.NR.lt.500.NR,IF(J97<1000,Manning.PCC.NR.lt.1000.Const*J97^Manning.PCC.NR.lt.1000.NR,0.017)))))),"") ->  | K98: =IF(K86<>"",IF(Deterministic.Surf.Type="Dense Graded Asphalt (DGAC)",Manning.DGFC.Const*K97^Manning.DGFC.NR,IF(Deterministic.Surf.Type="Open Graded Friction Course (OGFC)",Manning.OGFC.Const*K97^Manning.OGFC.NR*('Ex 1.0'!K72/100)^Manning.OGFC.Slope,IF(Deterministic.Surf.Type="User-Defined",User.Defined.ManningValue,IF(K97<240,Manning.PCC.NR.lt.240.Const*K97^Manning.PCC.NR.lt.240.NR,IF(K97<500,Manning.PCC.NR.lt.500.Const*K97^Manning.PCC.NR.lt.500.NR,IF(K97<1000,Manning.PCC.NR.lt.1000.Const*K97^Manning.PCC.NR.lt.1000.NR,0.017)))))),"") ->  | L98: =IF(L86<>"",IF(Deterministic.Surf.Type="Dense Graded Asphalt (DGAC)",Manning.DGFC.Const*L97^Manning.DGFC.NR,IF(Deterministic.Surf.Type="Open Graded Friction Course (OGFC)",Manning.OGFC.Const*L97^Manning.OGFC.NR*('Ex 1.0'!L72/100)^Manning.OGFC.Slope,IF(Deterministic.Surf.Type="User-Defined",User.Defined.ManningValue,IF(L97<240,Manning.PCC.NR.lt.240.Const*L97^Manning.PCC.NR.lt.240.NR,IF(L97<500,Manning.PCC.NR.lt.500.Const*L97^Manning.PCC.NR.lt.500.NR,IF(L97<1000,Manning.PCC.NR.lt.1000.Const*L97^Manning.PCC.NR.lt.1000.NR,0.017)))))),"") ->  | M98: =IF(M86<>"",IF(Deterministic.Surf.Type="Dense Graded Asphalt (DGAC)",Manning.DGFC.Const*M97^Manning.DGFC.NR,IF(Deterministic.Surf.Type="Open Graded Friction Course (OGFC)",Manning.OGFC.Const*M97^Manning.OGFC.NR*('Ex 1.0'!M72/100)^Manning.OGFC.Slope,IF(Deterministic.Surf.Type="User-Defined",User.Defined.ManningValue,IF(M97<240,Manning.PCC.NR.lt.240.Const*M97^Manning.PCC.NR.lt.240.NR,IF(M97<500,Manning.PCC.NR.lt.500.Const*M97^Manning.PCC.NR.lt.500.NR,IF(M97<1000,Manning.PCC.NR.lt.1000.Const*M97^Manning.PCC.NR.lt.1000.NR,0.017)))))),"") ->  | N98: =IF(N86<>"",IF(Deterministic.Surf.Type="Dense Graded Asphalt (DGAC)",Manning.DGFC.Const*N97^Manning.DGFC.NR,IF(Deterministic.Surf.Type="Open Graded Friction Course (OGFC)",Manning.OGFC.Const*N97^Manning.OGFC.NR*('Ex 1.0'!N72/100)^Manning.OGFC.Slope,IF(Deterministic.Surf.Type="User-Defined",User.Defined.ManningValue,IF(N97<240,Manning.PCC.NR.lt.240.Const*N97^Manning.PCC.NR.lt.240.NR,IF(N97<500,Manning.PCC.NR.lt.500.Const*N97^Manning.PCC.NR.lt.500.NR,IF(N97<1000,Manning.PCC.NR.lt.1000.Const*N97^Manning.PCC.NR.lt.1000.NR,0.017)))))),"") ->  | O98: =IF(O86<>"",IF(Deterministic.Surf.Type="Dense Graded Asphalt (DGAC)",Manning.DGFC.Const*O97^Manning.DGFC.NR,IF(Deterministic.Surf.Type="Open Graded Friction Course (OGFC)",Manning.OGFC.Const*O97^Manning.OGFC.NR*('Ex 1.0'!O72/100)^Manning.OGFC.Slope,IF(Deterministic.Surf.Type="User-Defined",User.Defined.ManningValue,IF(O97<240,Manning.PCC.NR.lt.240.Const*O97^Manning.PCC.NR.lt.240.NR,IF(O97<500,Manning.PCC.NR.lt.500.Const*O97^Manning.PCC.NR.lt.500.NR,IF(O97<1000,Manning.PCC.NR.lt.1000.Const*O97^Manning.PCC.NR.lt.1000.NR,0.017)))))),"") -> 
B99: 0.25 | C99: Reynolds | D99: =IF(D76<>"",D76*($B$99-$E$35)/12/3600/$E$80,"") -> 15.48801187 | E99: 9.713304872 | F99: 9.713304872 | G99: 19.42660974 | H99: 29.13991462 | I99: 35.87707279
C100: Manning's n | D100: =IF(D86<>"",IF(Deterministic.Surf.Type="Dense Graded Asphalt (DGAC)",Manning.DGFC.Const*D99^Manning.DGFC.NR,IF(Deterministic.Surf.Type="Open Graded Friction Course (OGFC)",Manning.OGFC.Const*D99^Manning.OGFC.NR*('Ex 1.0'!D72/100)^Manning.OGFC.Slope,IF(Deterministic.Surf.Type="User-Defined",User.Defined.ManningValue,IF(D99<240,Manning.PCC.NR.lt.240.Const*D99^Manning.PCC.NR.lt.240.NR,IF(D99<500,Manning.PCC.NR.lt.500.Const*D99^Manning.PCC.NR.lt.500.NR,IF(D99<1000,Manning.PCC.NR.lt.1000.Const*D99^Manning.PCC.NR.lt.1000.NR,0.017)))))),"") -> 0.05109055119 | E100: =IF(E86<>"",IF(Deterministic.Surf.Type="Dense Graded Asphalt (DGAC)",Manning.DGFC.Const*E99^Manning.DGFC.NR,IF(Deterministic.Surf.Type="Open Graded Friction Course (OGFC)",Manning.OGFC.Const*E99^Manning.OGFC.NR*('Ex 1.0'!E72/100)^Manning.OGFC.Slope,IF(Deterministic.Surf.Type="User-Defined",User.Defined.ManningValue,IF(E99<240,Manning.PCC.NR.lt.240.Const*E99^Manning.PCC.NR.lt.240.NR,IF(E99<500,Manning.PCC.NR.lt.500.Const*E99^Manning.PCC.NR.lt.500.NR,IF(E99<1000,Manning.PCC.NR.lt.1000.Const*E99^Manning.PCC.NR.lt.1000.NR,0.017)))))),"") -> 0.05541125336 | F100: =IF(F86<>"",IF(Deterministic.Surf.Type="Dense Graded Asphalt (DGAC)",Manning.DGFC.Const*F99^Manning.DGFC.NR,IF(Deterministic.Surf.Type="Open Graded Friction Course (OGFC)",Manning.OGFC.Const*F99^Manning.OGFC.NR*('Ex 1.0'!F72/100)^Manning.OGFC.Slope,IF(Deterministic.Surf.Type="User-Defined",User.Defined.ManningValue,IF(F99<240,Manning.PCC.NR.lt.240.Const*F99^Manning.PCC.NR.lt.240.NR,IF(F99<500,Manning.PCC.NR.lt.500.Const*F99^Manning.PCC.NR.lt.500.NR,IF(F99<1000,Manning.PCC.NR.lt.1000.Const*F99^Manning.PCC.NR.lt.1000.NR,0.017)))))),"") -> 0.05541125336 | G100: =IF(G86<>"",IF(Deterministic.Surf.Type="Dense Graded Asphalt (DGAC)",Manning.DGFC.Const*G99^Manning.DGFC.NR,IF(Deterministic.Surf.Type="Open Graded Friction Course (OGFC)",Manning.OGFC.Const*G99^Manning.OGFC.NR*('Ex 1.0'!G72/100)^Manning.OGFC.Slope,IF(Deterministic.Surf.Type="User-Defined",User.Defined.ManningValue,IF(G99<240,Manning.PCC.NR.lt.240.Const*G99^Manning.PCC.NR.lt.240.NR,IF(G99<500,Manning.PCC.NR.lt.500.Const*G99^Manning.PCC.NR.lt.500.NR,IF(G99<1000,Manning.PCC.NR.lt.1000.Const*G99^Manning.PCC.NR.lt.1000.NR,0.017)))))),"") -> 0.04911552091 | H100: =IF(H86<>"",IF(Deterministic.Surf.Type="Dense Graded Asphalt (DGAC)",Manning.DGFC.Const*H99^Manning.DGFC.NR,IF(Deterministic.Surf.Type="Open Graded Friction Course (OGFC)",Manning.OGFC.Const*H99^Manning.OGFC.NR*('Ex 1.0'!H72/100)^Manning.OGFC.Slope,IF(Deterministic.Surf.Type="User-Defined",User.Defined.ManningValue,IF(H99<240,Manning.PCC.NR.lt.240.Const*H99^Manning.PCC.NR.lt.240.NR,IF(H99<500,Manning.PCC.NR.lt.500.Const*H99^Manning.PCC.NR.lt.500.NR,IF(H99<1000,Manning.PCC.NR.lt.1000.Const*H99^Manning.PCC.NR.lt.1000.NR,0.017)))))),"") -> 0.04576978532 | I100: =IF(I86<>"",IF(Deterministic.Surf.Type="Dense Graded Asphalt (DGAC)",Manning.DGFC.Const*I99^Manning.DGFC.NR,IF(Deterministic.Surf.Type="Open Graded Friction Course (OGFC)",Manning.OGFC.Const*I99^Manning.OGFC.NR*('Ex 1.0'!I72/100)^Manning.OGFC.Slope,IF(Deterministic.Surf.Type="User-Defined",User.Defined.ManningValue,IF(I99<240,Manning.PCC.NR.lt.240.Const*I99^Manning.PCC.NR.lt.240.NR,IF(I99<500,Manning.PCC.NR.lt.500.Const*I99^Manning.PCC.NR.lt.500.NR,IF(I99<1000,Manning.PCC.NR.lt.1000.Const*I99^Manning.PCC.NR.lt.1000.NR,0.017)))))),"") -> 0.04414298293 | J100: =IF(J86<>"",IF(Deterministic.Surf.Type="Dense Graded Asphalt (DGAC)",Manning.DGFC.Const*J99^Manning.DGFC.NR,IF(Deterministic.Surf.Type="Open Graded Friction Course (OGFC)",Manning.OGFC.Const*J99^Manning.OGFC.NR*('Ex 1.0'!J72/100)^Manning.OGFC.Slope,IF(Deterministic.Surf.Type="User-Defined",User.Defined.ManningValue,IF(J99<240,Manning.PCC.NR.lt.240.Const*J99^Manning.PCC.NR.lt.240.NR,IF(J99<500,Manning.PCC.NR.lt.500.Const*J99^Manning.PCC.NR.lt.500.NR,IF(J99<1000,Manning.PCC.NR.lt.1000.Const*J99^Manning.PCC.NR.lt.1000.NR,0.017)))))),"") ->  | K100: =IF(K86<>"",IF(Deterministic.Surf.Type="Dense Graded Asphalt (DGAC)",Manning.DGFC.Const*K99^Manning.DGFC.NR,IF(Deterministic.Surf.Type="Open Graded Friction Course (OGFC)",Manning.OGFC.Const*K99^Manning.OGFC.NR*('Ex 1.0'!K72/100)^Manning.OGFC.Slope,IF(Deterministic.Surf.Type="User-Defined",User.Defined.ManningValue,IF(K99<240,Manning.PCC.NR.lt.240.Const*K99^Manning.PCC.NR.lt.240.NR,IF(K99<500,Manning.PCC.NR.lt.500.Const*K99^Manning.PCC.NR.lt.500.NR,IF(K99<1000,Manning.PCC.NR.lt.1000.Const*K99^Manning.PCC.NR.lt.1000.NR,0.017)))))),"") ->  | L100: =IF(L86<>"",IF(Deterministic.Surf.Type="Dense Graded Asphalt (DGAC)",Manning.DGFC.Const*L99^Manning.DGFC.NR,IF(Deterministic.Surf.Type="Open Graded Friction Course (OGFC)",Manning.OGFC.Const*L99^Manning.OGFC.NR*('Ex 1.0'!L72/100)^Manning.OGFC.Slope,IF(Deterministic.Surf.Type="User-Defined",User.Defined.ManningValue,IF(L99<240,Manning.PCC.NR.lt.240.Const*L99^Manning.PCC.NR.lt.240.NR,IF(L99<500,Manning.PCC.NR.lt.500.Const*L99^Manning.PCC.NR.lt.500.NR,IF(L99<1000,Manning.PCC.NR.lt.1000.Const*L99^Manning.PCC.NR.lt.1000.NR,0.017)))))),"") ->  | M100: =IF(M86<>"",IF(Deterministic.Surf.Type="Dense Graded Asphalt (DGAC)",Manning.DGFC.Const*M99^Manning.DGFC.NR,IF(Deterministic.Surf.Type="Open Graded Friction Course (OGFC)",Manning.OGFC.Const*M99^Manning.OGFC.NR*('Ex 1.0'!M72/100)^Manning.OGFC.Slope,IF(Deterministic.Surf.Type="User-Defined",User.Defined.ManningValue,IF(M99<240,Manning.PCC.NR.lt.240.Const*M99^Manning.PCC.NR.lt.240.NR,IF(M99<500,Manning.PCC.NR.lt.500.Const*M99^Manning.PCC.NR.lt.500.NR,IF(M99<1000,Manning.PCC.NR.lt.1000.Const*M99^Manning.PCC.NR.lt.1000.NR,0.017)))))),"") ->  | N100: =IF(N86<>"",IF(Deterministic.Surf.Type="Dense Graded Asphalt (DGAC)",Manning.DGFC.Const*N99^Manning.DGFC.NR,IF(Deterministic.Surf.Type="Open Graded Friction Course (OGFC)",Manning.OGFC.Const*N99^Manning.OGFC.NR*('Ex 1.0'!N72/100)^Manning.OGFC.Slope,IF(Deterministic.Surf.Type="User-Defined",User.Defined.ManningValue,IF(N99<240,Manning.PCC.NR.lt.240.Const*N99^Manning.PCC.NR.lt.240.NR,IF(N99<500,Manning.PCC.NR.lt.500.Const*N99^Manning.PCC.NR.lt.500.NR,IF(N99<1000,Manning.PCC.NR.lt.1000.Const*N99^Manning.PCC.NR.lt.1000.NR,0.017)))))),"") ->  | O100: =IF(O86<>"",IF(Deterministic.Surf.Type="Dense Graded Asphalt (DGAC)",Manning.DGFC.Const*O99^Manning.DGFC.NR,IF(Deterministic.Surf.Type="Open Graded Friction Course (OGFC)",Manning.OGFC.Const*O99^Manning.OGFC.NR*('Ex 1.0'!O72/100)^Manning.OGFC.Slope,IF(Deterministic.Surf.Type="User-Defined",User.Defined.ManningValue,IF(O99<240,Manning.PCC.NR.lt.240.Const*O99^Manning.PCC.NR.lt.240.NR,IF(O99<500,Manning.PCC.NR.lt.500.Const*O99^Manning.PCC.NR.lt.500.NR,IF(O99<1000,Manning.PCC.NR.lt.1000.Const*O99^Manning.PCC.NR.lt.1000.NR,0.017)))))),"") -> 
B101: 0.5 | C101: Reynolds | D101: =IF(D76<>"",D76*($B$101-$E$35)/12/3600/$E$80,"") -> 30.97602375 | E101: 19.42660974 | F101: 19.42660974 | G101: 38.85321949 | H101: 58.27982923 | I101: 71.75414557
C102: Manning's n | D102: =IF(D86<>"",IF(Deterministic.Surf.Type="Dense Graded Asphalt (DGAC)",Manning.DGFC.Const*D101^Manning.DGFC.NR,IF(Deterministic.Surf.Type="Open Graded Friction Course (OGFC)",Manning.OGFC.Const*D101^Manning.OGFC.NR*('Ex 1.0'!D72/100)^Manning.OGFC.Slope,IF(Deterministic.Surf.Type="User-Defined",User.Defined.ManningValue,IF(D101<240,Manning.PCC.NR.lt.240.Const*D101^Manning.PCC.NR.lt.240.NR,IF(D101<500,Manning.PCC.NR.lt.500.Const*D101^Manning.PCC.NR.lt.500.NR,IF(D101<1000,Manning.PCC.NR.lt.1000.Const*D101^Manning.PCC.NR.lt.1000.NR,0.017)))))),"") -> 0.04528572958 | E102: =IF(E86<>"",IF(Deterministic.Surf.Type="Dense Graded Asphalt (DGAC)",Manning.DGFC.Const*E101^Manning.DGFC.NR,IF(Deterministic.Surf.Type="Open Graded Friction Course (OGFC)",Manning.OGFC.Const*E101^Manning.OGFC.NR*('Ex 1.0'!E72/100)^Manning.OGFC.Slope,IF(Deterministic.Surf.Type="User-Defined",User.Defined.ManningValue,IF(E101<240,Manning.PCC.NR.lt.240.Const*E101^Manning.PCC.NR.lt.240.NR,IF(E101<500,Manning.PCC.NR.lt.500.Const*E101^Manning.PCC.NR.lt.500.NR,IF(E101<1000,Manning.PCC.NR.lt.1000.Const*E101^Manning.PCC.NR.lt.1000.NR,0.017)))))),"") -> 0.04911552091 | F102: =IF(F86<>"",IF(Deterministic.Surf.Type="Dense Graded Asphalt (DGAC)",Manning.DGFC.Const*F101^Manning.DGFC.NR,IF(Deterministic.Surf.Type="Open Graded Friction Course (OGFC)",Manning.OGFC.Const*F101^Manning.OGFC.NR*('Ex 1.0'!F72/100)^Manning.OGFC.Slope,IF(Deterministic.Surf.Type="User-Defined",User.Defined.ManningValue,IF(F101<240,Manning.PCC.NR.lt.240.Const*F101^Manning.PCC.NR.lt.240.NR,IF(F101<500,Manning.PCC.NR.lt.500.Const*F101^Manning.PCC.NR.lt.500.NR,IF(F101<1000,Manning.PCC.NR.lt.1000.Const*F101^Manning.PCC.NR.lt.1000.NR,0.017)))))),"") -> 0.04911552091 | G102: =IF(G86<>"",IF(Deterministic.Surf.Type="Dense Graded Asphalt (DGAC)",Manning.DGFC.Const*G101^Manning.DGFC.NR,IF(Deterministic.Surf.Type="Open Graded Friction Course (OGFC)",Manning.OGFC.Const*G101^Manning.OGFC.NR*('Ex 1.0'!G72/100)^Manning.OGFC.Slope,IF(Deterministic.Surf.Type="User-Defined",User.Defined.ManningValue,IF(G101<240,Manning.PCC.NR.lt.240.Const*G101^Manning.PCC.NR.lt.240.NR,IF(G101<500,Manning.PCC.NR.lt.500.Const*G101^Manning.PCC.NR.lt.500.NR,IF(G101<1000,Manning.PCC.NR.lt.1000.Const*G101^Manning.PCC.NR.lt.1000.NR,0.017)))))),"") -> 0.04353509888 | H102: =IF(H86<>"",IF(Deterministic.Surf.Type="Dense Graded Asphalt (DGAC)",Manning.DGFC.Const*H101^Manning.DGFC.NR,IF(Deterministic.Surf.Type="Open Graded Friction Course (OGFC)",Manning.OGFC.Const*H101^Manning.OGFC.NR*('Ex 1.0'!H72/100)^Manning.OGFC.Slope,IF(Deterministic.Surf.Type="User-Defined",User.Defined.ManningValue,IF(H101<240,Manning.PCC.NR.lt.240.Const*H101^Manning.PCC.NR.lt.240.NR,IF(H101<500,Manning.PCC.NR.lt.500.Const*H101^Manning.PCC.NR.lt.500.NR,IF(H101<1000,Manning.PCC.NR.lt.1000.Const*H101^Manning.PCC.NR.lt.1000.NR,0.017)))))),"") -> 0.04056950008 | I102: =IF(I86<>"",IF(Deterministic.Surf.Type="Dense Graded Asphalt (DGAC)",Manning.DGFC.Const*I101^Manning.DGFC.NR,IF(Deterministic.Surf.Type="Open Graded Friction Course (OGFC)",Manning.OGFC.Const*I101^Manning.OGFC.NR*('Ex 1.0'!I72/100)^Manning.OGFC.Slope,IF(Deterministic.Surf.Type="User-Defined",User.Defined.ManningValue,IF(I101<240,Manning.PCC.NR.lt.240.Const*I101^Manning.PCC.NR.lt.240.NR,IF(I101<500,Manning.PCC.NR.lt.500.Const*I101^Manning.PCC.NR.lt.500.NR,IF(I101<1000,Manning.PCC.NR.lt.1000.Const*I101^Manning.PCC.NR.lt.1000.NR,0.017)))))),"") -> 0.03912753221 | J102: =IF(J86<>"",IF(Deterministic.Surf.Type="Dense Graded Asphalt (DGAC)",Manning.DGFC.Const*J101^Manning.DGFC.NR,IF(Deterministic.Surf.Type="Open Graded Friction Course (OGFC)",Manning.OGFC.Const*J101^Manning.OGFC.NR*('Ex 1.0'!J72/100)^Manning.OGFC.Slope,IF(Deterministic.Surf.Type="User-Defined",User.Defined.ManningValue,IF(J101<240,Manning.PCC.NR.lt.240.Const*J101^Manning.PCC.NR.lt.240.NR,IF(J101<500,Manning.PCC.NR.lt.500.Const*J101^Manning.PCC.NR.lt.500.NR,IF(J101<1000,Manning.PCC.NR.lt.1000.Const*J101^Manning.PCC.NR.lt.1000.NR,0.017)))))),"") ->  | K102: =IF(K86<>"",IF(Deterministic.Surf.Type="Dense Graded Asphalt (DGAC)",Manning.DGFC.Const*K101^Manning.DGFC.NR,IF(Deterministic.Surf.Type="Open Graded Friction Course (OGFC)",Manning.OGFC.Const*K101^Manning.OGFC.NR*('Ex 1.0'!K72/100)^Manning.OGFC.Slope,IF(Deterministic.Surf.Type="User-Defined",User.Defined.ManningValue,IF(K101<240,Manning.PCC.NR.lt.240.Const*K101^Manning.PCC.NR.lt.240.NR,IF(K101<500,Manning.PCC.NR.lt.500.Const*K101^Manning.PCC.NR.lt.500.NR,IF(K101<1000,Manning.PCC.NR.lt.1000.Const*K101^Manning.PCC.NR.lt.1000.NR,0.017)))))),"") ->  | L102: =IF(L86<>"",IF(Deterministic.Surf.Type="Dense Graded Asphalt (DGAC)",Manning.DGFC.Const*L101^Manning.DGFC.NR,IF(Deterministic.Surf.Type="Open Graded Friction Course (OGFC)",Manning.OGFC.Const*L101^Manning.OGFC.NR*('Ex 1.0'!L72/100)^Manning.OGFC.Slope,IF(Deterministic.Surf.Type="User-Defined",User.Defined.ManningValue,IF(L101<240,Manning.PCC.NR.lt.240.Const*L101^Manning.PCC.NR.lt.240.NR,IF(L101<500,Manning.PCC.NR.lt.500.Const*L101^Manning.PCC.NR.lt.500.NR,IF(L101<1000,Manning.PCC.NR.lt.1000.Const*L101^Manning.PCC.NR.lt.1000.NR,0.017)))))),"") ->  | M102: =IF(M86<>"",IF(Deterministic.Surf.Type="Dense Graded Asphalt (DGAC)",Manning.DGFC.Const*M101^Manning.DGFC.NR,IF(Deterministic.Surf.Type="Open Graded Friction Course (OGFC)",Manning.OGFC.Const*M101^Manning.OGFC.NR*('Ex 1.0'!M72/100)^Manning.OGFC.Slope,IF(Deterministic.Surf.Type="User-Defined",User.Defined.ManningValue,IF(M101<240,Manning.PCC.NR.lt.240.Const*M101^Manning.PCC.NR.lt.240.NR,IF(M101<500,Manning.PCC.NR.lt.500.Const*M101^Manning.PCC.NR.lt.500.NR,IF(M101<1000,Manning.PCC.NR.lt.1000.Const*M101^Manning.PCC.NR.lt.1000.NR,0.017)))))),"") ->  | N102: =IF(N86<>"",IF(Deterministic.Surf.Type="Dense Graded Asphalt (DGAC)",Manning.DGFC.Const*N101^Manning.DGFC.NR,IF(Deterministic.Surf.Type="Open Graded Friction Course (OGFC)",Manning.OGFC.Const*N101^Manning.OGFC.NR*('Ex 1.0'!N72/100)^Manning.OGFC.Slope,IF(Deterministic.Surf.Type="User-Defined",User.Defined.ManningValue,IF(N101<240,Manning.PCC.NR.lt.240.Const*N101^Manning.PCC.NR.lt.240.NR,IF(N101<500,Manning.PCC.NR.lt.500.Const*N101^Manning.PCC.NR.lt.500.NR,IF(N101<1000,Manning.PCC.NR.lt.1000.Const*N101^Manning.PCC.NR.lt.1000.NR,0.017)))))),"") ->  | O102: =IF(O86<>"",IF(Deterministic.Surf.Type="Dense Graded Asphalt (DGAC)",Manning.DGFC.Const*O101^Manning.DGFC.NR,IF(Deterministic.Surf.Type="Open Graded Friction Course (OGFC)",Manning.OGFC.Const*O101^Manning.OGFC.NR*('Ex 1.0'!O72/100)^Manning.OGFC.Slope,IF(Deterministic.Surf.Type="User-Defined",User.Defined.ManningValue,IF(O101<240,Manning.PCC.NR.lt.240.Const*O101^Manning.PCC.NR.lt.240.NR,IF(O101<500,Manning.PCC.NR.lt.500.Const*O101^Manning.PCC.NR.lt.500.NR,IF(O101<1000,Manning.PCC.NR.lt.1000.Const*O101^Manning.PCC.NR.lt.1000.NR,0.017)))))),"") -> 
B103: 1 | C103: Reynolds | D103: =IF(D76<>"",D76*($B$103-$E$35)/12/3600/$E$80,"") -> 61.9520475 | E103: 38.85321949 | F103: 38.85321949 | G103: 77.70643897 | H103: 116.5596585 | I103: 143.5082911
C104: Manning's n | D104: =IF(D86<>"",IF(Deterministic.Surf.Type="Dense Graded Asphalt (DGAC)",Manning.DGFC.Const*D103^Manning.DGFC.NR,IF(Deterministic.Surf.Type="Open Graded Friction Course (OGFC)",Manning.OGFC.Const*D103^Manning.OGFC.NR*('Ex 1.0'!D72/100)^Manning.OGFC.Slope,IF(Deterministic.Surf.Type="User-Defined",User.Defined.ManningValue,IF(D103<240,Manning.PCC.NR.lt.240.Const*D103^Manning.PCC.NR.lt.240.NR,IF(D103<500,Manning.PCC.NR.lt.500.Const*D103^Manning.PCC.NR.lt.500.NR,IF(D103<1000,Manning.PCC.NR.lt.1000.Const*D103^Manning.PCC.NR.lt.1000.NR,0.017)))))),"") -> 0.04014044193 | E104: =IF(E86<>"",IF(Deterministic.Surf.Type="Dense Graded Asphalt (DGAC)",Manning.DGFC.Const*E103^Manning.DGFC.NR,IF(Deterministic.Surf.Type="Open Graded Friction Course (OGFC)",Manning.OGFC.Const*E103^Manning.OGFC.NR*('Ex 1.0'!E72/100)^Manning.OGFC.Slope,IF(Deterministic.Surf.Type="User-Defined",User.Defined.ManningValue,IF(E103<240,Manning.PCC.NR.lt.240.Const*E103^Manning.PCC.NR.lt.240.NR,IF(E103<500,Manning.PCC.NR.lt.500.Const*E103^Manning.PCC.NR.lt.500.NR,IF(E103<1000,Manning.PCC.NR.lt.1000.Const*E103^Manning.PCC.NR.lt.1000.NR,0.017)))))),"") -> 0.04353509888 | F104: =IF(F86<>"",IF(Deterministic.Surf.Type="Dense Graded Asphalt (DGAC)",Manning.DGFC.Const*F103^Manning.DGFC.NR,IF(Deterministic.Surf.Type="Open Graded Friction Course (OGFC)",Manning.OGFC.Const*F103^Manning.OGFC.NR*('Ex 1.0'!F72/100)^Manning.OGFC.Slope,IF(Deterministic.Surf.Type="User-Defined",User.Defined.ManningValue,IF(F103<240,Manning.PCC.NR.lt.240.Const*F103^Manning.PCC.NR.lt.240.NR,IF(F103<500,Manning.PCC.NR.lt.500.Const*F103^Manning.PCC.NR.lt.500.NR,IF(F103<1000,Manning.PCC.NR.lt.1000.Const*F103^Manning.PCC.NR.lt.1000.NR,0.017)))))),"") -> 0.04353509888 | G104: =IF(G86<>"",IF(Deterministic.Surf.Type="Dense Graded Asphalt (DGAC)",Manning.DGFC.Const*G103^Manning.DGFC.NR,IF(Deterministic.Surf.Type="Open Graded Friction Course (OGFC)",Manning.OGFC.Const*G103^Manning.OGFC.NR*('Ex 1.0'!G72/100)^Manning.OGFC.Slope,IF(Deterministic.Surf.Type="User-Defined",User.Defined.ManningValue,IF(G103<240,Manning.PCC.NR.lt.240.Const*G103^Manning.PCC.NR.lt.240.NR,IF(G103<500,Manning.PCC.NR.lt.500.Const*G103^Manning.PCC.NR.lt.500.NR,IF(G103<1000,Manning.PCC.NR.lt.1000.Const*G103^Manning.PCC.NR.lt.1000.NR,0.017)))))),"") -> 0.03858871492 | H104: =IF(H86<>"",IF(Deterministic.Surf.Type="Dense Graded Asphalt (DGAC)",Manning.DGFC.Const*H103^Manning.DGFC.NR,IF(Deterministic.Surf.Type="Open Graded Friction Course (OGFC)",Manning.OGFC.Const*H103^Manning.OGFC.NR*('Ex 1.0'!H72/100)^Manning.OGFC.Slope,IF(Deterministic.Surf.Type="User-Defined",User.Defined.ManningValue,IF(H103<240,Manning.PCC.NR.lt.240.Const*H103^Manning.PCC.NR.lt.240.NR,IF(H103<500,Manning.PCC.NR.lt.500.Const*H103^Manning.PCC.NR.lt.500.NR,IF(H103<1000,Manning.PCC.NR.lt.1000.Const*H103^Manning.PCC.NR.lt.1000.NR,0.017)))))),"") -> 0.03596006242 | I104: =IF(I86<>"",IF(Deterministic.Surf.Type="Dense Graded Asphalt (DGAC)",Manning.DGFC.Const*I103^Manning.DGFC.NR,IF(Deterministic.Surf.Type="Open Graded Friction Course (OGFC)",Manning.OGFC.Const*I103^Manning.OGFC.NR*('Ex 1.0'!I72/100)^Manning.OGFC.Slope,IF(Deterministic.Surf.Type="User-Defined",User.Defined.ManningValue,IF(I103<240,Manning.PCC.NR.lt.240.Const*I103^Manning.PCC.NR.lt.240.NR,IF(I103<500,Manning.PCC.NR.lt.500.Const*I103^Manning.PCC.NR.lt.500.NR,IF(I103<1000,Manning.PCC.NR.lt.1000.Const*I103^Manning.PCC.NR.lt.1000.NR,0.017)))))),"") -> 0.03468192849 | J104: =IF(J86<>"",IF(Deterministic.Surf.Type="Dense Graded Asphalt (DGAC)",Manning.DGFC.Const*J103^Manning.DGFC.NR,IF(Deterministic.Surf.Type="Open Graded Friction Course (OGFC)",Manning.OGFC.Const*J103^Manning.OGFC.NR*('Ex 1.0'!J72/100)^Manning.OGFC.Slope,IF(Deterministic.Surf.Type="User-Defined",User.Defined.ManningValue,IF(J103<240,Manning.PCC.NR.lt.240.Const*J103^Manning.PCC.NR.lt.240.NR,IF(J103<500,Manning.PCC.NR.lt.500.Const*J103^Manning.PCC.NR.lt.500.NR,IF(J103<1000,Manning.PCC.NR.lt.1000.Const*J103^Manning.PCC.NR.lt.1000.NR,0.017)))))),"") ->  | K104: =IF(K86<>"",IF(Deterministic.Surf.Type="Dense Graded Asphalt (DGAC)",Manning.DGFC.Const*K103^Manning.DGFC.NR,IF(Deterministic.Surf.Type="Open Graded Friction Course (OGFC)",Manning.OGFC.Const*K103^Manning.OGFC.NR*('Ex 1.0'!K72/100)^Manning.OGFC.Slope,IF(Deterministic.Surf.Type="User-Defined",User.Defined.ManningValue,IF(K103<240,Manning.PCC.NR.lt.240.Const*K103^Manning.PCC.NR.lt.240.NR,IF(K103<500,Manning.PCC.NR.lt.500.Const*K103^Manning.PCC.NR.lt.500.NR,IF(K103<1000,Manning.PCC.NR.lt.1000.Const*K103^Manning.PCC.NR.lt.1000.NR,0.017)))))),"") ->  | L104: =IF(L86<>"",IF(Deterministic.Surf.Type="Dense Graded Asphalt (DGAC)",Manning.DGFC.Const*L103^Manning.DGFC.NR,IF(Deterministic.Surf.Type="Open Graded Friction Course (OGFC)",Manning.OGFC.Const*L103^Manning.OGFC.NR*('Ex 1.0'!L72/100)^Manning.OGFC.Slope,IF(Deterministic.Surf.Type="User-Defined",User.Defined.ManningValue,IF(L103<240,Manning.PCC.NR.lt.240.Const*L103^Manning.PCC.NR.lt.240.NR,IF(L103<500,Manning.PCC.NR.lt.500.Const*L103^Manning.PCC.NR.lt.500.NR,IF(L103<1000,Manning.PCC.NR.lt.1000.Const*L103^Manning.PCC.NR.lt.1000.NR,0.017)))))),"") ->  | M104: =IF(M86<>"",IF(Deterministic.Surf.Type="Dense Graded Asphalt (DGAC)",Manning.DGFC.Const*M103^Manning.DGFC.NR,IF(Deterministic.Surf.Type="Open Graded Friction Course (OGFC)",Manning.OGFC.Const*M103^Manning.OGFC.NR*('Ex 1.0'!M72/100)^Manning.OGFC.Slope,IF(Deterministic.Surf.Type="User-Defined",User.Defined.ManningValue,IF(M103<240,Manning.PCC.NR.lt.240.Const*M103^Manning.PCC.NR.lt.240.NR,IF(M103<500,Manning.PCC.NR.lt.500.Const*M103^Manning.PCC.NR.lt.500.NR,IF(M103<1000,Manning.PCC.NR.lt.1000.Const*M103^Manning.PCC.NR.lt.1000.NR,0.017)))))),"") ->  | N104: =IF(N86<>"",IF(Deterministic.Surf.Type="Dense Graded Asphalt (DGAC)",Manning.DGFC.Const*N103^Manning.DGFC.NR,IF(Deterministic.Surf.Type="Open Graded Friction Course (OGFC)",Manning.OGFC.Const*N103^Manning.OGFC.NR*('Ex 1.0'!N72/100)^Manning.OGFC.Slope,IF(Deterministic.Surf.Type="User-Defined",User.Defined.ManningValue,IF(N103<240,Manning.PCC.NR.lt.240.Const*N103^Manning.PCC.NR.lt.240.NR,IF(N103<500,Manning.PCC.NR.lt.500.Const*N103^Manning.PCC.NR.lt.500.NR,IF(N103<1000,Manning.PCC.NR.lt.1000.Const*N103^Manning.PCC.NR.lt.1000.NR,0.017)))))),"") ->  | O104: =IF(O86<>"",IF(Deterministic.Surf.Type="Dense Graded Asphalt (DGAC)",Manning.DGFC.Const*O103^Manning.DGFC.NR,IF(Deterministic.Surf.Type="Open Graded Friction Course (OGFC)",Manning.OGFC.Const*O103^Manning.OGFC.NR*('Ex 1.0'!O72/100)^Manning.OGFC.Slope,IF(Deterministic.Surf.Type="User-Defined",User.Defined.ManningValue,IF(O103<240,Manning.PCC.NR.lt.240.Const*O103^Manning.PCC.NR.lt.240.NR,IF(O103<500,Manning.PCC.NR.lt.500.Const*O103^Manning.PCC.NR.lt.500.NR,IF(O103<1000,Manning.PCC.NR.lt.1000.Const*O103^Manning.PCC.NR.lt.1000.NR,0.017)))))),"") -> 
B105: 2 | C105: Reynolds | D105: =IF(D76<>"",D76*($B$105-$E$35)/12/3600/$E$80,"") -> 123.904095 | E105: 77.70643897 | F105: 77.70643897 | G105: 155.4128779 | H105: 233.1193169 | I105: 287.0165823
C106: Manning's n | D106: =IF(D86<>"",IF(Deterministic.Surf.Type="Dense Graded Asphalt (DGAC)",Manning.DGFC.Const*D105^Manning.DGFC.NR,IF(Deterministic.Surf.Type="Open Graded Friction Course (OGFC)",Manning.OGFC.Const*D105^Manning.OGFC.NR*('Ex 1.0'!D72/100)^Manning.OGFC.Slope,IF(Deterministic.Surf.Type="User-Defined",User.Defined.ManningValue,IF(D105<240,Manning.PCC.NR.lt.240.Const*D105^Manning.PCC.NR.lt.240.NR,IF(D105<500,Manning.PCC.NR.lt.500.Const*D105^Manning.PCC.NR.lt.500.NR,IF(D105<1000,Manning.PCC.NR.lt.1000.Const*D105^Manning.PCC.NR.lt.1000.NR,0.017)))))),"") -> 0.03557975313 | E106: =IF(E86<>"",IF(Deterministic.Surf.Type="Dense Graded Asphalt (DGAC)",Manning.DGFC.Const*E105^Manning.DGFC.NR,IF(Deterministic.Surf.Type="Open Graded Friction Course (OGFC)",Manning.OGFC.Const*E105^Manning.OGFC.NR*('Ex 1.0'!E72/100)^Manning.OGFC.Slope,IF(Deterministic.Surf.Type="User-Defined",User.Defined.ManningValue,IF(E105<240,Manning.PCC.NR.lt.240.Const*E105^Manning.PCC.NR.lt.240.NR,IF(E105<500,Manning.PCC.NR.lt.500.Const*E105^Manning.PCC.NR.lt.500.NR,IF(E105<1000,Manning.PCC.NR.lt.1000.Const*E105^Manning.PCC.NR.lt.1000.NR,0.017)))))),"") -> 0.03858871492 | F106: =IF(F86<>"",IF(Deterministic.Surf.Type="Dense Graded Asphalt (DGAC)",Manning.DGFC.Const*F105^Manning.DGFC.NR,IF(Deterministic.Surf.Type="Open Graded Friction Course (OGFC)",Manning.OGFC.Const*F105^Manning.OGFC.NR*('Ex 1.0'!F72/100)^Manning.OGFC.Slope,IF(Deterministic.Surf.Type="User-Defined",User.Defined.ManningValue,IF(F105<240,Manning.PCC.NR.lt.240.Const*F105^Manning.PCC.NR.lt.240.NR,IF(F105<500,Manning.PCC.NR.lt.500.Const*F105^Manning.PCC.NR.lt.500.NR,IF(F105<1000,Manning.PCC.NR.lt.1000.Const*F105^Manning.PCC.NR.lt.1000.NR,0.017)))))),"") -> 0.03858871492 | G106: =IF(G86<>"",IF(Deterministic.Surf.Type="Dense Graded Asphalt (DGAC)",Manning.DGFC.Const*G105^Manning.DGFC.NR,IF(Deterministic.Surf.Type="Open Graded Friction Course (OGFC)",Manning.OGFC.Const*G105^Manning.OGFC.NR*('Ex 1.0'!G72/100)^Manning.OGFC.Slope,IF(Deterministic.Surf.Type="User-Defined",User.Defined.ManningValue,IF(G105<240,Manning.PCC.NR.lt.240.Const*G105^Manning.PCC.NR.lt.240.NR,IF(G105<500,Manning.PCC.NR.lt.500.Const*G105^Manning.PCC.NR.lt.500.NR,IF(G105<1000,Manning.PCC.NR.lt.1000.Const*G105^Manning.PCC.NR.lt.1000.NR,0.017)))))),"") -> 0.0342043307 | H106: =IF(H86<>"",IF(Deterministic.Surf.Type="Dense Graded Asphalt (DGAC)",Manning.DGFC.Const*H105^Manning.DGFC.NR,IF(Deterministic.Surf.Type="Open Graded Friction Course (OGFC)",Manning.OGFC.Const*H105^Manning.OGFC.NR*('Ex 1.0'!H72/100)^Manning.OGFC.Slope,IF(Deterministic.Surf.Type="User-Defined",User.Defined.ManningValue,IF(H105<240,Manning.PCC.NR.lt.240.Const*H105^Manning.PCC.NR.lt.240.NR,IF(H105<500,Manning.PCC.NR.lt.500.Const*H105^Manning.PCC.NR.lt.500.NR,IF(H105<1000,Manning.PCC.NR.lt.1000.Const*H105^Manning.PCC.NR.lt.1000.NR,0.017)))))),"") -> 0.03187434123 | I106: =IF(I86<>"",IF(Deterministic.Surf.Type="Dense Graded Asphalt (DGAC)",Manning.DGFC.Const*I105^Manning.DGFC.NR,IF(Deterministic.Surf.Type="Open Graded Friction Course (OGFC)",Manning.OGFC.Const*I105^Manning.OGFC.NR*('Ex 1.0'!I72/100)^Manning.OGFC.Slope,IF(Deterministic.Surf.Type="User-Defined",User.Defined.ManningValue,IF(I105<240,Manning.PCC.NR.lt.240.Const*I105^Manning.PCC.NR.lt.240.NR,IF(I105<500,Manning.PCC.NR.lt.500.Const*I105^Manning.PCC.NR.lt.500.NR,IF(I105<1000,Manning.PCC.NR.lt.1000.Const*I105^Manning.PCC.NR.lt.1000.NR,0.017)))))),"") -> 0.03074142671 | J106: =IF(J86<>"",IF(Deterministic.Surf.Type="Dense Graded Asphalt (DGAC)",Manning.DGFC.Const*J105^Manning.DGFC.NR,IF(Deterministic.Surf.Type="Open Graded Friction Course (OGFC)",Manning.OGFC.Const*J105^Manning.OGFC.NR*('Ex 1.0'!J72/100)^Manning.OGFC.Slope,IF(Deterministic.Surf.Type="User-Defined",User.Defined.ManningValue,IF(J105<240,Manning.PCC.NR.lt.240.Const*J105^Manning.PCC.NR.lt.240.NR,IF(J105<500,Manning.PCC.NR.lt.500.Const*J105^Manning.PCC.NR.lt.500.NR,IF(J105<1000,Manning.PCC.NR.lt.1000.Const*J105^Manning.PCC.NR.lt.1000.NR,0.017)))))),"") ->  | K106: =IF(K86<>"",IF(Deterministic.Surf.Type="Dense Graded Asphalt (DGAC)",Manning.DGFC.Const*K105^Manning.DGFC.NR,IF(Deterministic.Surf.Type="Open Graded Friction Course (OGFC)",Manning.OGFC.Const*K105^Manning.OGFC.NR*('Ex 1.0'!K72/100)^Manning.OGFC.Slope,IF(Deterministic.Surf.Type="User-Defined",User.Defined.ManningValue,IF(K105<240,Manning.PCC.NR.lt.240.Const*K105^Manning.PCC.NR.lt.240.NR,IF(K105<500,Manning.PCC.NR.lt.500.Const*K105^Manning.PCC.NR.lt.500.NR,IF(K105<1000,Manning.PCC.NR.lt.1000.Const*K105^Manning.PCC.NR.lt.1000.NR,0.017)))))),"") ->  | L106: =IF(L86<>"",IF(Deterministic.Surf.Type="Dense Graded Asphalt (DGAC)",Manning.DGFC.Const*L105^Manning.DGFC.NR,IF(Deterministic.Surf.Type="Open Graded Friction Course (OGFC)",Manning.OGFC.Const*L105^Manning.OGFC.NR*('Ex 1.0'!L72/100)^Manning.OGFC.Slope,IF(Deterministic.Surf.Type="User-Defined",User.Defined.ManningValue,IF(L105<240,Manning.PCC.NR.lt.240.Const*L105^Manning.PCC.NR.lt.240.NR,IF(L105<500,Manning.PCC.NR.lt.500.Const*L105^Manning.PCC.NR.lt.500.NR,IF(L105<1000,Manning.PCC.NR.lt.1000.Const*L105^Manning.PCC.NR.lt.1000.NR,0.017)))))),"") ->  | M106: =IF(M86<>"",IF(Deterministic.Surf.Type="Dense Graded Asphalt (DGAC)",Manning.DGFC.Const*M105^Manning.DGFC.NR,IF(Deterministic.Surf.Type="Open Graded Friction Course (OGFC)",Manning.OGFC.Const*M105^Manning.OGFC.NR*('Ex 1.0'!M72/100)^Manning.OGFC.Slope,IF(Deterministic.Surf.Type="User-Defined",User.Defined.ManningValue,IF(M105<240,Manning.PCC.NR.lt.240.Const*M105^Manning.PCC.NR.lt.240.NR,IF(M105<500,Manning.PCC.NR.lt.500.Const*M105^Manning.PCC.NR.lt.500.NR,IF(M105<1000,Manning.PCC.NR.lt.1000.Const*M105^Manning.PCC.NR.lt.1000.NR,0.017)))))),"") ->  | N106: =IF(N86<>"",IF(Deterministic.Surf.Type="Dense Graded Asphalt (DGAC)",Manning.DGFC.Const*N105^Manning.DGFC.NR,IF(Deterministic.Surf.Type="Open Graded Friction Course (OGFC)",Manning.OGFC.Const*N105^Manning.OGFC.NR*('Ex 1.0'!N72/100)^Manning.OGFC.Slope,IF(Deterministic.Surf.Type="User-Defined",User.Defined.ManningValue,IF(N105<240,Manning.PCC.NR.lt.240.Const*N105^Manning.PCC.NR.lt.240.NR,IF(N105<500,Manning.PCC.NR.lt.500.Const*N105^Manning.PCC.NR.lt.500.NR,IF(N105<1000,Manning.PCC.NR.lt.1000.Const*N105^Manning.PCC.NR.lt.1000.NR,0.017)))))),"") ->  | O106: =IF(O86<>"",IF(Deterministic.Surf.Type="Dense Graded Asphalt (DGAC)",Manning.DGFC.Const*O105^Manning.DGFC.NR,IF(Deterministic.Surf.Type="Open Graded Friction Course (OGFC)",Manning.OGFC.Const*O105^Manning.OGFC.NR*('Ex 1.0'!O72/100)^Manning.OGFC.Slope,IF(Deterministic.Surf.Type="User-Defined",User.Defined.ManningValue,IF(O105<240,Manning.PCC.NR.lt.240.Const*O105^Manning.PCC.NR.lt.240.NR,IF(O105<500,Manning.PCC.NR.lt.500.Const*O105^Manning.PCC.NR.lt.500.NR,IF(O105<1000,Manning.PCC.NR.lt.1000.Const*O105^Manning.PCC.NR.lt.1000.NR,0.017)))))),"") -> 
B107: 3 | C107: Reynolds | D107: =IF(D76<>"",D76*($B$107-$E$35)/12/3600/$E$80,"") -> 185.8561425 | E107: 116.5596585 | F107: 116.5596585 | G107: 233.1193169 | H107: 349.6789754 | I107: 430.5248734
C108: Manning's n | D108: =IF(D86<>"",IF(Deterministic.Surf.Type="Dense Graded Asphalt (DGAC)",Manning.DGFC.Const*D107^Manning.DGFC.NR,IF(Deterministic.Surf.Type="Open Graded Friction Course (OGFC)",Manning.OGFC.Const*D107^Manning.OGFC.NR*('Ex 1.0'!D72/100)^Manning.OGFC.Slope,IF(Deterministic.Surf.Type="User-Defined",User.Defined.ManningValue,IF(D107<240,Manning.PCC.NR.lt.240.Const*D107^Manning.PCC.NR.lt.240.NR,IF(D107<500,Manning.PCC.NR.lt.500.Const*D107^Manning.PCC.NR.lt.500.NR,IF(D107<1000,Manning.PCC.NR.lt.1000.Const*D107^Manning.PCC.NR.lt.1000.NR,0.017)))))),"") -> 0.03315607026 | E108: =IF(E86<>"",IF(Deterministic.Surf.Type="Dense Graded Asphalt (DGAC)",Manning.DGFC.Const*E107^Manning.DGFC.NR,IF(Deterministic.Surf.Type="Open Graded Friction Course (OGFC)",Manning.OGFC.Const*E107^Manning.OGFC.NR*('Ex 1.0'!E72/100)^Manning.OGFC.Slope,IF(Deterministic.Surf.Type="User-Defined",User.Defined.ManningValue,IF(E107<240,Manning.PCC.NR.lt.240.Const*E107^Manning.PCC.NR.lt.240.NR,IF(E107<500,Manning.PCC.NR.lt.500.Const*E107^Manning.PCC.NR.lt.500.NR,IF(E107<1000,Manning.PCC.NR.lt.1000.Const*E107^Manning.PCC.NR.lt.1000.NR,0.017)))))),"") -> 0.03596006242 | F108: =IF(F86<>"",IF(Deterministic.Surf.Type="Dense Graded Asphalt (DGAC)",Manning.DGFC.Const*F107^Manning.DGFC.NR,IF(Deterministic.Surf.Type="Open Graded Friction Course (OGFC)",Manning.OGFC.Const*F107^Manning.OGFC.NR*('Ex 1.0'!F72/100)^Manning.OGFC.Slope,IF(Deterministic.Surf.Type="User-Defined",User.Defined.ManningValue,IF(F107<240,Manning.PCC.NR.lt.240.Const*F107^Manning.PCC.NR.lt.240.NR,IF(F107<500,Manning.PCC.NR.lt.500.Const*F107^Manning.PCC.NR.lt.500.NR,IF(F107<1000,Manning.PCC.NR.lt.1000.Const*F107^Manning.PCC.NR.lt.1000.NR,0.017)))))),"") -> 0.03596006242 | G108: =IF(G86<>"",IF(Deterministic.Surf.Type="Dense Graded Asphalt (DGAC)",Manning.DGFC.Const*G107^Manning.DGFC.NR,IF(Deterministic.Surf.Type="Open Graded Friction Course (OGFC)",Manning.OGFC.Const*G107^Manning.OGFC.NR*('Ex 1.0'!G72/100)^Manning.OGFC.Slope,IF(Deterministic.Surf.Type="User-Defined",User.Defined.ManningValue,IF(G107<240,Manning.PCC.NR.lt.240.Const*G107^Manning.PCC.NR.lt.240.NR,IF(G107<500,Manning.PCC.NR.lt.500.Const*G107^Manning.PCC.NR.lt.500.NR,IF(G107<1000,Manning.PCC.NR.lt.1000.Const*G107^Manning.PCC.NR.lt.1000.NR,0.017)))))),"") -> 0.03187434123 | H108: =IF(H86<>"",IF(Deterministic.Surf.Type="Dense Graded Asphalt (DGAC)",Manning.DGFC.Const*H107^Manning.DGFC.NR,IF(Deterministic.Surf.Type="Open Graded Friction Course (OGFC)",Manning.OGFC.Const*H107^Manning.OGFC.NR*('Ex 1.0'!H72/100)^Manning.OGFC.Slope,IF(Deterministic.Surf.Type="User-Defined",User.Defined.ManningValue,IF(H107<240,Manning.PCC.NR.lt.240.Const*H107^Manning.PCC.NR.lt.240.NR,IF(H107<500,Manning.PCC.NR.lt.500.Const*H107^Manning.PCC.NR.lt.500.NR,IF(H107<1000,Manning.PCC.NR.lt.1000.Const*H107^Manning.PCC.NR.lt.1000.NR,0.017)))))),"") -> 0.02970306999 | I108: =IF(I86<>"",IF(Deterministic.Surf.Type="Dense Graded Asphalt (DGAC)",Manning.DGFC.Const*I107^Manning.DGFC.NR,IF(Deterministic.Surf.Type="Open Graded Friction Course (OGFC)",Manning.OGFC.Const*I107^Manning.OGFC.NR*('Ex 1.0'!I72/100)^Manning.OGFC.Slope,IF(Deterministic.Surf.Type="User-Defined",User.Defined.ManningValue,IF(I107<240,Manning.PCC.NR.lt.240.Const*I107^Manning.PCC.NR.lt.240.NR,IF(I107<500,Manning.PCC.NR.lt.500.Const*I107^Manning.PCC.NR.lt.500.NR,IF(I107<1000,Manning.PCC.NR.lt.1000.Const*I107^Manning.PCC.NR.lt.1000.NR,0.017)))))),"") -> 0.02864732929 | J108: =IF(J86<>"",IF(Deterministic.Surf.Type="Dense Graded Asphalt (DGAC)",Manning.DGFC.Const*J107^Manning.DGFC.NR,IF(Deterministic.Surf.Type="Open Graded Friction Course (OGFC)",Manning.OGFC.Const*J107^Manning.OGFC.NR*('Ex 1.0'!J72/100)^Manning.OGFC.Slope,IF(Deterministic.Surf.Type="User-Defined",User.Defined.ManningValue,IF(J107<240,Manning.PCC.NR.lt.240.Const*J107^Manning.PCC.NR.lt.240.NR,IF(J107<500,Manning.PCC.NR.lt.500.Const*J107^Manning.PCC.NR.lt.500.NR,IF(J107<1000,Manning.PCC.NR.lt.1000.Const*J107^Manning.PCC.NR.lt.1000.NR,0.017)))))),"") ->  | K108: =IF(K86<>"",IF(Deterministic.Surf.Type="Dense Graded Asphalt (DGAC)",Manning.DGFC.Const*K107^Manning.DGFC.NR,IF(Deterministic.Surf.Type="Open Graded Friction Course (OGFC)",Manning.OGFC.Const*K107^Manning.OGFC.NR*('Ex 1.0'!K72/100)^Manning.OGFC.Slope,IF(Deterministic.Surf.Type="User-Defined",User.Defined.ManningValue,IF(K107<240,Manning.PCC.NR.lt.240.Const*K107^Manning.PCC.NR.lt.240.NR,IF(K107<500,Manning.PCC.NR.lt.500.Const*K107^Manning.PCC.NR.lt.500.NR,IF(K107<1000,Manning.PCC.NR.lt.1000.Const*K107^Manning.PCC.NR.lt.1000.NR,0.017)))))),"") ->  | L108: =IF(L86<>"",IF(Deterministic.Surf.Type="Dense Graded Asphalt (DGAC)",Manning.DGFC.Const*L107^Manning.DGFC.NR,IF(Deterministic.Surf.Type="Open Graded Friction Course (OGFC)",Manning.OGFC.Const*L107^Manning.OGFC.NR*('Ex 1.0'!L72/100)^Manning.OGFC.Slope,IF(Deterministic.Surf.Type="User-Defined",User.Defined.ManningValue,IF(L107<240,Manning.PCC.NR.lt.240.Const*L107^Manning.PCC.NR.lt.240.NR,IF(L107<500,Manning.PCC.NR.lt.500.Const*L107^Manning.PCC.NR.lt.500.NR,IF(L107<1000,Manning.PCC.NR.lt.1000.Const*L107^Manning.PCC.NR.lt.1000.NR,0.017)))))),"") ->  | M108: =IF(M86<>"",IF(Deterministic.Surf.Type="Dense Graded Asphalt (DGAC)",Manning.DGFC.Const*M107^Manning.DGFC.NR,IF(Deterministic.Surf.Type="Open Graded Friction Course (OGFC)",Manning.OGFC.Const*M107^Manning.OGFC.NR*('Ex 1.0'!M72/100)^Manning.OGFC.Slope,IF(Deterministic.Surf.Type="User-Defined",User.Defined.ManningValue,IF(M107<240,Manning.PCC.NR.lt.240.Const*M107^Manning.PCC.NR.lt.240.NR,IF(M107<500,Manning.PCC.NR.lt.500.Const*M107^Manning.PCC.NR.lt.500.NR,IF(M107<1000,Manning.PCC.NR.lt.1000.Const*M107^Manning.PCC.NR.lt.1000.NR,0.017)))))),"") ->  | N108: =IF(N86<>"",IF(Deterministic.Surf.Type="Dense Graded Asphalt (DGAC)",Manning.DGFC.Const*N107^Manning.DGFC.NR,IF(Deterministic.Surf.Type="Open Graded Friction Course (OGFC)",Manning.OGFC.Const*N107^Manning.OGFC.NR*('Ex 1.0'!N72/100)^Manning.OGFC.Slope,IF(Deterministic.Surf.Type="User-Defined",User.Defined.ManningValue,IF(N107<240,Manning.PCC.NR.lt.240.Const*N107^Manning.PCC.NR.lt.240.NR,IF(N107<500,Manning.PCC.NR.lt.500.Const*N107^Manning.PCC.NR.lt.500.NR,IF(N107<1000,Manning.PCC.NR.lt.1000.Const*N107^Manning.PCC.NR.lt.1000.NR,0.017)))))),"") ->  | O108: =IF(O86<>"",IF(Deterministic.Surf.Type="Dense Graded Asphalt (DGAC)",Manning.DGFC.Const*O107^Manning.DGFC.NR,IF(Deterministic.Surf.Type="Open Graded Friction Course (OGFC)",Manning.OGFC.Const*O107^Manning.OGFC.NR*('Ex 1.0'!O72/100)^Manning.OGFC.Slope,IF(Deterministic.Surf.Type="User-Defined",User.Defined.ManningValue,IF(O107<240,Manning.PCC.NR.lt.240.Const*O107^Manning.PCC.NR.lt.240.NR,IF(O107<500,Manning.PCC.NR.lt.500.Const*O107^Manning.PCC.NR.lt.500.NR,IF(O107<1000,Manning.PCC.NR.lt.1000.Const*O107^Manning.PCC.NR.lt.1000.NR,0.017)))))),"") -> 
B109: 4 | C109: Reynolds | D109: =IF(D76<>"",D76*($B$109-$E$35)/12/3600/$E$80,"") -> 247.80819 | E109: 155.4128779 | F109: 155.4128779 | G109: 310.8257559 | H109: 466.2386338 | I109: 574.0331646
C110: Manning's n | D110: =IF(D86<>"",IF(Deterministic.Surf.Type="Dense Graded Asphalt (DGAC)",Manning.DGFC.Const*D109^Manning.DGFC.NR,IF(Deterministic.Surf.Type="Open Graded Friction Course (OGFC)",Manning.OGFC.Const*D109^Manning.OGFC.NR*('Ex 1.0'!D72/100)^Manning.OGFC.Slope,IF(Deterministic.Surf.Type="User-Defined",User.Defined.ManningValue,IF(D109<240,Manning.PCC.NR.lt.240.Const*D109^Manning.PCC.NR.lt.240.NR,IF(D109<500,Manning.PCC.NR.lt.500.Const*D109^Manning.PCC.NR.lt.500.NR,IF(D109<1000,Manning.PCC.NR.lt.1000.Const*D109^Manning.PCC.NR.lt.1000.NR,0.017)))))),"") -> 0.03153724203 | E110: =IF(E86<>"",IF(Deterministic.Surf.Type="Dense Graded Asphalt (DGAC)",Manning.DGFC.Const*E109^Manning.DGFC.NR,IF(Deterministic.Surf.Type="Open Graded Friction Course (OGFC)",Manning.OGFC.Const*E109^Manning.OGFC.NR*('Ex 1.0'!E72/100)^Manning.OGFC.Slope,IF(Deterministic.Surf.Type="User-Defined",User.Defined.ManningValue,IF(E109<240,Manning.PCC.NR.lt.240.Const*E109^Manning.PCC.NR.lt.240.NR,IF(E109<500,Manning.PCC.NR.lt.500.Const*E109^Manning.PCC.NR.lt.500.NR,IF(E109<1000,Manning.PCC.NR.lt.1000.Const*E109^Manning.PCC.NR.lt.1000.NR,0.017)))))),"") -> 0.0342043307 | F110: =IF(F86<>"",IF(Deterministic.Surf.Type="Dense Graded Asphalt (DGAC)",Manning.DGFC.Const*F109^Manning.DGFC.NR,IF(Deterministic.Surf.Type="Open Graded Friction Course (OGFC)",Manning.OGFC.Const*F109^Manning.OGFC.NR*('Ex 1.0'!F72/100)^Manning.OGFC.Slope,IF(Deterministic.Surf.Type="User-Defined",User.Defined.ManningValue,IF(F109<240,Manning.PCC.NR.lt.240.Const*F109^Manning.PCC.NR.lt.240.NR,IF(F109<500,Manning.PCC.NR.lt.500.Const*F109^Manning.PCC.NR.lt.500.NR,IF(F109<1000,Manning.PCC.NR.lt.1000.Const*F109^Manning.PCC.NR.lt.1000.NR,0.017)))))),"") -> 0.0342043307 | G110: =IF(G86<>"",IF(Deterministic.Surf.Type="Dense Graded Asphalt (DGAC)",Manning.DGFC.Const*G109^Manning.DGFC.NR,IF(Deterministic.Surf.Type="Open Graded Friction Course (OGFC)",Manning.OGFC.Const*G109^Manning.OGFC.NR*('Ex 1.0'!G72/100)^Manning.OGFC.Slope,IF(Deterministic.Surf.Type="User-Defined",User.Defined.ManningValue,IF(G109<240,Manning.PCC.NR.lt.240.Const*G109^Manning.PCC.NR.lt.240.NR,IF(G109<500,Manning.PCC.NR.lt.500.Const*G109^Manning.PCC.NR.lt.500.NR,IF(G109<1000,Manning.PCC.NR.lt.1000.Const*G109^Manning.PCC.NR.lt.1000.NR,0.017)))))),"") -> 0.03031809277 | H110: =IF(H86<>"",IF(Deterministic.Surf.Type="Dense Graded Asphalt (DGAC)",Manning.DGFC.Const*H109^Manning.DGFC.NR,IF(Deterministic.Surf.Type="Open Graded Friction Course (OGFC)",Manning.OGFC.Const*H109^Manning.OGFC.NR*('Ex 1.0'!H72/100)^Manning.OGFC.Slope,IF(Deterministic.Surf.Type="User-Defined",User.Defined.ManningValue,IF(H109<240,Manning.PCC.NR.lt.240.Const*H109^Manning.PCC.NR.lt.240.NR,IF(H109<500,Manning.PCC.NR.lt.500.Const*H109^Manning.PCC.NR.lt.500.NR,IF(H109<1000,Manning.PCC.NR.lt.1000.Const*H109^Manning.PCC.NR.lt.1000.NR,0.017)))))),"") -> 0.02825283274 | I110: =IF(I86<>"",IF(Deterministic.Surf.Type="Dense Graded Asphalt (DGAC)",Manning.DGFC.Const*I109^Manning.DGFC.NR,IF(Deterministic.Surf.Type="Open Graded Friction Course (OGFC)",Manning.OGFC.Const*I109^Manning.OGFC.NR*('Ex 1.0'!I72/100)^Manning.OGFC.Slope,IF(Deterministic.Surf.Type="User-Defined",User.Defined.ManningValue,IF(I109<240,Manning.PCC.NR.lt.240.Const*I109^Manning.PCC.NR.lt.240.NR,IF(I109<500,Manning.PCC.NR.lt.500.Const*I109^Manning.PCC.NR.lt.500.NR,IF(I109<1000,Manning.PCC.NR.lt.1000.Const*I109^Manning.PCC.NR.lt.1000.NR,0.017)))))),"") -> 0.02724863804 | J110: =IF(J86<>"",IF(Deterministic.Surf.Type="Dense Graded Asphalt (DGAC)",Manning.DGFC.Const*J109^Manning.DGFC.NR,IF(Deterministic.Surf.Type="Open Graded Friction Course (OGFC)",Manning.OGFC.Const*J109^Manning.OGFC.NR*('Ex 1.0'!J72/100)^Manning.OGFC.Slope,IF(Deterministic.Surf.Type="User-Defined",User.Defined.ManningValue,IF(J109<240,Manning.PCC.NR.lt.240.Const*J109^Manning.PCC.NR.lt.240.NR,IF(J109<500,Manning.PCC.NR.lt.500.Const*J109^Manning.PCC.NR.lt.500.NR,IF(J109<1000,Manning.PCC.NR.lt.1000.Const*J109^Manning.PCC.NR.lt.1000.NR,0.017)))))),"") ->  | K110: =IF(K86<>"",IF(Deterministic.Surf.Type="Dense Graded Asphalt (DGAC)",Manning.DGFC.Const*K109^Manning.DGFC.NR,IF(Deterministic.Surf.Type="Open Graded Friction Course (OGFC)",Manning.OGFC.Const*K109^Manning.OGFC.NR*('Ex 1.0'!K72/100)^Manning.OGFC.Slope,IF(Deterministic.Surf.Type="User-Defined",User.Defined.ManningValue,IF(K109<240,Manning.PCC.NR.lt.240.Const*K109^Manning.PCC.NR.lt.240.NR,IF(K109<500,Manning.PCC.NR.lt.500.Const*K109^Manning.PCC.NR.lt.500.NR,IF(K109<1000,Manning.PCC.NR.lt.1000.Const*K109^Manning.PCC.NR.lt.1000.NR,0.017)))))),"") ->  | L110: =IF(L86<>"",IF(Deterministic.Surf.Type="Dense Graded Asphalt (DGAC)",Manning.DGFC.Const*L109^Manning.DGFC.NR,IF(Deterministic.Surf.Type="Open Graded Friction Course (OGFC)",Manning.OGFC.Const*L109^Manning.OGFC.NR*('Ex 1.0'!L72/100)^Manning.OGFC.Slope,IF(Deterministic.Surf.Type="User-Defined",User.Defined.ManningValue,IF(L109<240,Manning.PCC.NR.lt.240.Const*L109^Manning.PCC.NR.lt.240.NR,IF(L109<500,Manning.PCC.NR.lt.500.Const*L109^Manning.PCC.NR.lt.500.NR,IF(L109<1000,Manning.PCC.NR.lt.1000.Const*L109^Manning.PCC.NR.lt.1000.NR,0.017)))))),"") ->  | M110: =IF(M86<>"",IF(Deterministic.Surf.Type="Dense Graded Asphalt (DGAC)",Manning.DGFC.Const*M109^Manning.DGFC.NR,IF(Deterministic.Surf.Type="Open Graded Friction Course (OGFC)",Manning.OGFC.Const*M109^Manning.OGFC.NR*('Ex 1.0'!M72/100)^Manning.OGFC.Slope,IF(Deterministic.Surf.Type="User-Defined",User.Defined.ManningValue,IF(M109<240,Manning.PCC.NR.lt.240.Const*M109^Manning.PCC.NR.lt.240.NR,IF(M109<500,Manning.PCC.NR.lt.500.Const*M109^Manning.PCC.NR.lt.500.NR,IF(M109<1000,Manning.PCC.NR.lt.1000.Const*M109^Manning.PCC.NR.lt.1000.NR,0.017)))))),"") ->  | N110: =IF(N86<>"",IF(Deterministic.Surf.Type="Dense Graded Asphalt (DGAC)",Manning.DGFC.Const*N109^Manning.DGFC.NR,IF(Deterministic.Surf.Type="Open Graded Friction Course (OGFC)",Manning.OGFC.Const*N109^Manning.OGFC.NR*('Ex 1.0'!N72/100)^Manning.OGFC.Slope,IF(Deterministic.Surf.Type="User-Defined",User.Defined.ManningValue,IF(N109<240,Manning.PCC.NR.lt.240.Const*N109^Manning.PCC.NR.lt.240.NR,IF(N109<500,Manning.PCC.NR.lt.500.Const*N109^Manning.PCC.NR.lt.500.NR,IF(N109<1000,Manning.PCC.NR.lt.1000.Const*N109^Manning.PCC.NR.lt.1000.NR,0.017)))))),"") ->  | O110: =IF(O86<>"",IF(Deterministic.Surf.Type="Dense Graded Asphalt (DGAC)",Manning.DGFC.Const*O109^Manning.DGFC.NR,IF(Deterministic.Surf.Type="Open Graded Friction Course (OGFC)",Manning.OGFC.Const*O109^Manning.OGFC.NR*('Ex 1.0'!O72/100)^Manning.OGFC.Slope,IF(Deterministic.Surf.Type="User-Defined",User.Defined.ManningValue,IF(O109<240,Manning.PCC.NR.lt.240.Const*O109^Manning.PCC.NR.lt.240.NR,IF(O109<500,Manning.PCC.NR.lt.500.Const*O109^Manning.PCC.NR.lt.500.NR,IF(O109<1000,Manning.PCC.NR.lt.1000.Const*O109^Manning.PCC.NR.lt.1000.NR,0.017)))))),"") -> 
A115: Gallaway | Q115: NZ Mod
A116: Plane Number | B116: 1 | C116: 2 | D116: 3 | E116: 4 | F116: 5 | G116: 6 | H116: 7 | I116: 8 | J116: 9 | K116: 10 | L116: 11 | M116: 12 | Q116: Plane Number | R116: 1 | S116: 2 | T116: 3 | U116: 4 | V116: 5 | W116: 6 | X116: 7 | Y116: 8 | Z116: 9 | AA116: 10 | AB116: 11 | AC116: 12
A117: Intensity (in/hr) | B117: Shoulder | C117: Lane 1 | D117: Lane 2 | E117: Lane 3 | F117: Lane 4 | G117: Lane 5 | H117: Lane 6 | I117: Lane 7 | J117: Lane 8 | K117: Lane 9 | L117: Lane 10 | M117: Lane 11 | Q117: Intensity (in/hr) | R117: Shoulder | S117: Lane 1 | T117: Lane 2 | U117: Lane 3 | V117: Lane 4 | W117: Lane 5 | X117: Lane 6 | Y117: Lane 7 | Z117: Lane 8 | AA117: Lane 9 | AB117: Lane 10 | AC117: Lane 11
A118: 0.1 | B118: =IF(AND('Ex 1.0'!D$72<>"",'Ex 1.0'!D$39<>""),(WFT.G.Const*'Ex 1.0'!$E$81^WFT.G.MTD*'Ex 1.0'!D$76^WFT.G.DP*$A$118^WFT.G.Int*('Ex 1.0'!D$72/100)^WFT.G.Slope-'Ex 1.0'!$E$81)*'Ex 1.0'!$G$19,"") -> -0.01338720307 | C118: =IF(AND('Ex 1.0'!E$72<>"",'Ex 1.0'!E$39<>""),(WFT.G.Const*'Ex 1.0'!$E$81^WFT.G.MTD*'Ex 1.0'!E$76^WFT.G.DP*$A$118^WFT.G.Int*('Ex 1.0'!E$72/100)^WFT.G.Slope-'Ex 1.0'!$E$81)*'Ex 1.0'!$G$19,"") -> -0.01563184883 | D118: =IF(AND('Ex 1.0'!F$72<>"",'Ex 1.0'!F$39<>""),(WFT.G.Const*'Ex 1.0'!$E$81^WFT.G.MTD*'Ex 1.0'!F$76^WFT.G.DP*$A$118^WFT.G.Int*('Ex 1.0'!F$72/100)^WFT.G.Slope-'Ex 1.0'!$E$81)*'Ex 1.0'!$G$19,"") -> -0.01563184883 | E118: =IF(AND('Ex 1.0'!G$72<>"",'Ex 1.0'!G$39<>""),(WFT.G.Const*'Ex 1.0'!$E$81^WFT.G.MTD*'Ex 1.0'!G$76^WFT.G.DP*$A$118^WFT.G.Int*('Ex 1.0'!G$72/100)^WFT.G.Slope-'Ex 1.0'!$E$81)*'Ex 1.0'!$G$19,"") -> -0.01067782936 | F118: =IF(AND('Ex 1.0'!H$72<>"",'Ex 1.0'!H$39<>""),(WFT.G.Const*'Ex 1.0'!$E$81^WFT.G.MTD*'Ex 1.0'!H$76^WFT.G.DP*$A$118^WFT.G.Int*('Ex 1.0'!H$72/100)^WFT.G.Slope-'Ex 1.0'!$E$81)*'Ex 1.0'!$G$19,"") -> -0.006837571251 | G118: =IF(AND('Ex 1.0'!I$72<>"",'Ex 1.0'!I$39<>""),(WFT.G.Const*'Ex 1.0'!$E$81^WFT.G.MTD*'Ex 1.0'!I$76^WFT.G.DP*$A$118^WFT.G.Int*('Ex 1.0'!I$72/100)^WFT.G.Slope-'Ex 1.0'!$E$81)*'Ex 1.0'!$G$19,"") -> -0.005907733011 | H118: =IF(AND('Ex 1.0'!J$72<>"",'Ex 1.0'!J$39<>""),(WFT.G.Const*'Ex 1.0'!$E$81^WFT.G.MTD*'Ex 1.0'!J$76^WFT.G.DP*$A$118^WFT.G.Int*('Ex 1.0'!J$72/100)^WFT.G.Slope-'Ex 1.0'!$E$81)*'Ex 1.0'!$G$19,"") ->  | I118: =IF(AND('Ex 1.0'!K$72<>"",'Ex 1.0'!K$39<>""),(WFT.G.Const*'Ex 1.0'!$E$81^WFT.G.MTD*'Ex 1.0'!K$76^WFT.G.DP*$A$118^WFT.G.Int*('Ex 1.0'!K$72/100)^WFT.G.Slope-'Ex 1.0'!$E$81)*'Ex 1.0'!$G$19,"") ->  | J118: =IF(AND('Ex 1.0'!L$72<>"",'Ex 1.0'!L$39<>""),(WFT.G.Const*'Ex 1.0'!$E$81^WFT.G.MTD*'Ex 1.0'!L$76^WFT.G.DP*$A$118^WFT.G.Int*('Ex 1.0'!L$72/100)^WFT.G.Slope-'Ex 1.0'!$E$81)*'Ex 1.0'!$G$19,"") ->  | K118: =IF(AND('Ex 1.0'!M$72<>"",'Ex 1.0'!M$39<>""),(WFT.G.Const*'Ex 1.0'!$E$81^WFT.G.MTD*'Ex 1.0'!M$76^WFT.G.DP*$A$118^WFT.G.Int*('Ex 1.0'!M$72/100)^WFT.G.Slope-'Ex 1.0'!$E$81)*'Ex 1.0'!$G$19,"") ->  | L118: =IF(AND('Ex 1.0'!N$72<>"",'Ex 1.0'!N$39<>""),(WFT.G.Const*'Ex 1.0'!$E$81^WFT.G.MTD*'Ex 1.0'!N$76^WFT.G.DP*$A$118^WFT.G.Int*('Ex 1.0'!N$72/100)^WFT.G.Slope-'Ex 1.0'!$E$81)*'Ex 1.0'!$G$19,"") ->  | M118: =IF(AND('Ex 1.0'!O$72<>"",'Ex 1.0'!O$39<>""),(WFT.G.Const*'Ex 1.0'!$E$81^WFT.G.MTD*'Ex 1.0'!O$76^WFT.G.DP*$A$118^WFT.G.Int*('Ex 1.0'!O$72/100)^WFT.G.Slope-'Ex 1.0'!$E$81)*'Ex 1.0'!$G$19,"") ->  | Q118: 0.1 | R118: =IF(AND('Ex 1.0'!D$72<>"",'Ex 1.0'!D$39<>""),(CONVERT(WFT.N.Const*CONVERT('Ex 1.0'!$E$81,"in","mm")^WFT.N.MTD*CONVERT('Ex 1.0'!D$76,"ft","m")^WFT.N.DP*CONVERT(($Q$118),"in","mm")^WFT.N.Int*('Ex 1.0'!D$72/100)^WFT.N.Slope,"mm","in")-'Ex 1.0'!$E$81)*'Ex 1.0'!$G$19,"") -> -0.01699426286 | S118: =IF(AND('Ex 1.0'!E$72<>"",'Ex 1.0'!E$39<>""),(CONVERT(WFT.N.Const*CONVERT('Ex 1.0'!$E$81,"in","mm")^WFT.N.MTD*CONVERT('Ex 1.0'!E$76,"ft","m")^WFT.N.DP*CONVERT(($Q$118),"in","mm")^WFT.N.Int*('Ex 1.0'!E$72/100)^WFT.N.Slope,"mm","in")-'Ex 1.0'!$E$81)*'Ex 1.0'!$G$19,"") -> -0.018204486 | T118: =IF(AND('Ex 1.0'!F$72<>"",'Ex 1.0'!F$39<>""),(CONVERT(WFT.N.Const*CONVERT('Ex 1.0'!$E$81,"in","mm")^WFT.N.MTD*CONVERT('Ex 1.0'!F$76,"ft","m")^WFT.N.DP*CONVERT(($Q$118),"in","mm")^WFT.N.Int*('Ex 1.0'!F$72/100)^WFT.N.Slope,"mm","in")-'Ex 1.0'!$E$81)*'Ex 1.0'!$G$19,"") -> -0.018204486 | U118: =IF(AND('Ex 1.0'!G$72<>"",'Ex 1.0'!G$39<>""),(CONVERT(WFT.N.Const*CONVERT('Ex 1.0'!$E$81,"in","mm")^WFT.N.MTD*CONVERT('Ex 1.0'!G$76,"ft","m")^WFT.N.DP*CONVERT(($Q$118),"in","mm")^WFT.N.Int*('Ex 1.0'!G$72/100)^WFT.N.Slope,"mm","in")-'Ex 1.0'!$E$81)*'Ex 1.0'!$G$19,"") -> -0.01512468746 | V118: =IF(AND('Ex 1.0'!H$72<>"",'Ex 1.0'!H$39<>""),(CONVERT(WFT.N.Const*CONVERT('Ex 1.0'!$E$81,"in","mm")^WFT.N.MTD*CONVERT('Ex 1.0'!H$76,"ft","m")^WFT.N.DP*CONVERT(($Q$118),"in","mm")^WFT.N.Int*('Ex 1.0'!H$72/100)^WFT.N.Slope,"mm","in")-'Ex 1.0'!$E$81)*'Ex 1.0'!$G$19,"") -> -0.01284867316 | W118: =IF(AND('Ex 1.0'!I$72<>"",'Ex 1.0'!I$39<>""),(CONVERT(WFT.N.Const*CONVERT('Ex 1.0'!$E$81,"in","mm")^WFT.N.MTD*CONVERT('Ex 1.0'!I$76,"ft","m")^WFT.N.DP*CONVERT(($Q$118),"in","mm")^WFT.N.Int*('Ex 1.0'!I$72/100)^WFT.N.Slope,"mm","in")-'Ex 1.0'!$E$81)*'Ex 1.0'!$G$19,"") -> -0.01260886192 | X118: =IF(AND('Ex 1.0'!J$72<>"",'Ex 1.0'!J$39<>""),(CONVERT(WFT.N.Const*CONVERT('Ex 1.0'!$E$81,"in","mm")^WFT.N.MTD*CONVERT('Ex 1.0'!J$76,"ft","m")^WFT.N.DP*CONVERT(($Q$118),"in","mm")^WFT.N.Int*('Ex 1.0'!J$72/100)^WFT.N.Slope,"mm","in")-'Ex 1.0'!$E$81)*'Ex 1.0'!$G$19,"") ->  | Y118: =IF(AND('Ex 1.0'!K$72<>"",'Ex 1.0'!K$39<>""),(CONVERT(WFT.N.Const*CONVERT('Ex 1.0'!$E$81,"in","mm")^WFT.N.MTD*CONVERT('Ex 1.0'!K$76,"ft","m")^WFT.N.DP*CONVERT(($Q$118),"in","mm")^WFT.N.Int*('Ex 1.0'!K$72/100)^WFT.N.Slope,"mm","in")-'Ex 1.0'!$E$81)*'Ex 1.0'!$G$19,"") ->  | Z118: =IF(AND('Ex 1.0'!L$72<>"",'Ex 1.0'!L$39<>""),(CONVERT(WFT.N.Const*CONVERT('Ex 1.0'!$E$81,"in","mm")^WFT.N.MTD*CONVERT('Ex 1.0'!L$76,"ft","m")^WFT.N.DP*CONVERT(($Q$118),"in","mm")^WFT.N.Int*('Ex 1.0'!L$72/100)^WFT.N.Slope,"mm","in")-'Ex 1.0'!$E$81)*'Ex 1.0'!$G$19,"") ->  | AA118: =IF(AND('Ex 1.0'!M$72<>"",'Ex 1.0'!M$39<>""),(CONVERT(WFT.N.Const*CONVERT('Ex 1.0'!$E$81,"in","mm")^WFT.N.MTD*CONVERT('Ex 1.0'!M$76,"ft","m")^WFT.N.DP*CONVERT(($Q$118),"in","mm")^WFT.N.Int*('Ex 1.0'!M$72/100)^WFT.N.Slope,"mm","in")-'Ex 1.0'!$E$81)*'Ex 1.0'!$G$19,"") ->  | AB118: =IF(AND('Ex 1.0'!N$72<>"",'Ex 1.0'!N$39<>""),(CONVERT(WFT.N.Const*CONVERT('Ex 1.0'!$E$81,"in","mm")^WFT.N.MTD*CONVERT('Ex 1.0'!N$76,"ft","m")^WFT.N.DP*CONVERT(($Q$118),"in","mm")^WFT.N.Int*('Ex 1.0'!N$72/100)^WFT.N.Slope,"mm","in")-'Ex 1.0'!$E$81)*'Ex 1.0'!$G$19,"") ->  | AC118: =IF(AND('Ex 1.0'!O$72<>"",'Ex 1.0'!O$39<>""),(CONVERT(WFT.N.Const*CONVERT('Ex 1.0'!$E$81,"in","mm")^WFT.N.MTD*CONVERT('Ex 1.0'!O$76,"ft","m")^WFT.N.DP*CONVERT(($Q$118),"in","mm")^WFT.N.Int*('Ex 1.0'!O$72/100)^WFT.N.Slope,"mm","in")-'Ex 1.0'!$E$81)*'Ex 1.0'!$G$19,"") -> 
A119: 0.25 | B119: =IF(AND('Ex 1.0'!D$72<>"",'Ex 1.0'!D$39<>""),(WFT.G.Const*'Ex 1.0'!$E$81^WFT.G.MTD*'Ex 1.0'!D$76^WFT.G.DP*$A$119^WFT.G.Int*('Ex 1.0'!D$72/100)^WFT.G.Slope-'Ex 1.0'!$E$81)*'Ex 1.0'!$G$19,"") -> -0.004168260898 | C119: =IF(AND('Ex 1.0'!E$72<>"",'Ex 1.0'!E$39<>""),(WFT.G.Const*'Ex 1.0'!$E$81^WFT.G.MTD*'Ex 1.0'!E$76^WFT.G.DP*$A$119^WFT.G.Int*('Ex 1.0'!E$72/100)^WFT.G.Slope-'Ex 1.0'!$E$81)*'Ex 1.0'!$G$19,"") -> -0.007924818888 | D119: =IF(AND('Ex 1.0'!F$72<>"",'Ex 1.0'!F$39<>""),(WFT.G.Const*'Ex 1.0'!$E$81^WFT.G.MTD*'Ex 1.0'!F$76^WFT.G.DP*$A$119^WFT.G.Int*('Ex 1.0'!F$72/100)^WFT.G.Slope-'Ex 1.0'!$E$81)*'Ex 1.0'!$G$19,"") -> -0.007924818888 | E119: =IF(AND('Ex 1.0'!G$72<>"",'Ex 1.0'!G$39<>""),(WFT.G.Const*'Ex 1.0'!$E$81^WFT.G.MTD*'Ex 1.0'!G$76^WFT.G.DP*$A$119^WFT.G.Int*('Ex 1.0'!G$72/100)^WFT.G.Slope-'Ex 1.0'!$E$81)*'Ex 1.0'!$G$19,"") -> 0.0003660489883 | F119: =IF(AND('Ex 1.0'!H$72<>"",'Ex 1.0'!H$39<>""),(WFT.G.Const*'Ex 1.0'!$E$81^WFT.G.MTD*'Ex 1.0'!H$76^WFT.G.DP*$A$119^WFT.G.Int*('Ex 1.0'!H$72/100)^WFT.G.Slope-'Ex 1.0'!$E$81)*'Ex 1.0'!$G$19,"") -> 0.006792966106 | G119: =IF(AND('Ex 1.0'!I$72<>"",'Ex 1.0'!I$39<>""),(WFT.G.Const*'Ex 1.0'!$E$81^WFT.G.MTD*'Ex 1.0'!I$76^WFT.G.DP*$A$119^WFT.G.Int*('Ex 1.0'!I$72/100)^WFT.G.Slope-'Ex 1.0'!$E$81)*'Ex 1.0'!$G$19,"") -> 0.008349109767 | H119: =IF(AND('Ex 1.0'!J$72<>"",'Ex 1.0'!J$39<>""),(WFT.G.Const*'Ex 1.0'!$E$81^WFT.G.MTD*'Ex 1.0'!J$76^WFT.G.DP*$A$119^WFT.G.Int*('Ex 1.0'!J$72/100)^WFT.G.Slope-'Ex 1.0'!$E$81)*'Ex 1.0'!$G$19,"") ->  | I119: =IF(AND('Ex 1.0'!K$72<>"",'Ex 1.0'!K$39<>""),(WFT.G.Const*'Ex 1.0'!$E$81^WFT.G.MTD*'Ex 1.0'!K$76^WFT.G.DP*$A$119^WFT.G.Int*('Ex 1.0'!K$72/100)^WFT.G.Slope-'Ex 1.0'!$E$81)*'Ex 1.0'!$G$19,"") ->  | J119: =IF(AND('Ex 1.0'!L$72<>"",'Ex 1.0'!L$39<>""),(WFT.G.Const*'Ex 1.0'!$E$81^WFT.G.MTD*'Ex 1.0'!L$76^WFT.G.DP*$A$119^WFT.G.Int*('Ex 1.0'!L$72/100)^WFT.G.Slope-'Ex 1.0'!$E$81)*'Ex 1.0'!$G$19,"") ->  | K119: =IF(AND('Ex 1.0'!M$72<>"",'Ex 1.0'!M$39<>""),(WFT.G.Const*'Ex 1.0'!$E$81^WFT.G.MTD*'Ex 1.0'!M$76^WFT.G.DP*$A$119^WFT.G.Int*('Ex 1.0'!M$72/100)^WFT.G.Slope-'Ex 1.0'!$E$81)*'Ex 1.0'!$G$19,"") ->  | L119: =IF(AND('Ex 1.0'!N$72<>"",'Ex 1.0'!N$39<>""),(WFT.G.Const*'Ex 1.0'!$E$81^WFT.G.MTD*'Ex 1.0'!N$76^WFT.G.DP*$A$119^WFT.G.Int*('Ex 1.0'!N$72/100)^WFT.G.Slope-'Ex 1.0'!$E$81)*'Ex 1.0'!$G$19,"") ->  | M119: =IF(AND('Ex 1.0'!O$72<>"",'Ex 1.0'!O$39<>""),(WFT.G.Const*'Ex 1.0'!$E$81^WFT.G.MTD*'Ex 1.0'!O$76^WFT.G.DP*$A$119^WFT.G.Int*('Ex 1.0'!O$72/100)^WFT.G.Slope-'Ex 1.0'!$E$81)*'Ex 1.0'!$G$19,"") ->  | Q119: 0.25 | R119: =IF(AND('Ex 1.0'!D$72<>"",'Ex 1.0'!D$39<>""),(CONVERT(WFT.N.Const*CONVERT('Ex 1.0'!$E$81,"in","mm")^WFT.N.MTD*CONVERT('Ex 1.0'!D$76,"ft","m")^WFT.N.DP*CONVERT(($Q$119),"in","mm")^WFT.N.Int*('Ex 1.0'!D$72/100)^WFT.N.Slope,"mm","in")-'Ex 1.0'!$E$81)*'Ex 1.0'!$G$19,"") -> -0.009766509773 | S119: =IF(AND('Ex 1.0'!E$72<>"",'Ex 1.0'!E$39<>""),(CONVERT(WFT.N.Const*CONVERT('Ex 1.0'!$E$81,"in","mm")^WFT.N.MTD*CONVERT('Ex 1.0'!E$76,"ft","m")^WFT.N.DP*CONVERT(($Q$119),"in","mm")^WFT.N.Int*('Ex 1.0'!E$72/100)^WFT.N.Slope,"mm","in")-'Ex 1.0'!$E$81)*'Ex 1.0'!$G$19,"") -> -0.01184453137 | T119: =IF(AND('Ex 1.0'!F$72<>"",'Ex 1.0'!F$39<>""),(CONVERT(WFT.N.Const*CONVERT('Ex 1.0'!$E$81,"in","mm")^WFT.N.MTD*CONVERT('Ex 1.0'!F$76,"ft","m")^WFT.N.DP*CONVERT(($Q$119),"in","mm")^WFT.N.Int*('Ex 1.0'!F$72/100)^WFT.N.Slope,"mm","in")-'Ex 1.0'!$E$81)*'Ex 1.0'!$G$19,"") -> -0.01184453137 | U119: =IF(AND('Ex 1.0'!G$72<>"",'Ex 1.0'!G$39<>""),(CONVERT(WFT.N.Const*CONVERT('Ex 1.0'!$E$81,"in","mm")^WFT.N.MTD*CONVERT('Ex 1.0'!G$76,"ft","m")^WFT.N.DP*CONVERT(($Q$119),"in","mm")^WFT.N.Int*('Ex 1.0'!G$72/100)^WFT.N.Slope,"mm","in")-'Ex 1.0'!$E$81)*'Ex 1.0'!$G$19,"") -> -0.00655634303 | V119: =IF(AND('Ex 1.0'!H$72<>"",'Ex 1.0'!H$39<>""),(CONVERT(WFT.N.Const*CONVERT('Ex 1.0'!$E$81,"in","mm")^WFT.N.MTD*CONVERT('Ex 1.0'!H$76,"ft","m")^WFT.N.DP*CONVERT(($Q$119),"in","mm")^WFT.N.Int*('Ex 1.0'!H$72/100)^WFT.N.Slope,"mm","in")-'Ex 1.0'!$E$81)*'Ex 1.0'!$G$19,"") -> -0.002648297712 | W119: =IF(AND('Ex 1.0'!I$72<>"",'Ex 1.0'!I$39<>""),(CONVERT(WFT.N.Const*CONVERT('Ex 1.0'!$E$81,"in","mm")^WFT.N.MTD*CONVERT('Ex 1.0'!I$76,"ft","m")^WFT.N.DP*CONVERT(($Q$119),"in","mm")^WFT.N.Int*('Ex 1.0'!I$72/100)^WFT.N.Slope,"mm","in")-'Ex 1.0'!$E$81)*'Ex 1.0'!$G$19,"") -> -0.002236528246 | X119: =IF(AND('Ex 1.0'!J$72<>"",'Ex 1.0'!J$39<>""),(CONVERT(WFT.N.Const*CONVERT('Ex 1.0'!$E$81,"in","mm")^WFT.N.MTD*CONVERT('Ex 1.0'!J$76,"ft","m")^WFT.N.DP*CONVERT(($Q$119),"in","mm")^WFT.N.Int*('Ex 1.0'!J$72/100)^WFT.N.Slope,"mm","in")-'Ex 1.0'!$E$81)*'Ex 1.0'!$G$19,"") ->  | Y119: =IF(AND('Ex 1.0'!K$72<>"",'Ex 1.0'!K$39<>""),(CONVERT(WFT.N.Const*CONVERT('Ex 1.0'!$E$81,"in","mm")^WFT.N.MTD*CONVERT('Ex 1.0'!K$76,"ft","m")^WFT.N.DP*CONVERT(($Q$119),"in","mm")^WFT.N.Int*('Ex 1.0'!K$72/100)^WFT.N.Slope,"mm","in")-'Ex 1.0'!$E$81)*'Ex 1.0'!$G$19,"") ->  | Z119: =IF(AND('Ex 1.0'!L$72<>"",'Ex 1.0'!L$39<>""),(CONVERT(WFT.N.Const*CONVERT('Ex 1.0'!$E$81,"in","mm")^WFT.N.MTD*CONVERT('Ex 1.0'!L$76,"ft","m")^WFT.N.DP*CONVERT(($Q$119),"in","mm")^WFT.N.Int*('Ex 1.0'!L$72/100)^WFT.N.Slope,"mm","in")-'Ex 1.0'!$E$81)*'Ex 1.0'!$G$19,"") ->  | AA119: =IF(AND('Ex 1.0'!M$72<>"",'Ex 1.0'!M$39<>""),(CONVERT(WFT.N.Const*CONVERT('Ex 1.0'!$E$81,"in","mm")^WFT.N.MTD*CONVERT('Ex 1.0'!M$76,"ft","m")^WFT.N.DP*CONVERT(($Q$119),"in","mm")^WFT.N.Int*('Ex 1.0'!M$72/100)^WFT.N.Slope,"mm","in")-'Ex 1.0'!$E$81)*'Ex 1.0'!$G$19,"") ->  | AB119: =IF(AND('Ex 1.0'!N$72<>"",'Ex 1.0'!N$39<>""),(CONVERT(WFT.N.Const*CONVERT('Ex 1.0'!$E$81,"in","mm")^WFT.N.MTD*CONVERT('Ex 1.0'!N$76,"ft","m")^WFT.N.DP*CONVERT(($Q$119),"in","mm")^WFT.N.Int*('Ex 1.0'!N$72/100)^WFT.N.Slope,"mm","in")-'Ex 1.0'!$E$81)*'Ex 1.0'!$G$19,"") ->  | AC119: =IF(AND('Ex 1.0'!O$72<>"",'Ex 1.0'!O$39<>""),(CONVERT(WFT.N.Const*CONVERT('Ex 1.0'!$E$81,"in","mm")^WFT.N.MTD*CONVERT('Ex 1.0'!O$76,"ft","m")^WFT.N.DP*CONVERT(($Q$119),"in","mm")^WFT.N.Int*('Ex 1.0'!O$72/100)^WFT.N.Slope,"mm","in")-'Ex 1.0'!$E$81)*'Ex 1.0'!$G$19,"") -> 
A120: 0.5 | B120: =IF(AND('Ex 1.0'!D$72<>"",'Ex 1.0'!D$39<>""),(WFT.G.Const*'Ex 1.0'!$E$81^WFT.G.MTD*'Ex 1.0'!D$76^WFT.G.DP*$A$120^WFT.G.Int*('Ex 1.0'!D$72/100)^WFT.G.Slope-'Ex 1.0'!$E$81)*'Ex 1.0'!$G$19,"") -> 0.006742080111 | C120: =IF(AND('Ex 1.0'!E$72<>"",'Ex 1.0'!E$39<>""),(WFT.G.Const*'Ex 1.0'!$E$81^WFT.G.MTD*'Ex 1.0'!E$76^WFT.G.DP*$A$120^WFT.G.Int*('Ex 1.0'!E$72/100)^WFT.G.Slope-'Ex 1.0'!$E$81)*'Ex 1.0'!$G$19,"") -> 0.001196219434 | D120: =IF(AND('Ex 1.0'!F$72<>"",'Ex 1.0'!F$39<>""),(WFT.G.Const*'Ex 1.0'!$E$81^WFT.G.MTD*'Ex 1.0'!F$76^WFT.G.DP*$A$120^WFT.G.Int*('Ex 1.0'!F$72/100)^WFT.G.Slope-'Ex 1.0'!$E$81)*'Ex 1.0'!$G$19,"") -> 0.001196219434 | E120: =IF(AND('Ex 1.0'!G$72<>"",'Ex 1.0'!G$39<>""),(WFT.G.Const*'Ex 1.0'!$E$81^WFT.G.MTD*'Ex 1.0'!G$76^WFT.G.DP*$A$120^WFT.G.Int*('Ex 1.0'!G$72/100)^WFT.G.Slope-'Ex 1.0'!$E$81)*'Ex 1.0'!$G$19,"") -> 0.01343614712 | F120: =IF(AND('Ex 1.0'!H$72<>"",'Ex 1.0'!H$39<>""),(WFT.G.Const*'Ex 1.0'!$E$81^WFT.G.MTD*'Ex 1.0'!H$76^WFT.G.DP*$A$120^WFT.G.Int*('Ex 1.0'!H$72/100)^WFT.G.Slope-'Ex 1.0'!$E$81)*'Ex 1.0'!$G$19,"") -> 0.02292429744 | G120: =IF(AND('Ex 1.0'!I$72<>"",'Ex 1.0'!I$39<>""),(WFT.G.Const*'Ex 1.0'!$E$81^WFT.G.MTD*'Ex 1.0'!I$76^WFT.G.DP*$A$120^WFT.G.Int*('Ex 1.0'!I$72/100)^WFT.G.Slope-'Ex 1.0'!$E$81)*'Ex 1.0'!$G$19,"") -> 0.02522165474 | H120: =IF(AND('Ex 1.0'!J$72<>"",'Ex 1.0'!J$39<>""),(WFT.G.Const*'Ex 1.0'!$E$81^WFT.G.MTD*'Ex 1.0'!J$76^WFT.G.DP*$A$120^WFT.G.Int*('Ex 1.0'!J$72/100)^WFT.G.Slope-'Ex 1.0'!$E$81)*'Ex 1.0'!$G$19,"") ->  | I120: =IF(AND('Ex 1.0'!K$72<>"",'Ex 1.0'!K$39<>""),(WFT.G.Const*'Ex 1.0'!$E$81^WFT.G.MTD*'Ex 1.0'!K$76^WFT.G.DP*$A$120^WFT.G.Int*('Ex 1.0'!K$72/100)^WFT.G.Slope-'Ex 1.0'!$E$81)*'Ex 1.0'!$G$19,"") ->  | J120: =IF(AND('Ex 1.0'!L$72<>"",'Ex 1.0'!L$39<>""),(WFT.G.Const*'Ex 1.0'!$E$81^WFT.G.MTD*'Ex 1.0'!L$76^WFT.G.DP*$A$120^WFT.G.Int*('Ex 1.0'!L$72/100)^WFT.G.Slope-'Ex 1.0'!$E$81)*'Ex 1.0'!$G$19,"") ->  | K120: =IF(AND('Ex 1.0'!M$72<>"",'Ex 1.0'!M$39<>""),(WFT.G.Const*'Ex 1.0'!$E$81^WFT.G.MTD*'Ex 1.0'!M$76^WFT.G.DP*$A$120^WFT.G.Int*('Ex 1.0'!M$72/100)^WFT.G.Slope-'Ex 1.0'!$E$81)*'Ex 1.0'!$G$19,"") ->  | L120: =IF(AND('Ex 1.0'!N$72<>"",'Ex 1.0'!N$39<>""),(WFT.G.Const*'Ex 1.0'!$E$81^WFT.G.MTD*'Ex 1.0'!N$76^WFT.G.DP*$A$120^WFT.G.Int*('Ex 1.0'!N$72/100)^WFT.G.Slope-'Ex 1.0'!$E$81)*'Ex 1.0'!$G$19,"") ->  | M120: =IF(AND('Ex 1.0'!O$72<>"",'Ex 1.0'!O$39<>""),(WFT.G.Const*'Ex 1.0'!$E$81^WFT.G.MTD*'Ex 1.0'!O$76^WFT.G.DP*$A$120^WFT.G.Int*('Ex 1.0'!O$72/100)^WFT.G.Slope-'Ex 1.0'!$E$81)*'Ex 1.0'!$G$19,"") ->  | Q120: 0.5 | R120: =IF(AND('Ex 1.0'!D$72<>"",'Ex 1.0'!D$39<>""),(CONVERT(WFT.N.Const*CONVERT('Ex 1.0'!$E$81,"in","mm")^WFT.N.MTD*CONVERT('Ex 1.0'!D$76,"ft","m")^WFT.N.DP*CONVERT(($Q$120),"in","mm")^WFT.N.Int*('Ex 1.0'!D$72/100)^WFT.N.Slope,"mm","in")-'Ex 1.0'!$E$81)*'Ex 1.0'!$G$19,"") -> -0.001021948673 | S120: =IF(AND('Ex 1.0'!E$72<>"",'Ex 1.0'!E$39<>""),(CONVERT(WFT.N.Const*CONVERT('Ex 1.0'!$E$81,"in","mm")^WFT.N.MTD*CONVERT('Ex 1.0'!E$76,"ft","m")^WFT.N.DP*CONVERT(($Q$120),"in","mm")^WFT.N.Int*('Ex 1.0'!E$72/100)^WFT.N.Slope,"mm","in")-'Ex 1.0'!$E$81)*'Ex 1.0'!$G$19,"") -> -0.004149883917 | T120: =IF(AND('Ex 1.0'!F$72<>"",'Ex 1.0'!F$39<>""),(CONVERT(WFT.N.Const*CONVERT('Ex 1.0'!$E$81,"in","mm")^WFT.N.MTD*CONVERT('Ex 1.0'!F$76,"ft","m")^WFT.N.DP*CONVERT(($Q$120),"in","mm")^WFT.N.Int*('Ex 1.0'!F$72/100)^WFT.N.Slope,"mm","in")-'Ex 1.0'!$E$81)*'Ex 1.0'!$G$19,"") -> -0.004149883917 | U120: =IF(AND('Ex 1.0'!G$72<>"",'Ex 1.0'!G$39<>""),(CONVERT(WFT.N.Const*CONVERT('Ex 1.0'!$E$81,"in","mm")^WFT.N.MTD*CONVERT('Ex 1.0'!G$76,"ft","m")^WFT.N.DP*CONVERT(($Q$120),"in","mm")^WFT.N.Int*('Ex 1.0'!G$72/100)^WFT.N.Slope,"mm","in")-'Ex 1.0'!$E$81)*'Ex 1.0'!$G$19,"") -> 0.003810144376 | V120: =IF(AND('Ex 1.0'!H$72<>"",'Ex 1.0'!H$39<>""),(CONVERT(WFT.N.Const*CONVERT('Ex 1.0'!$E$81,"in","mm")^WFT.N.MTD*CONVERT('Ex 1.0'!H$76,"ft","m")^WFT.N.DP*CONVERT(($Q$120),"in","mm")^WFT.N.Int*('Ex 1.0'!H$72/100)^WFT.N.Slope,"mm","in")-'Ex 1.0'!$E$81)*'Ex 1.0'!$G$19,"") -> 0.009692716878 | W120: =IF(AND('Ex 1.0'!I$72<>"",'Ex 1.0'!I$39<>""),(CONVERT(WFT.N.Const*CONVERT('Ex 1.0'!$E$81,"in","mm")^WFT.N.MTD*CONVERT('Ex 1.0'!I$76,"ft","m")^WFT.N.DP*CONVERT(($Q$120),"in","mm")^WFT.N.Int*('Ex 1.0'!I$72/100)^WFT.N.Slope,"mm","in")-'Ex 1.0'!$E$81)*'Ex 1.0'!$G$19,"") -> 0.01031253153 | X120: =IF(AND('Ex 1.0'!J$72<>"",'Ex 1.0'!J$39<>""),(CONVERT(WFT.N.Const*CONVERT('Ex 1.0'!$E$81,"in","mm")^WFT.N.MTD*CONVERT('Ex 1.0'!J$76,"ft","m")^WFT.N.DP*CONVERT(($Q$120),"in","mm")^WFT.N.Int*('Ex 1.0'!J$72/100)^WFT.N.Slope,"mm","in")-'Ex 1.0'!$E$81)*'Ex 1.0'!$G$19,"") ->  | Y120: =IF(AND('Ex 1.0'!K$72<>"",'Ex 1.0'!K$39<>""),(CONVERT(WFT.N.Const*CONVERT('Ex 1.0'!$E$81,"in","mm")^WFT.N.MTD*CONVERT('Ex 1.0'!K$76,"ft","m")^WFT.N.DP*CONVERT(($Q$120),"in","mm")^WFT.N.Int*('Ex 1.0'!K$72/100)^WFT.N.Slope,"mm","in")-'Ex 1.0'!$E$81)*'Ex 1.0'!$G$19,"") ->  | Z120: =IF(AND('Ex 1.0'!L$72<>"",'Ex 1.0'!L$39<>""),(CONVERT(WFT.N.Const*CONVERT('Ex 1.0'!$E$81,"in","mm")^WFT.N.MTD*CONVERT('Ex 1.0'!L$76,"ft","m")^WFT.N.DP*CONVERT(($Q$120),"in","mm")^WFT.N.Int*('Ex 1.0'!L$72/100)^WFT.N.Slope,"mm","in")-'Ex 1.0'!$E$81)*'Ex 1.0'!$G$19,"") ->  | AA120: =IF(AND('Ex 1.0'!M$72<>"",'Ex 1.0'!M$39<>""),(CONVERT(WFT.N.Const*CONVERT('Ex 1.0'!$E$81,"in","mm")^WFT.N.MTD*CONVERT('Ex 1.0'!M$76,"ft","m")^WFT.N.DP*CONVERT(($Q$120),"in","mm")^WFT.N.Int*('Ex 1.0'!M$72/100)^WFT.N.Slope,"mm","in")-'Ex 1.0'!$E$81)*'Ex 1.0'!$G$19,"") ->  | AB120: =IF(AND('Ex 1.0'!N$72<>"",'Ex 1.0'!N$39<>""),(CONVERT(WFT.N.Const*CONVERT('Ex 1.0'!$E$81,"in","mm")^WFT.N.MTD*CONVERT('Ex 1.0'!N$76,"ft","m")^WFT.N.DP*CONVERT(($Q$120),"in","mm")^WFT.N.Int*('Ex 1.0'!N$72/100)^WFT.N.Slope,"mm","in")-'Ex 1.0'!$E$81)*'Ex 1.0'!$G$19,"") ->  | AC120: =IF(AND('Ex 1.0'!O$72<>"",'Ex 1.0'!O$39<>""),(CONVERT(WFT.N.Const*CONVERT('Ex 1.0'!$E$81,"in","mm")^WFT.N.MTD*CONVERT('Ex 1.0'!O$76,"ft","m")^WFT.N.DP*CONVERT(($Q$120),"in","mm")^WFT.N.Int*('Ex 1.0'!O$72/100)^WFT.N.Slope,"mm","in")-'Ex 1.0'!$E$81)*'Ex 1.0'!$G$19,"") -> 
A121: 1 | B121: =IF(AND('Ex 1.0'!D$72<>"",'Ex 1.0'!D$39<>""),(WFT.G.Const*'Ex 1.0'!$E$81^WFT.G.MTD*'Ex 1.0'!D$76^WFT.G.DP*$A$121^WFT.G.Int*('Ex 1.0'!D$72/100)^WFT.G.Slope-'Ex 1.0'!$E$81)*'Ex 1.0'!$G$19,"") -> 0.02284917371 | C121: =IF(AND('Ex 1.0'!E$72<>"",'Ex 1.0'!E$39<>""),(WFT.G.Const*'Ex 1.0'!$E$81^WFT.G.MTD*'Ex 1.0'!E$76^WFT.G.DP*$A$121^WFT.G.Int*('Ex 1.0'!E$72/100)^WFT.G.Slope-'Ex 1.0'!$E$81)*'Ex 1.0'!$G$19,"") -> 0.0146617397 | D121: =IF(AND('Ex 1.0'!F$72<>"",'Ex 1.0'!F$39<>""),(WFT.G.Const*'Ex 1.0'!$E$81^WFT.G.MTD*'Ex 1.0'!F$76^WFT.G.DP*$A$121^WFT.G.Int*('Ex 1.0'!F$72/100)^WFT.G.Slope-'Ex 1.0'!$E$81)*'Ex 1.0'!$G$19,"") -> 0.0146617397 | E121: =IF(AND('Ex 1.0'!G$72<>"",'Ex 1.0'!G$39<>""),(WFT.G.Const*'Ex 1.0'!$E$81^WFT.G.MTD*'Ex 1.0'!G$76^WFT.G.DP*$A$121^WFT.G.Int*('Ex 1.0'!G$72/100)^WFT.G.Slope-'Ex 1.0'!$E$81)*'Ex 1.0'!$G$19,"") -> 0.03273172126 | F121: =IF(AND('Ex 1.0'!H$72<>"",'Ex 1.0'!H$39<>""),(WFT.G.Const*'Ex 1.0'!$E$81^WFT.G.MTD*'Ex 1.0'!H$76^WFT.G.DP*$A$121^WFT.G.Int*('Ex 1.0'!H$72/100)^WFT.G.Slope-'Ex 1.0'!$E$81)*'Ex 1.0'!$G$19,"") -> 0.04673921427 | G121: =IF(AND('Ex 1.0'!I$72<>"",'Ex 1.0'!I$39<>""),(WFT.G.Const*'Ex 1.0'!$E$81^WFT.G.MTD*'Ex 1.0'!I$76^WFT.G.DP*$A$121^WFT.G.Int*('Ex 1.0'!I$72/100)^WFT.G.Slope-'Ex 1.0'!$E$81)*'Ex 1.0'!$G$19,"") -> 0.05013083595 | H121: =IF(AND('Ex 1.0'!J$72<>"",'Ex 1.0'!J$39<>""),(WFT.G.Const*'Ex 1.0'!$E$81^WFT.G.MTD*'Ex 1.0'!J$76^WFT.G.DP*$A$121^WFT.G.Int*('Ex 1.0'!J$72/100)^WFT.G.Slope-'Ex 1.0'!$E$81)*'Ex 1.0'!$G$19,"") ->  | I121: =IF(AND('Ex 1.0'!K$72<>"",'Ex 1.0'!K$39<>""),(WFT.G.Const*'Ex 1.0'!$E$81^WFT.G.MTD*'Ex 1.0'!K$76^WFT.G.DP*$A$121^WFT.G.Int*('Ex 1.0'!K$72/100)^WFT.G.Slope-'Ex 1.0'!$E$81)*'Ex 1.0'!$G$19,"") ->  | J121: =IF(AND('Ex 1.0'!L$72<>"",'Ex 1.0'!L$39<>""),(WFT.G.Const*'Ex 1.0'!$E$81^WFT.G.MTD*'Ex 1.0'!L$76^WFT.G.DP*$A$121^WFT.G.Int*('Ex 1.0'!L$72/100)^WFT.G.Slope-'Ex 1.0'!$E$81)*'Ex 1.0'!$G$19,"") ->  | K121: =IF(AND('Ex 1.0'!M$72<>"",'Ex 1.0'!M$39<>""),(WFT.G.Const*'Ex 1.0'!$E$81^WFT.G.MTD*'Ex 1.0'!M$76^WFT.G.DP*$A$121^WFT.G.Int*('Ex 1.0'!M$72/100)^WFT.G.Slope-'Ex 1.0'!$E$81)*'Ex 1.0'!$G$19,"") ->  | L121: =IF(AND('Ex 1.0'!N$72<>"",'Ex 1.0'!N$39<>""),(WFT.G.Const*'Ex 1.0'!$E$81^WFT.G.MTD*'Ex 1.0'!N$76^WFT.G.DP*$A$121^WFT.G.Int*('Ex 1.0'!N$72/100)^WFT.G.Slope-'Ex 1.0'!$E$81)*'Ex 1.0'!$G$19,"") ->  | M121: =IF(AND('Ex 1.0'!O$72<>"",'Ex 1.0'!O$39<>""),(WFT.G.Const*'Ex 1.0'!$E$81^WFT.G.MTD*'Ex 1.0'!O$76^WFT.G.DP*$A$121^WFT.G.Int*('Ex 1.0'!O$72/100)^WFT.G.Slope-'Ex 1.0'!$E$81)*'Ex 1.0'!$G$19,"") ->  | Q121: 1 | R121: =IF(AND('Ex 1.0'!D$72<>"",'Ex 1.0'!D$39<>""),(CONVERT(WFT.N.Const*CONVERT('Ex 1.0'!$E$81,"in","mm")^WFT.N.MTD*CONVERT('Ex 1.0'!D$76,"ft","m")^WFT.N.DP*CONVERT(($Q$121),"in","mm")^WFT.N.Int*('Ex 1.0'!D$72/100)^WFT.N.Slope,"mm","in")-'Ex 1.0'!$E$81)*'Ex 1.0'!$G$19,"") -> 0.01214077348 | S121: =IF(AND('Ex 1.0'!E$72<>"",'Ex 1.0'!E$39<>""),(CONVERT(WFT.N.Const*CONVERT('Ex 1.0'!$E$81,"in","mm")^WFT.N.MTD*CONVERT('Ex 1.0'!E$76,"ft","m")^WFT.N.DP*CONVERT(($Q$121),"in","mm")^WFT.N.Int*('Ex 1.0'!E$72/100)^WFT.N.Slope,"mm","in")-'Ex 1.0'!$E$81)*'Ex 1.0'!$G$19,"") -> 0.007432459128 | T121: =IF(AND('Ex 1.0'!F$72<>"",'Ex 1.0'!F$39<>""),(CONVERT(WFT.N.Const*CONVERT('Ex 1.0'!$E$81,"in","mm")^WFT.N.MTD*CONVERT('Ex 1.0'!F$76,"ft","m")^WFT.N.DP*CONVERT(($Q$121),"in","mm")^WFT.N.Int*('Ex 1.0'!F$72/100)^WFT.N.Slope,"mm","in")-'Ex 1.0'!$E$81)*'Ex 1.0'!$G$19,"") -> 0.007432459128 | U121: =IF(AND('Ex 1.0'!G$72<>"",'Ex 1.0'!G$39<>""),(CONVERT(WFT.N.Const*CONVERT('Ex 1.0'!$E$81,"in","mm")^WFT.N.MTD*CONVERT('Ex 1.0'!G$76,"ft","m")^WFT.N.DP*CONVERT(($Q$121),"in","mm")^WFT.N.Int*('Ex 1.0'!G$72/100)^WFT.N.Slope,"mm","in")-'Ex 1.0'!$E$81)*'Ex 1.0'!$G$19,"") -> 0.01941426582 | V121: =IF(AND('Ex 1.0'!H$72<>"",'Ex 1.0'!H$39<>""),(CONVERT(WFT.N.Const*CONVERT('Ex 1.0'!$E$81,"in","mm")^WFT.N.MTD*CONVERT('Ex 1.0'!H$76,"ft","m")^WFT.N.DP*CONVERT(($Q$121),"in","mm")^WFT.N.Int*('Ex 1.0'!H$72/100)^WFT.N.Slope,"mm","in")-'Ex 1.0'!$E$81)*'Ex 1.0'!$G$19,"") -> 0.02826898895 | W121: =IF(AND('Ex 1.0'!I$72<>"",'Ex 1.0'!I$39<>""),(CONVERT(WFT.N.Const*CONVERT('Ex 1.0'!$E$81,"in","mm")^WFT.N.MTD*CONVERT('Ex 1.0'!I$76,"ft","m")^WFT.N.DP*CONVERT(($Q$121),"in","mm")^WFT.N.Int*('Ex 1.0'!I$72/100)^WFT.N.Slope,"mm","in")-'Ex 1.0'!$E$81)*'Ex 1.0'!$G$19,"") -> 0.02920196294 | X121: =IF(AND('Ex 1.0'!J$72<>"",'Ex 1.0'!J$39<>""),(CONVERT(WFT.N.Const*CONVERT('Ex 1.0'!$E$81,"in","mm")^WFT.N.MTD*CONVERT('Ex 1.0'!J$76,"ft","m")^WFT.N.DP*CONVERT(($Q$121),"in","mm")^WFT.N.Int*('Ex 1.0'!J$72/100)^WFT.N.Slope,"mm","in")-'Ex 1.0'!$E$81)*'Ex 1.0'!$G$19,"") ->  | Y121: =IF(AND('Ex 1.0'!K$72<>"",'Ex 1.0'!K$39<>""),(CONVERT(WFT.N.Const*CONVERT('Ex 1.0'!$E$81,"in","mm")^WFT.N.MTD*CONVERT('Ex 1.0'!K$76,"ft","m")^WFT.N.DP*CONVERT(($Q$121),"in","mm")^WFT.N.Int*('Ex 1.0'!K$72/100)^WFT.N.Slope,"mm","in")-'Ex 1.0'!$E$81)*'Ex 1.0'!$G$19,"") ->  | Z121: =IF(AND('Ex 1.0'!L$72<>"",'Ex 1.0'!L$39<>""),(CONVERT(WFT.N.Const*CONVERT('Ex 1.0'!$E$81,"in","mm")^WFT.N.MTD*CONVERT('Ex 1.0'!L$76,"ft","m")^WFT.N.DP*CONVERT(($Q$121),"in","mm")^WFT.N.Int*('Ex 1.0'!L$72/100)^WFT.N.Slope,"mm","in")-'Ex 1.0'!$E$81)*'Ex 1.0'!$G$19,"") ->  | AA121: =IF(AND('Ex 1.0'!M$72<>"",'Ex 1.0'!M$39<>""),(CONVERT(WFT.N.Const*CONVERT('Ex 1.0'!$E$81,"in","mm")^WFT.N.MTD*CONVERT('Ex 1.0'!M$76,"ft","m")^WFT.N.DP*CONVERT(($Q$121),"in","mm")^WFT.N.Int*('Ex 1.0'!M$72/100)^WFT.N.Slope,"mm","in")-'Ex 1.0'!$E$81)*'Ex 1.0'!$G$19,"") ->  | AB121: =IF(AND('Ex 1.0'!N$72<>"",'Ex 1.0'!N$39<>""),(CONVERT(WFT.N.Const*CONVERT('Ex 1.0'!$E$81,"in","mm")^WFT.N.MTD*CONVERT('Ex 1.0'!N$76,"ft","m")^WFT.N.DP*CONVERT(($Q$121),"in","mm")^WFT.N.Int*('Ex 1.0'!N$72/100)^WFT.N.Slope,"mm","in")-'Ex 1.0'!$E$81)*'Ex 1.0'!$G$19,"") ->  | AC121: =IF(AND('Ex 1.0'!O$72<>"",'Ex 1.0'!O$39<>""),(CONVERT(WFT.N.Const*CONVERT('Ex 1.0'!$E$81,"in","mm")^WFT.N.MTD*CONVERT('Ex 1.0'!O$76,"ft","m")^WFT.N.DP*CONVERT(($Q$121),"in","mm")^WFT.N.Int*('Ex 1.0'!O$72/100)^WFT.N.Slope,"mm","in")-'Ex 1.0'!$E$81)*'Ex 1.0'!$G$19,"") -> 
A122: 2 | B122: =IF(AND('Ex 1.0'!D$72<>"",'Ex 1.0'!D$39<>""),(WFT.G.Const*'Ex 1.0'!$E$81^WFT.G.MTD*'Ex 1.0'!D$76^WFT.G.DP*$A$122^WFT.G.Int*('Ex 1.0'!D$72/100)^WFT.G.Slope-'Ex 1.0'!$E$81)*'Ex 1.0'!$G$19,"") -> 0.04662830803 | C122: =IF(AND('Ex 1.0'!E$72<>"",'Ex 1.0'!E$39<>""),(WFT.G.Const*'Ex 1.0'!$E$81^WFT.G.MTD*'Ex 1.0'!E$76^WFT.G.DP*$A$122^WFT.G.Int*('Ex 1.0'!E$72/100)^WFT.G.Slope-'Ex 1.0'!$E$81)*'Ex 1.0'!$G$19,"") -> 0.03454108126 | D122: =IF(AND('Ex 1.0'!F$72<>"",'Ex 1.0'!F$39<>""),(WFT.G.Const*'Ex 1.0'!$E$81^WFT.G.MTD*'Ex 1.0'!F$76^WFT.G.DP*$A$122^WFT.G.Int*('Ex 1.0'!F$72/100)^WFT.G.Slope-'Ex 1.0'!$E$81)*'Ex 1.0'!$G$19,"") -> 0.03454108126 | E122: =IF(AND('Ex 1.0'!G$72<>"",'Ex 1.0'!G$39<>""),(WFT.G.Const*'Ex 1.0'!$E$81^WFT.G.MTD*'Ex 1.0'!G$76^WFT.G.DP*$A$122^WFT.G.Int*('Ex 1.0'!G$72/100)^WFT.G.Slope-'Ex 1.0'!$E$81)*'Ex 1.0'!$G$19,"") -> 0.06121805534 | F122: =IF(AND('Ex 1.0'!H$72<>"",'Ex 1.0'!H$39<>""),(WFT.G.Const*'Ex 1.0'!$E$81^WFT.G.MTD*'Ex 1.0'!H$76^WFT.G.DP*$A$122^WFT.G.Int*('Ex 1.0'!H$72/100)^WFT.G.Slope-'Ex 1.0'!$E$81)*'Ex 1.0'!$G$19,"") -> 0.08189751906 | G122: =IF(AND('Ex 1.0'!I$72<>"",'Ex 1.0'!I$39<>""),(WFT.G.Const*'Ex 1.0'!$E$81^WFT.G.MTD*'Ex 1.0'!I$76^WFT.G.DP*$A$122^WFT.G.Int*('Ex 1.0'!I$72/100)^WFT.G.Slope-'Ex 1.0'!$E$81)*'Ex 1.0'!$G$19,"") -> 0.08690461901 | H122: =IF(AND('Ex 1.0'!J$72<>"",'Ex 1.0'!J$39<>""),(WFT.G.Const*'Ex 1.0'!$E$81^WFT.G.MTD*'Ex 1.0'!J$76^WFT.G.DP*$A$122^WFT.G.Int*('Ex 1.0'!J$72/100)^WFT.G.Slope-'Ex 1.0'!$E$81)*'Ex 1.0'!$G$19,"") ->  | I122: =IF(AND('Ex 1.0'!K$72<>"",'Ex 1.0'!K$39<>""),(WFT.G.Const*'Ex 1.0'!$E$81^WFT.G.MTD*'Ex 1.0'!K$76^WFT.G.DP*$A$122^WFT.G.Int*('Ex 1.0'!K$72/100)^WFT.G.Slope-'Ex 1.0'!$E$81)*'Ex 1.0'!$G$19,"") ->  | J122: =IF(AND('Ex 1.0'!L$72<>"",'Ex 1.0'!L$39<>""),(WFT.G.Const*'Ex 1.0'!$E$81^WFT.G.MTD*'Ex 1.0'!L$76^WFT.G.DP*$A$122^WFT.G.Int*('Ex 1.0'!L$72/100)^WFT.G.Slope-'Ex 1.0'!$E$81)*'Ex 1.0'!$G$19,"") ->  | K122: =IF(AND('Ex 1.0'!M$72<>"",'Ex 1.0'!M$39<>""),(WFT.G.Const*'Ex 1.0'!$E$81^WFT.G.MTD*'Ex 1.0'!M$76^WFT.G.DP*$A$122^WFT.G.Int*('Ex 1.0'!M$72/100)^WFT.G.Slope-'Ex 1.0'!$E$81)*'Ex 1.0'!$G$19,"") ->  | L122: =IF(AND('Ex 1.0'!N$72<>"",'Ex 1.0'!N$39<>""),(WFT.G.Const*'Ex 1.0'!$E$81^WFT.G.MTD*'Ex 1.0'!N$76^WFT.G.DP*$A$122^WFT.G.Int*('Ex 1.0'!N$72/100)^WFT.G.Slope-'Ex 1.0'!$E$81)*'Ex 1.0'!$G$19,"") ->  | M122: =IF(AND('Ex 1.0'!O$72<>"",'Ex 1.0'!O$39<>""),(WFT.G.Const*'Ex 1.0'!$E$81^WFT.G.MTD*'Ex 1.0'!O$76^WFT.G.DP*$A$122^WFT.G.Int*('Ex 1.0'!O$72/100)^WFT.G.Slope-'Ex 1.0'!$E$81)*'Ex 1.0'!$G$19,"") ->  | Q122: 2 | R122: =IF(AND('Ex 1.0'!D$72<>"",'Ex 1.0'!D$39<>""),(CONVERT(WFT.N.Const*CONVERT('Ex 1.0'!$E$81,"in","mm")^WFT.N.MTD*CONVERT('Ex 1.0'!D$76,"ft","m")^WFT.N.DP*CONVERT(($Q$122),"in","mm")^WFT.N.Int*('Ex 1.0'!D$72/100)^WFT.N.Slope,"mm","in")-'Ex 1.0'!$E$81)*'Ex 1.0'!$G$19,"") -> 0.03195391819 | S122: =IF(AND('Ex 1.0'!E$72<>"",'Ex 1.0'!E$39<>""),(CONVERT(WFT.N.Const*CONVERT('Ex 1.0'!$E$81,"in","mm")^WFT.N.MTD*CONVERT('Ex 1.0'!E$76,"ft","m")^WFT.N.DP*CONVERT(($Q$122),"in","mm")^WFT.N.Int*('Ex 1.0'!E$72/100)^WFT.N.Slope,"mm","in")-'Ex 1.0'!$E$81)*'Ex 1.0'!$G$19,"") -> 0.02486674332 | T122: =IF(AND('Ex 1.0'!F$72<>"",'Ex 1.0'!F$39<>""),(CONVERT(WFT.N.Const*CONVERT('Ex 1.0'!$E$81,"in","mm")^WFT.N.MTD*CONVERT('Ex 1.0'!F$76,"ft","m")^WFT.N.DP*CONVERT(($Q$122),"in","mm")^WFT.N.Int*('Ex 1.0'!F$72/100)^WFT.N.Slope,"mm","in")-'Ex 1.0'!$E$81)*'Ex 1.0'!$G$19,"") -> 0.02486674332 | U122: =IF(AND('Ex 1.0'!G$72<>"",'Ex 1.0'!G$39<>""),(CONVERT(WFT.N.Const*CONVERT('Ex 1.0'!$E$81,"in","mm")^WFT.N.MTD*CONVERT('Ex 1.0'!G$76,"ft","m")^WFT.N.DP*CONVERT(($Q$122),"in","mm")^WFT.N.Int*('Ex 1.0'!G$72/100)^WFT.N.Slope,"mm","in")-'Ex 1.0'!$E$81)*'Ex 1.0'!$G$19,"") -> 0.04290231888 | V122: =IF(AND('Ex 1.0'!H$72<>"",'Ex 1.0'!H$39<>""),(CONVERT(WFT.N.Const*CONVERT('Ex 1.0'!$E$81,"in","mm")^WFT.N.MTD*CONVERT('Ex 1.0'!H$76,"ft","m")^WFT.N.DP*CONVERT(($Q$122),"in","mm")^WFT.N.Int*('Ex 1.0'!H$72/100)^WFT.N.Slope,"mm","in")-'Ex 1.0'!$E$81)*'Ex 1.0'!$G$19,"") -> 0.05623086207 | W122: =IF(AND('Ex 1.0'!I$72<>"",'Ex 1.0'!I$39<>""),(CONVERT(WFT.N.Const*CONVERT('Ex 1.0'!$E$81,"in","mm")^WFT.N.MTD*CONVERT('Ex 1.0'!I$76,"ft","m")^WFT.N.DP*CONVERT(($Q$122),"in","mm")^WFT.N.Int*('Ex 1.0'!I$72/100)^WFT.N.Slope,"mm","in")-'Ex 1.0'!$E$81)*'Ex 1.0'!$G$19,"") -> 0.05763521812 | X122: =IF(AND('Ex 1.0'!J$72<>"",'Ex 1.0'!J$39<>""),(CONVERT(WFT.N.Const*CONVERT('Ex 1.0'!$E$81,"in","mm")^WFT.N.MTD*CONVERT('Ex 1.0'!J$76,"ft","m")^WFT.N.DP*CONVERT(($Q$122),"in","mm")^WFT.N.Int*('Ex 1.0'!J$72/100)^WFT.N.Slope,"mm","in")-'Ex 1.0'!$E$81)*'Ex 1.0'!$G$19,"") ->  | Y122: =IF(AND('Ex 1.0'!K$72<>"",'Ex 1.0'!K$39<>""),(CONVERT(WFT.N.Const*CONVERT('Ex 1.0'!$E$81,"in","mm")^WFT.N.MTD*CONVERT('Ex 1.0'!K$76,"ft","m")^WFT.N.DP*CONVERT(($Q$122),"in","mm")^WFT.N.Int*('Ex 1.0'!K$72/100)^WFT.N.Slope,"mm","in")-'Ex 1.0'!$E$81)*'Ex 1.0'!$G$19,"") ->  | Z122: =IF(AND('Ex 1.0'!L$72<>"",'Ex 1.0'!L$39<>""),(CONVERT(WFT.N.Const*CONVERT('Ex 1.0'!$E$81,"in","mm")^WFT.N.MTD*CONVERT('Ex 1.0'!L$76,"ft","m")^WFT.N.DP*CONVERT(($Q$122),"in","mm")^WFT.N.Int*('Ex 1.0'!L$72/100)^WFT.N.Slope,"mm","in")-'Ex 1.0'!$E$81)*'Ex 1.0'!$G$19,"") ->  | AA122: =IF(AND('Ex 1.0'!M$72<>"",'Ex 1.0'!M$39<>""),(CONVERT(WFT.N.Const*CONVERT('Ex 1.0'!$E$81,"in","mm")^WFT.N.MTD*CONVERT('Ex 1.0'!M$76,"ft","m")^WFT.N.DP*CONVERT(($Q$122),"in","mm")^WFT.N.Int*('Ex 1.0'!M$72/100)^WFT.N.Slope,"mm","in")-'Ex 1.0'!$E$81)*'Ex 1.0'!$G$19,"") ->  | AB122: =IF(AND('Ex 1.0'!N$72<>"",'Ex 1.0'!N$39<>""),(CONVERT(WFT.N.Const*CONVERT('Ex 1.0'!$E$81,"in","mm")^WFT.N.MTD*CONVERT('Ex 1.0'!N$76,"ft","m")^WFT.N.DP*CONVERT(($Q$122),"in","mm")^WFT.N.Int*('Ex 1.0'!N$72/100)^WFT.N.Slope,"mm","in")-'Ex 1.0'!$E$81)*'Ex 1.0'!$G$19,"") ->  | AC122: =IF(AND('Ex 1.0'!O$72<>"",'Ex 1.0'!O$39<>""),(CONVERT(WFT.N.Const*CONVERT('Ex 1.0'!$E$81,"in","mm")^WFT.N.MTD*CONVERT('Ex 1.0'!O$76,"ft","m")^WFT.N.DP*CONVERT(($Q$122),"in","mm")^WFT.N.Int*('Ex 1.0'!O$72/100)^WFT.N.Slope,"mm","in")-'Ex 1.0'!$E$81)*'Ex 1.0'!$G$19,"") -> 
A123: 3 | B123: =IF(AND('Ex 1.0'!D$72<>"",'Ex 1.0'!D$39<>""),(WFT.G.Const*'Ex 1.0'!$E$81^WFT.G.MTD*'Ex 1.0'!D$76^WFT.G.DP*$A$123^WFT.G.Int*('Ex 1.0'!D$72/100)^WFT.G.Slope-'Ex 1.0'!$E$81)*'Ex 1.0'!$G$19,"") -> 0.06549048618 | C123: =IF(AND('Ex 1.0'!E$72<>"",'Ex 1.0'!E$39<>""),(WFT.G.Const*'Ex 1.0'!$E$81^WFT.G.MTD*'Ex 1.0'!E$76^WFT.G.DP*$A$123^WFT.G.Int*('Ex 1.0'!E$72/100)^WFT.G.Slope-'Ex 1.0'!$E$81)*'Ex 1.0'!$G$19,"") -> 0.0503098505 | D123: =IF(AND('Ex 1.0'!F$72<>"",'Ex 1.0'!F$39<>""),(WFT.G.Const*'Ex 1.0'!$E$81^WFT.G.MTD*'Ex 1.0'!F$76^WFT.G.DP*$A$123^WFT.G.Int*('Ex 1.0'!F$72/100)^WFT.G.Slope-'Ex 1.0'!$E$81)*'Ex 1.0'!$G$19,"") -> 0.0503098505 | E123: =IF(AND('Ex 1.0'!G$72<>"",'Ex 1.0'!G$39<>""),(WFT.G.Const*'Ex 1.0'!$E$81^WFT.G.MTD*'Ex 1.0'!G$76^WFT.G.DP*$A$123^WFT.G.Int*('Ex 1.0'!G$72/100)^WFT.G.Slope-'Ex 1.0'!$E$81)*'Ex 1.0'!$G$19,"") -> 0.08381409695 | F123: =IF(AND('Ex 1.0'!H$72<>"",'Ex 1.0'!H$39<>""),(WFT.G.Const*'Ex 1.0'!$E$81^WFT.G.MTD*'Ex 1.0'!H$76^WFT.G.DP*$A$123^WFT.G.Int*('Ex 1.0'!H$72/100)^WFT.G.Slope-'Ex 1.0'!$E$81)*'Ex 1.0'!$G$19,"") -> 0.1097859274 | G123: =IF(AND('Ex 1.0'!I$72<>"",'Ex 1.0'!I$39<>""),(WFT.G.Const*'Ex 1.0'!$E$81^WFT.G.MTD*'Ex 1.0'!I$76^WFT.G.DP*$A$123^WFT.G.Int*('Ex 1.0'!I$72/100)^WFT.G.Slope-'Ex 1.0'!$E$81)*'Ex 1.0'!$G$19,"") -> 0.1160744634 | H123: =IF(AND('Ex 1.0'!J$72<>"",'Ex 1.0'!J$39<>""),(WFT.G.Const*'Ex 1.0'!$E$81^WFT.G.MTD*'Ex 1.0'!J$76^WFT.G.DP*$A$123^WFT.G.Int*('Ex 1.0'!J$72/100)^WFT.G.Slope-'Ex 1.0'!$E$81)*'Ex 1.0'!$G$19,"") ->  | I123: =IF(AND('Ex 1.0'!K$72<>"",'Ex 1.0'!K$39<>""),(WFT.G.Const*'Ex 1.0'!$E$81^WFT.G.MTD*'Ex 1.0'!K$76^WFT.G.DP*$A$123^WFT.G.Int*('Ex 1.0'!K$72/100)^WFT.G.Slope-'Ex 1.0'!$E$81)*'Ex 1.0'!$G$19,"") ->  | J123: =IF(AND('Ex 1.0'!L$72<>"",'Ex 1.0'!L$39<>""),(WFT.G.Const*'Ex 1.0'!$E$81^WFT.G.MTD*'Ex 1.0'!L$76^WFT.G.DP*$A$123^WFT.G.Int*('Ex 1.0'!L$72/100)^WFT.G.Slope-'Ex 1.0'!$E$81)*'Ex 1.0'!$G$19,"") ->  | K123: =IF(AND('Ex 1.0'!M$72<>"",'Ex 1.0'!M$39<>""),(WFT.G.Const*'Ex 1.0'!$E$81^WFT.G.MTD*'Ex 1.0'!M$76^WFT.G.DP*$A$123^WFT.G.Int*('Ex 1.0'!M$72/100)^WFT.G.Slope-'Ex 1.0'!$E$81)*'Ex 1.0'!$G$19,"") ->  | L123: =IF(AND('Ex 1.0'!N$72<>"",'Ex 1.0'!N$39<>""),(WFT.G.Const*'Ex 1.0'!$E$81^WFT.G.MTD*'Ex 1.0'!N$76^WFT.G.DP*$A$123^WFT.G.Int*('Ex 1.0'!N$72/100)^WFT.G.Slope-'Ex 1.0'!$E$81)*'Ex 1.0'!$G$19,"") ->  | M123: =IF(AND('Ex 1.0'!O$72<>"",'Ex 1.0'!O$39<>""),(WFT.G.Const*'Ex 1.0'!$E$81^WFT.G.MTD*'Ex 1.0'!O$76^WFT.G.DP*$A$123^WFT.G.Int*('Ex 1.0'!O$72/100)^WFT.G.Slope-'Ex 1.0'!$E$81)*'Ex 1.0'!$G$19,"") ->  | Q123: 3 | R123: =IF(AND('Ex 1.0'!D$72<>"",'Ex 1.0'!D$39<>""),(CONVERT(WFT.N.Const*CONVERT('Ex 1.0'!$E$81,"in","mm")^WFT.N.MTD*CONVERT('Ex 1.0'!D$76,"ft","m")^WFT.N.DP*CONVERT(($Q$123),"in","mm")^WFT.N.Int*('Ex 1.0'!D$72/100)^WFT.N.Slope,"mm","in")-'Ex 1.0'!$E$81)*'Ex 1.0'!$G$19,"") -> 0.0479070183 | S123: =IF(AND('Ex 1.0'!E$72<>"",'Ex 1.0'!E$39<>""),(CONVERT(WFT.N.Const*CONVERT('Ex 1.0'!$E$81,"in","mm")^WFT.N.MTD*CONVERT('Ex 1.0'!E$76,"ft","m")^WFT.N.DP*CONVERT(($Q$123),"in","mm")^WFT.N.Int*('Ex 1.0'!E$72/100)^WFT.N.Slope,"mm","in")-'Ex 1.0'!$E$81)*'Ex 1.0'!$G$19,"") -> 0.03890443826 | T123: =IF(AND('Ex 1.0'!F$72<>"",'Ex 1.0'!F$39<>""),(CONVERT(WFT.N.Const*CONVERT('Ex 1.0'!$E$81,"in","mm")^WFT.N.MTD*CONVERT('Ex 1.0'!F$76,"ft","m")^WFT.N.DP*CONVERT(($Q$123),"in","mm")^WFT.N.Int*('Ex 1.0'!F$72/100)^WFT.N.Slope,"mm","in")-'Ex 1.0'!$E$81)*'Ex 1.0'!$G$19,"") -> 0.03890443826 | U123: =IF(AND('Ex 1.0'!G$72<>"",'Ex 1.0'!G$39<>""),(CONVERT(WFT.N.Const*CONVERT('Ex 1.0'!$E$81,"in","mm")^WFT.N.MTD*CONVERT('Ex 1.0'!G$76,"ft","m")^WFT.N.DP*CONVERT(($Q$123),"in","mm")^WFT.N.Int*('Ex 1.0'!G$72/100)^WFT.N.Slope,"mm","in")-'Ex 1.0'!$E$81)*'Ex 1.0'!$G$19,"") -> 0.06181437284 | V123: =IF(AND('Ex 1.0'!H$72<>"",'Ex 1.0'!H$39<>""),(CONVERT(WFT.N.Const*CONVERT('Ex 1.0'!$E$81,"in","mm")^WFT.N.MTD*CONVERT('Ex 1.0'!H$76,"ft","m")^WFT.N.DP*CONVERT(($Q$123),"in","mm")^WFT.N.Int*('Ex 1.0'!H$72/100)^WFT.N.Slope,"mm","in")-'Ex 1.0'!$E$81)*'Ex 1.0'!$G$19,"") -> 0.07874513568 | W123: =IF(AND('Ex 1.0'!I$72<>"",'Ex 1.0'!I$39<>""),(CONVERT(WFT.N.Const*CONVERT('Ex 1.0'!$E$81,"in","mm")^WFT.N.MTD*CONVERT('Ex 1.0'!I$76,"ft","m")^WFT.N.DP*CONVERT(($Q$123),"in","mm")^WFT.N.Int*('Ex 1.0'!I$72/100)^WFT.N.Slope,"mm","in")-'Ex 1.0'!$E$81)*'Ex 1.0'!$G$19,"") -> 0.08052903802 | X123: =IF(AND('Ex 1.0'!J$72<>"",'Ex 1.0'!J$39<>""),(CONVERT(WFT.N.Const*CONVERT('Ex 1.0'!$E$81,"in","mm")^WFT.N.MTD*CONVERT('Ex 1.0'!J$76,"ft","m")^WFT.N.DP*CONVERT(($Q$123),"in","mm")^WFT.N.Int*('Ex 1.0'!J$72/100)^WFT.N.Slope,"mm","in")-'Ex 1.0'!$E$81)*'Ex 1.0'!$G$19,"") ->  | Y123: =IF(AND('Ex 1.0'!K$72<>"",'Ex 1.0'!K$39<>""),(CONVERT(WFT.N.Const*CONVERT('Ex 1.0'!$E$81,"in","mm")^WFT.N.MTD*CONVERT('Ex 1.0'!K$76,"ft","m")^WFT.N.DP*CONVERT(($Q$123),"in","mm")^WFT.N.Int*('Ex 1.0'!K$72/100)^WFT.N.Slope,"mm","in")-'Ex 1.0'!$E$81)*'Ex 1.0'!$G$19,"") ->  | Z123: =IF(AND('Ex 1.0'!L$72<>"",'Ex 1.0'!L$39<>""),(CONVERT(WFT.N.Const*CONVERT('Ex 1.0'!$E$81,"in","mm")^WFT.N.MTD*CONVERT('Ex 1.0'!L$76,"ft","m")^WFT.N.DP*CONVERT(($Q$123),"in","mm")^WFT.N.Int*('Ex 1.0'!L$72/100)^WFT.N.Slope,"mm","in")-'Ex 1.0'!$E$81)*'Ex 1.0'!$G$19,"") ->  | AA123: =IF(AND('Ex 1.0'!M$72<>"",'Ex 1.0'!M$39<>""),(CONVERT(WFT.N.Const*CONVERT('Ex 1.0'!$E$81,"in","mm")^WFT.N.MTD*CONVERT('Ex 1.0'!M$76,"ft","m")^WFT.N.DP*CONVERT(($Q$123),"in","mm")^WFT.N.Int*('Ex 1.0'!M$72/100)^WFT.N.Slope,"mm","in")-'Ex 1.0'!$E$81)*'Ex 1.0'!$G$19,"") ->  | AB123: =IF(AND('Ex 1.0'!N$72<>"",'Ex 1.0'!N$39<>""),(CONVERT(WFT.N.Const*CONVERT('Ex 1.0'!$E$81,"in","mm")^WFT.N.MTD*CONVERT('Ex 1.0'!N$76,"ft","m")^WFT.N.DP*CONVERT(($Q$123),"in","mm")^WFT.N.Int*('Ex 1.0'!N$72/100)^WFT.N.Slope,"mm","in")-'Ex 1.0'!$E$81)*'Ex 1.0'!$G$19,"") ->  | AC123: =IF(AND('Ex 1.0'!O$72<>"",'Ex 1.0'!O$39<>""),(CONVERT(WFT.N.Const*CONVERT('Ex 1.0'!$E$81,"in","mm")^WFT.N.MTD*CONVERT('Ex 1.0'!O$76,"ft","m")^WFT.N.DP*CONVERT(($Q$123),"in","mm")^WFT.N.Int*('Ex 1.0'!O$72/100)^WFT.N.Slope,"mm","in")-'Ex 1.0'!$E$81)*'Ex 1.0'!$G$19,"") -> 
A124: 4 | B124: =IF(AND('Ex 1.0'!D$72<>"",'Ex 1.0'!D$39<>""),(WFT.G.Const*'Ex 1.0'!$E$81^WFT.G.MTD*'Ex 1.0'!D$76^WFT.G.DP*$A$124^WFT.G.Int*('Ex 1.0'!D$72/100)^WFT.G.Slope-'Ex 1.0'!$E$81)*'Ex 1.0'!$G$19,"") -> 0.08173378658 | C124: =IF(AND('Ex 1.0'!E$72<>"",'Ex 1.0'!E$39<>""),(WFT.G.Const*'Ex 1.0'!$E$81^WFT.G.MTD*'Ex 1.0'!E$76^WFT.G.DP*$A$124^WFT.G.Int*('Ex 1.0'!E$72/100)^WFT.G.Slope-'Ex 1.0'!$E$81)*'Ex 1.0'!$G$19,"") -> 0.06388923957 | D124: =IF(AND('Ex 1.0'!F$72<>"",'Ex 1.0'!F$39<>""),(WFT.G.Const*'Ex 1.0'!$E$81^WFT.G.MTD*'Ex 1.0'!F$76^WFT.G.DP*$A$124^WFT.G.Int*('Ex 1.0'!F$72/100)^WFT.G.Slope-'Ex 1.0'!$E$81)*'Ex 1.0'!$G$19,"") -> 0.06388923957 | E124: =IF(AND('Ex 1.0'!G$72<>"",'Ex 1.0'!G$39<>""),(WFT.G.Const*'Ex 1.0'!$E$81^WFT.G.MTD*'Ex 1.0'!G$76^WFT.G.DP*$A$124^WFT.G.Int*('Ex 1.0'!G$72/100)^WFT.G.Slope-'Ex 1.0'!$E$81)*'Ex 1.0'!$G$19,"") -> 0.1032728407 | F124: =IF(AND('Ex 1.0'!H$72<>"",'Ex 1.0'!H$39<>""),(WFT.G.Const*'Ex 1.0'!$E$81^WFT.G.MTD*'Ex 1.0'!H$76^WFT.G.DP*$A$124^WFT.G.Int*('Ex 1.0'!H$72/100)^WFT.G.Slope-'Ex 1.0'!$E$81)*'Ex 1.0'!$G$19,"") -> 0.1338022309 | G124: =IF(AND('Ex 1.0'!I$72<>"",'Ex 1.0'!I$39<>""),(WFT.G.Const*'Ex 1.0'!$E$81^WFT.G.MTD*'Ex 1.0'!I$76^WFT.G.DP*$A$124^WFT.G.Int*('Ex 1.0'!I$72/100)^WFT.G.Slope-'Ex 1.0'!$E$81)*'Ex 1.0'!$G$19,"") -> 0.1411942847 | H124: =IF(AND('Ex 1.0'!J$72<>"",'Ex 1.0'!J$39<>""),(WFT.G.Const*'Ex 1.0'!$E$81^WFT.G.MTD*'Ex 1.0'!J$76^WFT.G.DP*$A$124^WFT.G.Int*('Ex 1.0'!J$72/100)^WFT.G.Slope-'Ex 1.0'!$E$81)*'Ex 1.0'!$G$19,"") ->  | I124: =IF(AND('Ex 1.0'!K$72<>"",'Ex 1.0'!K$39<>""),(WFT.G.Const*'Ex 1.0'!$E$81^WFT.G.MTD*'Ex 1.0'!K$76^WFT.G.DP*$A$124^WFT.G.Int*('Ex 1.0'!K$72/100)^WFT.G.Slope-'Ex 1.0'!$E$81)*'Ex 1.0'!$G$19,"") ->  | J124: =IF(AND('Ex 1.0'!L$72<>"",'Ex 1.0'!L$39<>""),(WFT.G.Const*'Ex 1.0'!$E$81^WFT.G.MTD*'Ex 1.0'!L$76^WFT.G.DP*$A$124^WFT.G.Int*('Ex 1.0'!L$72/100)^WFT.G.Slope-'Ex 1.0'!$E$81)*'Ex 1.0'!$G$19,"") ->  | K124: =IF(AND('Ex 1.0'!M$72<>"",'Ex 1.0'!M$39<>""),(WFT.G.Const*'Ex 1.0'!$E$81^WFT.G.MTD*'Ex 1.0'!M$76^WFT.G.DP*$A$124^WFT.G.Int*('Ex 1.0'!M$72/100)^WFT.G.Slope-'Ex 1.0'!$E$81)*'Ex 1.0'!$G$19,"") ->  | L124: =IF(AND('Ex 1.0'!N$72<>"",'Ex 1.0'!N$39<>""),(WFT.G.Const*'Ex 1.0'!$E$81^WFT.G.MTD*'Ex 1.0'!N$76^WFT.G.DP*$A$124^WFT.G.Int*('Ex 1.0'!N$72/100)^WFT.G.Slope-'Ex 1.0'!$E$81)*'Ex 1.0'!$G$19,"") ->  | M124: =IF(AND('Ex 1.0'!O$72<>"",'Ex 1.0'!O$39<>""),(WFT.G.Const*'Ex 1.0'!$E$81^WFT.G.MTD*'Ex 1.0'!O$76^WFT.G.DP*$A$124^WFT.G.Int*('Ex 1.0'!O$72/100)^WFT.G.Slope-'Ex 1.0'!$E$81)*'Ex 1.0'!$G$19,"") ->  | Q124: 4 | R124: =IF(AND('Ex 1.0'!D$72<>"",'Ex 1.0'!D$39<>""),(CONVERT(WFT.N.Const*CONVERT('Ex 1.0'!$E$81,"in","mm")^WFT.N.MTD*CONVERT('Ex 1.0'!D$76,"ft","m")^WFT.N.DP*CONVERT(($Q$124),"in","mm")^WFT.N.Int*('Ex 1.0'!D$72/100)^WFT.N.Slope,"mm","in")-'Ex 1.0'!$E$81)*'Ex 1.0'!$G$19,"") -> 0.06177758982 | S124: =IF(AND('Ex 1.0'!E$72<>"",'Ex 1.0'!E$39<>""),(CONVERT(WFT.N.Const*CONVERT('Ex 1.0'!$E$81,"in","mm")^WFT.N.MTD*CONVERT('Ex 1.0'!E$76,"ft","m")^WFT.N.DP*CONVERT(($Q$124),"in","mm")^WFT.N.Int*('Ex 1.0'!E$72/100)^WFT.N.Slope,"mm","in")-'Ex 1.0'!$E$81)*'Ex 1.0'!$G$19,"") -> 0.0511096429 | T124: =IF(AND('Ex 1.0'!F$72<>"",'Ex 1.0'!F$39<>""),(CONVERT(WFT.N.Const*CONVERT('Ex 1.0'!$E$81,"in","mm")^WFT.N.MTD*CONVERT('Ex 1.0'!F$76,"ft","m")^WFT.N.DP*CONVERT(($Q$124),"in","mm")^WFT.N.Int*('Ex 1.0'!F$72/100)^WFT.N.Slope,"mm","in")-'Ex 1.0'!$E$81)*'Ex 1.0'!$G$19,"") -> 0.0511096429 | U124: =IF(AND('Ex 1.0'!G$72<>"",'Ex 1.0'!G$39<>""),(CONVERT(WFT.N.Const*CONVERT('Ex 1.0'!$E$81,"in","mm")^WFT.N.MTD*CONVERT('Ex 1.0'!G$76,"ft","m")^WFT.N.DP*CONVERT(($Q$124),"in","mm")^WFT.N.Int*('Ex 1.0'!G$72/100)^WFT.N.Slope,"mm","in")-'Ex 1.0'!$E$81)*'Ex 1.0'!$G$19,"") -> 0.07825763435 | V124: =IF(AND('Ex 1.0'!H$72<>"",'Ex 1.0'!H$39<>""),(CONVERT(WFT.N.Const*CONVERT('Ex 1.0'!$E$81,"in","mm")^WFT.N.MTD*CONVERT('Ex 1.0'!H$76,"ft","m")^WFT.N.DP*CONVERT(($Q$124),"in","mm")^WFT.N.Int*('Ex 1.0'!H$72/100)^WFT.N.Slope,"mm","in")-'Ex 1.0'!$E$81)*'Ex 1.0'!$G$19,"") -> 0.09832038063 | W124: =IF(AND('Ex 1.0'!I$72<>"",'Ex 1.0'!I$39<>""),(CONVERT(WFT.N.Const*CONVERT('Ex 1.0'!$E$81,"in","mm")^WFT.N.MTD*CONVERT('Ex 1.0'!I$76,"ft","m")^WFT.N.DP*CONVERT(($Q$124),"in","mm")^WFT.N.Int*('Ex 1.0'!I$72/100)^WFT.N.Slope,"mm","in")-'Ex 1.0'!$E$81)*'Ex 1.0'!$G$19,"") -> 0.100434283 | X124: =IF(AND('Ex 1.0'!J$72<>"",'Ex 1.0'!J$39<>""),(CONVERT(WFT.N.Const*CONVERT('Ex 1.0'!$E$81,"in","mm")^WFT.N.MTD*CONVERT('Ex 1.0'!J$76,"ft","m")^WFT.N.DP*CONVERT(($Q$124),"in","mm")^WFT.N.Int*('Ex 1.0'!J$72/100)^WFT.N.Slope,"mm","in")-'Ex 1.0'!$E$81)*'Ex 1.0'!$G$19,"") ->  | Y124: =IF(AND('Ex 1.0'!K$72<>"",'Ex 1.0'!K$39<>""),(CONVERT(WFT.N.Const*CONVERT('Ex 1.0'!$E$81,"in","mm")^WFT.N.MTD*CONVERT('Ex 1.0'!K$76,"ft","m")^WFT.N.DP*CONVERT(($Q$124),"in","mm")^WFT.N.Int*('Ex 1.0'!K$72/100)^WFT.N.Slope,"mm","in")-'Ex 1.0'!$E$81)*'Ex 1.0'!$G$19,"") ->  | Z124: =IF(AND('Ex 1.0'!L$72<>"",'Ex 1.0'!L$39<>""),(CONVERT(WFT.N.Const*CONVERT('Ex 1.0'!$E$81,"in","mm")^WFT.N.MTD*CONVERT('Ex 1.0'!L$76,"ft","m")^WFT.N.DP*CONVERT(($Q$124),"in","mm")^WFT.N.Int*('Ex 1.0'!L$72/100)^WFT.N.Slope,"mm","in")-'Ex 1.0'!$E$81)*'Ex 1.0'!$G$19,"") ->  | AA124: =IF(AND('Ex 1.0'!M$72<>"",'Ex 1.0'!M$39<>""),(CONVERT(WFT.N.Const*CONVERT('Ex 1.0'!$E$81,"in","mm")^WFT.N.MTD*CONVERT('Ex 1.0'!M$76,"ft","m")^WFT.N.DP*CONVERT(($Q$124),"in","mm")^WFT.N.Int*('Ex 1.0'!M$72/100)^WFT.N.Slope,"mm","in")-'Ex 1.0'!$E$81)*'Ex 1.0'!$G$19,"") ->  | AB124: =IF(AND('Ex 1.0'!N$72<>"",'Ex 1.0'!N$39<>""),(CONVERT(WFT.N.Const*CONVERT('Ex 1.0'!$E$81,"in","mm")^WFT.N.MTD*CONVERT('Ex 1.0'!N$76,"ft","m")^WFT.N.DP*CONVERT(($Q$124),"in","mm")^WFT.N.Int*('Ex 1.0'!N$72/100)^WFT.N.Slope,"mm","in")-'Ex 1.0'!$E$81)*'Ex 1.0'!$G$19,"") ->  | AC124: =IF(AND('Ex 1.0'!O$72<>"",'Ex 1.0'!O$39<>""),(CONVERT(WFT.N.Const*CONVERT('Ex 1.0'!$E$81,"in","mm")^WFT.N.MTD*CONVERT('Ex 1.0'!O$76,"ft","m")^WFT.N.DP*CONVERT(($Q$124),"in","mm")^WFT.N.Int*('Ex 1.0'!O$72/100)^WFT.N.Slope,"mm","in")-'Ex 1.0'!$E$81)*'Ex 1.0'!$G$19,"") -> 
A127: UK RRL | Q127: PAVDRN
A128: Plane Number | B128: 1 | C128: 2 | D128: 3 | E128: 4 | F128: 5 | G128: 6 | H128: 7 | I128: 8 | J128: 9 | K128: 10 | L128: 11 | M128: 12 | Q128: Plane Number | R128: 1 | S128: 2 | T128: 3 | U128: 4 | V128: 5 | W128: 6 | X128: 7 | Y128: 8 | Z128: 9 | AA128: 10 | AB128: 11 | AC128: 12
A129: Intensity (in/hr) | B129: Shoulder | C129: Lane 1 | D129: Lane 2 | E129: Lane 3 | F129: Lane 4 | G129: Lane 5 | H129: Lane 6 | I129: Lane 7 | J129: Lane 8 | K129: Lane 9 | L129: Lane 10 | M129: Lane 11 | Q129: Intensity (in/hr) | R129: Shoulder | S129: Lane 1 | T129: Lane 2 | U129: Lane 3 | V129: Lane 4 | W129: Lane 5 | X129: Lane 6 | Y129: Lane 7 | Z129: Lane 8 | AA129: Lane 9 | AB129: Lane 10 | AC129: Lane 11
A130: 0.1 | B130: =IF(AND('Ex 1.0'!D$72<>"",'Ex 1.0'!D$39<>""),(CONVERT(WFT.U.Const*CONVERT('Ex 1.0'!D$76,"ft","m")^WFT.U.DP*CONVERT(($A$130),"in","mm")^WFT.U.Int*('Ex 1.0'!D$72/100)^WFT.U.Slope,"mm","in")-'Ex 1.0'!$E$81)*'Ex 1.0'!$G$19,"") -> -0.00725602962 | C130: =IF(AND('Ex 1.0'!E$72<>"",'Ex 1.0'!E$39<>""),(CONVERT(WFT.U.Const*CONVERT('Ex 1.0'!E$76,"ft","m")^WFT.U.DP*CONVERT(($A$130),"in","mm")^WFT.U.Int*('Ex 1.0'!E$72/100)^WFT.U.Slope,"mm","in")-'Ex 1.0'!$E$81)*'Ex 1.0'!$G$19,"") -> -0.01082661923 | D130: =IF(AND('Ex 1.0'!F$72<>"",'Ex 1.0'!F$39<>""),(CONVERT(WFT.U.Const*CONVERT('Ex 1.0'!F$76,"ft","m")^WFT.U.DP*CONVERT(($A$130),"in","mm")^WFT.U.Int*('Ex 1.0'!F$72/100)^WFT.U.Slope,"mm","in")-'Ex 1.0'!$E$81)*'Ex 1.0'!$G$19,"") -> -0.01082661923 | E130: =IF(AND('Ex 1.0'!G$72<>"",'Ex 1.0'!G$39<>""),(CONVERT(WFT.U.Const*CONVERT('Ex 1.0'!G$76,"ft","m")^WFT.U.DP*CONVERT(($A$130),"in","mm")^WFT.U.Int*('Ex 1.0'!G$72/100)^WFT.U.Slope,"mm","in")-'Ex 1.0'!$E$81)*'Ex 1.0'!$G$19,"") -> -0.004096727238 | F130: =IF(AND('Ex 1.0'!H$72<>"",'Ex 1.0'!H$39<>""),(CONVERT(WFT.U.Const*CONVERT('Ex 1.0'!H$76,"ft","m")^WFT.U.DP*CONVERT(($A$130),"in","mm")^WFT.U.Int*('Ex 1.0'!H$72/100)^WFT.U.Slope,"mm","in")-'Ex 1.0'!$E$81)*'Ex 1.0'!$G$19,"") -> 0.001067300513 | G130: =IF(AND('Ex 1.0'!I$72<>"",'Ex 1.0'!I$39<>""),(CONVERT(WFT.U.Const*CONVERT('Ex 1.0'!I$76,"ft","m")^WFT.U.DP*CONVERT(($A$130),"in","mm")^WFT.U.Int*('Ex 1.0'!I$72/100)^WFT.U.Slope,"mm","in")-'Ex 1.0'!$E$81)*'Ex 1.0'!$G$19,"") -> 0.003088682158 | H130: =IF(AND('Ex 1.0'!J$72<>"",'Ex 1.0'!J$39<>""),(CONVERT(WFT.U.Const*CONVERT('Ex 1.0'!J$76,"ft","m")^WFT.U.DP*CONVERT(($A$130),"in","mm")^WFT.U.Int*('Ex 1.0'!J$72/100)^WFT.U.Slope,"mm","in")-'Ex 1.0'!$E$81)*'Ex 1.0'!$G$19,"") ->  | I130: =IF(AND('Ex 1.0'!K$72<>"",'Ex 1.0'!K$39<>""),(CONVERT(WFT.U.Const*CONVERT('Ex 1.0'!K$76,"ft","m")^WFT.U.DP*CONVERT(($A$130),"in","mm")^WFT.U.Int*('Ex 1.0'!K$72/100)^WFT.U.Slope,"mm","in")-'Ex 1.0'!$E$81)*'Ex 1.0'!$G$19,"") ->  | J130: =IF(AND('Ex 1.0'!L$72<>"",'Ex 1.0'!L$39<>""),(CONVERT(WFT.U.Const*CONVERT('Ex 1.0'!L$76,"ft","m")^WFT.U.DP*CONVERT(($A$130),"in","mm")^WFT.U.Int*('Ex 1.0'!L$72/100)^WFT.U.Slope,"mm","in")-'Ex 1.0'!$E$81)*'Ex 1.0'!$G$19,"") ->  | K130: =IF(AND('Ex 1.0'!M$72<>"",'Ex 1.0'!M$39<>""),(CONVERT(WFT.U.Const*CONVERT('Ex 1.0'!M$76,"ft","m")^WFT.U.DP*CONVERT(($A$130),"in","mm")^WFT.U.Int*('Ex 1.0'!M$72/100)^WFT.U.Slope,"mm","in")-'Ex 1.0'!$E$81)*'Ex 1.0'!$G$19,"") ->  | L130: =IF(AND('Ex 1.0'!N$72<>"",'Ex 1.0'!N$39<>""),(CONVERT(WFT.U.Const*CONVERT('Ex 1.0'!N$76,"ft","m")^WFT.U.DP*CONVERT(($A$130),"in","mm")^WFT.U.Int*('Ex 1.0'!N$72/100)^WFT.U.Slope,"mm","in")-'Ex 1.0'!$E$81)*'Ex 1.0'!$G$19,"") ->  | M130: =IF(AND('Ex 1.0'!O$72<>"",'Ex 1.0'!O$39<>""),(CONVERT(WFT.U.Const*CONVERT('Ex 1.0'!O$76,"ft","m")^WFT.U.DP*CONVERT(($A$130),"in","mm")^WFT.U.Int*('Ex 1.0'!O$72/100)^WFT.U.Slope,"mm","in")-'Ex 1.0'!$E$81)*'Ex 1.0'!$G$19,"") ->  | Q130: 0.1 | R130: =IF(AND('Ex 1.0'!D$72<>"",'Ex 1.0'!D$39<>""),(CONVERT(WFT.P.Const*D98^WFT.P.Manni*CONVERT('Ex 1.0'!D$76,"ft","m")^WFT.P.DP*CONVERT(($Q$130),"in","mm")^WFT.P.Int*('Ex 1.0'!D$72/100)^WFT.P.Slope,"mm","in")-'Ex 1.0'!$E$81)*'Ex 1.0'!$G$19,"") -> -0.009462764117 | S130: =IF(AND('Ex 1.0'!E$72<>"",'Ex 1.0'!E$39<>""),(CONVERT(WFT.P.Const*E98^WFT.P.Manni*CONVERT('Ex 1.0'!E$76,"ft","m")^WFT.P.DP*CONVERT(($Q$130),"in","mm")^WFT.P.Int*('Ex 1.0'!E$72/100)^WFT.P.Slope,"mm","in")-'Ex 1.0'!$E$81)*'Ex 1.0'!$G$19,"") -> -0.01235342154 | T130: =IF(AND('Ex 1.0'!F$72<>"",'Ex 1.0'!F$39<>""),(CONVERT(WFT.P.Const*F98^WFT.P.Manni*CONVERT('Ex 1.0'!F$76,"ft","m")^WFT.P.DP*CONVERT(($Q$130),"in","mm")^WFT.P.Int*('Ex 1.0'!F$72/100)^WFT.P.Slope,"mm","in")-'Ex 1.0'!$E$81)*'Ex 1.0'!$G$19,"") -> -0.01235342154 | U130: =IF(AND('Ex 1.0'!G$72<>"",'Ex 1.0'!G$39<>""),(CONVERT(WFT.P.Const*G98^WFT.P.Manni*CONVERT('Ex 1.0'!G$76,"ft","m")^WFT.P.DP*CONVERT(($Q$130),"in","mm")^WFT.P.Int*('Ex 1.0'!G$72/100)^WFT.P.Slope,"mm","in")-'Ex 1.0'!$E$81)*'Ex 1.0'!$G$19,"") -> -0.006319346979 | V130: =IF(AND('Ex 1.0'!H$72<>"",'Ex 1.0'!H$39<>""),(CONVERT(WFT.P.Const*H98^WFT.P.Manni*CONVERT('Ex 1.0'!H$76,"ft","m")^WFT.P.DP*CONVERT(($Q$130),"in","mm")^WFT.P.Int*('Ex 1.0'!H$72/100)^WFT.P.Slope,"mm","in")-'Ex 1.0'!$E$81)*'Ex 1.0'!$G$19,"") -> -0.001700150176 | W130: =IF(AND('Ex 1.0'!I$72<>"",'Ex 1.0'!I$39<>""),(CONVERT(WFT.P.Const*I98^WFT.P.Manni*CONVERT('Ex 1.0'!I$76,"ft","m")^WFT.P.DP*CONVERT(($Q$130),"in","mm")^WFT.P.Int*('Ex 1.0'!I$72/100)^WFT.P.Slope,"mm","in")-'Ex 1.0'!$E$81)*'Ex 1.0'!$G$19,"") -> -0.0003688257069 | X130: =IF(AND('Ex 1.0'!J$72<>"",'Ex 1.0'!J$39<>""),(CONVERT(WFT.P.Const*J98^WFT.P.Manni*CONVERT('Ex 1.0'!J$76,"ft","m")^WFT.P.DP*CONVERT(($Q$130),"in","mm")^WFT.P.Int*('Ex 1.0'!J$72/100)^WFT.P.Slope,"mm","in")-'Ex 1.0'!$E$81)*'Ex 1.0'!$G$19,"") ->  | Y130: =IF(AND('Ex 1.0'!K$72<>"",'Ex 1.0'!K$39<>""),(CONVERT(WFT.P.Const*K98^WFT.P.Manni*CONVERT('Ex 1.0'!K$76,"ft","m")^WFT.P.DP*CONVERT(($Q$130),"in","mm")^WFT.P.Int*('Ex 1.0'!K$72/100)^WFT.P.Slope,"mm","in")-'Ex 1.0'!$E$81)*'Ex 1.0'!$G$19,"") ->  | Z130: =IF(AND('Ex 1.0'!L$72<>"",'Ex 1.0'!L$39<>""),(CONVERT(WFT.P.Const*L98^WFT.P.Manni*CONVERT('Ex 1.0'!L$76,"ft","m")^WFT.P.DP*CONVERT(($Q$130),"in","mm")^WFT.P.Int*('Ex 1.0'!L$72/100)^WFT.P.Slope,"mm","in")-'Ex 1.0'!$E$81)*'Ex 1.0'!$G$19,"") ->  | AA130: =IF(AND('Ex 1.0'!M$72<>"",'Ex 1.0'!M$39<>""),(CONVERT(WFT.P.Const*M98^WFT.P.Manni*CONVERT('Ex 1.0'!M$76,"ft","m")^WFT.P.DP*CONVERT(($Q$130),"in","mm")^WFT.P.Int*('Ex 1.0'!M$72/100)^WFT.P.Slope,"mm","in")-'Ex 1.0'!$E$81)*'Ex 1.0'!$G$19,"") ->  | AB130: =IF(AND('Ex 1.0'!N$72<>"",'Ex 1.0'!N$39<>""),(CONVERT(WFT.P.Const*N98^WFT.P.Manni*CONVERT('Ex 1.0'!N$76,"ft","m")^WFT.P.DP*CONVERT(($Q$130),"in","mm")^WFT.P.Int*('Ex 1.0'!N$72/100)^WFT.P.Slope,"mm","in")-'Ex 1.0'!$E$81)*'Ex 1.0'!$G$19,"") ->  | AC130: =IF(AND('Ex 1.0'!O$72<>"",'Ex 1.0'!O$39<>""),(CONVERT(WFT.P.Const*O98^WFT.P.Manni*CONVERT('Ex 1.0'!O$76,"ft","m")^WFT.P.DP*CONVERT(($Q$130),"in","mm")^WFT.P.Int*('Ex 1.0'!O$72/100)^WFT.P.Slope,"mm","in")-'Ex 1.0'!$E$81)*'Ex 1.0'!$G$19,"") -> 
A131: 0.25 | B131: =IF(AND('Ex 1.0'!D$72<>"",'Ex 1.0'!D$39<>""),(CONVERT(WFT.U.Const*CONVERT('Ex 1.0'!D$76,"ft","m")^WFT.U.DP*CONVERT(($A$131),"in","mm")^WFT.U.Int*('Ex 1.0'!D$72/100)^WFT.U.Slope,"mm","in")-'Ex 1.0'!$E$81)*'Ex 1.0'!$G$19,"") -> 0.004260971654 | C131: =IF(AND('Ex 1.0'!E$72<>"",'Ex 1.0'!E$39<>""),(CONVERT(WFT.U.Const*CONVERT('Ex 1.0'!E$76,"ft","m")^WFT.U.DP*CONVERT(($A$131),"in","mm")^WFT.U.Int*('Ex 1.0'!E$72/100)^WFT.U.Slope,"mm","in")-'Ex 1.0'!$E$81)*'Ex 1.0'!$G$19,"") -> -0.001384626225 | D131: =IF(AND('Ex 1.0'!F$72<>"",'Ex 1.0'!F$39<>""),(CONVERT(WFT.U.Const*CONVERT('Ex 1.0'!F$76,"ft","m")^WFT.U.DP*CONVERT(($A$131),"in","mm")^WFT.U.Int*('Ex 1.0'!F$72/100)^WFT.U.Slope,"mm","in")-'Ex 1.0'!$E$81)*'Ex 1.0'!$G$19,"") -> -0.001384626225 | E131: =IF(AND('Ex 1.0'!G$72<>"",'Ex 1.0'!G$39<>""),(CONVERT(WFT.U.Const*CONVERT('Ex 1.0'!G$76,"ft","m")^WFT.U.DP*CONVERT(($A$131),"in","mm")^WFT.U.Int*('Ex 1.0'!G$72/100)^WFT.U.Slope,"mm","in")-'Ex 1.0'!$E$81)*'Ex 1.0'!$G$19,"") -> 0.009256267325 | F131: =IF(AND('Ex 1.0'!H$72<>"",'Ex 1.0'!H$39<>""),(CONVERT(WFT.U.Const*CONVERT('Ex 1.0'!H$76,"ft","m")^WFT.U.DP*CONVERT(($A$131),"in","mm")^WFT.U.Int*('Ex 1.0'!H$72/100)^WFT.U.Slope,"mm","in")-'Ex 1.0'!$E$81)*'Ex 1.0'!$G$19,"") -> 0.01742131212 | G131: =IF(AND('Ex 1.0'!I$72<>"",'Ex 1.0'!I$39<>""),(CONVERT(WFT.U.Const*CONVERT('Ex 1.0'!I$76,"ft","m")^WFT.U.DP*CONVERT(($A$131),"in","mm")^WFT.U.Int*('Ex 1.0'!I$72/100)^WFT.U.Slope,"mm","in")-'Ex 1.0'!$E$81)*'Ex 1.0'!$G$19,"") -> 0.02061739713 | H131: =IF(AND('Ex 1.0'!J$72<>"",'Ex 1.0'!J$39<>""),(CONVERT(WFT.U.Const*CONVERT('Ex 1.0'!J$76,"ft","m")^WFT.U.DP*CONVERT(($A$131),"in","mm")^WFT.U.Int*('Ex 1.0'!J$72/100)^WFT.U.Slope,"mm","in")-'Ex 1.0'!$E$81)*'Ex 1.0'!$G$19,"") ->  | I131: =IF(AND('Ex 1.0'!K$72<>"",'Ex 1.0'!K$39<>""),(CONVERT(WFT.U.Const*CONVERT('Ex 1.0'!K$76,"ft","m")^WFT.U.DP*CONVERT(($A$131),"in","mm")^WFT.U.Int*('Ex 1.0'!K$72/100)^WFT.U.Slope,"mm","in")-'Ex 1.0'!$E$81)*'Ex 1.0'!$G$19,"") ->  | J131: =IF(AND('Ex 1.0'!L$72<>"",'Ex 1.0'!L$39<>""),(CONVERT(WFT.U.Const*CONVERT('Ex 1.0'!L$76,"ft","m")^WFT.U.DP*CONVERT(($A$131),"in","mm")^WFT.U.Int*('Ex 1.0'!L$72/100)^WFT.U.Slope,"mm","in")-'Ex 1.0'!$E$81)*'Ex 1.0'!$G$19,"") ->  | K131: =IF(AND('Ex 1.0'!M$72<>"",'Ex 1.0'!M$39<>""),(CONVERT(WFT.U.Const*CONVERT('Ex 1.0'!M$76,"ft","m")^WFT.U.DP*CONVERT(($A$131),"in","mm")^WFT.U.Int*('Ex 1.0'!M$72/100)^WFT.U.Slope,"mm","in")-'Ex 1.0'!$E$81)*'Ex 1.0'!$G$19,"") ->  | L131: =IF(AND('Ex 1.0'!N$72<>"",'Ex 1.0'!N$39<>""),(CONVERT(WFT.U.Const*CONVERT('Ex 1.0'!N$76,"ft","m")^WFT.U.DP*CONVERT(($A$131),"in","mm")^WFT.U.Int*('Ex 1.0'!N$72/100)^WFT.U.Slope,"mm","in")-'Ex 1.0'!$E$81)*'Ex 1.0'!$G$19,"") ->  | M131: =IF(AND('Ex 1.0'!O$72<>"",'Ex 1.0'!O$39<>""),(CONVERT(WFT.U.Const*CONVERT('Ex 1.0'!O$76,"ft","m")^WFT.U.DP*CONVERT(($A$131),"in","mm")^WFT.U.Int*('Ex 1.0'!O$72/100)^WFT.U.Slope,"mm","in")-'Ex 1.0'!$E$81)*'Ex 1.0'!$G$19,"") ->  | Q131: 0.25 | R131: =IF(AND('Ex 1.0'!D$72<>"",'Ex 1.0'!D$39<>""),(CONVERT(WFT.P.Const*'Ex 1.0'!D100^WFT.P.Manni*CONVERT('Ex 1.0'!D$76,"ft","m")^WFT.P.DP*CONVERT(($Q$131),"in","mm")^WFT.P.Int*('Ex 1.0'!D$72/100)^WFT.P.Slope,"mm","in")-'Ex 1.0'!$E$81)*'Ex 1.0'!$G$19,"") -> 0.0006597785874 | S131: =IF(AND('Ex 1.0'!E$72<>"",'Ex 1.0'!E$39<>""),(CONVERT(WFT.P.Const*'Ex 1.0'!E100^WFT.P.Manni*CONVERT('Ex 1.0'!E$76,"ft","m")^WFT.P.DP*CONVERT(($Q$131),"in","mm")^WFT.P.Int*('Ex 1.0'!E$72/100)^WFT.P.Slope,"mm","in")-'Ex 1.0'!$E$81)*'Ex 1.0'!$G$19,"") -> -0.003892362297 | T131: =IF(AND('Ex 1.0'!F$72<>"",'Ex 1.0'!F$39<>""),(CONVERT(WFT.P.Const*'Ex 1.0'!F100^WFT.P.Manni*CONVERT('Ex 1.0'!F$76,"ft","m")^WFT.P.DP*CONVERT(($Q$131),"in","mm")^WFT.P.Int*('Ex 1.0'!F$72/100)^WFT.P.Slope,"mm","in")-'Ex 1.0'!$E$81)*'Ex 1.0'!$G$19,"") -> -0.003892362297 | U131: =IF(AND('Ex 1.0'!G$72<>"",'Ex 1.0'!G$39<>""),(CONVERT(WFT.P.Const*'Ex 1.0'!G100^WFT.P.Manni*CONVERT('Ex 1.0'!G$76,"ft","m")^WFT.P.DP*CONVERT(($Q$131),"in","mm")^WFT.P.Int*('Ex 1.0'!G$72/100)^WFT.P.Slope,"mm","in")-'Ex 1.0'!$E$81)*'Ex 1.0'!$G$19,"") -> 0.005609959656 | V131: =IF(AND('Ex 1.0'!H$72<>"",'Ex 1.0'!H$39<>""),(CONVERT(WFT.P.Const*'Ex 1.0'!H100^WFT.P.Manni*CONVERT('Ex 1.0'!H$76,"ft","m")^WFT.P.DP*CONVERT(($Q$131),"in","mm")^WFT.P.Int*('Ex 1.0'!H$72/100)^WFT.P.Slope,"mm","in")-'Ex 1.0'!$E$81)*'Ex 1.0'!$G$19,"") -> 0.01288416463 | W131: =IF(AND('Ex 1.0'!I$72<>"",'Ex 1.0'!I$39<>""),(CONVERT(WFT.P.Const*'Ex 1.0'!I100^WFT.P.Manni*CONVERT('Ex 1.0'!I$76,"ft","m")^WFT.P.DP*CONVERT(($Q$131),"in","mm")^WFT.P.Int*('Ex 1.0'!I$72/100)^WFT.P.Slope,"mm","in")-'Ex 1.0'!$E$81)*'Ex 1.0'!$G$19,"") -> 0.0149807038 | X131: =IF(AND('Ex 1.0'!J$72<>"",'Ex 1.0'!J$39<>""),(CONVERT(WFT.P.Const*'Ex 1.0'!J100^WFT.P.Manni*CONVERT('Ex 1.0'!J$76,"ft","m")^WFT.P.DP*CONVERT(($Q$131),"in","mm")^WFT.P.Int*('Ex 1.0'!J$72/100)^WFT.P.Slope,"mm","in")-'Ex 1.0'!$E$81)*'Ex 1.0'!$G$19,"") ->  | Y131: =IF(AND('Ex 1.0'!K$72<>"",'Ex 1.0'!K$39<>""),(CONVERT(WFT.P.Const*'Ex 1.0'!K100^WFT.P.Manni*CONVERT('Ex 1.0'!K$76,"ft","m")^WFT.P.DP*CONVERT(($Q$131),"in","mm")^WFT.P.Int*('Ex 1.0'!K$72/100)^WFT.P.Slope,"mm","in")-'Ex 1.0'!$E$81)*'Ex 1.0'!$G$19,"") ->  | Z131: =IF(AND('Ex 1.0'!L$72<>"",'Ex 1.0'!L$39<>""),(CONVERT(WFT.P.Const*'Ex 1.0'!L100^WFT.P.Manni*CONVERT('Ex 1.0'!L$76,"ft","m")^WFT.P.DP*CONVERT(($Q$131),"in","mm")^WFT.P.Int*('Ex 1.0'!L$72/100)^WFT.P.Slope,"mm","in")-'Ex 1.0'!$E$81)*'Ex 1.0'!$G$19,"") ->  | AA131: =IF(AND('Ex 1.0'!M$72<>"",'Ex 1.0'!M$39<>""),(CONVERT(WFT.P.Const*'Ex 1.0'!M100^WFT.P.Manni*CONVERT('Ex 1.0'!M$76,"ft","m")^WFT.P.DP*CONVERT(($Q$131),"in","mm")^WFT.P.Int*('Ex 1.0'!M$72/100)^WFT.P.Slope,"mm","in")-'Ex 1.0'!$E$81)*'Ex 1.0'!$G$19,"") ->  | AB131: =IF(AND('Ex 1.0'!N$72<>"",'Ex 1.0'!N$39<>""),(CONVERT(WFT.P.Const*'Ex 1.0'!N100^WFT.P.Manni*CONVERT('Ex 1.0'!N$76,"ft","m")^WFT.P.DP*CONVERT(($Q$131),"in","mm")^WFT.P.Int*('Ex 1.0'!N$72/100)^WFT.P.Slope,"mm","in")-'Ex 1.0'!$E$81)*'Ex 1.0'!$G$19,"") ->  | AC131: =IF(AND('Ex 1.0'!O$72<>"",'Ex 1.0'!O$39<>""),(CONVERT(WFT.P.Const*'Ex 1.0'!O100^WFT.P.Manni*CONVERT('Ex 1.0'!O$76,"ft","m")^WFT.P.DP*CONVERT(($Q$131),"in","mm")^WFT.P.Int*('Ex 1.0'!O$72/100)^WFT.P.Slope,"mm","in")-'Ex 1.0'!$E$81)*'Ex 1.0'!$G$19,"") -> 
